Workbook

Sheet はじめに
B1: 230327版
B2: 大学ファクトブック2023 【大学個別シート検索】（国立大学）について
B4: 文部科学省が実施した「令和3年度大学等における産学連携等実施状況について」を基に作成された
B5: 大学ファクトブック2023に掲載している大学名から、大学個別シートを検索・取得する機能を提供しています。
B7: 検索の手順
B8: 1.「検索画面」シートのドロップダウンリストから大学名を選択し、検索ボタンを押してください
B9: 2.選択した大学個別シートが「検索画面」シートの右隣に表示されます。シートの選択で「検索画面」シートに戻り、再度検索することが可能です。
B11: 留意事項
B12: ・本ツールは企業や大学の産学連携担当者による利用を想定しています。
B13: ・本ツールの検索結果が残った状態でファイルを閉じる/終了する際、「上書き保存」を選択すると、その検索結果が残った状態で保存されますのでご注意ください。
B14: ・検索で個別シートを非公開にしている大学を選択すると、「個別シートはありません」というポップアップが表示されます。OKボタンを押して他の大学を選択してください。
B15: ・検索で表示される個別シートは、お使いのPC環境によっては印刷がずれる場合があります。印刷の「ページ設定」で横2×縦1に設定し直してください。
B17: お問い合わせ先
B18: 掲載情報等に係るご相談は、下記メールにてご連絡ください。
B19: メールアドレス：bzl-sangakurenkei&&meti.go.jp (&&を＠に変換) 必ず以下の項目・内容をご記載ください。 【件名】大学ファクトブック2023大学検索ツールお問い合わせ ①お名前 ②ご連絡先（メールアドレス・電話番号） ③機関・部署・役職 ④お問い合わせ内容（下記よりお選びください） ・本ツールに関するお問い合わせ ・掲載情報に関するお問い合わせ ・本ツールへのリンク等に関する問い合わせ ・その他

Sheet シートの見方

Sheet 検索画面
A1: 【大学個別シート検索】（国立大学） | Y1: 大学名 | Z1: 研究者数 | AA1: 大型共同研究数 | AB1: 特許保有数 | AC1: ベンチャー数 | AD1: インキュベーション施設 | AE1: クロアポ | AF1: 税
A2: 大学ファクトブック2023の大学個別シートが検索・取得できます。
Y3: -----【国立】----- | Z3: 1,000人以上 | AA3: 100件以上 | AB3: 1,000件以上 | AC3: 50社以上 | AD3: ある | AE3: 50社以上 | AF3: ある
X4: =PHONETIC(Y4) -> 愛知教育大学 | Y4: 愛知教育大学 | Z4: 500人以上1,000人未満 | AA4: 50件以上100件未満 | AB4: 500件以上1,000件未満 | AC4: 10社以上50社未満 | AD4: ない | AE4: 10社以上50社未満 | AF4: ない
A5: 大学名から探す（あ～て） | D5: 大学名をプルダウンから選択して検索します。 | X5: 秋田大学 | Y5: 秋田大学 | Z5: 100人以上500人未満 | AA5: 10件以上50件未満 | AB5: 100件以上500件未満 | AC5: 5社以上10社未満 | AE5: 5社以上10社未満
X6: 旭川医科大学 | Y6: 旭川医科大学 | Z6: 100人未満 | AA6: 10件未満 | AB6: 100件未満 | AC6: 5社未満 | AE6: 5社未満
B7: 愛知教育大学 | X7: 茨城大学 | Y7: 茨城大学
X8: 岩手大学 | Y8: 岩手大学
X9: 宇都宮大学 | Y9: 宇都宮大学
X10: 愛媛大学 | Y10: 愛媛大学
X11: 大分大学 | Y11: 大分大学
X12: 大阪教育大学 | Y12: 大阪教育大学
X13: 大阪大学 | Y13: 大阪大学
X14: 岡山大学 | Y14: 岡山大学
X15: 小樽商科大学 | Y15: 小樽商科大学
X16: オ茶ノ水女子大学 | Y16: お茶の水女子大学
X17: 帯広畜産大学 | Y17: 帯広畜産大学
X18: 香川大学 | Y18: 香川大学
X19: 鹿児島大学 | Y19: 鹿児島大学
X20: 金沢大学 | Y20: 金沢大学
X21: 鹿屋体育大学 | Y21: 鹿屋体育大学
X22: 北見工業大学 | Y22: 北見工業大学
X23: 岐阜大学 | Y23: 岐阜大学
X24: 九州工業大学 | Y24: 九州工業大学
X25: 九州大学 | Y25: 九州大学
X26: 京都教育大学 | Y26: 京都教育大学
X27: 京都工芸繊維大学 | Y27: 京都工芸繊維大学
X28: 京都大学 | Y28: 京都大学
X29: 熊本大学 | Y29: 熊本大学
X30: 群馬大学 | Y30: 群馬大学
X31: 高知大学 | Y31: 高知大学
X32: 神戸大学 | Y32: 神戸大学
X33: 電気通信大学 | Y33: 電気通信大学
X34: 埼玉大学 | Y34: 埼玉大学
X35: 佐賀大学 | Y35: 佐賀大学
X36: 滋賀医科大学 | Y36: 滋賀医科大学
X37: 滋賀大学 | Y37: 滋賀大学
X38: 静岡大学 | Y38: 静岡大学
X39: 島根大学 | Y39: 島根大学
X40: 上越教育大学 | Y40: 上越教育大学
X41: 信州大学 | Y41: 信州大学
X42: 政策研究大学院大学 | Y42: 政策研究大学院大学
X43: 総合研究大学院大学 | Y43: 総合研究大学院大学
X44: 千葉大学 | Y44: 千葉大学
X45: 筑波技術大学 | Y45: 筑波技術大学
X46: 筑波大学 | Y46: 筑波大学
X47: 東京医科歯科大学 | Y47: 東京医科歯科大学
X48: 東京外国語大学 | Y48: 東京外国語大学
X49: 東京海洋大学 | Y49: 東京海洋大学
X50: 東京学芸大学 | Y50: 東京学芸大学
X51: 東京芸術大学 | Y51: 東京芸術大学
X52: 東京工業大学 | Y52: 東京工業大学
X53: 東京大学 | Y53: 東京大学
X54: 東京農工大学 | Y54: 東京農工大学
X55: 東北大学 | Y55: 東北大学
X56: 徳島大学 | Y56: 徳島大学
X57: 鳥取大学 | Y57: 鳥取大学
X58: 富山大学 | Y58: 富山大学
X59: 豊橋技術科学大学 | Y59: 豊橋技術科学大学
X60: 長岡技術科学大学 | Y60: 長岡技術科学大学
X61: 長崎大学 | Y61: 長崎大学
X62: 名古屋工業大学 | Y62: 名古屋工業大学
X63: 名古屋大学 | Y63: 名古屋大学
X64: 奈良教育大学 | Y64: 奈良教育大学
X65: 奈良女子大学 | Y65: 奈良女子大学
X66: 奈良先端科学技術大学院大学 | Y66: 奈良先端科学技術大学院大学
X67: 鳴門教育大学 | Y67: 鳴門教育大学
X68: =PHONETIC(Y68) -> 新潟大学 | Y68: 新潟大学
X69: 浜松医科大学 | Y69: 浜松医科大学
X70: 一橋大学 | Y70: 一橋大学
X71: 兵庫教育大学 | Y71: 兵庫教育大学
X72: 弘前大学 | Y72: 弘前大学
X73: 広島大学 | Y73: 広島大学
X74: 福井大学 | Y74: 福井大学
X75: 福岡教育大学 | Y75: 福岡教育大学
X76: 福島大学 | Y76: 福島大学
X77: 北陸先端科学技術大学院大学 | Y77: 北陸先端科学技術大学院大学
X78: 北海道教育大学 | Y78: 北海道教育大学
X79: 北海道大学 | Y79: 北海道大学
X80: 三重大学 | Y80: 三重大学
X81: 宮城教育大学 | Y81: 宮城教育大学
X82: 宮崎大学 | Y82: 宮崎大学
X83: 室蘭工業大学 | Y83: 室蘭工業大学
X84: 山形大学 | Y84: 山形大学
X85: 山口大学 | Y85: 山口大学
X86: 山梨大学 | Y86: 山梨大学
X87: 横浜国立大学 | Y87: 横浜国立大学
X88: 琉球大学 | Y88: 琉球大学
X89: 和歌山大学 | Y89: 和歌山大学
Y90: -----【公立】-----
X91: =PHONETIC(Y91) -> 愛知県立芸術大学 | Y91: 愛知県立芸術大学
X92: =PHONETIC(Y92) -> 愛知県立大学 | Y92: 愛知県立大学
X93: 会津大学 | Y93: 会津大学
X94: 青森県立保健大学 | Y94: 青森県立保健大学
X95: 青森公立大学 | Y95: 青森公立大学
X96: 秋田県立大学 | Y96: 秋田県立大学
X97: 秋田公立美術大学 | Y97: 秋田公立美術大学
X98: 石川県立看護大学 | Y98: 石川県立看護大学
X99: 石川県立大学 | Y99: 石川県立大学
X100: 茨城県立医療大学 | Y100: 茨城県立医療大学
X101: 岩手県立大学 | Y101: 岩手県立大学
X102: 叡啓大学 | Y102: 叡啓大学
X103: 愛媛県立医療技術大学 | Y103: 愛媛県立医療技術大学
X104: 大分県立看護科学大学 | Y104: 大分県立看護科学大学
X105: 大阪公立大学（大阪市立大学） | Y105: 大阪公立大学（大阪市立大学）
X106: 大阪公立大学（大阪府立大学） | Y106: 大阪公立大学（大阪府立大学）
X107: 岡山県立大学 | Y107: 岡山県立大学
X108: 沖縄県立看護大学 | Y108: 沖縄県立看護大学
X109: 沖縄県立芸術大学 | Y109: 沖縄県立芸術大学
X110: 尾道市立大学 | Y110: 尾道市立大学
X111: 香川県立保健医療大学 | Y111: 香川県立保健医療大学
X112: 金沢美術工芸大学 | Y112: 金沢美術工芸大学
X113: 北九州市立大学 | Y113: 北九州市立大学
X114: 岐阜県立看護大学 | Y114: 岐阜県立看護大学
X115: 岐阜薬科大学 | Y115: 岐阜薬科大学
X116: 九州歯科大学 | Y116: 九州歯科大学
X117: 京都市立芸術大学 | Y117: 京都市立芸術大学
X118: 京都府立医科大学 | Y118: 京都府立医科大学
X119: 京都府立大学 | Y119: 京都府立大学
X120: 釧路公立大学 | Y120: 釧路公立大学
X121: 熊本県立大学 | Y121: 熊本県立大学
X122: 群馬県立県民健康科学大学 | Y122: 群馬県立県民健康科学大学
X123: 群馬県立女子大学 | Y123: 群馬県立女子大学
X124: 芸術文化観光専門職大学 | Y124: 芸術文化観光専門職大学
X125: 県立広島大学 | Y125: 県立広島大学
X126: 高知県立大学 | Y126: 高知県立大学
X127: 高知工科大学 | Y127: 高知工科大学
X128: 神戸市外国語大学 | Y128: 神戸市外国語大学
X129: 神戸市看護大学 | Y129: 神戸市看護大学
X130: 公立小松大学 | Y130: 公立小松大学
X131: 公立諏訪東京理科大学 | Y131: 公立諏訪東京理科大学
X132: 公立千歳科学技術大学 | Y132: 公立千歳科学技術大学
X133: 公立鳥取環境大学 | Y133: 公立鳥取環境大学
X134: 公立ハコダテ未来大学 | Y134: 公立はこだて未来大学
X135: 国際教養大学 | Y135: 国際教養大学
X136: 埼玉県立大学 | Y136: 埼玉県立大学
X137: 札幌医科大学 | Y137: 札幌医科大学
X138: 札幌市立大学 | Y138: 札幌市立大学
X139: 三条市立大学 | Y139: 三条市立大学
X140: 山陽小野田市立山口東京理科大学 | Y140: 山陽小野田市立山口東京理科大学
X141: 滋賀県立大学 | Y141: 滋賀県立大学
X142: 静岡県立大学 | Y142: 静岡県立大学
X143: 静岡県立農林環境専門職大学 | Y143: 静岡県立農林環境専門職大学
X144: 静岡社会健康医学大学院大学 | Y144: 静岡社会健康医学大学院大学
X145: 静岡文化芸術大学 | Y145: 静岡文化芸術大学
X146: 島根県立大学 | Y146: 島根県立大学
X147: 下関市立大学 | Y147: 下関市立大学
X148: 高崎経済大学 | Y148: 高崎経済大学
X149: 敦賀市立看護大学 | Y149: 敦賀市立看護大学
X150: 都留文科大学 | Y150: 都留文科大学
X151: 東京都立産業技術大学院大学 | Y151: 東京都立産業技術大学院大学
X152: 東京都立大学 | Y152: 東京都立大学
X153: 富山県立大学 | Y153: 富山県立大学
X154: 長岡造形大学 | Y154: 長岡造形大学
X155: 長崎県立大学 | Y155: 長崎県立大学
X156: =PHONETIC(Y156) -> 長野県看護大学 | Y156: 長野県看護大学
X157: 長野県立大学 | Y157: 長野県立大学
X158: 長野大学 | Y158: 長野大学
X159: 名古屋市立大学 | Y159: 名古屋市立大学
X160: 名寄市立大学 | Y160: 名寄市立大学
X161: 奈良県立医科大学 | Y161: 奈良県立医科大学
X162: 奈良県立大学 | Y162: 奈良県立大学
X163: 新潟県立看護大学 | Y163: 新潟県立看護大学
X164: 新潟県立大学 | Y164: 新潟県立大学
X165: 新見公立大学 | Y165: 新見公立大学
X166: 兵庫県立大学 | Y166: 兵庫県立大学
X167: 広島市立大学 | Y167: 広島市立大学
X168: 福井県立大学 | Y168: 福井県立大学
X169: 福岡女子大学 | Y169: 福岡女子大学
X170: 福島県立医科大学 | Y170: 福島県立医科大学
X171: 福知山公立大学 | Y171: 福知山公立大学
X172: 福山市立大学 | Y172: 福山市立大学
X173: 前橋工科大学 | Y173: 前橋工科大学
X174: 三重県立看護大学 | Y174: 三重県立看護大学
X175: 宮城大学 | Y175: 宮城大学
X176: 宮崎公立大学 | Y176: 宮崎公立大学
X177: 名桜大学 | Y177: 名桜大学
X178: 山形県立保健医療大学 | Y178: 山形県立保健医療大学
X179: 山形県立米沢栄養大学 | Y179: 山形県立米沢栄養大学
X180: 山口県立大学 | Y180: 山口県立大学
X181: 山梨県立大学 | Y181: 山梨県立大学
X182: 横浜市立大学 | Y182: 横浜市立大学
X183: 和歌山県立医科大学 | Y183: 和歌山県立医科大学
X184: -----【シリツ】----- | Y184: -----【私立】-----
Y185: 愛国学園大学
X186: =PHONETIC(Y186) -> 愛知医科大学 | Y186: 愛知医科大学
X187: 愛知学院大学 | Y187: 愛知学院大学
X188: 愛知学泉大学 | Y188: 愛知学泉大学
X189: 愛知工科大学 | Y189: 愛知工科大学
X190: 愛知工業大学 | Y190: 愛知工業大学
X191: 愛知産業大学 | Y191: 愛知産業大学
X192: 愛知淑徳大学 | Y192: 愛知淑徳大学
X193: 愛知大学 | Y193: 愛知大学
X194: 愛知東邦大学 | Y194: 愛知東邦大学
X195: 愛知文教大学 | Y195: 愛知文教大学
X196: 藍野大学 | Y196: 藍野大学
X197: 青森大学 | Y197: 青森大学
X198: 青森中央学院大学 | Y198: 青森中央学院大学
X199: 青山学院大学 | Y199: 青山学院大学
X200: 秋田看護福祉大学 | Y200: 秋田看護福祉大学
... 581 more rows

Sheet 愛知教育大学 (hidden)
A1: 国立 | C1: 愛知教育大学（愛知県） | X1: 大学全体の経営理念における産学官連携活動の取組方針 | CB1: 80 | CC1: 81 | CD1: 82 | CE1: 83 | CF1: 84 | CG1: 85 | CH1: 86 | CI1: 87 | CJ1: 88 | CK1: 89 | CL1: 90 | CM1: 91 | CN1: 92 | CO1: 93 | CP1: 94 | CQ1: 95 | CR1: 96 | CS1: 97 | CT1: 98 | CU1: 99 | CV1: 100 | CW1: 101 | CX1: 102 | CY1: 103 | CZ1: 104 | DA1: 105 | DB1: 106 | DC1: 107 | DD1: 108 | DE1: 109 | DF1: 110 | DG1: 111 | DH1: 112 | DI1: 113 | DJ1: 114 | DK1: 115 | DL1: 116 | DM1: 117 | DN1: 118 | DO1: 119 | DP1: 120 | DQ1: 121 | DR1: 122 | DS1: 123 | DT1: 124 | DU1: 125 | DV1: 126 | DW1: 127 | DX1: 128 | DY1: 129
BB3: ＵＲＡ | BO3: URA当たり研究者数 | CA3: 戦略的産学連携経費
BC4: 実務担当者数 | BI4: 0 | BN4: 名 | BO4: =IF(OR(K25="",BI4=""),"",(IFERROR(K25/BI4,""))) ->  | BX4: 名 | CB4: 戦略的産学連携経費の設定 | CP4: 有 | CT4: 無 | CZ4: ない | DA4: インキュベーション施設
A5: 1 | B5: 2 | C5: 3 | D5: 4 | E5: 5 | F5: 6 | G5: 7 | H5: 8 | I5: 9 | J5: 10 | K5: 11 | L5: 12 | M5: 13 | N5: 14 | O5: 15 | P5: 16 | Q5: 17 | R5: 18 | S5: 19 | T5: 20 | U5: 21 | V5: 22 | W5: 23 | X5: 24 | Y5: 25 | Z5: 26 | AA5: 27 | AB5: 28 | AC5: 29 | AD5: 30 | AE5: 31 | AF5: 32 | AG5: 33 | AH5: 34 | AI5: 35 | AJ5: 36 | AK5: 37 | AL5: 38 | AM5: 39 | AN5: 40 | AO5: 41 | AP5: 42 | AQ5: 43 | AR5: 44 | AS5: 45 | AT5: 46 | AU5: 47 | AV5: 48 | AW5: 49 | AX5: 50 | AY5: 51 | AZ5: 52 | BA5: 53 | BB5: 54 | BC5: 55 | BD5: 56 | BE5: 57 | BF5: 58 | BG5: 59 | BH5: 60 | BI5: 61 | BJ5: 62 | BK5: 63 | BL5: 64 | BM5: 65 | BN5: 66 | BO5: 67 | BP5: 68 | BQ5: 69 | BR5: 70 | BS5: 71 | BT5: 72 | BU5: 73 | BV5: 74 | BW5: 75 | BX5: 76 | BY5: 77 | BZ5: 78 | CA5: 79 | CB5: 戦略的産学連携経費の費目 | CZ5: ない | DA5: 相談窓口
A6: 基 礎 情 報 | BB6: 各種規程類の整備状況 | CB6: 戦略的産学連携経費の直接経費に対する割合 | CZ6: ない | DA6: 設立ポリシー | DI6: × | DJ6: 産学連携ポリシー
BB7: 産学連携ポリシー | BM7: 職務発明規程（教職員のみ対象） | CZ7: ない | DA7: 支援ファンド | DI7: × | DJ7: 知的財産ポリシー
B8: 大学の得意分野とその具体例 | BB8: 知的財産ポリシー | BM8: 職務発明規程（教職員、学生対象） | CA8: 人件費の企業負担 | DI8: △ | DJ8: 共同研究取扱規程
AA9: 科研費 （千円） | AL9: その他政府系資金 (千円) | AS9: その他団体からの資金 (千円) | BB9: 共同研究取扱規程 | BM9: 発明補償関係規程（教職員のみ対象） | CB9: 教員人件費の企業負担に関する規程や制度 | CP9: 有 | CT9: 無 | DI9: ◎ | DJ9: 受託研究取扱規程
BB10: 受託研究取扱規程 | BM10: 発明補償関係規程（教職員、学生対象） | CB10: 教員人件費の企業負担の費目 | DI10: △ | DJ10: 研究成果有体物取扱規程
AA11: 61070 | AL11: 0 | AS11: 0 | BB11: 研究成果有体物取扱規程 | BM11: 守秘義務に係る規程（教職員のみ対象） | CB11: 学生人件費の企業負担に関する規程や制度 | CP11: 有 | CT11: 無 | DI11: × | DJ11: 営業秘密管理に関する規程
BB12: 営業秘密管理に関する規程 | BM12: 守秘義務に係る規程（教職員、学生対象） | CB12: 学生人件費の企業負担の費目 | DI12: × | DJ12: 株式の取扱等規程、ポリシー
AA13: 間接経費割合 | AN13: 株式の保有 | AT13: 新株予約権の保有 | BB13: 株式の取扱等規程、ポリシー | DB13: 株式 | DI13: ◎ | DJ13: 職務発明規程（教職員のみ対象）
AA14: 0.3 | AN14: 有 | AQ14: 無 | AT14: 有 | AW14: 無 | BD14: ※各種規定類を整備している場合は、赤色で表示されます。 | CA14: 特別試験研究費税額控除制度 | DB14: 新株予約権 | DI14: × | DJ14: 職務発明規程（教職員、学生対象）
B15: 産学官連携活動において今後重点化したい事項 | CB15: 特別試験研究費税額控除制度の活用 | CP15: 有 | CT15: 無 | DI15: ◎ | DJ15: 発明補償関係規程（教職員のみ対象）
AA16: ■共同研究 | AG16: 2020年度 | AO16: 2021年度 | AW16: 順位※ | BB16: クロスアポイントメントの実績（人） | BK16: 大学等 | BN16: 公的機関 | BQ16: 民間企業 | BU16: その他機関 | DI16: × | DJ16: 発明補償関係規程（教職員、学生対象）
AG17: 受入額（千円） | AL17: 件数 | AO17: 受入額（千円） | AT17: 件数 | BH17: 受入 | BK17: 0 | BN17: 0 | BQ17: 1 | BU17: 0 | DB17: 順位 | DI17: ◎ | DJ17: 守秘義務に係る規程（教職員のみ対象）
AA18: 全体 | AG18: 0 | AL18: 0 | AO18: 0 | AT18: 0 | AW18: =IF(DB18<50,DB18,"") ->  | AY18: 位 | BH18: 派遣 | BK18: 0 | BN18: 0 | BQ18: 0 | BU18: 0 | DB18: 485 | DI18: × | DJ18: 守秘義務に係る規程（教職員、学生対象）
AB19: 民間企業 のみ | AG19: 0 | AL19: 0 | AO19: 0 | AT19: 0 | AW19: =IF(DB19<50,DB19,"") ->  | AY19: 位 | DB19: 452
AC20: 大企業 | AG20: 0 | AL20: 0 | AO20: 0 | AT20: 0 | AW20: =IF(DB20<50,DB20,"") ->  | AY20: 位 | DB20: 399 | DI20: ない | DJ20: 戦略的産学連携経費の設定
AC21: 中小企業 | AG21: 0 | AL21: 0 | AO21: 0 | AT21: 0 | AW21: =IF(DB21<50,DB21,"") ->  | AY21: 位 | BB21: ■組織的産学連携活動の取組事例 | DB21: 357 | DI21: ない | DJ21: 教員人件費の企業負担に関する規程や制度
AL22: ※順位は2021年度の受入額を比較したもの | DI22: ない | DJ22: 学生人件費の企業負担に関する規程や制度
B23: 産学官連携本部等組織名 | DB23: 0 | DC23: 0 | DI23: ない | DJ23: 特別試験研究費税額控除制度の活用
B24: 産学官連携本部等URL | DB24: ～100万 | DC24: 0
B25: 研究者数 | K25: 206 | O25: 名 | DB25: ～300万 | DC25: 0
DB26: ～500万 | DC26: 0
DB27: ～1000万 | DC27: 0
DB28: ～5000万 | DC28: 0
DB29: ～1億 | DC29: 0 | DJ29: 共同研究等の企画・提案
B30: 産学連携担当部署 | O30: 実務者当たり研究者数 | DB30: 1億以上 | DC30: 0 | DJ30: 契約書での成果目標、達成時の明記
C31: 実務担当者数 | I31: 3 | N31: 名 | O31: =IF(OR(K25="",I31=""),"",IFERROR($K$25/I31,"")) -> 68.66666667 | X31: 名 | DJ31: 共同研究契約の締結/判断（契約権限の集中）
C32: 専門家の配置 | I32: 弁護士 | L32: 弁理士 | O32: 税理士 | R32: 公認会計士 | V32: その他 | DJ32: 共同研究の進捗管理とフィードバック
I33: ※専門家を配置している場合は、赤色で表示されます。 | DJ33: 企業ニーズに適応した技術移転・事業化提案
AA34: ■受託研究 | AG34: 2020年度 | AO34: 2021年度 | AW34: 順位※ | DJ34: 共同研究等の企画・提案
AG35: 受入額（千円） | AL35: 件数（件） | AO35: 受入額（千円） | AT35: 件数（件） | DB35: 順位 | DJ35: 契約書での成果目標、達成時の明記
AA36: 全体 | AG36: 345 | AL36: 2 | AO36: 660 | AT36: 3 | AW36: =IF(DB36<50,DB36,"") ->  | AY36: 位 | DB36: 495 | DJ36: 共同研究契約の締結/判断（契約権限の集中）
AB37: 民間企業 のみ | AG37: 0 | AL37: 0 | AO37: 0 | AT37: 0 | AW37: =IF(DB37<50,DB37,"") ->  | AY37: 位 | DB37: 403 | DJ37: 共同研究の進捗管理とフィードバック
C38: 産学連携本部が関与した共同研究 | P38: 0 | T38: 件 | AC38: 大企業 | AG38: 0 | AL38: 0 | AO38: 0 | AT38: 0 | AW38: =IF(DB38<50,DB38,"") ->  | AY38: 位 | DB38: 316 | DJ38: 企業ニーズに適応した技術移転・事業化提案
D39: 内、マッチングを行い、契約締結した件数 | P39: 0 | T39: 件 | AC39: 中小企業 | AG39: 0 | AL39: 0 | AO39: 0 | AT39: 0 | AW39: =IF(DB39<50,DB39,"") ->  | AY39: 位 | BB39: ■産学連携活動の主な実用化事例 | DB39: 318 | DJ39: 共同研究等の企画・提案
I40: ※1,000万円以上の共同研究 | AL40: ※順位は2021年度の受入額を比較したもの | DB40: 弁護士 | DG40: 0 | DH40: 0 | DJ40: 契約書での成果目標、達成時の明記
DB41: 弁理士 | DG41: ～100万 | DH41: 0 | DJ41: 共同研究契約の締結/判断（契約権限の集中）
C42: 組織対組織による包括連携契約の締結数 | P42: 0 | T42: 件 | DB42: 税理士 | DG42: ～300万 | DH42: 0 | DJ42: 共同研究の進捗管理とフィードバック
D43: 内、1,000万円以上の実績がある相手方数 | P43: 0 | T43: 件 | DB43: 公認会計士 | DG43: ～500万 | DH43: 0 | DJ43: 企業ニーズに適応した技術移転・事業化提案
DB44: その他 | DG44: ～1000万 | DH44: 0
C45: 寄附講座・寄附研究部門の受入件数 | V45: 件 | DG45: ～5000万 | DH45: 0
C46: 寄附講座・寄附研究部門の受入金額（千円） | P46: 0 | DG46: ～1億 | DH46: 0
C47: 共同研究講座・共同研究部門の受入件数 | P47: 0 | V47: 件 | DG47: 1億以上 | DH47: 0
C48: 共同研究講座・共同研究部門の受入金額（千円） | P48: 0
C52: 職務発明の帰属 | I52: 大学 | M52: 発明者 | Q52: 未設定 | CZ52: 大学 | DA52: 職務発明
AD53: 特許権実施等件数 | AL53: 0 | AQ53: 件 | AS53: 実施等件数 あたり | DA53: 不実施
M54: 研究者あたり | AD54: 特許権実施等収入（千円） | AL54: 0 | AS54: =IF(OR(AL53="",AL54=""),"",IFERROR(AL54/AL53,"")) ->  | CZ54: 0 | DA54: 特許等収入
C55: 特許出願件数（件） | I55: 0 | M55: =IF(OR(K25="",I55=""),"",IFERROR(I55/K25,"")) -> 0
C56: 特許保有件数（件） | I56: 1 | M56: =IF(OR(K25="",I56=""),"",IFERROR(I56/K25,"")) -> 0.004854368932
C61: 大学発ベンチャー数 | O61: 社
C62: Exit件数（IPO） | J62: 0 | O62: 社 | P62: Exit件数（M&A） | W62: 0 | Z62: 社
C63: 相談窓口 | K63: 支援ファンド | S63: インキュベーション施設
C64: 有 | G64: 無 | K64: 有 | O64: 無 | S64: 有 | W64: 無
C65: 知的財産戦略方針 | K65: 支援総額（千円） | S65: 面積 | Z65: 平方メートル
C66: 有 | G66: 無 | S66: 契約企業数 | Z66: 社
A69: 1 | B69: 2 | C69: 3 | D69: 4 | E69: 5 | F69: 6 | G69: 7 | H69: 8 | I69: 9 | J69: 10 | K69: 11 | L69: 12 | M69: 13 | N69: 14 | O69: 15 | P69: 16 | Q69: 17 | R69: 18 | S69: 19 | T69: 20 | U69: 21 | V69: 22 | W69: 23 | X69: 24 | Y69: 25 | Z69: 26 | AA69: 27 | AB69: 28 | AC69: 29 | AD69: 30 | AE69: 31 | AF69: 32 | AG69: 33 | AH69: 34 | AI69: 35 | AJ69: 36 | AK69: 37 | AL69: 38 | AM69: 39 | AN69: 40 | AO69: 41 | AP69: 42 | AQ69: 43 | AR69: 44 | AS69: 45 | AT69: 46 | AU69: 47 | AV69: 48 | AW69: 49 | AX69: 50 | AY69: 51 | AZ69: 52 | BA69: 53 | BB69: 54 | BC69: 55 | BD69: 56 | BE69: 57 | BF69: 58 | BG69: 59 | BH69: 60 | BI69: 61 | BJ69: 62 | BK69: 63 | BL69: 64 | BM69: 65 | BN69: 66 | BO69: 67 | BP69: 68 | BQ69: 69 | BR69: 70 | BS69: 71 | BT69: 72 | BU69: 73 | BV69: 74 | BW69: 75 | BX69: 76 | BY69: 77 | BZ69: 78 | CA69: 79 | CB69: 80 | CC69: 81 | CD69: 82 | CE69: 83 | CF69: 84 | CG69: 85 | CH69: 86 | CI69: 87 | CJ69: 88 | CK69: 89 | CL69: 90 | CM69: 91 | CN69: 92 | CO69: 93 | CP69: 94 | CQ69: 95 | CR69: 96 | CS69: 97 | CT69: 98 | CU69: 99 | CV69: 100 | CW69: 101 | CX69: 102 | CY69: 103 | CZ69: 104 | DA69: 105 | DB69: 106 | DC69: 107 | DD69: 108 | DE69: 109 | DF69: 110 | DG69: 111 | DH69: 112 | DI69: 113 | DJ69: 114 | DK69: 115 | DL69: 116 | DM69: 117 | DN69: 118 | DO69: 119 | DP69: 120 | DQ69: 121 | DR69: 122 | DS69: 123 | DT69: 124 | DU69: 125
D70: 特許権収入
B71: 東京大学 | C71: 4744 | D71: 557703000
B72: 東北大学 | C72: 3726 | D72: 275164000
B73: 大阪大学 | C73: 3253 | D73: 395417000
B74: 京都大学 | C74: 3217 | D74: 886135000
B75: 東京工業大学 | C75: 2019 | D75: 42504000
B76: 九州大学 | C76: 1733 | D76: 142436000
B77: 名古屋大学 | C77: 1496 | D77: 72276000
B78: 北海道大学 | C78: 1219 | D78: 115470000
B79: 信州大学 | C79: 1047 | D79: 32411000
B80: 広島大学 | C80: 1019 | D80: 44418000
B81: 筑波大学 | C81: 892 | D81: 27835000
B82: 慶應義塾大学 | C82: 856 | D82: 58283000
B83: 千葉大学 | C83: 851 | D83: 9761000
B84: 岡山大学 | C84: 739 | D84: 21802000
B85: 山口大学 | C85: 711 | D85: 26145000
B86: 東京農工大学 | C86: 667 | D86: 10063000
B87: 名古屋工業大学 | C87: 660 | D87: 23496000
B88: 東京理科大学 | C88: 629 | D88: 11695000
B89: 九州工業大学 | C89: 607 | D89: 5845000
B90: 神戸大学 | C90: 581 | D90: 104449000
B91: 熊本大学 | C91: 543 | D91: 19748000
B92: 群馬大学 | C92: 536 | D92: 3598000
B93: 静岡大学 | C93: 523 | D93: 2662000
B94: 横浜国立大学 | C94: 509 | D94: 4920000
B95: 大阪公立大学（大阪府立大学） | C95: 502 | D95: 8255000
B96: 近畿大学 | C96: 488 | D96: 26794000
B97: 鹿児島大学 | C97: 458 | D97: 8269000
B98: 長岡技術科学大学 | C98: 440 | D98: 2979000
B99: 奈良先端科学技術大学院大学 | C99: 435 | D99: 3758000
B100: 東京都立大学 | C100: 435 | D100: 1170000
B101: 山梨大学 | C101: 426 | D101: 28912000
B102: 大阪公立大学（大阪市立大学） | C102: 423 | D102: 3124000
B103: 三重大学 | C103: 422 | D103: 20215000
B104: 東京医科歯科大学 | C104: 418 | D104: 74575000
B105: 電気通信大学 | C105: 406 | D105: 2740000
B106: 豊橋技術科学大学 | C106: 395 | D106: 7491000
B107: 関西大学 | C107: 392 | D107: 5519000
B108: 徳島大学 | C108: 385 | D108: 26218000
B109: 金沢大学 | C109: 360 | D109: 14331000
B110: 北里大学 | C110: 350 | D110: 47578000
B111: 香川大学 | C111: 343 | D111: 13987000
B112: 鳥取大学 | C112: 341 | D112: 5178000
B113: 新潟大学 | C113: 323 | D113: 11052000
B114: 富山大学 | C114: 319 | D114: 21312000
B115: 埼玉大学 | C115: 314 | D115: 2129000
B116: 同志社大学 | C116: 310 | D116: 26699000
B117: 日本大学 | C117: 306 | D117: 50528000
B118: 高知大学 | C118: 296 | D118: 22439000
B119: 立命館大学 | C119: 283 | D119: 5079000
B120: 自然科学研究機構 | C120: 278 | D120: 23513000
B121: 弘前大学 | C121: 261 | D121: 6272000
B122: 岐阜大学 | C122: 260 | D122: 9851000
B123: 宮崎大学 | C123: 257 | D123: 2044000
B124: 神奈川大学 | C124: 254 | D124: 4373000
B125: 兵庫県立大学 | C125: 248 | D125: 37000
B126: 秋田大学 | C126: 242 | D126: 245000
B127: 佐賀大学 | C127: 239 | D127: 6705000
B128: 福井大学 | C128: 239 | D128: 3402000
B129: 東海大学 | C129: 238 | D129: 771000
B130: 山形大学 | C130: 237 | D130: 3491000
B131: 横浜市立大学 | C131: 234 | D131: 25613000
B132: 札幌医科大学 | C132: 229 | D132: 28223000
B133: 京都工芸繊維大学 | C133: 224 | D133: 2740000
B134: 名城大学 | C134: 224 | D134: 475000
B135: 千葉工業大学 | C135: 210 | D135: 22544000
B136: 情報・システム研究機構 | C136: 208 | D136: 5139000
B137: 長崎大学 | C137: 201 | D137: 14882000
B138: 東京海洋大学 | C138: 194 | D138: 2761000
B139: 愛媛大学 | C139: 188 | D139: 18823000
B140: 東京女子医科大学 | C140: 188 | D140: 2124000
B141: 岩手大学 | C141: 188 | D141: 1268000
B142: 北陸先端科学技術大学院大学 | C142: 182 | D142: 7446000
B143: 福岡大学 | C143: 178 | D143: 1047000
B144: 沖縄科学技術大学院大学 | C144: 173 | D144: 1100000
B145: 高知工科大学 | C145: 169 | D145: 45000
B146: 宇都宮大学 | C146: 168 | D146: 7200000
B147: 茨城大学 | C147: 167 | D147: 1237000
B148: 金沢工業大学 | C148: 151 | D148: 3018000
B149: 中央大学 | C149: 151 | D149: 2106000
B150: 大分大学 | C150: 148 | D150: 1748000
B151: 京都府立医科大学 | C151: 147 | D151: 11367000
B152: 関西学院大学 | C152: 146 | D152: 16773000
B153: 滋賀医科大学 | C153: 141 | D153: 5086000
B154: 自治医科大学 | C154: 140 | D154: 10251000
B155: 島根大学 | C155: 140 | D155: 1478000
B156: 上智大学 | C156: 140 | D156: 200000
B157: 浜松医科大学 | C157: 135 | D157: 3613000
B158: 高エネルギー加速器研究機構 | C158: 135 | D158: 712000
B159: 順天堂大学 | C159: 132 | D159: 5278000
B160: 中部大学 | C160: 122 | D160: 1378000
B161: 名古屋市立大学 | C161: 114 | D161: 38831000
B162: 久留米大学 | C162: 112 | D162: 902000
B163: 豊田工業大学 | C163: 109 | D163: 0
B164: 芝浦工業大学 | C164: 103 | D164: 1238000
B165: 東京電機大学 | C165: 102 | D165: 3875000
B166: 埼玉医科大学 | C166: 99 | D166: 8849000
B167: 関東学院大学 | C167: 97 | D167: 9990000
B168: 琉球大学 | C168: 92 | D168: 1146000
B169: 明治大学 | C169: 91 | D169: 4260000
B170: 北見工業大学 | C170: 91 | D170: 753000
B171: 和歌山大学 | C171: 88 | D171: 3592000
B172: 富山県立大学 | C172: 86 | D172: 1957000
B173: 静岡県立大学 | C173: 84 | D173: 1231000
B174: 神奈川工科大学 | C174: 83 | D174: 289000
B175: 藤田医科大学 | C175: 80 | D175: 0
B176: 福岡工業大学 | C176: 69 | D176: 0
B177: 早稲田大学 | C177: 66 | D177: 19945000
B178: 福島大学 | C178: 65 | D178: 217000
B179: 帝京大学 | C179: 62 | D179: 2716000
B180: 岡山理科大学 | C180: 59 | D180: 1200000
B181: 日本医科大学 | C181: 58 | D181: 7708000
B182: 奈良県立医科大学 | C182: 58 | D182: 1283000
B183: 旭川医科大学 | C183: 58 | D183: 700000
B184: 帯広畜産大学 | C184: 57 | D184: 524000
B185: 兵庫医科大学 | C185: 56 | D185: 5620000
B186: 室蘭工業大学 | C186: 55 | D186: 1000
B187: 秋田県立大学 | C187: 54 | D187: 2624000
B188: 東洋大学 | C188: 53 | D188: 2185000
B189: 立教大学 | C189: 53 | D189: 8000
B190: 聖マリアンナ医科大学 | C190: 50 | D190: 109000
B191: 法政大学 | C191: 49 | D191: 874000
B192: お茶の水女子大学 | C192: 49 | D192: 5000
B193: 会津大学 | C193: 48 | D193: 132000
B194: 玉川大学 | C194: 48 | D194: 125000
B195: 関西医科大学 | C195: 47 | D195: 3568000
B196: 甲南大学 | C196: 45 | D196: 1103000
B197: 大阪工業大学 | C197: 44 | D197: 0
B198: 龍谷大学 | C198: 43 | D198: 168000
B199: 広島市立大学 | C199: 43 | D199: 0
B200: 産業医科大学 | C200: 42 | D200: 1006000
B201: 工学院大学 | C201: 41 | D201: 1396000
B202: 北九州市立大学 | C202: 37 | D202: 5488000
B203: 東京農業大学 | C203: 37 | D203: 473000
B204: 鈴鹿工業高等専門学校 | C204: 34 | D204: 74000
B205: 青山学院大学 | C205: 34 | D205: 0
B206: 昭和大学 | C206: 31 | D206: 10595000
B207: 香川高等専門学校 | C207: 31 | D207: 1599000
B208: 麻布大学 | C208: 31 | D208: 797000
B209: 県立広島大学 | C209: 31 | D209: 11000
B210: 愛知工業大学 | C210: 30 | D210: 340000
... 903 more rows

Sheet 秋田大学 (hidden)
A1: 国立 | C1: 秋田大学（秋田県） | X1: 大学全体の経営理念における産学官連携活動の取組方針 | CB1: 80 | CC1: 81 | CD1: 82 | CE1: 83 | CF1: 84 | CG1: 85 | CH1: 86 | CI1: 87 | CJ1: 88 | CK1: 89 | CL1: 90 | CM1: 91 | CN1: 92 | CO1: 93 | CP1: 94 | CQ1: 95 | CR1: 96 | CS1: 97 | CT1: 98 | CU1: 99 | CV1: 100 | CW1: 101 | CX1: 102 | CY1: 103 | CZ1: 104 | DA1: 105 | DB1: 106 | DC1: 107 | DD1: 108 | DE1: 109 | DF1: 110 | DG1: 111 | DH1: 112 | DI1: 113 | DJ1: 114 | DK1: 115 | DL1: 116 | DM1: 117 | DN1: 118 | DO1: 119 | DP1: 120 | DQ1: 121 | DR1: 122 | DS1: 123 | DT1: 124 | DU1: 125 | DV1: 126 | DW1: 127 | DX1: 128 | DY1: 129
X2: 第３期中期計画の中で「大学職員と地域企業等との連携を促進し，地域企業の研究・開発力向上に寄与するためにも，学生も参加する産学連携推進による人材育成を行うとともに，社会人のキャリアアップやキャリアチェンジを支援する社会人学び直しプログラムを実施する」として全学的に実行している。
BB3: ＵＲＡ | BO3: URA当たり研究者数 | CA3: 戦略的産学連携経費
BC4: 実務担当者数 | BI4: 2 | BN4: 名 | BO4: =IF(OR(K25="",BI4=""),"",(IFERROR(K25/BI4,""))) -> 345.5 | BX4: 名 | CB4: 戦略的産学連携経費の設定 | CP4: 有 | CT4: 無 | CZ4: ある | DA4: インキュベーション施設
A5: 1 | B5: 2 | C5: 3 | D5: 4 | E5: 5 | F5: 6 | G5: 7 | H5: 8 | I5: 9 | J5: 10 | K5: 11 | L5: 12 | M5: 13 | N5: 14 | O5: 15 | P5: 16 | Q5: 17 | R5: 18 | S5: 19 | T5: 20 | U5: 21 | V5: 22 | W5: 23 | X5: 24 | Y5: 25 | Z5: 26 | AA5: 27 | AB5: 28 | AC5: 29 | AD5: 30 | AE5: 31 | AF5: 32 | AG5: 33 | AH5: 34 | AI5: 35 | AJ5: 36 | AK5: 37 | AL5: 38 | AM5: 39 | AN5: 40 | AO5: 41 | AP5: 42 | AQ5: 43 | AR5: 44 | AS5: 45 | AT5: 46 | AU5: 47 | AV5: 48 | AW5: 49 | AX5: 50 | AY5: 51 | AZ5: 52 | BA5: 53 | BB5: 54 | BC5: 55 | BD5: 56 | BE5: 57 | BF5: 58 | BG5: 59 | BH5: 60 | BI5: 61 | BJ5: 62 | BK5: 63 | BL5: 64 | BM5: 65 | BN5: 66 | BO5: 67 | BP5: 68 | BQ5: 69 | BR5: 70 | BS5: 71 | BT5: 72 | BU5: 73 | BV5: 74 | BW5: 75 | BX5: 76 | BY5: 77 | BZ5: 78 | CA5: 79 | CB5: 戦略的産学連携経費の費目 | CZ5: ある | DA5: 相談窓口
A6: 基 礎 情 報 | BB6: 各種規程類の整備状況 | CB6: 戦略的産学連携経費の直接経費に対する割合 | CZ6: ある | DA6: 設立ポリシー | DI6: × | DJ6: 産学連携ポリシー
BB7: 産学連携ポリシー | BM7: 職務発明規程（教職員のみ対象） | CZ7: ない | DA7: 支援ファンド | DI7: ◎ | DJ7: 知的財産ポリシー
B8: 大学の得意分野とその具体例 | BB8: 知的財産ポリシー | BM8: 職務発明規程（教職員、学生対象） | CA8: 人件費の企業負担 | DI8: ◎ | DJ8: 共同研究取扱規程
B9: 創設以来の実績がある資源探査，リサイクル技術開発の実績を踏まえ，地球・資源分野の国際的研究，津波や雪害に関する地域防災の研究などを推進している。 | AA9: 科研費 （千円） | AL9: その他政府系資金 (千円) | AS9: その他団体からの資金 (千円) | BB9: 共同研究取扱規程 | BM9: 発明補償関係規程（教職員のみ対象） | CB9: 教員人件費の企業負担に関する規程や制度 | CP9: 有 | CT9: 無 | DI9: ◎ | DJ9: 受託研究取扱規程
BB10: 受託研究取扱規程 | BM10: 発明補償関係規程（教職員、学生対象） | CB10: 教員人件費の企業負担の費目 | DI10: ◎ | DJ10: 研究成果有体物取扱規程
AA11: 461760 | AL11: 147217 | AS11: 0 | BB11: 研究成果有体物取扱規程 | BM11: 守秘義務に係る規程（教職員のみ対象） | CB11: 学生人件費の企業負担に関する規程や制度 | CP11: 有 | CT11: 無 | DI11: × | DJ11: 営業秘密管理に関する規程
BB12: 営業秘密管理に関する規程 | BM12: 守秘義務に係る規程（教職員、学生対象） | CB12: 学生人件費の企業負担の費目 | DI12: × | DJ12: 株式の取扱等規程、ポリシー
AA13: 間接経費割合 | AN13: 株式の保有 | AT13: 新株予約権の保有 | BB13: 株式の取扱等規程、ポリシー | DB13: 株式 | DI13: ◎ | DJ13: 職務発明規程（教職員のみ対象）
AA14: 0.3 | AN14: 有 | AQ14: 無 | AT14: 有 | AW14: 無 | BD14: ※各種規定類を整備している場合は、赤色で表示されます。 | CA14: 特別試験研究費税額控除制度 | DB14: 新株予約権 | DI14: × | DJ14: 職務発明規程（教職員、学生対象）
B15: 産学官連携活動において今後重点化したい事項 | CB15: 特別試験研究費税額控除制度の活用 | CP15: 有 | CT15: 無 | DI15: ◎ | DJ15: 発明補償関係規程（教職員のみ対象）
B16: 高齢化先進県として，スマート社会，地域包括ケアの確立を目指した産学官医金のオール秋田による体制整備を行うとともに，医療・福祉・看護・介護に関する医理工連携分野において，オープンイノベーションの構築と推進を目標としている。 | AA16: ■共同研究 | AG16: 2020年度 | AO16: 2021年度 | AW16: 順位※ | BB16: クロスアポイントメントの実績（人） | BK16: 大学等 | BN16: 公的機関 | BQ16: 民間企業 | BU16: その他機関 | DI16: × | DJ16: 発明補償関係規程（教職員、学生対象）
AG17: 受入額（千円） | AL17: 件数 | AO17: 受入額（千円） | AT17: 件数 | BH17: 受入 | BK17: 1 | BN17: 0 | BQ17: 2 | BU17: 0 | DB17: 順位 | DI17: ◎ | DJ17: 守秘義務に係る規程（教職員のみ対象）
AA18: 全体 | AG18: 127930 | AL18: 103 | AO18: 160370 | AT18: 98 | AW18: =IF(DB18<50,DB18,"") ->  | AY18: 位 | BH18: 派遣 | BK18: 0 | BN18: 0 | BQ18: 0 | BU18: 0 | DB18: 78 | DI18: × | DJ18: 守秘義務に係る規程（教職員、学生対象）
AB19: 民間企業 のみ | AG19: 105891 | AL19: 91 | AO19: 134765 | AT19: 85 | AW19: =IF(DB19<50,DB19,"") ->  | AY19: 位 | DB19: 81
AC20: 大企業 | AG20: 64338 | AL20: 44 | AO20: 115963 | AT20: 59 | AW20: =IF(DB20<50,DB20,"") ->  | AY20: 位 | DB20: 73 | DI20: ない | DJ20: 戦略的産学連携経費の設定
AC21: 中小企業 | AG21: 37353 | AL21: 43 | AO21: 18802 | AT21: 26 | AW21: =IF(DB21<50,DB21,"") ->  | AY21: 位 | BB21: ■組織的産学連携活動の取組事例 | DB21: 110 | DI21: ない | DJ21: 教員人件費の企業負担に関する規程や制度
AL22: ※順位は2021年度の受入額を比較したもの | DI22: ない | DJ22: 学生人件費の企業負担に関する規程や制度
B23: 産学官連携本部等組織名 | K23: 産学連携推進機構 | DB23: 0 | DC23: 15 | DI23: ある | DJ23: 特別試験研究費税額控除制度の活用
B24: 産学官連携本部等URL | K24: https://www.akita-u.ac.jp/crc/ | DB24: ～100万 | DC24: 15
B25: 研究者数 | K25: 691 | O25: 名 | DB25: ～300万 | DC25: 45
DB26: ～500万 | DC26: 5
DB27: ～1000万 | DC27: 4
DB28: ～5000万 | DC28: 1
DB29: ～1億 | DC29: 0 | DJ29: 共同研究等の企画・提案
B30: 産学連携担当部署 | O30: 実務者当たり研究者数 | DB30: 1億以上 | DC30: 0 | DJ30: 契約書での成果目標、達成時の明記
C31: 実務担当者数 | I31: 11 | N31: 名 | O31: =IF(OR(K25="",I31=""),"",IFERROR($K$25/I31,"")) -> 62.81818182 | X31: 名 | DJ31: 共同研究契約の締結/判断（契約権限の集中）
C32: 専門家の配置 | I32: 弁護士 | L32: 弁理士 | O32: 税理士 | R32: 公認会計士 | V32: その他 | DJ32: 共同研究の進捗管理とフィードバック
I33: ※専門家を配置している場合は、赤色で表示されます。 | DJ33: 企業ニーズに適応した技術移転・事業化提案
AA34: ■受託研究 | AG34: 2020年度 | AO34: 2021年度 | AW34: 順位※ | DJ34: 共同研究等の企画・提案
AG35: 受入額（千円） | AL35: 件数（件） | AO35: 受入額（千円） | AT35: 件数（件） | DB35: 順位 | DJ35: 契約書での成果目標、達成時の明記
AA36: 全体 | AG36: 303544 | AL36: 124 | AO36: 319672 | AT36: 144 | AW36: =IF(DB36<50,DB36,"") ->  | AY36: 位 | DB36: 97 | DJ36: 共同研究契約の締結/判断（契約権限の集中）
AB37: 民間企業 のみ | AG37: 20793 | AL37: 40 | AO37: 38346 | AT37: 50 | AW37: =IF(DB37<50,DB37,"") ->  | AY37: 位 | DB37: 80 | DJ37: 共同研究の進捗管理とフィードバック
C38: 産学連携本部が関与した共同研究 | P38: 0 | T38: 件 | AC38: 大企業 | AG38: 9959 | AL38: 21 | AO38: 29052 | AT38: 39 | AW38: =IF(DB38<50,DB38,"") ->  | AY38: 位 | DB38: 79 | DJ38: 企業ニーズに適応した技術移転・事業化提案
D39: 内、マッチングを行い、契約締結した件数 | P39: 0 | T39: 件 | AC39: 中小企業 | AG39: 5124 | AL39: 12 | AO39: 9294 | AT39: 11 | AW39: =IF(DB39<50,DB39,"") ->  | AY39: 位 | BB39: ■産学連携活動の主な実用化事例 | DB39: 72 | DJ39: 共同研究等の企画・提案
I40: ※1,000万円以上の共同研究 | AL40: ※順位は2021年度の受入額を比較したもの | DB40: 弁護士 | DG40: 0 | DH40: 21 | DJ40: 契約書での成果目標、達成時の明記
DB41: 弁理士 | DG41: ～100万 | DH41: 15 | DJ41: 共同研究契約の締結/判断（契約権限の集中）
C42: 組織対組織による包括連携契約の締結数 | P42: 0 | T42: 件 | DB42: 税理士 | DG42: ～300万 | DH42: 10 | DJ42: 共同研究の進捗管理とフィードバック
D43: 内、1,000万円以上の実績がある相手方数 | P43: 0 | T43: 件 | DB43: 公認会計士 | DG43: ～500万 | DH43: 4 | DJ43: 企業ニーズに適応した技術移転・事業化提案
DB44: その他 | DG44: ～1000万 | DH44: 0
C45: 寄附講座・寄附研究部門の受入件数 | P45: 2 | V45: 件 | DG45: ～5000万 | DH45: 0
C46: 寄附講座・寄附研究部門の受入金額（千円） | P46: 85000 | DG46: ～1億 | DH46: 0
C47: 共同研究講座・共同研究部門の受入件数 | P47: 0 | V47: 件 | DG47: 1億以上 | DH47: 0
C48: 共同研究講座・共同研究部門の受入金額（千円） | P48: 0
C52: 職務発明の帰属 | I52: 大学 | M52: 発明者 | Q52: 未設定 | CZ52: 大学 | DA52: 職務発明
AD53: 特許権実施等件数 | AL53: 23 | AQ53: 件 | AS53: 実施等件数 あたり | DA53: 不実施
M54: 研究者あたり | AD54: 特許権実施等収入（千円） | AL54: 245 | AS54: =IF(OR(AL53="",AL54=""),"",IFERROR(AL54/AL53,"")) -> 10.65217391 | CZ54: 245000 | DA54: 特許等収入
C55: 特許出願件数（件） | I55: 25 | M55: =IF(OR(K25="",I55=""),"",IFERROR(I55/K25,"")) -> 0.03617945007
C56: 特許保有件数（件） | I56: 242 | M56: =IF(OR(K25="",I56=""),"",IFERROR(I56/K25,"")) -> 0.3502170767
C61: 大学発ベンチャー数 | J61: 11 | O61: 社
C62: Exit件数（IPO） | J62: 0 | O62: 社 | P62: Exit件数（M&A） | W62: 0 | Z62: 社
C63: 相談窓口 | K63: 支援ファンド | S63: インキュベーション施設
C64: 有 | G64: 無 | K64: 有 | O64: 無 | S64: 有 | W64: 無
C65: 知的財産戦略方針 | K65: 支援総額（千円） | S65: 面積 | W65: 40 | Z65: 平方メートル
C66: 有 | G66: 無 | S66: 契約企業数 | W66: 1 | Z66: 社
A69: 1 | B69: 2 | C69: 3 | D69: 4 | E69: 5 | F69: 6 | G69: 7 | H69: 8 | I69: 9 | J69: 10 | K69: 11 | L69: 12 | M69: 13 | N69: 14 | O69: 15 | P69: 16 | Q69: 17 | R69: 18 | S69: 19 | T69: 20 | U69: 21 | V69: 22 | W69: 23 | X69: 24 | Y69: 25 | Z69: 26 | AA69: 27 | AB69: 28 | AC69: 29 | AD69: 30 | AE69: 31 | AF69: 32 | AG69: 33 | AH69: 34 | AI69: 35 | AJ69: 36 | AK69: 37 | AL69: 38 | AM69: 39 | AN69: 40 | AO69: 41 | AP69: 42 | AQ69: 43 | AR69: 44 | AS69: 45 | AT69: 46 | AU69: 47 | AV69: 48 | AW69: 49 | AX69: 50 | AY69: 51 | AZ69: 52 | BA69: 53 | BB69: 54 | BC69: 55 | BD69: 56 | BE69: 57 | BF69: 58 | BG69: 59 | BH69: 60 | BI69: 61 | BJ69: 62 | BK69: 63 | BL69: 64 | BM69: 65 | BN69: 66 | BO69: 67 | BP69: 68 | BQ69: 69 | BR69: 70 | BS69: 71 | BT69: 72 | BU69: 73 | BV69: 74 | BW69: 75 | BX69: 76 | BY69: 77 | BZ69: 78 | CA69: 79 | CB69: 80 | CC69: 81 | CD69: 82 | CE69: 83 | CF69: 84 | CG69: 85 | CH69: 86 | CI69: 87 | CJ69: 88 | CK69: 89 | CL69: 90 | CM69: 91 | CN69: 92 | CO69: 93 | CP69: 94 | CQ69: 95 | CR69: 96 | CS69: 97 | CT69: 98 | CU69: 99 | CV69: 100 | CW69: 101 | CX69: 102 | CY69: 103 | CZ69: 104 | DA69: 105 | DB69: 106 | DC69: 107 | DD69: 108 | DE69: 109 | DF69: 110 | DG69: 111 | DH69: 112 | DI69: 113 | DJ69: 114 | DK69: 115 | DL69: 116 | DM69: 117 | DN69: 118 | DO69: 119 | DP69: 120 | DQ69: 121 | DR69: 122 | DS69: 123 | DT69: 124 | DU69: 125
D70: 特許権収入
B71: 東京大学 | C71: 4744 | D71: 557703000
B72: 東北大学 | C72: 3726 | D72: 275164000
B73: 大阪大学 | C73: 3253 | D73: 395417000
B74: 京都大学 | C74: 3217 | D74: 886135000
B75: 東京工業大学 | C75: 2019 | D75: 42504000
B76: 九州大学 | C76: 1733 | D76: 142436000
B77: 名古屋大学 | C77: 1496 | D77: 72276000
B78: 北海道大学 | C78: 1219 | D78: 115470000
B79: 信州大学 | C79: 1047 | D79: 32411000
B80: 広島大学 | C80: 1019 | D80: 44418000
B81: 筑波大学 | C81: 892 | D81: 27835000
B82: 慶應義塾大学 | C82: 856 | D82: 58283000
B83: 千葉大学 | C83: 851 | D83: 9761000
B84: 岡山大学 | C84: 739 | D84: 21802000
B85: 山口大学 | C85: 711 | D85: 26145000
B86: 東京農工大学 | C86: 667 | D86: 10063000
B87: 名古屋工業大学 | C87: 660 | D87: 23496000
B88: 東京理科大学 | C88: 629 | D88: 11695000
B89: 九州工業大学 | C89: 607 | D89: 5845000
B90: 神戸大学 | C90: 581 | D90: 104449000
B91: 熊本大学 | C91: 543 | D91: 19748000
B92: 群馬大学 | C92: 536 | D92: 3598000
B93: 静岡大学 | C93: 523 | D93: 2662000
B94: 横浜国立大学 | C94: 509 | D94: 4920000
B95: 大阪公立大学（大阪府立大学） | C95: 502 | D95: 8255000
B96: 近畿大学 | C96: 488 | D96: 26794000
B97: 鹿児島大学 | C97: 458 | D97: 8269000
B98: 長岡技術科学大学 | C98: 440 | D98: 2979000
B99: 奈良先端科学技術大学院大学 | C99: 435 | D99: 3758000
B100: 東京都立大学 | C100: 435 | D100: 1170000
B101: 山梨大学 | C101: 426 | D101: 28912000
B102: 大阪公立大学（大阪市立大学） | C102: 423 | D102: 3124000
B103: 三重大学 | C103: 422 | D103: 20215000
B104: 東京医科歯科大学 | C104: 418 | D104: 74575000
B105: 電気通信大学 | C105: 406 | D105: 2740000
B106: 豊橋技術科学大学 | C106: 395 | D106: 7491000
B107: 関西大学 | C107: 392 | D107: 5519000
B108: 徳島大学 | C108: 385 | D108: 26218000
B109: 金沢大学 | C109: 360 | D109: 14331000
B110: 北里大学 | C110: 350 | D110: 47578000
B111: 香川大学 | C111: 343 | D111: 13987000
B112: 鳥取大学 | C112: 341 | D112: 5178000
B113: 新潟大学 | C113: 323 | D113: 11052000
B114: 富山大学 | C114: 319 | D114: 21312000
B115: 埼玉大学 | C115: 314 | D115: 2129000
B116: 同志社大学 | C116: 310 | D116: 26699000
B117: 日本大学 | C117: 306 | D117: 50528000
B118: 高知大学 | C118: 296 | D118: 22439000
B119: 立命館大学 | C119: 283 | D119: 5079000
B120: 自然科学研究機構 | C120: 278 | D120: 23513000
B121: 弘前大学 | C121: 261 | D121: 6272000
B122: 岐阜大学 | C122: 260 | D122: 9851000
B123: 宮崎大学 | C123: 257 | D123: 2044000
B124: 神奈川大学 | C124: 254 | D124: 4373000
B125: 兵庫県立大学 | C125: 248 | D125: 37000
B126: 秋田大学 | C126: 242 | D126: 245000
B127: 佐賀大学 | C127: 239 | D127: 6705000
B128: 福井大学 | C128: 239 | D128: 3402000
B129: 東海大学 | C129: 238 | D129: 771000
B130: 山形大学 | C130: 237 | D130: 3491000
B131: 横浜市立大学 | C131: 234 | D131: 25613000
B132: 札幌医科大学 | C132: 229 | D132: 28223000
B133: 京都工芸繊維大学 | C133: 224 | D133: 2740000
B134: 名城大学 | C134: 224 | D134: 475000
B135: 千葉工業大学 | C135: 210 | D135: 22544000
B136: 情報・システム研究機構 | C136: 208 | D136: 5139000
B137: 長崎大学 | C137: 201 | D137: 14882000
B138: 東京海洋大学 | C138: 194 | D138: 2761000
B139: 愛媛大学 | C139: 188 | D139: 18823000
B140: 東京女子医科大学 | C140: 188 | D140: 2124000
B141: 岩手大学 | C141: 188 | D141: 1268000
B142: 北陸先端科学技術大学院大学 | C142: 182 | D142: 7446000
B143: 福岡大学 | C143: 178 | D143: 1047000
B144: 沖縄科学技術大学院大学 | C144: 173 | D144: 1100000
B145: 高知工科大学 | C145: 169 | D145: 45000
B146: 宇都宮大学 | C146: 168 | D146: 7200000
B147: 茨城大学 | C147: 167 | D147: 1237000
B148: 金沢工業大学 | C148: 151 | D148: 3018000
B149: 中央大学 | C149: 151 | D149: 2106000
B150: 大分大学 | C150: 148 | D150: 1748000
B151: 京都府立医科大学 | C151: 147 | D151: 11367000
B152: 関西学院大学 | C152: 146 | D152: 16773000
B153: 滋賀医科大学 | C153: 141 | D153: 5086000
B154: 自治医科大学 | C154: 140 | D154: 10251000
B155: 島根大学 | C155: 140 | D155: 1478000
B156: 上智大学 | C156: 140 | D156: 200000
B157: 浜松医科大学 | C157: 135 | D157: 3613000
B158: 高エネルギー加速器研究機構 | C158: 135 | D158: 712000
B159: 順天堂大学 | C159: 132 | D159: 5278000
B160: 中部大学 | C160: 122 | D160: 1378000
B161: 名古屋市立大学 | C161: 114 | D161: 38831000
B162: 久留米大学 | C162: 112 | D162: 902000
B163: 豊田工業大学 | C163: 109 | D163: 0
B164: 芝浦工業大学 | C164: 103 | D164: 1238000
B165: 東京電機大学 | C165: 102 | D165: 3875000
B166: 埼玉医科大学 | C166: 99 | D166: 8849000
B167: 関東学院大学 | C167: 97 | D167: 9990000
B168: 琉球大学 | C168: 92 | D168: 1146000
B169: 明治大学 | C169: 91 | D169: 4260000
B170: 北見工業大学 | C170: 91 | D170: 753000
B171: 和歌山大学 | C171: 88 | D171: 3592000
B172: 富山県立大学 | C172: 86 | D172: 1957000
B173: 静岡県立大学 | C173: 84 | D173: 1231000
B174: 神奈川工科大学 | C174: 83 | D174: 289000
B175: 藤田医科大学 | C175: 80 | D175: 0
B176: 福岡工業大学 | C176: 69 | D176: 0
B177: 早稲田大学 | C177: 66 | D177: 19945000
B178: 福島大学 | C178: 65 | D178: 217000
B179: 帝京大学 | C179: 62 | D179: 2716000
B180: 岡山理科大学 | C180: 59 | D180: 1200000
B181: 日本医科大学 | C181: 58 | D181: 7708000
B182: 奈良県立医科大学 | C182: 58 | D182: 1283000
B183: 旭川医科大学 | C183: 58 | D183: 700000
B184: 帯広畜産大学 | C184: 57 | D184: 524000
B185: 兵庫医科大学 | C185: 56 | D185: 5620000
B186: 室蘭工業大学 | C186: 55 | D186: 1000
B187: 秋田県立大学 | C187: 54 | D187: 2624000
B188: 東洋大学 | C188: 53 | D188: 2185000
B189: 立教大学 | C189: 53 | D189: 8000
B190: 聖マリアンナ医科大学 | C190: 50 | D190: 109000
B191: 法政大学 | C191: 49 | D191: 874000
B192: お茶の水女子大学 | C192: 49 | D192: 5000
B193: 会津大学 | C193: 48 | D193: 132000
B194: 玉川大学 | C194: 48 | D194: 125000
B195: 関西医科大学 | C195: 47 | D195: 3568000
B196: 甲南大学 | C196: 45 | D196: 1103000
B197: 大阪工業大学 | C197: 44 | D197: 0
B198: 龍谷大学 | C198: 43 | D198: 168000
B199: 広島市立大学 | C199: 43 | D199: 0
B200: 産業医科大学 | C200: 42 | D200: 1006000
B201: 工学院大学 | C201: 41 | D201: 1396000
B202: 北九州市立大学 | C202: 37 | D202: 5488000
B203: 東京農業大学 | C203: 37 | D203: 473000
B204: 鈴鹿工業高等専門学校 | C204: 34 | D204: 74000
B205: 青山学院大学 | C205: 34 | D205: 0
B206: 昭和大学 | C206: 31 | D206: 10595000
B207: 香川高等専門学校 | C207: 31 | D207: 1599000
B208: 麻布大学 | C208: 31 | D208: 797000
B209: 県立広島大学 | C209: 31 | D209: 11000
... 904 more rows

Sheet 旭川医科大学 (hidden)
A1: 国立 | C1: 旭川医科大学（北海道） | X1: 大学全体の経営理念における産学官連携活動の取組方針 | CB1: 80 | CC1: 81 | CD1: 82 | CE1: 83 | CF1: 84 | CG1: 85 | CH1: 86 | CI1: 87 | CJ1: 88 | CK1: 89 | CL1: 90 | CM1: 91 | CN1: 92 | CO1: 93 | CP1: 94 | CQ1: 95 | CR1: 96 | CS1: 97 | CT1: 98 | CU1: 99 | CV1: 100 | CW1: 101 | CX1: 102 | CY1: 103 | CZ1: 104 | DA1: 105 | DB1: 106 | DC1: 107 | DD1: 108 | DE1: 109 | DF1: 110 | DG1: 111 | DH1: 112 | DI1: 113 | DJ1: 114 | DK1: 115 | DL1: 116 | DM1: 117 | DN1: 118 | DO1: 119 | DP1: 120 | DQ1: 121 | DR1: 122 | DS1: 123 | DT1: 124 | DU1: 125 | DV1: 126 | DW1: 127 | DX1: 128 | DY1: 129
BB3: ＵＲＡ | BO3: URA当たり研究者数 | CA3: 戦略的産学連携経費
BC4: 実務担当者数 | BI4: 0 | BN4: 名 | BO4: =IF(OR(K25="",BI4=""),"",(IFERROR(K25/BI4,""))) ->  | BX4: 名 | CB4: 戦略的産学連携経費の設定 | CP4: 有 | CT4: 無 | CZ4: ない | DA4: インキュベーション施設
A5: 1 | B5: 2 | C5: 3 | D5: 4 | E5: 5 | F5: 6 | G5: 7 | H5: 8 | I5: 9 | J5: 10 | K5: 11 | L5: 12 | M5: 13 | N5: 14 | O5: 15 | P5: 16 | Q5: 17 | R5: 18 | S5: 19 | T5: 20 | U5: 21 | V5: 22 | W5: 23 | X5: 24 | Y5: 25 | Z5: 26 | AA5: 27 | AB5: 28 | AC5: 29 | AD5: 30 | AE5: 31 | AF5: 32 | AG5: 33 | AH5: 34 | AI5: 35 | AJ5: 36 | AK5: 37 | AL5: 38 | AM5: 39 | AN5: 40 | AO5: 41 | AP5: 42 | AQ5: 43 | AR5: 44 | AS5: 45 | AT5: 46 | AU5: 47 | AV5: 48 | AW5: 49 | AX5: 50 | AY5: 51 | AZ5: 52 | BA5: 53 | BB5: 54 | BC5: 55 | BD5: 56 | BE5: 57 | BF5: 58 | BG5: 59 | BH5: 60 | BI5: 61 | BJ5: 62 | BK5: 63 | BL5: 64 | BM5: 65 | BN5: 66 | BO5: 67 | BP5: 68 | BQ5: 69 | BR5: 70 | BS5: 71 | BT5: 72 | BU5: 73 | BV5: 74 | BW5: 75 | BX5: 76 | BY5: 77 | BZ5: 78 | CA5: 79 | CB5: 戦略的産学連携経費の費目 | CZ5: ない | DA5: 相談窓口
A6: 基 礎 情 報 | BB6: 各種規程類の整備状況 | CB6: 戦略的産学連携経費の直接経費に対する割合 | CZ6: ある | DA6: 設立ポリシー | DI6: × | DJ6: 産学連携ポリシー
BB7: 産学連携ポリシー | BM7: 職務発明規程（教職員のみ対象） | CZ7: ない | DA7: 支援ファンド | DI7: ◎ | DJ7: 知的財産ポリシー
B8: 大学の得意分野とその具体例 | BB8: 知的財産ポリシー | BM8: 職務発明規程（教職員、学生対象） | CA8: 人件費の企業負担 | DI8: ◎ | DJ8: 共同研究取扱規程
AA9: 科研費 （千円） | AL9: その他政府系資金 (千円) | AS9: その他団体からの資金 (千円) | BB9: 共同研究取扱規程 | BM9: 発明補償関係規程（教職員のみ対象） | CB9: 教員人件費の企業負担に関する規程や制度 | CP9: 有 | CT9: 無 | DI9: ◎ | DJ9: 受託研究取扱規程
BB10: 受託研究取扱規程 | BM10: 発明補償関係規程（教職員、学生対象） | CB10: 教員人件費の企業負担の費目 | DI10: ◎ | DJ10: 研究成果有体物取扱規程
AA11: 295473 | AL11: 67929 | AS11: 50000 | BB11: 研究成果有体物取扱規程 | BM11: 守秘義務に係る規程（教職員のみ対象） | CB11: 学生人件費の企業負担に関する規程や制度 | CP11: 有 | CT11: 無 | DI11: × | DJ11: 営業秘密管理に関する規程
BB12: 営業秘密管理に関する規程 | BM12: 守秘義務に係る規程（教職員、学生対象） | CB12: 学生人件費の企業負担の費目 | DI12: × | DJ12: 株式の取扱等規程、ポリシー
AA13: 間接経費割合 | AN13: 株式の保有 | AT13: 新株予約権の保有 | BB13: 株式の取扱等規程、ポリシー | DA13: ○ | DB13: 株式 | DI13: ◎ | DJ13: 職務発明規程（教職員のみ対象）
AA14: 0.1 | AN14: 有 | AQ14: 無 | AT14: 有 | AW14: 無 | BD14: ※各種規定類を整備している場合は、赤色で表示されます。 | CA14: 特別試験研究費税額控除制度 | DB14: 新株予約権 | DI14: × | DJ14: 職務発明規程（教職員、学生対象）
B15: 産学官連携活動において今後重点化したい事項 | CB15: 特別試験研究費税額控除制度の活用 | CP15: 有 | CT15: 無 | DI15: ◎ | DJ15: 発明補償関係規程（教職員のみ対象）
AA16: ■共同研究 | AG16: 2020年度 | AO16: 2021年度 | AW16: 順位※ | BB16: クロスアポイントメントの実績（人） | BK16: 大学等 | BN16: 公的機関 | BQ16: 民間企業 | BU16: その他機関 | DI16: × | DJ16: 発明補償関係規程（教職員、学生対象）
AG17: 受入額（千円） | AL17: 件数 | AO17: 受入額（千円） | AT17: 件数 | BH17: 受入 | BK17: 0 | BN17: 0 | BQ17: 0 | BU17: 0 | DB17: 順位 | DI17: ◎ | DJ17: 守秘義務に係る規程（教職員のみ対象）
AA18: 全体 | AG18: 152781 | AL18: 30 | AO18: 65095 | AT18: 25 | AW18: =IF(DB18<50,DB18,"") ->  | AY18: 位 | BH18: 派遣 | BK18: 0 | BN18: 0 | BQ18: 0 | BU18: 0 | DB18: 131 | DI18: × | DJ18: 守秘義務に係る規程（教職員、学生対象）
AB19: 民間企業 のみ | AG19: 152151 | AL19: 29 | AO19: 61845 | AT19: 23 | AW19: =IF(DB19<50,DB19,"") ->  | AY19: 位 | DB19: 123
AC20: 大企業 | AG20: 29545 | AL20: 10 | AO20: 43935 | AT20: 15 | AW20: =IF(DB20<50,DB20,"") ->  | AY20: 位 | DB20: 128 | DI20: ない | DJ20: 戦略的産学連携経費の設定
AC21: 中小企業 | AG21: 21264 | AL21: 9 | AO21: 17910 | AT21: 8 | AW21: =IF(DB21<50,DB21,"") ->  | AY21: 位 | BB21: ■組織的産学連携活動の取組事例 | DB21: 112 | DI21: ない | DJ21: 教員人件費の企業負担に関する規程や制度
AL22: ※順位は2021年度の受入額を比較したもの | DI22: ない | DJ22: 学生人件費の企業負担に関する規程や制度
B23: 産学官連携本部等組織名 | K23: 研究支援課社会連携係 | DB23: 0 | DC23: 13 | DI23: ない | DJ23: 特別試験研究費税額控除制度の活用
B24: 産学官連携本部等URL | K24: - | DB24: ～100万 | DC24: 1
B25: 研究者数 | K25: 519 | O25: 名 | DB25: ～300万 | DC25: 4
DB26: ～500万 | DC26: 3
DB27: ～1000万 | DC27: 0
DB28: ～5000万 | DC28: 2
DB29: ～1億 | DC29: 0 | DJ29: 共同研究等の企画・提案
B30: 産学連携担当部署 | O30: 実務者当たり研究者数 | DB30: 1億以上 | DC30: 0 | DJ30: 契約書での成果目標、達成時の明記
C31: 実務担当者数 | I31: 1 | N31: 名 | O31: =IF(OR(K25="",I31=""),"",IFERROR($K$25/I31,"")) -> 519 | X31: 名 | DJ31: 共同研究契約の締結/判断（契約権限の集中）
C32: 専門家の配置 | I32: 弁護士 | L32: 弁理士 | O32: 税理士 | R32: 公認会計士 | V32: その他 | DJ32: 共同研究の進捗管理とフィードバック
I33: ※専門家を配置している場合は、赤色で表示されます。 | DJ33: 企業ニーズに適応した技術移転・事業化提案
AA34: ■受託研究 | AG34: 2020年度 | AO34: 2021年度 | AW34: 順位※ | DJ34: 共同研究等の企画・提案
AG35: 受入額（千円） | AL35: 件数（件） | AO35: 受入額（千円） | AT35: 件数（件） | DB35: 順位 | DJ35: 契約書での成果目標、達成時の明記
AA36: 全体 | AG36: 38153 | AL36: 69 | AO36: 36432 | AT36: 75 | AW36: =IF(DB36<50,DB36,"") ->  | AY36: 位 | DB36: 196 | DJ36: 共同研究契約の締結/判断（契約権限の集中）
AB37: 民間企業 のみ | AG37: 8859 | AL37: 26 | AO37: 13790 | AT37: 31 | AW37: =IF(DB37<50,DB37,"") ->  | AY37: 位 | DB37: 140 | DJ37: 共同研究の進捗管理とフィードバック
C38: 産学連携本部が関与した共同研究 | P38: 1 | T38: 件 | AC38: 大企業 | AG38: 4110 | AL38: 11 | AO38: 8347 | AT38: 23 | AW38: =IF(DB38<50,DB38,"") ->  | AY38: 位 | DB38: 147 | DJ38: 企業ニーズに適応した技術移転・事業化提案
D39: 内、マッチングを行い、契約締結した件数 | P39: 1 | T39: 件 | AC39: 中小企業 | AG39: 337 | AL39: 10 | AO39: 5443 | AT39: 8 | AW39: =IF(DB39<50,DB39,"") ->  | AY39: 位 | BB39: ■産学連携活動の主な実用化事例 | DB39: 98 | DJ39: 共同研究等の企画・提案
I40: ※1,000万円以上の共同研究 | AL40: ※順位は2021年度の受入額を比較したもの | DB40: 弁護士 | DG40: 0 | DH40: 16 | DJ40: 契約書での成果目標、達成時の明記
DB41: 弁理士 | DG41: ～100万 | DH41: 11 | DJ41: 共同研究契約の締結/判断（契約権限の集中）
C42: 組織対組織による包括連携契約の締結数 | P42: 0 | T42: 件 | DB42: 税理士 | DG42: ～300万 | DH42: 3 | DJ42: 共同研究の進捗管理とフィードバック
D43: 内、1,000万円以上の実績がある相手方数 | P43: 0 | T43: 件 | DB43: 公認会計士 | DG43: ～500万 | DH43: 1 | DJ43: 企業ニーズに適応した技術移転・事業化提案
DB44: その他 | DG44: ～1000万 | DH44: 0
C45: 寄附講座・寄附研究部門の受入件数 | P45: 6 | V45: 件 | DG45: ～5000万 | DH45: 0
C46: 寄附講座・寄附研究部門の受入金額（千円） | P46: 99900 | DG46: ～1億 | DH46: 0
C47: 共同研究講座・共同研究部門の受入件数 | P47: 1 | V47: 件 | DG47: 1億以上 | DH47: 0
C48: 共同研究講座・共同研究部門の受入金額（千円） | P48: 16910
C52: 職務発明の帰属 | I52: 大学 | M52: 発明者 | Q52: 未設定 | CZ52: 大学 | DA52: 職務発明
AD53: 特許権実施等件数 | AL53: 6 | AQ53: 件 | AS53: 実施等件数 あたり | DA53: 不実施
M54: 研究者あたり | AD54: 特許権実施等収入（千円） | AL54: 700 | AS54: =IF(OR(AL53="",AL54=""),"",IFERROR(AL54/AL53,"")) -> 116.6666667 | CZ54: 700000 | DA54: 特許等収入
C55: 特許出願件数（件） | I55: 12 | M55: =IF(OR(K25="",I55=""),"",IFERROR(I55/K25,"")) -> 0.02312138728
C56: 特許保有件数（件） | I56: 58 | M56: =IF(OR(K25="",I56=""),"",IFERROR(I56/K25,"")) -> 0.1117533719
C61: 大学発ベンチャー数 | J61: 1 | O61: 社
C62: Exit件数（IPO） | J62: 0 | O62: 社 | P62: Exit件数（M&A） | W62: 0 | Z62: 社
C63: 相談窓口 | K63: 支援ファンド | S63: インキュベーション施設
C64: 有 | G64: 無 | K64: 有 | O64: 無 | S64: 有 | W64: 無
C65: 知的財産戦略方針 | K65: 支援総額（千円） | S65: 面積 | Z65: 平方メートル
C66: 有 | G66: 無 | S66: 契約企業数 | Z66: 社
A69: 1 | B69: 2 | C69: 3 | D69: 4 | E69: 5 | F69: 6 | G69: 7 | H69: 8 | I69: 9 | J69: 10 | K69: 11 | L69: 12 | M69: 13 | N69: 14 | O69: 15 | P69: 16 | Q69: 17 | R69: 18 | S69: 19 | T69: 20 | U69: 21 | V69: 22 | W69: 23 | X69: 24 | Y69: 25 | Z69: 26 | AA69: 27 | AB69: 28 | AC69: 29 | AD69: 30 | AE69: 31 | AF69: 32 | AG69: 33 | AH69: 34 | AI69: 35 | AJ69: 36 | AK69: 37 | AL69: 38 | AM69: 39 | AN69: 40 | AO69: 41 | AP69: 42 | AQ69: 43 | AR69: 44 | AS69: 45 | AT69: 46 | AU69: 47 | AV69: 48 | AW69: 49 | AX69: 50 | AY69: 51 | AZ69: 52 | BA69: 53 | BB69: 54 | BC69: 55 | BD69: 56 | BE69: 57 | BF69: 58 | BG69: 59 | BH69: 60 | BI69: 61 | BJ69: 62 | BK69: 63 | BL69: 64 | BM69: 65 | BN69: 66 | BO69: 67 | BP69: 68 | BQ69: 69 | BR69: 70 | BS69: 71 | BT69: 72 | BU69: 73 | BV69: 74 | BW69: 75 | BX69: 76 | BY69: 77 | BZ69: 78 | CA69: 79 | CB69: 80 | CC69: 81 | CD69: 82 | CE69: 83 | CF69: 84 | CG69: 85 | CH69: 86 | CI69: 87 | CJ69: 88 | CK69: 89 | CL69: 90 | CM69: 91 | CN69: 92 | CO69: 93 | CP69: 94 | CQ69: 95 | CR69: 96 | CS69: 97 | CT69: 98 | CU69: 99 | CV69: 100 | CW69: 101 | CX69: 102 | CY69: 103 | CZ69: 104 | DA69: 105 | DB69: 106 | DC69: 107 | DD69: 108 | DE69: 109 | DF69: 110 | DG69: 111 | DH69: 112 | DI69: 113 | DJ69: 114 | DK69: 115 | DL69: 116 | DM69: 117 | DN69: 118 | DO69: 119 | DP69: 120 | DQ69: 121 | DR69: 122 | DS69: 123 | DT69: 124 | DU69: 125
D70: 特許権収入
B71: 東京大学 | C71: 4744 | D71: 557703000
B72: 東北大学 | C72: 3726 | D72: 275164000
B73: 大阪大学 | C73: 3253 | D73: 395417000
B74: 京都大学 | C74: 3217 | D74: 886135000
B75: 東京工業大学 | C75: 2019 | D75: 42504000
B76: 九州大学 | C76: 1733 | D76: 142436000
B77: 名古屋大学 | C77: 1496 | D77: 72276000
B78: 北海道大学 | C78: 1219 | D78: 115470000
B79: 信州大学 | C79: 1047 | D79: 32411000
B80: 広島大学 | C80: 1019 | D80: 44418000
B81: 筑波大学 | C81: 892 | D81: 27835000
B82: 慶應義塾大学 | C82: 856 | D82: 58283000
B83: 千葉大学 | C83: 851 | D83: 9761000
B84: 岡山大学 | C84: 739 | D84: 21802000
B85: 山口大学 | C85: 711 | D85: 26145000
B86: 東京農工大学 | C86: 667 | D86: 10063000
B87: 名古屋工業大学 | C87: 660 | D87: 23496000
B88: 東京理科大学 | C88: 629 | D88: 11695000
B89: 九州工業大学 | C89: 607 | D89: 5845000
B90: 神戸大学 | C90: 581 | D90: 104449000
B91: 熊本大学 | C91: 543 | D91: 19748000
B92: 群馬大学 | C92: 536 | D92: 3598000
B93: 静岡大学 | C93: 523 | D93: 2662000
B94: 横浜国立大学 | C94: 509 | D94: 4920000
B95: 大阪公立大学（大阪府立大学） | C95: 502 | D95: 8255000
B96: 近畿大学 | C96: 488 | D96: 26794000
B97: 鹿児島大学 | C97: 458 | D97: 8269000
B98: 長岡技術科学大学 | C98: 440 | D98: 2979000
B99: 奈良先端科学技術大学院大学 | C99: 435 | D99: 3758000
B100: 東京都立大学 | C100: 435 | D100: 1170000
B101: 山梨大学 | C101: 426 | D101: 28912000
B102: 大阪公立大学（大阪市立大学） | C102: 423 | D102: 3124000
B103: 三重大学 | C103: 422 | D103: 20215000
B104: 東京医科歯科大学 | C104: 418 | D104: 74575000
B105: 電気通信大学 | C105: 406 | D105: 2740000
B106: 豊橋技術科学大学 | C106: 395 | D106: 7491000
B107: 関西大学 | C107: 392 | D107: 5519000
B108: 徳島大学 | C108: 385 | D108: 26218000
B109: 金沢大学 | C109: 360 | D109: 14331000
B110: 北里大学 | C110: 350 | D110: 47578000
B111: 香川大学 | C111: 343 | D111: 13987000
B112: 鳥取大学 | C112: 341 | D112: 5178000
B113: 新潟大学 | C113: 323 | D113: 11052000
B114: 富山大学 | C114: 319 | D114: 21312000
B115: 埼玉大学 | C115: 314 | D115: 2129000
B116: 同志社大学 | C116: 310 | D116: 26699000
B117: 日本大学 | C117: 306 | D117: 50528000
B118: 高知大学 | C118: 296 | D118: 22439000
B119: 立命館大学 | C119: 283 | D119: 5079000
B120: 自然科学研究機構 | C120: 278 | D120: 23513000
B121: 弘前大学 | C121: 261 | D121: 6272000
B122: 岐阜大学 | C122: 260 | D122: 9851000
B123: 宮崎大学 | C123: 257 | D123: 2044000
B124: 神奈川大学 | C124: 254 | D124: 4373000
B125: 兵庫県立大学 | C125: 248 | D125: 37000
B126: 秋田大学 | C126: 242 | D126: 245000
B127: 佐賀大学 | C127: 239 | D127: 6705000
B128: 福井大学 | C128: 239 | D128: 3402000
B129: 東海大学 | C129: 238 | D129: 771000
B130: 山形大学 | C130: 237 | D130: 3491000
B131: 横浜市立大学 | C131: 234 | D131: 25613000
B132: 札幌医科大学 | C132: 229 | D132: 28223000
B133: 京都工芸繊維大学 | C133: 224 | D133: 2740000
B134: 名城大学 | C134: 224 | D134: 475000
B135: 千葉工業大学 | C135: 210 | D135: 22544000
B136: 情報・システム研究機構 | C136: 208 | D136: 5139000
B137: 長崎大学 | C137: 201 | D137: 14882000
B138: 東京海洋大学 | C138: 194 | D138: 2761000
B139: 愛媛大学 | C139: 188 | D139: 18823000
B140: 東京女子医科大学 | C140: 188 | D140: 2124000
B141: 岩手大学 | C141: 188 | D141: 1268000
B142: 北陸先端科学技術大学院大学 | C142: 182 | D142: 7446000
B143: 福岡大学 | C143: 178 | D143: 1047000
B144: 沖縄科学技術大学院大学 | C144: 173 | D144: 1100000
B145: 高知工科大学 | C145: 169 | D145: 45000
B146: 宇都宮大学 | C146: 168 | D146: 7200000
B147: 茨城大学 | C147: 167 | D147: 1237000
B148: 金沢工業大学 | C148: 151 | D148: 3018000
B149: 中央大学 | C149: 151 | D149: 2106000
B150: 大分大学 | C150: 148 | D150: 1748000
B151: 京都府立医科大学 | C151: 147 | D151: 11367000
B152: 関西学院大学 | C152: 146 | D152: 16773000
B153: 滋賀医科大学 | C153: 141 | D153: 5086000
B154: 自治医科大学 | C154: 140 | D154: 10251000
B155: 島根大学 | C155: 140 | D155: 1478000
B156: 上智大学 | C156: 140 | D156: 200000
B157: 浜松医科大学 | C157: 135 | D157: 3613000
B158: 高エネルギー加速器研究機構 | C158: 135 | D158: 712000
B159: 順天堂大学 | C159: 132 | D159: 5278000
B160: 中部大学 | C160: 122 | D160: 1378000
B161: 名古屋市立大学 | C161: 114 | D161: 38831000
B162: 久留米大学 | C162: 112 | D162: 902000
B163: 豊田工業大学 | C163: 109 | D163: 0
B164: 芝浦工業大学 | C164: 103 | D164: 1238000
B165: 東京電機大学 | C165: 102 | D165: 3875000
B166: 埼玉医科大学 | C166: 99 | D166: 8849000
B167: 関東学院大学 | C167: 97 | D167: 9990000
B168: 琉球大学 | C168: 92 | D168: 1146000
B169: 明治大学 | C169: 91 | D169: 4260000
B170: 北見工業大学 | C170: 91 | D170: 753000
B171: 和歌山大学 | C171: 88 | D171: 3592000
B172: 富山県立大学 | C172: 86 | D172: 1957000
B173: 静岡県立大学 | C173: 84 | D173: 1231000
B174: 神奈川工科大学 | C174: 83 | D174: 289000
B175: 藤田医科大学 | C175: 80 | D175: 0
B176: 福岡工業大学 | C176: 69 | D176: 0
B177: 早稲田大学 | C177: 66 | D177: 19945000
B178: 福島大学 | C178: 65 | D178: 217000
B179: 帝京大学 | C179: 62 | D179: 2716000
B180: 岡山理科大学 | C180: 59 | D180: 1200000
B181: 日本医科大学 | C181: 58 | D181: 7708000
B182: 奈良県立医科大学 | C182: 58 | D182: 1283000
B183: 旭川医科大学 | C183: 58 | D183: 700000
B184: 帯広畜産大学 | C184: 57 | D184: 524000
B185: 兵庫医科大学 | C185: 56 | D185: 5620000
B186: 室蘭工業大学 | C186: 55 | D186: 1000
B187: 秋田県立大学 | C187: 54 | D187: 2624000
B188: 東洋大学 | C188: 53 | D188: 2185000
B189: 立教大学 | C189: 53 | D189: 8000
B190: 聖マリアンナ医科大学 | C190: 50 | D190: 109000
B191: 法政大学 | C191: 49 | D191: 874000
B192: お茶の水女子大学 | C192: 49 | D192: 5000
B193: 会津大学 | C193: 48 | D193: 132000
B194: 玉川大学 | C194: 48 | D194: 125000
B195: 関西医科大学 | C195: 47 | D195: 3568000
B196: 甲南大学 | C196: 45 | D196: 1103000
B197: 大阪工業大学 | C197: 44 | D197: 0
B198: 龍谷大学 | C198: 43 | D198: 168000
B199: 広島市立大学 | C199: 43 | D199: 0
B200: 産業医科大学 | C200: 42 | D200: 1006000
B201: 工学院大学 | C201: 41 | D201: 1396000
B202: 北九州市立大学 | C202: 37 | D202: 5488000
B203: 東京農業大学 | C203: 37 | D203: 473000
B204: 鈴鹿工業高等専門学校 | C204: 34 | D204: 74000
B205: 青山学院大学 | C205: 34 | D205: 0
B206: 昭和大学 | C206: 31 | D206: 10595000
B207: 香川高等専門学校 | C207: 31 | D207: 1599000
B208: 麻布大学 | C208: 31 | D208: 797000
B209: 県立広島大学 | C209: 31 | D209: 11000
B210: 愛知工業大学 | C210: 30 | D210: 340000
... 903 more rows

Sheet 茨城大学 (hidden)
A1: 国立 | C1: 茨城大学（茨城県） | X1: 大学全体の経営理念における産学官連携活動の取組方針 | CB1: 80 | CC1: 81 | CD1: 82 | CE1: 83 | CF1: 84 | CG1: 85 | CH1: 86 | CI1: 87 | CJ1: 88 | CK1: 89 | CL1: 90 | CM1: 91 | CN1: 92 | CO1: 93 | CP1: 94 | CQ1: 95 | CR1: 96 | CS1: 97 | CT1: 98 | CU1: 99 | CV1: 100 | CW1: 101 | CX1: 102 | CY1: 103 | CZ1: 104 | DA1: 105 | DB1: 106 | DC1: 107 | DD1: 108 | DE1: 109 | DF1: 110 | DG1: 111 | DH1: 112 | DI1: 113 | DJ1: 114 | DK1: 115 | DL1: 116 | DM1: 117 | DN1: 118 | DO1: 119 | DP1: 120 | DQ1: 121 | DR1: 122 | DS1: 123 | DT1: 124 | DU1: 125 | DV1: 126 | DW1: 127 | DX1: 128 | DY1: 129
X2: 「知的財産を活用した社会貢献」を知的財産活動の基本理念とし、学術研究活動の成果である知的財産の創出と活用をとおして社会の持続的な発展に貢献することにより、学術研究活動の更なる活性化を図る。
BB3: ＵＲＡ | BO3: URA当たり研究者数 | CA3: 戦略的産学連携経費
BC4: 実務担当者数 | BI4: 9 | BN4: 名 | BO4: =IF(OR(K25="",BI4=""),"",(IFERROR(K25/BI4,""))) -> 67.11111111 | BX4: 名 | CB4: 戦略的産学連携経費の設定 | CP4: 有 | CT4: 無 | CZ4: ない | DA4: インキュベーション施設
A5: 1 | B5: 2 | C5: 3 | D5: 4 | E5: 5 | F5: 6 | G5: 7 | H5: 8 | I5: 9 | J5: 10 | K5: 11 | L5: 12 | M5: 13 | N5: 14 | O5: 15 | P5: 16 | Q5: 17 | R5: 18 | S5: 19 | T5: 20 | U5: 21 | V5: 22 | W5: 23 | X5: 24 | Y5: 25 | Z5: 26 | AA5: 27 | AB5: 28 | AC5: 29 | AD5: 30 | AE5: 31 | AF5: 32 | AG5: 33 | AH5: 34 | AI5: 35 | AJ5: 36 | AK5: 37 | AL5: 38 | AM5: 39 | AN5: 40 | AO5: 41 | AP5: 42 | AQ5: 43 | AR5: 44 | AS5: 45 | AT5: 46 | AU5: 47 | AV5: 48 | AW5: 49 | AX5: 50 | AY5: 51 | AZ5: 52 | BA5: 53 | BB5: 54 | BC5: 55 | BD5: 56 | BE5: 57 | BF5: 58 | BG5: 59 | BH5: 60 | BI5: 61 | BJ5: 62 | BK5: 63 | BL5: 64 | BM5: 65 | BN5: 66 | BO5: 67 | BP5: 68 | BQ5: 69 | BR5: 70 | BS5: 71 | BT5: 72 | BU5: 73 | BV5: 74 | BW5: 75 | BX5: 76 | BY5: 77 | BZ5: 78 | CA5: 79 | CB5: 戦略的産学連携経費の費目 | CZ5: ある | DA5: 相談窓口
A6: 基 礎 情 報 | BB6: 各種規程類の整備状況 | CB6: 戦略的産学連携経費の直接経費に対する割合 | CZ6: ある | DA6: 設立ポリシー | DI6: ◎ | DJ6: 産学連携ポリシー
BB7: 産学連携ポリシー | BM7: 職務発明規程（教職員のみ対象） | CZ7: ない | DA7: 支援ファンド | DI7: ◎ | DJ7: 知的財産ポリシー
B8: 大学の得意分野とその具体例 | BB8: 知的財産ポリシー | BM8: 職務発明規程（教職員、学生対象） | CA8: 人件費の企業負担 | DI8: ◎ | DJ8: 共同研究取扱規程
B9: ・無線・通信・画像処理分野 ・ものづくりが関連する金属加工分野 ・中性子線を用いた材料評価分野 | AA9: 科研費 （千円） | AL9: その他政府系資金 (千円) | AS9: その他団体からの資金 (千円) | BB9: 共同研究取扱規程 | BM9: 発明補償関係規程（教職員のみ対象） | CB9: 教員人件費の企業負担に関する規程や制度 | CP9: 有 | CT9: 無 | DI9: ◎ | DJ9: 受託研究取扱規程
BB10: 受託研究取扱規程 | BM10: 発明補償関係規程（教職員、学生対象） | CB10: 教員人件費の企業負担の費目 | DI10: ◎ | DJ10: 研究成果有体物取扱規程
AA11: 479400 | AL11: 9122 | AS11: 0 | BB11: 研究成果有体物取扱規程 | BM11: 守秘義務に係る規程（教職員のみ対象） | CB11: 学生人件費の企業負担に関する規程や制度 | CP11: 有 | CT11: 無 | DI11: × | DJ11: 営業秘密管理に関する規程
BB12: 営業秘密管理に関する規程 | BM12: 守秘義務に係る規程（教職員、学生対象） | CB12: 学生人件費の企業負担の費目 | CP12: 直接経費 | DI12: △ | DJ12: 株式の取扱等規程、ポリシー
AA13: 間接経費割合 | AN13: 株式の保有 | AT13: 新株予約権の保有 | BB13: 株式の取扱等規程、ポリシー | DB13: 株式 | DI13: × | DJ13: 職務発明規程（教職員のみ対象）
AA14: 0.3 | AN14: 有 | AQ14: 無 | AT14: 有 | AW14: 無 | BD14: ※各種規定類を整備している場合は、赤色で表示されます。 | CA14: 特別試験研究費税額控除制度 | DB14: 新株予約権 | DI14: ◎ | DJ14: 職務発明規程（教職員、学生対象）
B15: 産学官連携活動において今後重点化したい事項 | CB15: 特別試験研究費税額控除制度の活用 | CP15: 有 | CT15: 無 | DI15: × | DJ15: 発明補償関係規程（教職員のみ対象）
B16: ・県内に研究・製造の拠点のある企業との連携強化 ・県内の大学及び国研等との連携プロジェクトの推進 ・県内企業や自治体と連携したカーボンニュートラルの達成 | AA16: ■共同研究 | AG16: 2020年度 | AO16: 2021年度 | AW16: 順位※ | BB16: クロスアポイントメントの実績（人） | BK16: 大学等 | BN16: 公的機関 | BQ16: 民間企業 | BU16: その他機関 | DI16: ◎ | DJ16: 発明補償関係規程（教職員、学生対象）
AG17: 受入額（千円） | AL17: 件数 | AO17: 受入額（千円） | AT17: 件数 | BH17: 受入 | BK17: 2 | BN17: 5 | BQ17: 2 | BU17: 0 | DB17: 順位 | DI17: × | DJ17: 守秘義務に係る規程（教職員のみ対象）
AA18: 全体 | AG18: 208222 | AL18: 240 | AO18: 238745 | AT18: 272 | AW18: =IF(DB18<50,DB18,"") ->  | AY18: 位 | BH18: 派遣 | BK18: 0 | BN18: 0 | BQ18: 1 | BU18: 0 | DB18: 58 | DI18: ◎ | DJ18: 守秘義務に係る規程（教職員、学生対象）
AB19: 民間企業 のみ | AG19: 156278 | AL19: 180 | AO19: 180109 | AT19: 204 | AW19: =IF(DB19<50,DB19,"") ->  | AY19: 位 | DB19: 70
AC20: 大企業 | AG20: 102591 | AL20: 109 | AO20: 152428 | AT20: 134 | AW20: =IF(DB20<50,DB20,"") ->  | AY20: 位 | DB20: 62 | DI20: ない | DJ20: 戦略的産学連携経費の設定
AC21: 中小企業 | AG21: 53687 | AL21: 71 | AO21: 27681 | AT21: 70 | AW21: =IF(DB21<50,DB21,"") ->  | AY21: 位 | BB21: ■組織的産学連携活動の取組事例 | DB21: 89 | DI21: ない | DJ21: 教員人件費の企業負担に関する規程や制度
AL22: ※順位は2021年度の受入額を比較したもの | DI22: ある | DJ22: 学生人件費の企業負担に関する規程や制度
B23: 産学官連携本部等組織名 | K23: 研究・産学官連携機構 | DB23: 0 | DC23: 65 | DI23: ある | DJ23: 特別試験研究費税額控除制度の活用
B24: 産学官連携本部等URL | K24: https://www.iric.ibaraki.ac.jp/ | DB24: ～100万 | DC24: 71
B25: 研究者数 | K25: 604 | O25: 名 | DB25: ～300万 | DC25: 52
DB26: ～500万 | DC26: 12
DB27: ～1000万 | DC27: 3
DB28: ～5000万 | DC28: 1
DB29: ～1億 | DC29: 0 | DJ29: 共同研究等の企画・提案
B30: 産学連携担当部署 | O30: 実務者当たり研究者数 | DB30: 1億以上 | DC30: 0 | DJ30: 契約書での成果目標、達成時の明記
C31: 実務担当者数 | I31: 17 | N31: 名 | O31: =IF(OR(K25="",I31=""),"",IFERROR($K$25/I31,"")) -> 35.52941176 | X31: 名 | DJ31: 共同研究契約の締結/判断（契約権限の集中）
C32: 専門家の配置 | I32: 弁護士 | L32: 弁理士 | O32: 税理士 | R32: 公認会計士 | V32: その他 | DJ32: 共同研究の進捗管理とフィードバック
I33: ※専門家を配置している場合は、赤色で表示されます。 | DJ33: 企業ニーズに適応した技術移転・事業化提案
AA34: ■受託研究 | AG34: 2020年度 | AO34: 2021年度 | AW34: 順位※ | DJ34: 共同研究等の企画・提案
AG35: 受入額（千円） | AL35: 件数（件） | AO35: 受入額（千円） | AT35: 件数（件） | DB35: 順位 | DJ35: 契約書での成果目標、達成時の明記
AA36: 全体 | AG36: 553138 | AL36: 51 | AO36: 708294 | AT36: 59 | AW36: =IF(DB36<50,DB36,"") ->  | AY36: 位 | DB36: 56 | DJ36: 共同研究契約の締結/判断（契約権限の集中）
AB37: 民間企業 のみ | AG37: 5736 | AL37: 5 | AO37: 11853 | AT37: 10 | AW37: =IF(DB37<50,DB37,"") ->  | AY37: 位 | DB37: 146 | DJ37: 共同研究の進捗管理とフィードバック
C38: 産学連携本部が関与した共同研究 | P38: 0 | T38: 件 | AC38: 大企業 | AG38: 5736 | AL38: 5 | AO38: 6353 | AT38: 7 | AW38: =IF(DB38<50,DB38,"") ->  | AY38: 位 | DB38: 162 | DJ38: 企業ニーズに適応した技術移転・事業化提案
D39: 内、マッチングを行い、契約締結した件数 | P39: 0 | T39: 件 | AC39: 中小企業 | AG39: 0 | AL39: 0 | AO39: 5500 | AT39: 3 | AW39: =IF(DB39<50,DB39,"") ->  | AY39: 位 | BB39: ■産学連携活動の主な実用化事例 | DB39: 96 | DJ39: 共同研究等の企画・提案
I40: ※1,000万円以上の共同研究 | AL40: ※順位は2021年度の受入額を比較したもの | DB40: 弁護士 | DG40: 0 | DH40: 0 | DJ40: 契約書での成果目標、達成時の明記
DB41: 弁理士 | DG41: ～100万 | DH41: 5 | DJ41: 共同研究契約の締結/判断（契約権限の集中）
C42: 組織対組織による包括連携契約の締結数 | P42: 0 | T42: 件 | DB42: 税理士 | DG42: ～300万 | DH42: 4 | DJ42: 共同研究の進捗管理とフィードバック
D43: 内、1,000万円以上の実績がある相手方数 | P43: 0 | T43: 件 | DB43: 公認会計士 | DG43: ～500万 | DH43: 1 | DJ43: 企業ニーズに適応した技術移転・事業化提案
DA44: ○ | DB44: その他 | DG44: ～1000万 | DH44: 0
C45: 寄附講座・寄附研究部門の受入件数 | V45: 件 | DG45: ～5000万 | DH45: 0
C46: 寄附講座・寄附研究部門の受入金額（千円） | P46: 0 | DG46: ～1億 | DH46: 0
C47: 共同研究講座・共同研究部門の受入件数 | P47: 0 | V47: 件 | DG47: 1億以上 | DH47: 0
C48: 共同研究講座・共同研究部門の受入金額（千円） | P48: 0
C52: 職務発明の帰属 | I52: 大学 | M52: 発明者 | Q52: 未設定 | CZ52: 大学 | DA52: 職務発明
AD53: 特許権実施等件数 | AL53: 12 | AQ53: 件 | AS53: 実施等件数 あたり | DA53: 不実施
M54: 研究者あたり | AD54: 特許権実施等収入（千円） | AL54: 1237 | AS54: =IF(OR(AL53="",AL54=""),"",IFERROR(AL54/AL53,"")) -> 103.0833333 | CZ54: 1237000 | DA54: 特許等収入
C55: 特許出願件数（件） | I55: 32 | M55: =IF(OR(K25="",I55=""),"",IFERROR(I55/K25,"")) -> 0.05298013245
C56: 特許保有件数（件） | I56: 167 | M56: =IF(OR(K25="",I56=""),"",IFERROR(I56/K25,"")) -> 0.2764900662
C61: 大学発ベンチャー数 | J61: 8 | O61: 社
C62: Exit件数（IPO） | J62: 0 | O62: 社 | P62: Exit件数（M&A） | W62: 0 | Z62: 社
C63: 相談窓口 | K63: 支援ファンド | S63: インキュベーション施設
C64: 有 | G64: 無 | K64: 有 | O64: 無 | S64: 有 | W64: 無
C65: 知的財産戦略方針 | K65: 支援総額（千円） | S65: 面積 | Z65: 平方メートル
C66: 有 | G66: 無 | S66: 契約企業数 | Z66: 社
A69: 1 | B69: 2 | C69: 3 | D69: 4 | E69: 5 | F69: 6 | G69: 7 | H69: 8 | I69: 9 | J69: 10 | K69: 11 | L69: 12 | M69: 13 | N69: 14 | O69: 15 | P69: 16 | Q69: 17 | R69: 18 | S69: 19 | T69: 20 | U69: 21 | V69: 22 | W69: 23 | X69: 24 | Y69: 25 | Z69: 26 | AA69: 27 | AB69: 28 | AC69: 29 | AD69: 30 | AE69: 31 | AF69: 32 | AG69: 33 | AH69: 34 | AI69: 35 | AJ69: 36 | AK69: 37 | AL69: 38 | AM69: 39 | AN69: 40 | AO69: 41 | AP69: 42 | AQ69: 43 | AR69: 44 | AS69: 45 | AT69: 46 | AU69: 47 | AV69: 48 | AW69: 49 | AX69: 50 | AY69: 51 | AZ69: 52 | BA69: 53 | BB69: 54 | BC69: 55 | BD69: 56 | BE69: 57 | BF69: 58 | BG69: 59 | BH69: 60 | BI69: 61 | BJ69: 62 | BK69: 63 | BL69: 64 | BM69: 65 | BN69: 66 | BO69: 67 | BP69: 68 | BQ69: 69 | BR69: 70 | BS69: 71 | BT69: 72 | BU69: 73 | BV69: 74 | BW69: 75 | BX69: 76 | BY69: 77 | BZ69: 78 | CA69: 79 | CB69: 80 | CC69: 81 | CD69: 82 | CE69: 83 | CF69: 84 | CG69: 85 | CH69: 86 | CI69: 87 | CJ69: 88 | CK69: 89 | CL69: 90 | CM69: 91 | CN69: 92 | CO69: 93 | CP69: 94 | CQ69: 95 | CR69: 96 | CS69: 97 | CT69: 98 | CU69: 99 | CV69: 100 | CW69: 101 | CX69: 102 | CY69: 103 | CZ69: 104 | DA69: 105 | DB69: 106 | DC69: 107 | DD69: 108 | DE69: 109 | DF69: 110 | DG69: 111 | DH69: 112 | DI69: 113 | DJ69: 114 | DK69: 115 | DL69: 116 | DM69: 117 | DN69: 118 | DO69: 119 | DP69: 120 | DQ69: 121 | DR69: 122 | DS69: 123 | DT69: 124 | DU69: 125
D70: 特許権収入
B71: 東京大学 | C71: 4744 | D71: 557703000
B72: 東北大学 | C72: 3726 | D72: 275164000
B73: 大阪大学 | C73: 3253 | D73: 395417000
B74: 京都大学 | C74: 3217 | D74: 886135000
B75: 東京工業大学 | C75: 2019 | D75: 42504000
B76: 九州大学 | C76: 1733 | D76: 142436000
B77: 名古屋大学 | C77: 1496 | D77: 72276000
B78: 北海道大学 | C78: 1219 | D78: 115470000
B79: 信州大学 | C79: 1047 | D79: 32411000
B80: 広島大学 | C80: 1019 | D80: 44418000
B81: 筑波大学 | C81: 892 | D81: 27835000
B82: 慶應義塾大学 | C82: 856 | D82: 58283000
B83: 千葉大学 | C83: 851 | D83: 9761000
B84: 岡山大学 | C84: 739 | D84: 21802000
B85: 山口大学 | C85: 711 | D85: 26145000
B86: 東京農工大学 | C86: 667 | D86: 10063000
B87: 名古屋工業大学 | C87: 660 | D87: 23496000
B88: 東京理科大学 | C88: 629 | D88: 11695000
B89: 九州工業大学 | C89: 607 | D89: 5845000
B90: 神戸大学 | C90: 581 | D90: 104449000
B91: 熊本大学 | C91: 543 | D91: 19748000
B92: 群馬大学 | C92: 536 | D92: 3598000
B93: 静岡大学 | C93: 523 | D93: 2662000
B94: 横浜国立大学 | C94: 509 | D94: 4920000
B95: 大阪公立大学（大阪府立大学） | C95: 502 | D95: 8255000
B96: 近畿大学 | C96: 488 | D96: 26794000
B97: 鹿児島大学 | C97: 458 | D97: 8269000
B98: 長岡技術科学大学 | C98: 440 | D98: 2979000
B99: 奈良先端科学技術大学院大学 | C99: 435 | D99: 3758000
B100: 東京都立大学 | C100: 435 | D100: 1170000
B101: 山梨大学 | C101: 426 | D101: 28912000
B102: 大阪公立大学（大阪市立大学） | C102: 423 | D102: 3124000
B103: 三重大学 | C103: 422 | D103: 20215000
B104: 東京医科歯科大学 | C104: 418 | D104: 74575000
B105: 電気通信大学 | C105: 406 | D105: 2740000
B106: 豊橋技術科学大学 | C106: 395 | D106: 7491000
B107: 関西大学 | C107: 392 | D107: 5519000
B108: 徳島大学 | C108: 385 | D108: 26218000
B109: 金沢大学 | C109: 360 | D109: 14331000
B110: 北里大学 | C110: 350 | D110: 47578000
B111: 香川大学 | C111: 343 | D111: 13987000
B112: 鳥取大学 | C112: 341 | D112: 5178000
B113: 新潟大学 | C113: 323 | D113: 11052000
B114: 富山大学 | C114: 319 | D114: 21312000
B115: 埼玉大学 | C115: 314 | D115: 2129000
B116: 同志社大学 | C116: 310 | D116: 26699000
B117: 日本大学 | C117: 306 | D117: 50528000
B118: 高知大学 | C118: 296 | D118: 22439000
B119: 立命館大学 | C119: 283 | D119: 5079000
B120: 自然科学研究機構 | C120: 278 | D120: 23513000
B121: 弘前大学 | C121: 261 | D121: 6272000
B122: 岐阜大学 | C122: 260 | D122: 9851000
B123: 宮崎大学 | C123: 257 | D123: 2044000
B124: 神奈川大学 | C124: 254 | D124: 4373000
B125: 兵庫県立大学 | C125: 248 | D125: 37000
B126: 秋田大学 | C126: 242 | D126: 245000
B127: 佐賀大学 | C127: 239 | D127: 6705000
B128: 福井大学 | C128: 239 | D128: 3402000
B129: 東海大学 | C129: 238 | D129: 771000
B130: 山形大学 | C130: 237 | D130: 3491000
B131: 横浜市立大学 | C131: 234 | D131: 25613000
B132: 札幌医科大学 | C132: 229 | D132: 28223000
B133: 京都工芸繊維大学 | C133: 224 | D133: 2740000
B134: 名城大学 | C134: 224 | D134: 475000
B135: 千葉工業大学 | C135: 210 | D135: 22544000
B136: 情報・システム研究機構 | C136: 208 | D136: 5139000
B137: 長崎大学 | C137: 201 | D137: 14882000
B138: 東京海洋大学 | C138: 194 | D138: 2761000
B139: 愛媛大学 | C139: 188 | D139: 18823000
B140: 東京女子医科大学 | C140: 188 | D140: 2124000
B141: 岩手大学 | C141: 188 | D141: 1268000
B142: 北陸先端科学技術大学院大学 | C142: 182 | D142: 7446000
B143: 福岡大学 | C143: 178 | D143: 1047000
B144: 沖縄科学技術大学院大学 | C144: 173 | D144: 1100000
B145: 高知工科大学 | C145: 169 | D145: 45000
B146: 宇都宮大学 | C146: 168 | D146: 7200000
B147: 茨城大学 | C147: 167 | D147: 1237000
B148: 金沢工業大学 | C148: 151 | D148: 3018000
B149: 中央大学 | C149: 151 | D149: 2106000
B150: 大分大学 | C150: 148 | D150: 1748000
B151: 京都府立医科大学 | C151: 147 | D151: 11367000
B152: 関西学院大学 | C152: 146 | D152: 16773000
B153: 滋賀医科大学 | C153: 141 | D153: 5086000
B154: 自治医科大学 | C154: 140 | D154: 10251000
B155: 島根大学 | C155: 140 | D155: 1478000
B156: 上智大学 | C156: 140 | D156: 200000
B157: 浜松医科大学 | C157: 135 | D157: 3613000
B158: 高エネルギー加速器研究機構 | C158: 135 | D158: 712000
B159: 順天堂大学 | C159: 132 | D159: 5278000
B160: 中部大学 | C160: 122 | D160: 1378000
B161: 名古屋市立大学 | C161: 114 | D161: 38831000
B162: 久留米大学 | C162: 112 | D162: 902000
B163: 豊田工業大学 | C163: 109 | D163: 0
B164: 芝浦工業大学 | C164: 103 | D164: 1238000
B165: 東京電機大学 | C165: 102 | D165: 3875000
B166: 埼玉医科大学 | C166: 99 | D166: 8849000
B167: 関東学院大学 | C167: 97 | D167: 9990000
B168: 琉球大学 | C168: 92 | D168: 1146000
B169: 明治大学 | C169: 91 | D169: 4260000
B170: 北見工業大学 | C170: 91 | D170: 753000
B171: 和歌山大学 | C171: 88 | D171: 3592000
B172: 富山県立大学 | C172: 86 | D172: 1957000
B173: 静岡県立大学 | C173: 84 | D173: 1231000
B174: 神奈川工科大学 | C174: 83 | D174: 289000
B175: 藤田医科大学 | C175: 80 | D175: 0
B176: 福岡工業大学 | C176: 69 | D176: 0
B177: 早稲田大学 | C177: 66 | D177: 19945000
B178: 福島大学 | C178: 65 | D178: 217000
B179: 帝京大学 | C179: 62 | D179: 2716000
B180: 岡山理科大学 | C180: 59 | D180: 1200000
B181: 日本医科大学 | C181: 58 | D181: 7708000
B182: 奈良県立医科大学 | C182: 58 | D182: 1283000
B183: 旭川医科大学 | C183: 58 | D183: 700000
B184: 帯広畜産大学 | C184: 57 | D184: 524000
B185: 兵庫医科大学 | C185: 56 | D185: 5620000
B186: 室蘭工業大学 | C186: 55 | D186: 1000
B187: 秋田県立大学 | C187: 54 | D187: 2624000
B188: 東洋大学 | C188: 53 | D188: 2185000
B189: 立教大学 | C189: 53 | D189: 8000
B190: 聖マリアンナ医科大学 | C190: 50 | D190: 109000
B191: 法政大学 | C191: 49 | D191: 874000
B192: お茶の水女子大学 | C192: 49 | D192: 5000
B193: 会津大学 | C193: 48 | D193: 132000
B194: 玉川大学 | C194: 48 | D194: 125000
B195: 関西医科大学 | C195: 47 | D195: 3568000
B196: 甲南大学 | C196: 45 | D196: 1103000
B197: 大阪工業大学 | C197: 44 | D197: 0
B198: 龍谷大学 | C198: 43 | D198: 168000
B199: 広島市立大学 | C199: 43 | D199: 0
B200: 産業医科大学 | C200: 42 | D200: 1006000
B201: 工学院大学 | C201: 41 | D201: 1396000
B202: 北九州市立大学 | C202: 37 | D202: 5488000
B203: 東京農業大学 | C203: 37 | D203: 473000
B204: 鈴鹿工業高等専門学校 | C204: 34 | D204: 74000
B205: 青山学院大学 | C205: 34 | D205: 0
B206: 昭和大学 | C206: 31 | D206: 10595000
B207: 香川高等専門学校 | C207: 31 | D207: 1599000
B208: 麻布大学 | C208: 31 | D208: 797000
B209: 県立広島大学 | C209: 31 | D209: 11000
... 904 more rows

Sheet 岩手大学 (hidden)
A1: 国立 | C1: 岩手大学（岩手県） | X1: 大学全体の経営理念における産学官連携活動の取組方針 | CB1: 80 | CC1: 81 | CD1: 82 | CE1: 83 | CF1: 84 | CG1: 85 | CH1: 86 | CI1: 87 | CJ1: 88 | CK1: 89 | CL1: 90 | CM1: 91 | CN1: 92 | CO1: 93 | CP1: 94 | CQ1: 95 | CR1: 96 | CS1: 97 | CT1: 98 | CU1: 99 | CV1: 100 | CW1: 101 | CX1: 102 | CY1: 103 | CZ1: 104 | DA1: 105 | DB1: 106 | DC1: 107 | DD1: 108 | DE1: 109 | DF1: 110 | DG1: 111 | DH1: 112 | DI1: 113 | DJ1: 114 | DK1: 115 | DL1: 116 | DM1: 117 | DN1: 118 | DO1: 119 | DP1: 120 | DQ1: 121 | DR1: 122 | DS1: 123 | DT1: 124 | DU1: 125 | DV1: 126 | DW1: 127 | DX1: 128 | DY1: 129
X2: 地域社会に開かれた大学として、その教育研究の成果をもとに地域社会の文化の向上と国際社会の発展に貢献することを目指す。このため、地域社会との連携による新たな研究分野の創出を進める。
BB3: ＵＲＡ | BO3: URA当たり研究者数 | CA3: 戦略的産学連携経費
BC4: 実務担当者数 | BI4: 16 | BN4: 名 | BO4: =IF(OR(K25="",BI4=""),"",(IFERROR(K25/BI4,""))) -> 52.375 | BX4: 名 | CB4: 戦略的産学連携経費の設定 | CP4: 有 | CT4: 無 | CZ4: ある | DA4: インキュベーション施設
A5: 1 | B5: 2 | C5: 3 | D5: 4 | E5: 5 | F5: 6 | G5: 7 | H5: 8 | I5: 9 | J5: 10 | K5: 11 | L5: 12 | M5: 13 | N5: 14 | O5: 15 | P5: 16 | Q5: 17 | R5: 18 | S5: 19 | T5: 20 | U5: 21 | V5: 22 | W5: 23 | X5: 24 | Y5: 25 | Z5: 26 | AA5: 27 | AB5: 28 | AC5: 29 | AD5: 30 | AE5: 31 | AF5: 32 | AG5: 33 | AH5: 34 | AI5: 35 | AJ5: 36 | AK5: 37 | AL5: 38 | AM5: 39 | AN5: 40 | AO5: 41 | AP5: 42 | AQ5: 43 | AR5: 44 | AS5: 45 | AT5: 46 | AU5: 47 | AV5: 48 | AW5: 49 | AX5: 50 | AY5: 51 | AZ5: 52 | BA5: 53 | BB5: 54 | BC5: 55 | BD5: 56 | BE5: 57 | BF5: 58 | BG5: 59 | BH5: 60 | BI5: 61 | BJ5: 62 | BK5: 63 | BL5: 64 | BM5: 65 | BN5: 66 | BO5: 67 | BP5: 68 | BQ5: 69 | BR5: 70 | BS5: 71 | BT5: 72 | BU5: 73 | BV5: 74 | BW5: 75 | BX5: 76 | BY5: 77 | BZ5: 78 | CA5: 79 | CB5: 戦略的産学連携経費の費目 | CZ5: ある | DA5: 相談窓口
A6: 基 礎 情 報 | BB6: 各種規程類の整備状況 | CB6: 戦略的産学連携経費の直接経費に対する割合 | CZ6: ある | DA6: 設立ポリシー | DI6: ◎ | DJ6: 産学連携ポリシー
BB7: 産学連携ポリシー | BM7: 職務発明規程（教職員のみ対象） | CZ7: ない | DA7: 支援ファンド | DI7: ◎ | DJ7: 知的財産ポリシー
B8: 大学の得意分野とその具体例 | BB8: 知的財産ポリシー | BM8: 職務発明規程（教職員、学生対象） | CA8: 人件費の企業負担 | DI8: ◎ | DJ8: 共同研究取扱規程
B9: 数々の実績のあるINS等産学官金ネットワークを基盤に、特徴的な研究シーズを活かした産学官連携を実施 ・次世代アグリイノベーション ・パルスパワーによる植物等の革新的機能性制御技術 ・分子接合技術によるエレクトロニクス実装技術 等 | AA9: 科研費 （千円） | AL9: その他政府系資金 (千円) | AS9: その他団体からの資金 (千円) | BB9: 共同研究取扱規程 | BM9: 発明補償関係規程（教職員のみ対象） | CB9: 教員人件費の企業負担に関する規程や制度 | CP9: 有 | CT9: 無 | DI9: ◎ | DJ9: 受託研究取扱規程
BB10: 受託研究取扱規程 | BM10: 発明補償関係規程（教職員、学生対象） | CB10: 教員人件費の企業負担の費目 | DI10: ◎ | DJ10: 研究成果有体物取扱規程
AA11: 565802 | AL11: 5922 | AS11: 33118 | BB11: 研究成果有体物取扱規程 | BM11: 守秘義務に係る規程（教職員のみ対象） | CB11: 学生人件費の企業負担に関する規程や制度 | CP11: 有 | CT11: 無 | DI11: ◎ | DJ11: 営業秘密管理に関する規程
BB12: 営業秘密管理に関する規程 | BM12: 守秘義務に係る規程（教職員、学生対象） | CB12: 学生人件費の企業負担の費目 | DI12: ◎ | DJ12: 株式の取扱等規程、ポリシー
AA13: 間接経費割合 | AN13: 株式の保有 | AT13: 新株予約権の保有 | BB13: 株式の取扱等規程、ポリシー | DB13: 株式 | DI13: × | DJ13: 職務発明規程（教職員のみ対象）
AA14: 0.3 | AN14: 有 | AQ14: 無 | AT14: 有 | AW14: 無 | BD14: ※各種規定類を整備している場合は、赤色で表示されます。 | CA14: 特別試験研究費税額控除制度 | DA14: ○ | DB14: 新株予約権 | DI14: ◎ | DJ14: 職務発明規程（教職員、学生対象）
B15: 産学官連携活動において今後重点化したい事項 | CB15: 特別試験研究費税額控除制度の活用 | CP15: 有 | CT15: 無 | DI15: × | DJ15: 発明補償関係規程（教職員のみ対象）
B16: ・地域企業との共同研究数・金額の増加。 ・オープンイノベーション拠点である「銀河オープンラボ」のプロジェクトを中心に、大型プロジェクトの創出と支援を行う。 ・地域の水産業をはじめ、1次産業との連携を更に進める。 | AA16: ■共同研究 | AG16: 2020年度 | AO16: 2021年度 | AW16: 順位※ | BB16: クロスアポイントメントの実績（人） | BK16: 大学等 | BN16: 公的機関 | BQ16: 民間企業 | BU16: その他機関 | DI16: ◎ | DJ16: 発明補償関係規程（教職員、学生対象）
AG17: 受入額（千円） | AL17: 件数 | AO17: 受入額（千円） | AT17: 件数 | BH17: 受入 | BK17: 0 | BN17: 0 | BQ17: 0 | BU17: 0 | DB17: 順位 | DI17: ◎ | DJ17: 守秘義務に係る規程（教職員のみ対象）
AA18: 全体 | AG18: 311174 | AL18: 193 | AO18: 223908 | AT18: 213 | AW18: =IF(DB18<50,DB18,"") ->  | AY18: 位 | BH18: 派遣 | BK18: 0 | BN18: 0 | BQ18: 0 | BU18: 0 | DB18: 62 | DI18: × | DJ18: 守秘義務に係る規程（教職員、学生対象）
AB19: 民間企業 のみ | AG19: 262167 | AL19: 167 | AO19: 183981 | AT19: 179 | AW19: =IF(DB19<50,DB19,"") ->  | AY19: 位 | DB19: 67
AC20: 大企業 | AG20: 146344 | AL20: 72 | AO20: 114359 | AT20: 85 | AW20: =IF(DB20<50,DB20,"") ->  | AY20: 位 | DB20: 74 | DI20: ない | DJ20: 戦略的産学連携経費の設定
AC21: 中小企業 | AG21: 115823 | AL21: 95 | AO21: 69622 | AT21: 94 | AW21: =IF(DB21<50,DB21,"") -> 47 | AY21: 位 | BB21: ■組織的産学連携活動の取組事例 | DB21: 47 | DI21: ない | DJ21: 教員人件費の企業負担に関する規程や制度
AL22: ※順位は2021年度の受入額を比較したもの | DI22: ない | DJ22: 学生人件費の企業負担に関する規程や制度
B23: 産学官連携本部等組織名 | K23: 研究支援・産学連携センター | DB23: 0 | DC23: 53 | DI23: ある | DJ23: 特別試験研究費税額控除制度の活用
B24: 産学官連携本部等URL | K24: https://www.ccrd.iwate-u.ac.jp/ | DB24: ～100万 | DC24: 51
B25: 研究者数 | K25: 838 | O25: 名 | DB25: ～300万 | DC25: 60
DB26: ～500万 | DC26: 11
DB27: ～1000万 | DC27: 3
DB28: ～5000万 | DC28: 1
DB29: ～1億 | DC29: 0 | DJ29: 共同研究等の企画・提案
B30: 産学連携担当部署 | O30: 実務者当たり研究者数 | DB30: 1億以上 | DC30: 0 | DJ30: 契約書での成果目標、達成時の明記
C31: 実務担当者数 | I31: 5 | N31: 名 | O31: =IF(OR(K25="",I31=""),"",IFERROR($K$25/I31,"")) -> 167.6 | X31: 名 | DJ31: 共同研究契約の締結/判断（契約権限の集中）
C32: 専門家の配置 | I32: 弁護士 | L32: 弁理士 | O32: 税理士 | R32: 公認会計士 | V32: その他 | DJ32: 共同研究の進捗管理とフィードバック
I33: ※専門家を配置している場合は、赤色で表示されます。 | DJ33: 企業ニーズに適応した技術移転・事業化提案
AA34: ■受託研究 | AG34: 2020年度 | AO34: 2021年度 | AW34: 順位※ | DJ34: 共同研究等の企画・提案
AG35: 受入額（千円） | AL35: 件数（件） | AO35: 受入額（千円） | AT35: 件数（件） | DB35: 順位 | DJ35: 契約書での成果目標、達成時の明記
AA36: 全体 | AG36: 200810 | AL36: 47 | AO36: 252211 | AT36: 49 | AW36: =IF(DB36<50,DB36,"") ->  | AY36: 位 | DB36: 108 | DJ36: 共同研究契約の締結/判断（契約権限の集中）
AB37: 民間企業 のみ | AG37: 3283 | AL37: 5 | AO37: 14718 | AT37: 6 | AW37: =IF(DB37<50,DB37,"") ->  | AY37: 位 | DB37: 130 | DJ37: 共同研究の進捗管理とフィードバック
C38: 産学連携本部が関与した共同研究 | P38: 0 | T38: 件 | AC38: 大企業 | AG38: 3283 | AL38: 4 | AO38: 12378 | AT38: 4 | AW38: =IF(DB38<50,DB38,"") ->  | AY38: 位 | DB38: 120 | DJ38: 企業ニーズに適応した技術移転・事業化提案
D39: 内、マッチングを行い、契約締結した件数 | P39: 0 | T39: 件 | AC39: 中小企業 | AG39: 0 | AL39: 1 | AO39: 2340 | AT39: 2 | AW39: =IF(DB39<50,DB39,"") ->  | AY39: 位 | BB39: ■産学連携活動の主な実用化事例 | DB39: 153 | DJ39: 共同研究等の企画・提案
I40: ※1,000万円以上の共同研究 | AL40: ※順位は2021年度の受入額を比較したもの | DB40: 弁護士 | DG40: 0 | DH40: 0 | DJ40: 契約書での成果目標、達成時の明記
DB41: 弁理士 | DG41: ～100万 | DH41: 3 | DJ41: 共同研究契約の締結/判断（契約権限の集中）
C42: 組織対組織による包括連携契約の締結数 | P42: 0 | T42: 件 | DB42: 税理士 | DG42: ～300万 | DH42: 2 | DJ42: 共同研究の進捗管理とフィードバック
D43: 内、1,000万円以上の実績がある相手方数 | P43: 0 | T43: 件 | DB43: 公認会計士 | DG43: ～500万 | DH43: 0 | DJ43: 企業ニーズに適応した技術移転・事業化提案
DA44: ○ | DB44: その他 | DG44: ～1000万 | DH44: 1
C45: 寄附講座・寄附研究部門の受入件数 | P45: 0 | V45: 件 | DG45: ～5000万 | DH45: 0
C46: 寄附講座・寄附研究部門の受入金額（千円） | P46: 0 | DG46: ～1億 | DH46: 0
C47: 共同研究講座・共同研究部門の受入件数 | P47: 0 | V47: 件 | DG47: 1億以上 | DH47: 0
C48: 共同研究講座・共同研究部門の受入金額（千円） | P48: 0
C52: 職務発明の帰属 | I52: 大学 | M52: 発明者 | Q52: 未設定 | CZ52: 大学 | DA52: 職務発明
AD53: 特許権実施等件数 | AL53: 39 | AQ53: 件 | AS53: 実施等件数 あたり | DA53: 不実施
M54: 研究者あたり | AD54: 特許権実施等収入（千円） | AL54: 1268 | AS54: =IF(OR(AL53="",AL54=""),"",IFERROR(AL54/AL53,"")) -> 32.51282051 | CZ54: 1268000 | DA54: 特許等収入
C55: 特許出願件数（件） | I55: 40 | M55: =IF(OR(K25="",I55=""),"",IFERROR(I55/K25,"")) -> 0.0477326969
C56: 特許保有件数（件） | I56: 188 | M56: =IF(OR(K25="",I56=""),"",IFERROR(I56/K25,"")) -> 0.2243436754
C61: 大学発ベンチャー数 | J61: 17 | O61: 社
C62: Exit件数（IPO） | J62: 0 | O62: 社 | P62: Exit件数（M&A） | W62: 0 | Z62: 社
C63: 相談窓口 | K63: 支援ファンド | S63: インキュベーション施設
C64: 有 | G64: 無 | K64: 有 | O64: 無 | S64: 有 | W64: 無
C65: 知的財産戦略方針 | K65: 支援総額（千円） | S65: 面積 | W65: 583 | Z65: 平方メートル
C66: 有 | G66: 無 | S66: 契約企業数 | W66: 5 | Z66: 社
A69: 1 | B69: 2 | C69: 3 | D69: 4 | E69: 5 | F69: 6 | G69: 7 | H69: 8 | I69: 9 | J69: 10 | K69: 11 | L69: 12 | M69: 13 | N69: 14 | O69: 15 | P69: 16 | Q69: 17 | R69: 18 | S69: 19 | T69: 20 | U69: 21 | V69: 22 | W69: 23 | X69: 24 | Y69: 25 | Z69: 26 | AA69: 27 | AB69: 28 | AC69: 29 | AD69: 30 | AE69: 31 | AF69: 32 | AG69: 33 | AH69: 34 | AI69: 35 | AJ69: 36 | AK69: 37 | AL69: 38 | AM69: 39 | AN69: 40 | AO69: 41 | AP69: 42 | AQ69: 43 | AR69: 44 | AS69: 45 | AT69: 46 | AU69: 47 | AV69: 48 | AW69: 49 | AX69: 50 | AY69: 51 | AZ69: 52 | BA69: 53 | BB69: 54 | BC69: 55 | BD69: 56 | BE69: 57 | BF69: 58 | BG69: 59 | BH69: 60 | BI69: 61 | BJ69: 62 | BK69: 63 | BL69: 64 | BM69: 65 | BN69: 66 | BO69: 67 | BP69: 68 | BQ69: 69 | BR69: 70 | BS69: 71 | BT69: 72 | BU69: 73 | BV69: 74 | BW69: 75 | BX69: 76 | BY69: 77 | BZ69: 78 | CA69: 79 | CB69: 80 | CC69: 81 | CD69: 82 | CE69: 83 | CF69: 84 | CG69: 85 | CH69: 86 | CI69: 87 | CJ69: 88 | CK69: 89 | CL69: 90 | CM69: 91 | CN69: 92 | CO69: 93 | CP69: 94 | CQ69: 95 | CR69: 96 | CS69: 97 | CT69: 98 | CU69: 99 | CV69: 100 | CW69: 101 | CX69: 102 | CY69: 103 | CZ69: 104 | DA69: 105 | DB69: 106 | DC69: 107 | DD69: 108 | DE69: 109 | DF69: 110 | DG69: 111 | DH69: 112 | DI69: 113 | DJ69: 114 | DK69: 115 | DL69: 116 | DM69: 117 | DN69: 118 | DO69: 119 | DP69: 120 | DQ69: 121 | DR69: 122 | DS69: 123 | DT69: 124 | DU69: 125
D70: 特許権収入
B71: 東京大学 | C71: 4744 | D71: 557703000
B72: 東北大学 | C72: 3726 | D72: 275164000
B73: 大阪大学 | C73: 3253 | D73: 395417000
B74: 京都大学 | C74: 3217 | D74: 886135000
B75: 東京工業大学 | C75: 2019 | D75: 42504000
B76: 九州大学 | C76: 1733 | D76: 142436000
B77: 名古屋大学 | C77: 1496 | D77: 72276000
B78: 北海道大学 | C78: 1219 | D78: 115470000
B79: 信州大学 | C79: 1047 | D79: 32411000
B80: 広島大学 | C80: 1019 | D80: 44418000
B81: 筑波大学 | C81: 892 | D81: 27835000
B82: 慶應義塾大学 | C82: 856 | D82: 58283000
B83: 千葉大学 | C83: 851 | D83: 9761000
B84: 岡山大学 | C84: 739 | D84: 21802000
B85: 山口大学 | C85: 711 | D85: 26145000
B86: 東京農工大学 | C86: 667 | D86: 10063000
B87: 名古屋工業大学 | C87: 660 | D87: 23496000
B88: 東京理科大学 | C88: 629 | D88: 11695000
B89: 九州工業大学 | C89: 607 | D89: 5845000
B90: 神戸大学 | C90: 581 | D90: 104449000
B91: 熊本大学 | C91: 543 | D91: 19748000
B92: 群馬大学 | C92: 536 | D92: 3598000
B93: 静岡大学 | C93: 523 | D93: 2662000
B94: 横浜国立大学 | C94: 509 | D94: 4920000
B95: 大阪公立大学（大阪府立大学） | C95: 502 | D95: 8255000
B96: 近畿大学 | C96: 488 | D96: 26794000
B97: 鹿児島大学 | C97: 458 | D97: 8269000
B98: 長岡技術科学大学 | C98: 440 | D98: 2979000
B99: 奈良先端科学技術大学院大学 | C99: 435 | D99: 3758000
B100: 東京都立大学 | C100: 435 | D100: 1170000
B101: 山梨大学 | C101: 426 | D101: 28912000
B102: 大阪公立大学（大阪市立大学） | C102: 423 | D102: 3124000
B103: 三重大学 | C103: 422 | D103: 20215000
B104: 東京医科歯科大学 | C104: 418 | D104: 74575000
B105: 電気通信大学 | C105: 406 | D105: 2740000
B106: 豊橋技術科学大学 | C106: 395 | D106: 7491000
B107: 関西大学 | C107: 392 | D107: 5519000
B108: 徳島大学 | C108: 385 | D108: 26218000
B109: 金沢大学 | C109: 360 | D109: 14331000
B110: 北里大学 | C110: 350 | D110: 47578000
B111: 香川大学 | C111: 343 | D111: 13987000
B112: 鳥取大学 | C112: 341 | D112: 5178000
B113: 新潟大学 | C113: 323 | D113: 11052000
B114: 富山大学 | C114: 319 | D114: 21312000
B115: 埼玉大学 | C115: 314 | D115: 2129000
B116: 同志社大学 | C116: 310 | D116: 26699000
B117: 日本大学 | C117: 306 | D117: 50528000
B118: 高知大学 | C118: 296 | D118: 22439000
B119: 立命館大学 | C119: 283 | D119: 5079000
B120: 自然科学研究機構 | C120: 278 | D120: 23513000
B121: 弘前大学 | C121: 261 | D121: 6272000
B122: 岐阜大学 | C122: 260 | D122: 9851000
B123: 宮崎大学 | C123: 257 | D123: 2044000
B124: 神奈川大学 | C124: 254 | D124: 4373000
B125: 兵庫県立大学 | C125: 248 | D125: 37000
B126: 秋田大学 | C126: 242 | D126: 245000
B127: 佐賀大学 | C127: 239 | D127: 6705000
B128: 福井大学 | C128: 239 | D128: 3402000
B129: 東海大学 | C129: 238 | D129: 771000
B130: 山形大学 | C130: 237 | D130: 3491000
B131: 横浜市立大学 | C131: 234 | D131: 25613000
B132: 札幌医科大学 | C132: 229 | D132: 28223000
B133: 京都工芸繊維大学 | C133: 224 | D133: 2740000
B134: 名城大学 | C134: 224 | D134: 475000
B135: 千葉工業大学 | C135: 210 | D135: 22544000
B136: 情報・システム研究機構 | C136: 208 | D136: 5139000
B137: 長崎大学 | C137: 201 | D137: 14882000
B138: 東京海洋大学 | C138: 194 | D138: 2761000
B139: 愛媛大学 | C139: 188 | D139: 18823000
B140: 東京女子医科大学 | C140: 188 | D140: 2124000
B141: 岩手大学 | C141: 188 | D141: 1268000
B142: 北陸先端科学技術大学院大学 | C142: 182 | D142: 7446000
B143: 福岡大学 | C143: 178 | D143: 1047000
B144: 沖縄科学技術大学院大学 | C144: 173 | D144: 1100000
B145: 高知工科大学 | C145: 169 | D145: 45000
B146: 宇都宮大学 | C146: 168 | D146: 7200000
B147: 茨城大学 | C147: 167 | D147: 1237000
B148: 金沢工業大学 | C148: 151 | D148: 3018000
B149: 中央大学 | C149: 151 | D149: 2106000
B150: 大分大学 | C150: 148 | D150: 1748000
B151: 京都府立医科大学 | C151: 147 | D151: 11367000
B152: 関西学院大学 | C152: 146 | D152: 16773000
B153: 滋賀医科大学 | C153: 141 | D153: 5086000
B154: 自治医科大学 | C154: 140 | D154: 10251000
B155: 島根大学 | C155: 140 | D155: 1478000
B156: 上智大学 | C156: 140 | D156: 200000
B157: 浜松医科大学 | C157: 135 | D157: 3613000
B158: 高エネルギー加速器研究機構 | C158: 135 | D158: 712000
B159: 順天堂大学 | C159: 132 | D159: 5278000
B160: 中部大学 | C160: 122 | D160: 1378000
B161: 名古屋市立大学 | C161: 114 | D161: 38831000
B162: 久留米大学 | C162: 112 | D162: 902000
B163: 豊田工業大学 | C163: 109 | D163: 0
B164: 芝浦工業大学 | C164: 103 | D164: 1238000
B165: 東京電機大学 | C165: 102 | D165: 3875000
B166: 埼玉医科大学 | C166: 99 | D166: 8849000
B167: 関東学院大学 | C167: 97 | D167: 9990000
B168: 琉球大学 | C168: 92 | D168: 1146000
B169: 明治大学 | C169: 91 | D169: 4260000
B170: 北見工業大学 | C170: 91 | D170: 753000
B171: 和歌山大学 | C171: 88 | D171: 3592000
B172: 富山県立大学 | C172: 86 | D172: 1957000
B173: 静岡県立大学 | C173: 84 | D173: 1231000
B174: 神奈川工科大学 | C174: 83 | D174: 289000
B175: 藤田医科大学 | C175: 80 | D175: 0
B176: 福岡工業大学 | C176: 69 | D176: 0
B177: 早稲田大学 | C177: 66 | D177: 19945000
B178: 福島大学 | C178: 65 | D178: 217000
B179: 帝京大学 | C179: 62 | D179: 2716000
B180: 岡山理科大学 | C180: 59 | D180: 1200000
B181: 日本医科大学 | C181: 58 | D181: 7708000
B182: 奈良県立医科大学 | C182: 58 | D182: 1283000
B183: 旭川医科大学 | C183: 58 | D183: 700000
B184: 帯広畜産大学 | C184: 57 | D184: 524000
B185: 兵庫医科大学 | C185: 56 | D185: 5620000
B186: 室蘭工業大学 | C186: 55 | D186: 1000
B187: 秋田県立大学 | C187: 54 | D187: 2624000
B188: 東洋大学 | C188: 53 | D188: 2185000
B189: 立教大学 | C189: 53 | D189: 8000
B190: 聖マリアンナ医科大学 | C190: 50 | D190: 109000
B191: 法政大学 | C191: 49 | D191: 874000
B192: お茶の水女子大学 | C192: 49 | D192: 5000
B193: 会津大学 | C193: 48 | D193: 132000
B194: 玉川大学 | C194: 48 | D194: 125000
B195: 関西医科大学 | C195: 47 | D195: 3568000
B196: 甲南大学 | C196: 45 | D196: 1103000
B197: 大阪工業大学 | C197: 44 | D197: 0
B198: 龍谷大学 | C198: 43 | D198: 168000
B199: 広島市立大学 | C199: 43 | D199: 0
B200: 産業医科大学 | C200: 42 | D200: 1006000
B201: 工学院大学 | C201: 41 | D201: 1396000
B202: 北九州市立大学 | C202: 37 | D202: 5488000
B203: 東京農業大学 | C203: 37 | D203: 473000
B204: 鈴鹿工業高等専門学校 | C204: 34 | D204: 74000
B205: 青山学院大学 | C205: 34 | D205: 0
B206: 昭和大学 | C206: 31 | D206: 10595000
B207: 香川高等専門学校 | C207: 31 | D207: 1599000
B208: 麻布大学 | C208: 31 | D208: 797000
B209: 県立広島大学 | C209: 31 | D209: 11000
... 904 more rows

Sheet 宇都宮大学 (hidden)
A1: 国立 | C1: 宇都宮大学（栃木県） | X1: 大学全体の経営理念における産学官連携活動の取組方針 | CB1: 80 | CC1: 81 | CD1: 82 | CE1: 83 | CF1: 84 | CG1: 85 | CH1: 86 | CI1: 87 | CJ1: 88 | CK1: 89 | CL1: 90 | CM1: 91 | CN1: 92 | CO1: 93 | CP1: 94 | CQ1: 95 | CR1: 96 | CS1: 97 | CT1: 98 | CU1: 99 | CV1: 100 | CW1: 101 | CX1: 102 | CY1: 103 | CZ1: 104 | DA1: 105 | DB1: 106 | DC1: 107 | DD1: 108 | DE1: 109 | DF1: 110 | DG1: 111 | DH1: 112 | DI1: 113 | DJ1: 114 | DK1: 115 | DL1: 116 | DM1: 117 | DN1: 118 | DO1: 119 | DP1: 120 | DQ1: 121 | DR1: 122 | DS1: 123 | DT1: 124 | DU1: 125 | DV1: 126 | DW1: 127 | DX1: 128 | DY1: 129
X2: 研究シーズを産業に結び付けるための競争的資金獲得の支援、地域企業ニーズを本学教員と結び付け共同研究に繋げる支援も行います。産学連携の基盤となる知的財産の管理と出願を支援します。本学が地域産業に貢献するために、産学官金連携の前段階となる交流を支援します。加えて、教員の研究活動、共同研究を研究設備と研究開発スペースの提供により支援します。
BB3: ＵＲＡ | BO3: URA当たり研究者数 | CA3: 戦略的産学連携経費
BC4: 実務担当者数 | BI4: 3 | BN4: 名 | BO4: =IF(OR(K25="",BI4=""),"",(IFERROR(K25/BI4,""))) -> 131.3333333 | BX4: 名 | CB4: 戦略的産学連携経費の設定 | CP4: 有 | CT4: 無 | CZ4: ある | DA4: インキュベーション施設
A5: 1 | B5: 2 | C5: 3 | D5: 4 | E5: 5 | F5: 6 | G5: 7 | H5: 8 | I5: 9 | J5: 10 | K5: 11 | L5: 12 | M5: 13 | N5: 14 | O5: 15 | P5: 16 | Q5: 17 | R5: 18 | S5: 19 | T5: 20 | U5: 21 | V5: 22 | W5: 23 | X5: 24 | Y5: 25 | Z5: 26 | AA5: 27 | AB5: 28 | AC5: 29 | AD5: 30 | AE5: 31 | AF5: 32 | AG5: 33 | AH5: 34 | AI5: 35 | AJ5: 36 | AK5: 37 | AL5: 38 | AM5: 39 | AN5: 40 | AO5: 41 | AP5: 42 | AQ5: 43 | AR5: 44 | AS5: 45 | AT5: 46 | AU5: 47 | AV5: 48 | AW5: 49 | AX5: 50 | AY5: 51 | AZ5: 52 | BA5: 53 | BB5: 54 | BC5: 55 | BD5: 56 | BE5: 57 | BF5: 58 | BG5: 59 | BH5: 60 | BI5: 61 | BJ5: 62 | BK5: 63 | BL5: 64 | BM5: 65 | BN5: 66 | BO5: 67 | BP5: 68 | BQ5: 69 | BR5: 70 | BS5: 71 | BT5: 72 | BU5: 73 | BV5: 74 | BW5: 75 | BX5: 76 | BY5: 77 | BZ5: 78 | CA5: 79 | CB5: 戦略的産学連携経費の費目 | CP5: 戦略の産学連携経費 | CZ5: ある | DA5: 相談窓口
A6: 基 礎 情 報 | BB6: 各種規程類の整備状況 | CB6: 戦略的産学連携経費の直接経費に対する割合 | CZ6: ある | DA6: 設立ポリシー | DI6: ◎ | DJ6: 産学連携ポリシー
BB7: 産学連携ポリシー | BM7: 職務発明規程（教職員のみ対象） | CZ7: ない | DA7: 支援ファンド | DI7: ◎ | DJ7: 知的財産ポリシー
B8: 大学の得意分野とその具体例 | BB8: 知的財産ポリシー | BM8: 職務発明規程（教職員、学生対象） | CA8: 人件費の企業負担 | DI8: ◎ | DJ8: 共同研究取扱規程
B9: ○国際的ネットワークを有し、世界的な拠点ともなっている光工学分野 ○農工融合によるスマート農業用ロボティクス分野 ○レーザー制御技術、自走、マニュピュレータ技術 | AA9: 科研費 （千円） | AL9: その他政府系資金 (千円) | AS9: その他団体からの資金 (千円) | BB9: 共同研究取扱規程 | BM9: 発明補償関係規程（教職員のみ対象） | CB9: 教員人件費の企業負担に関する規程や制度 | CP9: 有 | CT9: 無 | DI9: ◎ | DJ9: 受託研究取扱規程
BB10: 受託研究取扱規程 | BM10: 発明補償関係規程（教職員、学生対象） | CB10: 教員人件費の企業負担の費目 | DI10: ◎ | DJ10: 研究成果有体物取扱規程
AA11: 374060 | AL11: 134035 | AS11: 0 | BB11: 研究成果有体物取扱規程 | BM11: 守秘義務に係る規程（教職員のみ対象） | CB11: 学生人件費の企業負担に関する規程や制度 | CP11: 有 | CT11: 無 | DI11: × | DJ11: 営業秘密管理に関する規程
BB12: 営業秘密管理に関する規程 | BM12: 守秘義務に係る規程（教職員、学生対象） | CB12: 学生人件費の企業負担の費目 | DI12: ◎ | DJ12: 株式の取扱等規程、ポリシー
AA13: 間接経費割合 | AN13: 株式の保有 | AT13: 新株予約権の保有 | BB13: 株式の取扱等規程、ポリシー | DB13: 株式 | DI13: × | DJ13: 職務発明規程（教職員のみ対象）
AA14: 0.3 | AN14: 有 | AQ14: 無 | AT14: 有 | AW14: 無 | BD14: ※各種規定類を整備している場合は、赤色で表示されます。 | CA14: 特別試験研究費税額控除制度 | DB14: 新株予約権 | DI14: ◎ | DJ14: 職務発明規程（教職員、学生対象）
B15: 産学官連携活動において今後重点化したい事項 | CB15: 特別試験研究費税額控除制度の活用 | CP15: 有 | CT15: 無 | DI15: × | DJ15: 発明補償関係規程（教職員のみ対象）
B16: ○地域企業や団体・機関と包括的に連携する産学官金連携および県をまたぐ広域的な産学官連携。 ○分野を横断する融合的な産業創出と地域への還元。 ○地域産業活性の資するベンチャー企業の創生ならびに育成。 | AA16: ■共同研究 | AG16: 2020年度 | AO16: 2021年度 | AW16: 順位※ | BB16: クロスアポイントメントの実績（人） | BK16: 大学等 | BN16: 公的機関 | BQ16: 民間企業 | BU16: その他機関 | DI16: ◎ | DJ16: 発明補償関係規程（教職員、学生対象）
AG17: 受入額（千円） | AL17: 件数 | AO17: 受入額（千円） | AT17: 件数 | BH17: 受入 | BK17: 1 | BN17: 0 | BQ17: 0 | BU17: 0 | DB17: 順位 | DI17: × | DJ17: 守秘義務に係る規程（教職員のみ対象）
AA18: 全体 | AG18: 162192 | AL18: 171 | AO18: 188682 | AT18: 166 | AW18: =IF(DB18<50,DB18,"") ->  | AY18: 位 | BH18: 派遣 | BK18: 0 | BN18: 0 | BQ18: 0 | BU18: 0 | DB18: 71 | DI18: ◎ | DJ18: 守秘義務に係る規程（教職員、学生対象）
AB19: 民間企業 のみ | AG19: 147625 | AL19: 148 | AO19: 171516 | AT19: 142 | AW19: =IF(DB19<50,DB19,"") ->  | AY19: 位 | DB19: 71
AC20: 大企業 | AG20: 81435 | AL20: 71 | AO20: 102118 | AT20: 75 | AW20: =IF(DB20<50,DB20,"") ->  | AY20: 位 | DB20: 79 | DI20: ある | DJ20: 戦略的産学連携経費の設定
AC21: 中小企業 | AG21: 64390 | AL21: 75 | AO21: 69398 | AT21: 67 | AW21: =IF(DB21<50,DB21,"") -> 48 | AY21: 位 | BB21: ■組織的産学連携活動の取組事例 | DB21: 48 | DI21: ない | DJ21: 教員人件費の企業負担に関する規程や制度
AL22: ※順位は2021年度の受入額を比較したもの | DI22: ない | DJ22: 学生人件費の企業負担に関する規程や制度
B23: 産学官連携本部等組織名 | K23: イノベーション支援センター | DB23: 0 | DC23: 39 | DI23: ある | DJ23: 特別試験研究費税額控除制度の活用
B24: 産学官連携本部等URL | K24: https://www.sic.utsunomiya-u.ac.jp/innov | DB24: ～100万 | DC24: 34
B25: 研究者数 | K25: 394 | O25: 名 | DB25: ～300万 | DC25: 56
DB26: ～500万 | DC26: 9
DB27: ～1000万 | DC27: 3
DB28: ～5000万 | DC28: 1
DB29: ～1億 | DC29: 0 | DJ29: 共同研究等の企画・提案
B30: 産学連携担当部署 | O30: 実務者当たり研究者数 | DB30: 1億以上 | DC30: 0 | DJ30: 契約書での成果目標、達成時の明記
C31: 実務担当者数 | I31: 15 | N31: 名 | O31: =IF(OR(K25="",I31=""),"",IFERROR($K$25/I31,"")) -> 26.26666667 | X31: 名 | DJ31: 共同研究契約の締結/判断（契約権限の集中）
C32: 専門家の配置 | I32: 弁護士 | L32: 弁理士 | O32: 税理士 | R32: 公認会計士 | V32: その他 | DJ32: 共同研究の進捗管理とフィードバック
I33: ※専門家を配置している場合は、赤色で表示されます。 | DJ33: 企業ニーズに適応した技術移転・事業化提案
AA34: ■受託研究 | AG34: 2020年度 | AO34: 2021年度 | AW34: 順位※ | DJ34: 共同研究等の企画・提案
AG35: 受入額（千円） | AL35: 件数（件） | AO35: 受入額（千円） | AT35: 件数（件） | DB35: 順位 | DJ35: 契約書での成果目標、達成時の明記
AA36: 全体 | AG36: 266353 | AL36: 56 | AO36: 357650 | AT36: 69 | AW36: =IF(DB36<50,DB36,"") ->  | AY36: 位 | DB36: 91 | DJ36: 共同研究契約の締結/判断（契約権限の集中）
AB37: 民間企業 のみ | AG37: 26496 | AL37: 13 | AO37: 39771 | AT37: 17 | AW37: =IF(DB37<50,DB37,"") ->  | AY37: 位 | DB37: 78 | DJ37: 共同研究の進捗管理とフィードバック
C38: 産学連携本部が関与した共同研究 | P38: 0 | T38: 件 | AC38: 大企業 | AG38: 26396 | AL38: 10 | AO38: 36377 | AT38: 10 | AW38: =IF(DB38<50,DB38,"") ->  | AY38: 位 | DB38: 63 | DJ38: 企業ニーズに適応した技術移転・事業化提案
D39: 内、マッチングを行い、契約締結した件数 | P39: 0 | T39: 件 | AC39: 中小企業 | AG39: 100 | AL39: 3 | AO39: 3394 | AT39: 7 | AW39: =IF(DB39<50,DB39,"") ->  | AY39: 位 | BB39: ■産学連携活動の主な実用化事例 | DB39: 126 | DJ39: 共同研究等の企画・提案
I40: ※1,000万円以上の共同研究 | AL40: ※順位は2021年度の受入額を比較したもの | DB40: 弁護士 | DG40: 0 | DH40: 3 | DJ40: 契約書での成果目標、達成時の明記
DB41: 弁理士 | DG41: ～100万 | DH41: 8 | DJ41: 共同研究契約の締結/判断（契約権限の集中）
C42: 組織対組織による包括連携契約の締結数 | P42: 0 | T42: 件 | DB42: 税理士 | DG42: ～300万 | DH42: 5 | DJ42: 共同研究の進捗管理とフィードバック
D43: 内、1,000万円以上の実績がある相手方数 | P43: 0 | T43: 件 | DB43: 公認会計士 | DG43: ～500万 | DH43: 0 | DJ43: 企業ニーズに適応した技術移転・事業化提案
DB44: その他 | DG44: ～1000万 | DH44: 0
C45: 寄附講座・寄附研究部門の受入件数 | P45: 0 | V45: 件 | DG45: ～5000万 | DH45: 1
C46: 寄附講座・寄附研究部門の受入金額（千円） | P46: 0 | DG46: ～1億 | DH46: 0
C47: 共同研究講座・共同研究部門の受入件数 | P47: 0 | V47: 件 | DG47: 1億以上 | DH47: 0
C48: 共同研究講座・共同研究部門の受入金額（千円） | P48: 0
C52: 職務発明の帰属 | I52: 大学 | M52: 発明者 | Q52: 未設定 | CZ52: 大学 | DA52: 職務発明
AD53: 特許権実施等件数 | AL53: 22 | AQ53: 件 | AS53: 実施等件数 あたり | DA53: 不実施
M54: 研究者あたり | AD54: 特許権実施等収入（千円） | AL54: 7200 | AS54: =IF(OR(AL53="",AL54=""),"",IFERROR(AL54/AL53,"")) -> 327.2727273 | CZ54: 7200000 | DA54: 特許等収入
C55: 特許出願件数（件） | I55: 16 | M55: =IF(OR(K25="",I55=""),"",IFERROR(I55/K25,"")) -> 0.04060913706
C56: 特許保有件数（件） | I56: 168 | M56: =IF(OR(K25="",I56=""),"",IFERROR(I56/K25,"")) -> 0.4263959391
C61: 大学発ベンチャー数 | J61: 7 | O61: 社
C62: Exit件数（IPO） | J62: 0 | O62: 社 | P62: Exit件数（M&A） | W62: 0 | Z62: 社
C63: 相談窓口 | K63: 支援ファンド | S63: インキュベーション施設
C64: 有 | G64: 無 | K64: 有 | O64: 無 | S64: 有 | W64: 無
C65: 知的財産戦略方針 | K65: 支援総額（千円） | S65: 面積 | W65: 151 | Z65: 平方メートル
C66: 有 | G66: 無 | S66: 契約企業数 | W66: 3 | Z66: 社
A69: 1 | B69: 2 | C69: 3 | D69: 4 | E69: 5 | F69: 6 | G69: 7 | H69: 8 | I69: 9 | J69: 10 | K69: 11 | L69: 12 | M69: 13 | N69: 14 | O69: 15 | P69: 16 | Q69: 17 | R69: 18 | S69: 19 | T69: 20 | U69: 21 | V69: 22 | W69: 23 | X69: 24 | Y69: 25 | Z69: 26 | AA69: 27 | AB69: 28 | AC69: 29 | AD69: 30 | AE69: 31 | AF69: 32 | AG69: 33 | AH69: 34 | AI69: 35 | AJ69: 36 | AK69: 37 | AL69: 38 | AM69: 39 | AN69: 40 | AO69: 41 | AP69: 42 | AQ69: 43 | AR69: 44 | AS69: 45 | AT69: 46 | AU69: 47 | AV69: 48 | AW69: 49 | AX69: 50 | AY69: 51 | AZ69: 52 | BA69: 53 | BB69: 54 | BC69: 55 | BD69: 56 | BE69: 57 | BF69: 58 | BG69: 59 | BH69: 60 | BI69: 61 | BJ69: 62 | BK69: 63 | BL69: 64 | BM69: 65 | BN69: 66 | BO69: 67 | BP69: 68 | BQ69: 69 | BR69: 70 | BS69: 71 | BT69: 72 | BU69: 73 | BV69: 74 | BW69: 75 | BX69: 76 | BY69: 77 | BZ69: 78 | CA69: 79 | CB69: 80 | CC69: 81 | CD69: 82 | CE69: 83 | CF69: 84 | CG69: 85 | CH69: 86 | CI69: 87 | CJ69: 88 | CK69: 89 | CL69: 90 | CM69: 91 | CN69: 92 | CO69: 93 | CP69: 94 | CQ69: 95 | CR69: 96 | CS69: 97 | CT69: 98 | CU69: 99 | CV69: 100 | CW69: 101 | CX69: 102 | CY69: 103 | CZ69: 104 | DA69: 105 | DB69: 106 | DC69: 107 | DD69: 108 | DE69: 109 | DF69: 110 | DG69: 111 | DH69: 112 | DI69: 113 | DJ69: 114 | DK69: 115 | DL69: 116 | DM69: 117 | DN69: 118 | DO69: 119 | DP69: 120 | DQ69: 121 | DR69: 122 | DS69: 123 | DT69: 124 | DU69: 125
D70: 特許権収入
B71: 東京大学 | C71: 4744 | D71: 557703000
B72: 東北大学 | C72: 3726 | D72: 275164000
B73: 大阪大学 | C73: 3253 | D73: 395417000
B74: 京都大学 | C74: 3217 | D74: 886135000
B75: 東京工業大学 | C75: 2019 | D75: 42504000
B76: 九州大学 | C76: 1733 | D76: 142436000
B77: 名古屋大学 | C77: 1496 | D77: 72276000
B78: 北海道大学 | C78: 1219 | D78: 115470000
B79: 信州大学 | C79: 1047 | D79: 32411000
B80: 広島大学 | C80: 1019 | D80: 44418000
B81: 筑波大学 | C81: 892 | D81: 27835000
B82: 慶應義塾大学 | C82: 856 | D82: 58283000
B83: 千葉大学 | C83: 851 | D83: 9761000
B84: 岡山大学 | C84: 739 | D84: 21802000
B85: 山口大学 | C85: 711 | D85: 26145000
B86: 東京農工大学 | C86: 667 | D86: 10063000
B87: 名古屋工業大学 | C87: 660 | D87: 23496000
B88: 東京理科大学 | C88: 629 | D88: 11695000
B89: 九州工業大学 | C89: 607 | D89: 5845000
B90: 神戸大学 | C90: 581 | D90: 104449000
B91: 熊本大学 | C91: 543 | D91: 19748000
B92: 群馬大学 | C92: 536 | D92: 3598000
B93: 静岡大学 | C93: 523 | D93: 2662000
B94: 横浜国立大学 | C94: 509 | D94: 4920000
B95: 大阪公立大学（大阪府立大学） | C95: 502 | D95: 8255000
B96: 近畿大学 | C96: 488 | D96: 26794000
B97: 鹿児島大学 | C97: 458 | D97: 8269000
B98: 長岡技術科学大学 | C98: 440 | D98: 2979000
B99: 奈良先端科学技術大学院大学 | C99: 435 | D99: 3758000
B100: 東京都立大学 | C100: 435 | D100: 1170000
B101: 山梨大学 | C101: 426 | D101: 28912000
B102: 大阪公立大学（大阪市立大学） | C102: 423 | D102: 3124000
B103: 三重大学 | C103: 422 | D103: 20215000
B104: 東京医科歯科大学 | C104: 418 | D104: 74575000
B105: 電気通信大学 | C105: 406 | D105: 2740000
B106: 豊橋技術科学大学 | C106: 395 | D106: 7491000
B107: 関西大学 | C107: 392 | D107: 5519000
B108: 徳島大学 | C108: 385 | D108: 26218000
B109: 金沢大学 | C109: 360 | D109: 14331000
B110: 北里大学 | C110: 350 | D110: 47578000
B111: 香川大学 | C111: 343 | D111: 13987000
B112: 鳥取大学 | C112: 341 | D112: 5178000
B113: 新潟大学 | C113: 323 | D113: 11052000
B114: 富山大学 | C114: 319 | D114: 21312000
B115: 埼玉大学 | C115: 314 | D115: 2129000
B116: 同志社大学 | C116: 310 | D116: 26699000
B117: 日本大学 | C117: 306 | D117: 50528000
B118: 高知大学 | C118: 296 | D118: 22439000
B119: 立命館大学 | C119: 283 | D119: 5079000
B120: 自然科学研究機構 | C120: 278 | D120: 23513000
B121: 弘前大学 | C121: 261 | D121: 6272000
B122: 岐阜大学 | C122: 260 | D122: 9851000
B123: 宮崎大学 | C123: 257 | D123: 2044000
B124: 神奈川大学 | C124: 254 | D124: 4373000
B125: 兵庫県立大学 | C125: 248 | D125: 37000
B126: 秋田大学 | C126: 242 | D126: 245000
B127: 佐賀大学 | C127: 239 | D127: 6705000
B128: 福井大学 | C128: 239 | D128: 3402000
B129: 東海大学 | C129: 238 | D129: 771000
B130: 山形大学 | C130: 237 | D130: 3491000
B131: 横浜市立大学 | C131: 234 | D131: 25613000
B132: 札幌医科大学 | C132: 229 | D132: 28223000
B133: 京都工芸繊維大学 | C133: 224 | D133: 2740000
B134: 名城大学 | C134: 224 | D134: 475000
B135: 千葉工業大学 | C135: 210 | D135: 22544000
B136: 情報・システム研究機構 | C136: 208 | D136: 5139000
B137: 長崎大学 | C137: 201 | D137: 14882000
B138: 東京海洋大学 | C138: 194 | D138: 2761000
B139: 愛媛大学 | C139: 188 | D139: 18823000
B140: 東京女子医科大学 | C140: 188 | D140: 2124000
B141: 岩手大学 | C141: 188 | D141: 1268000
B142: 北陸先端科学技術大学院大学 | C142: 182 | D142: 7446000
B143: 福岡大学 | C143: 178 | D143: 1047000
B144: 沖縄科学技術大学院大学 | C144: 173 | D144: 1100000
B145: 高知工科大学 | C145: 169 | D145: 45000
B146: 宇都宮大学 | C146: 168 | D146: 7200000
B147: 茨城大学 | C147: 167 | D147: 1237000
B148: 金沢工業大学 | C148: 151 | D148: 3018000
B149: 中央大学 | C149: 151 | D149: 2106000
B150: 大分大学 | C150: 148 | D150: 1748000
B151: 京都府立医科大学 | C151: 147 | D151: 11367000
B152: 関西学院大学 | C152: 146 | D152: 16773000
B153: 滋賀医科大学 | C153: 141 | D153: 5086000
B154: 自治医科大学 | C154: 140 | D154: 10251000
B155: 島根大学 | C155: 140 | D155: 1478000
B156: 上智大学 | C156: 140 | D156: 200000
B157: 浜松医科大学 | C157: 135 | D157: 3613000
B158: 高エネルギー加速器研究機構 | C158: 135 | D158: 712000
B159: 順天堂大学 | C159: 132 | D159: 5278000
B160: 中部大学 | C160: 122 | D160: 1378000
B161: 名古屋市立大学 | C161: 114 | D161: 38831000
B162: 久留米大学 | C162: 112 | D162: 902000
B163: 豊田工業大学 | C163: 109 | D163: 0
B164: 芝浦工業大学 | C164: 103 | D164: 1238000
B165: 東京電機大学 | C165: 102 | D165: 3875000
B166: 埼玉医科大学 | C166: 99 | D166: 8849000
B167: 関東学院大学 | C167: 97 | D167: 9990000
B168: 琉球大学 | C168: 92 | D168: 1146000
B169: 明治大学 | C169: 91 | D169: 4260000
B170: 北見工業大学 | C170: 91 | D170: 753000
B171: 和歌山大学 | C171: 88 | D171: 3592000
B172: 富山県立大学 | C172: 86 | D172: 1957000
B173: 静岡県立大学 | C173: 84 | D173: 1231000
B174: 神奈川工科大学 | C174: 83 | D174: 289000
B175: 藤田医科大学 | C175: 80 | D175: 0
B176: 福岡工業大学 | C176: 69 | D176: 0
B177: 早稲田大学 | C177: 66 | D177: 19945000
B178: 福島大学 | C178: 65 | D178: 217000
B179: 帝京大学 | C179: 62 | D179: 2716000
B180: 岡山理科大学 | C180: 59 | D180: 1200000
B181: 日本医科大学 | C181: 58 | D181: 7708000
B182: 奈良県立医科大学 | C182: 58 | D182: 1283000
B183: 旭川医科大学 | C183: 58 | D183: 700000
B184: 帯広畜産大学 | C184: 57 | D184: 524000
B185: 兵庫医科大学 | C185: 56 | D185: 5620000
B186: 室蘭工業大学 | C186: 55 | D186: 1000
B187: 秋田県立大学 | C187: 54 | D187: 2624000
B188: 東洋大学 | C188: 53 | D188: 2185000
B189: 立教大学 | C189: 53 | D189: 8000
B190: 聖マリアンナ医科大学 | C190: 50 | D190: 109000
B191: 法政大学 | C191: 49 | D191: 874000
B192: お茶の水女子大学 | C192: 49 | D192: 5000
B193: 会津大学 | C193: 48 | D193: 132000
B194: 玉川大学 | C194: 48 | D194: 125000
B195: 関西医科大学 | C195: 47 | D195: 3568000
B196: 甲南大学 | C196: 45 | D196: 1103000
B197: 大阪工業大学 | C197: 44 | D197: 0
B198: 龍谷大学 | C198: 43 | D198: 168000
B199: 広島市立大学 | C199: 43 | D199: 0
B200: 産業医科大学 | C200: 42 | D200: 1006000
B201: 工学院大学 | C201: 41 | D201: 1396000
B202: 北九州市立大学 | C202: 37 | D202: 5488000
B203: 東京農業大学 | C203: 37 | D203: 473000
B204: 鈴鹿工業高等専門学校 | C204: 34 | D204: 74000
B205: 青山学院大学 | C205: 34 | D205: 0
B206: 昭和大学 | C206: 31 | D206: 10595000
B207: 香川高等専門学校 | C207: 31 | D207: 1599000
B208: 麻布大学 | C208: 31 | D208: 797000
B209: 県立広島大学 | C209: 31 | D209: 11000
... 904 more rows

Sheet 愛媛大学 (hidden)
A1: 国立 | C1: 愛媛大学（愛媛県） | X1: 大学全体の経営理念における産学官連携活動の取組方針 | CB1: 80 | CC1: 81 | CD1: 82 | CE1: 83 | CF1: 84 | CG1: 85 | CH1: 86 | CI1: 87 | CJ1: 88 | CK1: 89 | CL1: 90 | CM1: 91 | CN1: 92 | CO1: 93 | CP1: 94 | CQ1: 95 | CR1: 96 | CS1: 97 | CT1: 98 | CU1: 99 | CV1: 100 | CW1: 101 | CX1: 102 | CY1: 103 | CZ1: 104 | DA1: 105 | DB1: 106 | DC1: 107 | DD1: 108 | DE1: 109 | DF1: 110 | DG1: 111 | DH1: 112 | DI1: 113 | DJ1: 114 | DK1: 115 | DL1: 116 | DM1: 117 | DN1: 118 | DO1: 119 | DP1: 120 | DQ1: 121 | DR1: 122 | DS1: 123 | DT1: 124 | DU1: 125 | DV1: 126 | DW1: 127 | DX1: 128 | DY1: 129
X2: 県内企業との連携を重要視し、地域密着型センターを中心に地域ニーズとのマッチングを図るなど、地元企業との共同研究等を推進してきた。順調に共同研究件数や受入額は増加したが、さらなる拡大を目指し共同研究の大型化のための仕組み作りを検討している。
BB3: ＵＲＡ | BO3: URA当たり研究者数 | CA3: 戦略的産学連携経費
BC4: 実務担当者数 | BI4: 3 | BN4: 名 | BO4: =IF(OR(K25="",BI4=""),"",(IFERROR(K25/BI4,""))) -> 353.6666667 | BX4: 名 | CB4: 戦略的産学連携経費の設定 | CP4: 有 | CT4: 無 | CZ4: ある | DA4: インキュベーション施設
A5: 1 | B5: 2 | C5: 3 | D5: 4 | E5: 5 | F5: 6 | G5: 7 | H5: 8 | I5: 9 | J5: 10 | K5: 11 | L5: 12 | M5: 13 | N5: 14 | O5: 15 | P5: 16 | Q5: 17 | R5: 18 | S5: 19 | T5: 20 | U5: 21 | V5: 22 | W5: 23 | X5: 24 | Y5: 25 | Z5: 26 | AA5: 27 | AB5: 28 | AC5: 29 | AD5: 30 | AE5: 31 | AF5: 32 | AG5: 33 | AH5: 34 | AI5: 35 | AJ5: 36 | AK5: 37 | AL5: 38 | AM5: 39 | AN5: 40 | AO5: 41 | AP5: 42 | AQ5: 43 | AR5: 44 | AS5: 45 | AT5: 46 | AU5: 47 | AV5: 48 | AW5: 49 | AX5: 50 | AY5: 51 | AZ5: 52 | BA5: 53 | BB5: 54 | BC5: 55 | BD5: 56 | BE5: 57 | BF5: 58 | BG5: 59 | BH5: 60 | BI5: 61 | BJ5: 62 | BK5: 63 | BL5: 64 | BM5: 65 | BN5: 66 | BO5: 67 | BP5: 68 | BQ5: 69 | BR5: 70 | BS5: 71 | BT5: 72 | BU5: 73 | BV5: 74 | BW5: 75 | BX5: 76 | BY5: 77 | BZ5: 78 | CA5: 79 | CB5: 戦略的産学連携経費の費目 | CZ5: ある | DA5: 相談窓口
A6: 基 礎 情 報 | BB6: 各種規程類の整備状況 | CB6: 戦略的産学連携経費の直接経費に対する割合 | CZ6: ある | DA6: 設立ポリシー | DI6: × | DJ6: 産学連携ポリシー
BB7: 産学連携ポリシー | BM7: 職務発明規程（教職員のみ対象） | CZ7: ある | DA7: 支援ファンド | DI7: ◎ | DJ7: 知的財産ポリシー
B8: 大学の得意分野とその具体例 | BB8: 知的財産ポリシー | BM8: 職務発明規程（教職員、学生対象） | CA8: 人件費の企業負担 | DI8: ◎ | DJ8: 共同研究取扱規程
B9: 愛媛県宇和海の海面養殖業と関連する南予水産研究センターは公設試と連携して新規養殖魚種「スマ」を開発した。また紙産業クラスターが形成されている四国中央市に設置されている紙産業イノベーションセンターは、地元企業と連携してセルロースナノファイバーを開発し、その用途拡大の研究開発を進めている。 | AA9: 科研費 （千円） | AL9: その他政府系資金 (千円) | AS9: その他団体からの資金 (千円) | BB9: 共同研究取扱規程 | BM9: 発明補償関係規程（教職員のみ対象） | CB9: 教員人件費の企業負担に関する規程や制度 | CP9: 有 | CT9: 無 | DI9: ◎ | DJ9: 受託研究取扱規程
BB10: 受託研究取扱規程 | BM10: 発明補償関係規程（教職員、学生対象） | CB10: 教員人件費の企業負担の費目 | DI10: ◎ | DJ10: 研究成果有体物取扱規程
AA11: 1104368 | AL11: 625676 | AS11: 146199 | BB11: 研究成果有体物取扱規程 | BM11: 守秘義務に係る規程（教職員のみ対象） | CB11: 学生人件費の企業負担に関する規程や制度 | CP11: 有 | CT11: 無 | DI11: × | DJ11: 営業秘密管理に関する規程
BB12: 営業秘密管理に関する規程 | BM12: 守秘義務に係る規程（教職員、学生対象） | CB12: 学生人件費の企業負担の費目 | DI12: ◎ | DJ12: 株式の取扱等規程、ポリシー
AA13: 間接経費割合 | AN13: 株式の保有 | AT13: 新株予約権の保有 | BB13: 株式の取扱等規程、ポリシー | DA13: ○ | DB13: 株式 | DI13: × | DJ13: 職務発明規程（教職員のみ対象）
AA14: 0.3 | AN14: 有 | AQ14: 無 | AT14: 有 | AW14: 無 | BD14: ※各種規定類を整備している場合は、赤色で表示されます。 | CA14: 特別試験研究費税額控除制度 | DA14: ○ | DB14: 新株予約権 | DI14: ◎ | DJ14: 職務発明規程（教職員、学生対象）
B15: 産学官連携活動において今後重点化したい事項 | CB15: 特別試験研究費税額控除制度の活用 | CP15: 有 | CT15: 無 | DI15: × | DJ15: 発明補償関係規程（教職員のみ対象）
B16: 従来から取り組んでいる地域産業の活性化に加え、with/postコロナ及びカーボンニュートラル時代における地域の「まち・ひと・しごと」に貢献することを特に重要視し、医療、エネルギー、防災、文化・歴史などの領域において、本学が持つ知を地域社会に還元する産学官連携の取組を増加させる。 | AA16: ■共同研究 | AG16: 2020年度 | AO16: 2021年度 | AW16: 順位※ | BB16: クロスアポイントメントの実績（人） | BK16: 大学等 | BN16: 公的機関 | BQ16: 民間企業 | BU16: その他機関 | DI16: ◎ | DJ16: 発明補償関係規程（教職員、学生対象）
AG17: 受入額（千円） | AL17: 件数 | AO17: 受入額（千円） | AT17: 件数 | BH17: 受入 | BK17: 1 | BN17: 0 | BQ17: 13 | BU17: 2 | DB17: 順位 | DI17: × | DJ17: 守秘義務に係る規程（教職員のみ対象）
AA18: 全体 | AG18: 333093 | AL18: 299 | AO18: 353284 | AT18: 274 | AW18: =IF(DB18<50,DB18,"") -> 46 | AY18: 位 | BH18: 派遣 | BK18: 1 | BN18: 2 | BQ18: 0 | BU18: 0 | DB18: 46 | DI18: ◎ | DJ18: 守秘義務に係る規程（教職員、学生対象）
AB19: 民間企業 のみ | AG19: 194889 | AL19: 185 | AO19: 217671 | AT19: 178 | AW19: =IF(DB19<50,DB19,"") ->  | AY19: 位 | DB19: 57
AC20: 大企業 | AG20: 114107 | AL20: 92 | AO20: 151502 | AT20: 109 | AW20: =IF(DB20<50,DB20,"") ->  | AY20: 位 | DB20: 63 | DI20: ない | DJ20: 戦略的産学連携経費の設定
AC21: 中小企業 | AG21: 44749 | AL21: 74 | AO21: 66169 | AT21: 69 | AW21: =IF(DB21<50,DB21,"") -> 49 | AY21: 位 | BB21: ■組織的産学連携活動の取組事例 | DB21: 49 | DI21: ない | DJ21: 教員人件費の企業負担に関する規程や制度
AL22: ※順位は2021年度の受入額を比較したもの | DI22: ない | DJ22: 学生人件費の企業負担に関する規程や制度
B23: 産学官連携本部等組織名 | K23: 社会連携推進機構 | DB23: 0 | DC23: 54 | DI23: ある | DJ23: 特別試験研究費税額控除制度の活用
B24: 産学官連携本部等URL | K24: http://ccr.ehime-u.ac.jp/crp/ | DB24: ～100万 | DC24: 44
B25: 研究者数 | K25: 1061 | O25: 名 | DB25: ～300万 | DC25: 61
DB26: ～500万 | DC26: 9
DB27: ～1000万 | DC27: 8
DB28: ～5000万 | DC28: 2
DB29: ～1億 | DC29: 0 | DJ29: 共同研究等の企画・提案
B30: 産学連携担当部署 | O30: 実務者当たり研究者数 | DB30: 1億以上 | DC30: 0 | DJ30: 契約書での成果目標、達成時の明記
C31: 実務担当者数 | I31: 14 | N31: 名 | O31: =IF(OR(K25="",I31=""),"",IFERROR($K$25/I31,"")) -> 75.78571429 | X31: 名 | DJ31: 共同研究契約の締結/判断（契約権限の集中）
C32: 専門家の配置 | I32: 弁護士 | L32: 弁理士 | O32: 税理士 | R32: 公認会計士 | V32: その他 | DJ32: 共同研究の進捗管理とフィードバック
I33: ※専門家を配置している場合は、赤色で表示されます。 | DJ33: 企業ニーズに適応した技術移転・事業化提案
AA34: ■受託研究 | AG34: 2020年度 | AO34: 2021年度 | AW34: 順位※ | DJ34: 共同研究等の企画・提案
AG35: 受入額（千円） | AL35: 件数（件） | AO35: 受入額（千円） | AT35: 件数（件） | DB35: 順位 | DJ35: 契約書での成果目標、達成時の明記
AA36: 全体 | AG36: 771507 | AL36: 147 | AO36: 733378 | AT36: 207 | AW36: =IF(DB36<50,DB36,"") ->  | AY36: 位 | DB36: 54 | DJ36: 共同研究契約の締結/判断（契約権限の集中）
AB37: 民間企業 のみ | AG37: 48023 | AL37: 36 | AO37: 52413 | AT37: 57 | AW37: =IF(DB37<50,DB37,"") ->  | AY37: 位 | DB37: 63 | DJ37: 共同研究の進捗管理とフィードバック
C38: 産学連携本部が関与した共同研究 | P38: 0 | T38: 件 | AC38: 大企業 | AG38: 37171 | AL38: 18 | AO38: 39809 | AT38: 44 | AW38: =IF(DB38<50,DB38,"") ->  | AY38: 位 | DB38: 56 | DJ38: 企業ニーズに適応した技術移転・事業化提案
D39: 内、マッチングを行い、契約締結した件数 | P39: 0 | T39: 件 | AC39: 中小企業 | AG39: 9571 | AL39: 12 | AO39: 12604 | AT39: 13 | AW39: =IF(DB39<50,DB39,"") ->  | AY39: 位 | BB39: ■産学連携活動の主な実用化事例 | DB39: 52 | DJ39: 共同研究等の企画・提案
I40: ※1,000万円以上の共同研究 | AL40: ※順位は2021年度の受入額を比較したもの | DB40: 弁護士 | DG40: 0 | DH40: 26 | DJ40: 契約書での成果目標、達成時の明記
DA41: ○ | DB41: 弁理士 | DG41: ～100万 | DH41: 16 | DJ41: 共同研究契約の締結/判断（契約権限の集中）
C42: 組織対組織による包括連携契約の締結数 | P42: 0 | T42: 件 | DB42: 税理士 | DG42: ～300万 | DH42: 9 | DJ42: 共同研究の進捗管理とフィードバック
D43: 内、1,000万円以上の実績がある相手方数 | P43: 0 | T43: 件 | DB43: 公認会計士 | DG43: ～500万 | DH43: 3 | DJ43: 企業ニーズに適応した技術移転・事業化提案
DA44: ○ | DB44: その他 | DG44: ～1000万 | DH44: 3
C45: 寄附講座・寄附研究部門の受入件数 | P45: 30 | V45: 件 | DG45: ～5000万 | DH45: 0
C46: 寄附講座・寄附研究部門の受入金額（千円） | P46: 724042 | DG46: ～1億 | DH46: 0
C47: 共同研究講座・共同研究部門の受入件数 | P47: 0 | V47: 件 | DG47: 1億以上 | DH47: 0
C48: 共同研究講座・共同研究部門の受入金額（千円） | P48: 0
C52: 職務発明の帰属 | I52: 大学 | M52: 発明者 | Q52: 未設定 | CZ52: 大学 | DA52: 職務発明
AD53: 特許権実施等件数 | AL53: 48 | AQ53: 件 | AS53: 実施等件数 あたり | DA53: 不実施
M54: 研究者あたり | AD54: 特許権実施等収入（千円） | AL54: 18826 | AS54: =IF(OR(AL53="",AL54=""),"",IFERROR(AL54/AL53,"")) -> 392.2083333 | CZ54: 18826000 | DA54: 特許等収入
C55: 特許出願件数（件） | I55: 50 | M55: =IF(OR(K25="",I55=""),"",IFERROR(I55/K25,"")) -> 0.04712535344
C56: 特許保有件数（件） | I56: 188 | M56: =IF(OR(K25="",I56=""),"",IFERROR(I56/K25,"")) -> 0.1771913289
C61: 大学発ベンチャー数 | J61: 8 | O61: 社
C62: Exit件数（IPO） | J62: 0 | O62: 社 | P62: Exit件数（M&A） | W62: 0 | Z62: 社
C63: 相談窓口 | K63: 支援ファンド | S63: インキュベーション施設
C64: 有 | G64: 無 | K64: 有 | O64: 無 | S64: 有 | W64: 無
C65: 知的財産戦略方針 | K65: 支援総額（千円） | S65: 面積 | W65: 203 | Z65: 平方メートル
C66: 有 | G66: 無 | K66: 100000 | S66: 契約企業数 | W66: 3 | Z66: 社
A69: 1 | B69: 2 | C69: 3 | D69: 4 | E69: 5 | F69: 6 | G69: 7 | H69: 8 | I69: 9 | J69: 10 | K69: 11 | L69: 12 | M69: 13 | N69: 14 | O69: 15 | P69: 16 | Q69: 17 | R69: 18 | S69: 19 | T69: 20 | U69: 21 | V69: 22 | W69: 23 | X69: 24 | Y69: 25 | Z69: 26 | AA69: 27 | AB69: 28 | AC69: 29 | AD69: 30 | AE69: 31 | AF69: 32 | AG69: 33 | AH69: 34 | AI69: 35 | AJ69: 36 | AK69: 37 | AL69: 38 | AM69: 39 | AN69: 40 | AO69: 41 | AP69: 42 | AQ69: 43 | AR69: 44 | AS69: 45 | AT69: 46 | AU69: 47 | AV69: 48 | AW69: 49 | AX69: 50 | AY69: 51 | AZ69: 52 | BA69: 53 | BB69: 54 | BC69: 55 | BD69: 56 | BE69: 57 | BF69: 58 | BG69: 59 | BH69: 60 | BI69: 61 | BJ69: 62 | BK69: 63 | BL69: 64 | BM69: 65 | BN69: 66 | BO69: 67 | BP69: 68 | BQ69: 69 | BR69: 70 | BS69: 71 | BT69: 72 | BU69: 73 | BV69: 74 | BW69: 75 | BX69: 76 | BY69: 77 | BZ69: 78 | CA69: 79 | CB69: 80 | CC69: 81 | CD69: 82 | CE69: 83 | CF69: 84 | CG69: 85 | CH69: 86 | CI69: 87 | CJ69: 88 | CK69: 89 | CL69: 90 | CM69: 91 | CN69: 92 | CO69: 93 | CP69: 94 | CQ69: 95 | CR69: 96 | CS69: 97 | CT69: 98 | CU69: 99 | CV69: 100 | CW69: 101 | CX69: 102 | CY69: 103 | CZ69: 104 | DA69: 105 | DB69: 106 | DC69: 107 | DD69: 108 | DE69: 109 | DF69: 110 | DG69: 111 | DH69: 112 | DI69: 113 | DJ69: 114 | DK69: 115 | DL69: 116 | DM69: 117 | DN69: 118 | DO69: 119 | DP69: 120 | DQ69: 121 | DR69: 122 | DS69: 123 | DT69: 124 | DU69: 125
D70: 特許権収入
B71: 東京大学 | C71: 4744 | D71: 557703000
B72: 東北大学 | C72: 3726 | D72: 275164000
B73: 大阪大学 | C73: 3253 | D73: 395417000
B74: 京都大学 | C74: 3217 | D74: 886135000
B75: 東京工業大学 | C75: 2019 | D75: 42504000
B76: 九州大学 | C76: 1733 | D76: 142436000
B77: 名古屋大学 | C77: 1496 | D77: 72276000
B78: 北海道大学 | C78: 1219 | D78: 115470000
B79: 信州大学 | C79: 1047 | D79: 32411000
B80: 広島大学 | C80: 1019 | D80: 44418000
B81: 筑波大学 | C81: 892 | D81: 27835000
B82: 慶應義塾大学 | C82: 856 | D82: 58283000
B83: 千葉大学 | C83: 851 | D83: 9761000
B84: 岡山大学 | C84: 739 | D84: 21802000
B85: 山口大学 | C85: 711 | D85: 26145000
B86: 東京農工大学 | C86: 667 | D86: 10063000
B87: 名古屋工業大学 | C87: 660 | D87: 23496000
B88: 東京理科大学 | C88: 629 | D88: 11695000
B89: 九州工業大学 | C89: 607 | D89: 5845000
B90: 神戸大学 | C90: 581 | D90: 104449000
B91: 熊本大学 | C91: 543 | D91: 19748000
B92: 群馬大学 | C92: 536 | D92: 3598000
B93: 静岡大学 | C93: 523 | D93: 2662000
B94: 横浜国立大学 | C94: 509 | D94: 4920000
B95: 大阪公立大学（大阪府立大学） | C95: 502 | D95: 8255000
B96: 近畿大学 | C96: 488 | D96: 26794000
B97: 鹿児島大学 | C97: 458 | D97: 8269000
B98: 長岡技術科学大学 | C98: 440 | D98: 2979000
B99: 奈良先端科学技術大学院大学 | C99: 435 | D99: 3758000
B100: 東京都立大学 | C100: 435 | D100: 1170000
B101: 山梨大学 | C101: 426 | D101: 28912000
B102: 大阪公立大学（大阪市立大学） | C102: 423 | D102: 3124000
B103: 三重大学 | C103: 422 | D103: 20215000
B104: 東京医科歯科大学 | C104: 418 | D104: 74575000
B105: 電気通信大学 | C105: 406 | D105: 2740000
B106: 豊橋技術科学大学 | C106: 395 | D106: 7491000
B107: 関西大学 | C107: 392 | D107: 5519000
B108: 徳島大学 | C108: 385 | D108: 26218000
B109: 金沢大学 | C109: 360 | D109: 14331000
B110: 北里大学 | C110: 350 | D110: 47578000
B111: 香川大学 | C111: 343 | D111: 13987000
B112: 鳥取大学 | C112: 341 | D112: 5178000
B113: 新潟大学 | C113: 323 | D113: 11052000
B114: 富山大学 | C114: 319 | D114: 21312000
B115: 埼玉大学 | C115: 314 | D115: 2129000
B116: 同志社大学 | C116: 310 | D116: 26699000
B117: 日本大学 | C117: 306 | D117: 50528000
B118: 高知大学 | C118: 296 | D118: 22439000
B119: 立命館大学 | C119: 283 | D119: 5079000
B120: 自然科学研究機構 | C120: 278 | D120: 23513000
B121: 弘前大学 | C121: 261 | D121: 6272000
B122: 岐阜大学 | C122: 260 | D122: 9851000
B123: 宮崎大学 | C123: 257 | D123: 2044000
B124: 神奈川大学 | C124: 254 | D124: 4373000
B125: 兵庫県立大学 | C125: 248 | D125: 37000
B126: 秋田大学 | C126: 242 | D126: 245000
B127: 佐賀大学 | C127: 239 | D127: 6705000
B128: 福井大学 | C128: 239 | D128: 3402000
B129: 東海大学 | C129: 238 | D129: 771000
B130: 山形大学 | C130: 237 | D130: 3491000
B131: 横浜市立大学 | C131: 234 | D131: 25613000
B132: 札幌医科大学 | C132: 229 | D132: 28223000
B133: 京都工芸繊維大学 | C133: 224 | D133: 2740000
B134: 名城大学 | C134: 224 | D134: 475000
B135: 千葉工業大学 | C135: 210 | D135: 22544000
B136: 情報・システム研究機構 | C136: 208 | D136: 5139000
B137: 長崎大学 | C137: 201 | D137: 14882000
B138: 東京海洋大学 | C138: 194 | D138: 2761000
B139: 愛媛大学 | C139: 188 | D139: 18823000
B140: 東京女子医科大学 | C140: 188 | D140: 2124000
B141: 岩手大学 | C141: 188 | D141: 1268000
B142: 北陸先端科学技術大学院大学 | C142: 182 | D142: 7446000
B143: 福岡大学 | C143: 178 | D143: 1047000
B144: 沖縄科学技術大学院大学 | C144: 173 | D144: 1100000
B145: 高知工科大学 | C145: 169 | D145: 45000
B146: 宇都宮大学 | C146: 168 | D146: 7200000
B147: 茨城大学 | C147: 167 | D147: 1237000
B148: 金沢工業大学 | C148: 151 | D148: 3018000
B149: 中央大学 | C149: 151 | D149: 2106000
B150: 大分大学 | C150: 148 | D150: 1748000
B151: 京都府立医科大学 | C151: 147 | D151: 11367000
B152: 関西学院大学 | C152: 146 | D152: 16773000
B153: 滋賀医科大学 | C153: 141 | D153: 5086000
B154: 自治医科大学 | C154: 140 | D154: 10251000
B155: 島根大学 | C155: 140 | D155: 1478000
B156: 上智大学 | C156: 140 | D156: 200000
B157: 浜松医科大学 | C157: 135 | D157: 3613000
B158: 高エネルギー加速器研究機構 | C158: 135 | D158: 712000
B159: 順天堂大学 | C159: 132 | D159: 5278000
B160: 中部大学 | C160: 122 | D160: 1378000
B161: 名古屋市立大学 | C161: 114 | D161: 38831000
B162: 久留米大学 | C162: 112 | D162: 902000
B163: 豊田工業大学 | C163: 109 | D163: 0
B164: 芝浦工業大学 | C164: 103 | D164: 1238000
B165: 東京電機大学 | C165: 102 | D165: 3875000
B166: 埼玉医科大学 | C166: 99 | D166: 8849000
B167: 関東学院大学 | C167: 97 | D167: 9990000
B168: 琉球大学 | C168: 92 | D168: 1146000
B169: 明治大学 | C169: 91 | D169: 4260000
B170: 北見工業大学 | C170: 91 | D170: 753000
B171: 和歌山大学 | C171: 88 | D171: 3592000
B172: 富山県立大学 | C172: 86 | D172: 1957000
B173: 静岡県立大学 | C173: 84 | D173: 1231000
B174: 神奈川工科大学 | C174: 83 | D174: 289000
B175: 藤田医科大学 | C175: 80 | D175: 0
B176: 福岡工業大学 | C176: 69 | D176: 0
B177: 早稲田大学 | C177: 66 | D177: 19945000
B178: 福島大学 | C178: 65 | D178: 217000
B179: 帝京大学 | C179: 62 | D179: 2716000
B180: 岡山理科大学 | C180: 59 | D180: 1200000
B181: 日本医科大学 | C181: 58 | D181: 7708000
B182: 奈良県立医科大学 | C182: 58 | D182: 1283000
B183: 旭川医科大学 | C183: 58 | D183: 700000
B184: 帯広畜産大学 | C184: 57 | D184: 524000
B185: 兵庫医科大学 | C185: 56 | D185: 5620000
B186: 室蘭工業大学 | C186: 55 | D186: 1000
B187: 秋田県立大学 | C187: 54 | D187: 2624000
B188: 東洋大学 | C188: 53 | D188: 2185000
B189: 立教大学 | C189: 53 | D189: 8000
B190: 聖マリアンナ医科大学 | C190: 50 | D190: 109000
B191: 法政大学 | C191: 49 | D191: 874000
B192: お茶の水女子大学 | C192: 49 | D192: 5000
B193: 会津大学 | C193: 48 | D193: 132000
B194: 玉川大学 | C194: 48 | D194: 125000
B195: 関西医科大学 | C195: 47 | D195: 3568000
B196: 甲南大学 | C196: 45 | D196: 1103000
B197: 大阪工業大学 | C197: 44 | D197: 0
B198: 龍谷大学 | C198: 43 | D198: 168000
B199: 広島市立大学 | C199: 43 | D199: 0
B200: 産業医科大学 | C200: 42 | D200: 1006000
B201: 工学院大学 | C201: 41 | D201: 1396000
B202: 北九州市立大学 | C202: 37 | D202: 5488000
B203: 東京農業大学 | C203: 37 | D203: 473000
B204: 鈴鹿工業高等専門学校 | C204: 34 | D204: 74000
B205: 青山学院大学 | C205: 34 | D205: 0
B206: 昭和大学 | C206: 31 | D206: 10595000
B207: 香川高等専門学校 | C207: 31 | D207: 1599000
B208: 麻布大学 | C208: 31 | D208: 797000
B209: 県立広島大学 | C209: 31 | D209: 11000
... 904 more rows

Sheet 大分大学 (hidden)
A1: 国立 | C1: 大分大学（大分県） | X1: 大学全体の経営理念における産学官連携活動の取組方針 | CB1: 80 | CC1: 81 | CD1: 82 | CE1: 83 | CF1: 84 | CG1: 85 | CH1: 86 | CI1: 87 | CJ1: 88 | CK1: 89 | CL1: 90 | CM1: 91 | CN1: 92 | CO1: 93 | CP1: 94 | CQ1: 95 | CR1: 96 | CS1: 97 | CT1: 98 | CU1: 99 | CV1: 100 | CW1: 101 | CX1: 102 | CY1: 103 | CZ1: 104 | DA1: 105 | DB1: 106 | DC1: 107 | DD1: 108 | DE1: 109 | DF1: 110 | DG1: 111 | DH1: 112 | DI1: 113 | DJ1: 114 | DK1: 115 | DL1: 116 | DM1: 117 | DN1: 118 | DO1: 119 | DP1: 120 | DQ1: 121 | DR1: 122 | DS1: 123 | DT1: 124 | DU1: 125 | DV1: 126 | DW1: 127 | DX1: 128 | DY1: 129
X2: 本学がもつ教育，研究及び医療の成果を社会に還元し，社会との連携と共存を諮り，その発展に貢献することを目的とする。さらには地域との連携をより深化させ，社会にイノベーションをもたらすような「地域における知の創造」の実現を図る。
BB3: ＵＲＡ | BO3: URA当たり研究者数 | CA3: 戦略的産学連携経費
BC4: 実務担当者数 | BI4: 3 | BN4: 名 | BO4: =IF(OR(K25="",BI4=""),"",(IFERROR(K25/BI4,""))) -> 265.3333333 | BX4: 名 | CB4: 戦略的産学連携経費の設定 | CP4: 有 | CT4: 無 | CZ4: ない | DA4: インキュベーション施設
A5: 1 | B5: 2 | C5: 3 | D5: 4 | E5: 5 | F5: 6 | G5: 7 | H5: 8 | I5: 9 | J5: 10 | K5: 11 | L5: 12 | M5: 13 | N5: 14 | O5: 15 | P5: 16 | Q5: 17 | R5: 18 | S5: 19 | T5: 20 | U5: 21 | V5: 22 | W5: 23 | X5: 24 | Y5: 25 | Z5: 26 | AA5: 27 | AB5: 28 | AC5: 29 | AD5: 30 | AE5: 31 | AF5: 32 | AG5: 33 | AH5: 34 | AI5: 35 | AJ5: 36 | AK5: 37 | AL5: 38 | AM5: 39 | AN5: 40 | AO5: 41 | AP5: 42 | AQ5: 43 | AR5: 44 | AS5: 45 | AT5: 46 | AU5: 47 | AV5: 48 | AW5: 49 | AX5: 50 | AY5: 51 | AZ5: 52 | BA5: 53 | BB5: 54 | BC5: 55 | BD5: 56 | BE5: 57 | BF5: 58 | BG5: 59 | BH5: 60 | BI5: 61 | BJ5: 62 | BK5: 63 | BL5: 64 | BM5: 65 | BN5: 66 | BO5: 67 | BP5: 68 | BQ5: 69 | BR5: 70 | BS5: 71 | BT5: 72 | BU5: 73 | BV5: 74 | BW5: 75 | BX5: 76 | BY5: 77 | BZ5: 78 | CA5: 79 | CB5: 戦略的産学連携経費の費目 | CZ5: ある | DA5: 相談窓口
A6: 基 礎 情 報 | BB6: 各種規程類の整備状況 | CB6: 戦略的産学連携経費の直接経費に対する割合 | CZ6: ある | DA6: 設立ポリシー | DI6: ◎ | DJ6: 産学連携ポリシー
BB7: 産学連携ポリシー | BM7: 職務発明規程（教職員のみ対象） | CZ7: ない | DA7: 支援ファンド | DI7: ◎ | DJ7: 知的財産ポリシー
B8: 大学の得意分野とその具体例 | BB8: 知的財産ポリシー | BM8: 職務発明規程（教職員、学生対象） | CA8: 人件費の企業負担 | DI8: ◎ | DJ8: 共同研究取扱規程
AA9: 科研費 （千円） | AL9: その他政府系資金 (千円) | AS9: その他団体からの資金 (千円) | BB9: 共同研究取扱規程 | BM9: 発明補償関係規程（教職員のみ対象） | CB9: 教員人件費の企業負担に関する規程や制度 | CP9: 有 | CT9: 無 | DI9: ◎ | DJ9: 受託研究取扱規程
BB10: 受託研究取扱規程 | BM10: 発明補償関係規程（教職員、学生対象） | CB10: 教員人件費の企業負担の費目 | DI10: ◎ | DJ10: 研究成果有体物取扱規程
AA11: 1142310 | AL11: 14060 | AS11: 0 | BB11: 研究成果有体物取扱規程 | BM11: 守秘義務に係る規程（教職員のみ対象） | CB11: 学生人件費の企業負担に関する規程や制度 | CP11: 有 | CT11: 無 | DI11: × | DJ11: 営業秘密管理に関する規程
BB12: 営業秘密管理に関する規程 | BM12: 守秘義務に係る規程（教職員、学生対象） | CB12: 学生人件費の企業負担の費目 | DI12: × | DJ12: 株式の取扱等規程、ポリシー
AA13: 間接経費割合 | AN13: 株式の保有 | AT13: 新株予約権の保有 | BB13: 株式の取扱等規程、ポリシー | DB13: 株式 | DI13: ◎ | DJ13: 職務発明規程（教職員のみ対象）
AA14: 0.3 | AN14: 有 | AQ14: 無 | AT14: 有 | AW14: 無 | BD14: ※各種規定類を整備している場合は、赤色で表示されます。 | CA14: 特別試験研究費税額控除制度 | DB14: 新株予約権 | DI14: × | DJ14: 職務発明規程（教職員、学生対象）
B15: 産学官連携活動において今後重点化したい事項 | CB15: 特別試験研究費税額控除制度の活用 | CP15: 有 | CT15: 無 | DI15: ◎ | DJ15: 発明補償関係規程（教職員のみ対象）
B16: 理工学部，医学部，福祉健康科学部が連携し，県内企業との医療・福祉関連の機器開発を推進する（医工連携）。 | AA16: ■共同研究 | AG16: 2020年度 | AO16: 2021年度 | AW16: 順位※ | BB16: クロスアポイントメントの実績（人） | BK16: 大学等 | BN16: 公的機関 | BQ16: 民間企業 | BU16: その他機関 | DI16: × | DJ16: 発明補償関係規程（教職員、学生対象）
AG17: 受入額（千円） | AL17: 件数 | AO17: 受入額（千円） | AT17: 件数 | BH17: 受入 | BK17: 0 | BN17: 0 | BQ17: 1 | BU17: 0 | DB17: 順位 | DI17: ◎ | DJ17: 守秘義務に係る規程（教職員のみ対象）
AA18: 全体 | AG18: 125616 | AL18: 97 | AO18: 115981 | AT18: 90 | AW18: =IF(DB18<50,DB18,"") ->  | AY18: 位 | BH18: 派遣 | BK18: 1 | BN18: 0 | BQ18: 1 | BU18: 0 | DB18: 100 | DI18: × | DJ18: 守秘義務に係る規程（教職員、学生対象）
AB19: 民間企業 のみ | AG19: 82321 | AL19: 80 | AO19: 73234 | AT19: 77 | AW19: =IF(DB19<50,DB19,"") ->  | AY19: 位 | DB19: 114
AC20: 大企業 | AG20: 54900 | AL20: 34 | AO20: 53458 | AT20: 35 | AW20: =IF(DB20<50,DB20,"") ->  | AY20: 位 | DB20: 115 | DI20: ない | DJ20: 戦略的産学連携経費の設定
AC21: 中小企業 | AG21: 27421 | AL21: 46 | AO21: 19776 | AT21: 42 | AW21: =IF(DB21<50,DB21,"") ->  | AY21: 位 | BB21: ■組織的産学連携活動の取組事例 | DB21: 107 | DI21: ない | DJ21: 教員人件費の企業負担に関する規程や制度
AL22: ※順位は2021年度の受入額を比較したもの | DI22: ない | DJ22: 学生人件費の企業負担に関する規程や制度
B23: 産学官連携本部等組織名 | K23: 研究マネジメント機構産学官連携推進センター | DB23: 0 | DC23: 36 | DI23: ある | DJ23: 特別試験研究費税額控除制度の活用
B24: 産学官連携本部等URL | K24: http://www.ico.oita-u.ac.jp/ | DB24: ～100万 | DC24: 21
B25: 研究者数 | K25: 796 | O25: 名 | DB25: ～300万 | DC25: 14
DB26: ～500万 | DC26: 2
DB27: ～1000万 | DC27: 3
DB28: ～5000万 | DC28: 1
DB29: ～1億 | DC29: 0 | DJ29: 共同研究等の企画・提案
B30: 産学連携担当部署 | O30: 実務者当たり研究者数 | DB30: 1億以上 | DC30: 0 | DJ30: 契約書での成果目標、達成時の明記
C31: 実務担当者数 | I31: 19 | N31: 名 | O31: =IF(OR(K25="",I31=""),"",IFERROR($K$25/I31,"")) -> 41.89473684 | X31: 名 | DJ31: 共同研究契約の締結/判断（契約権限の集中）
C32: 専門家の配置 | I32: 弁護士 | L32: 弁理士 | O32: 税理士 | R32: 公認会計士 | V32: その他 | DJ32: 共同研究の進捗管理とフィードバック
I33: ※専門家を配置している場合は、赤色で表示されます。 | DJ33: 企業ニーズに適応した技術移転・事業化提案
AA34: ■受託研究 | AG34: 2020年度 | AO34: 2021年度 | AW34: 順位※ | DJ34: 共同研究等の企画・提案
AG35: 受入額（千円） | AL35: 件数（件） | AO35: 受入額（千円） | AT35: 件数（件） | DB35: 順位 | DJ35: 契約書での成果目標、達成時の明記
AA36: 全体 | AG36: 335858 | AL36: 122 | AO36: 502010 | AT36: 127 | AW36: =IF(DB36<50,DB36,"") ->  | AY36: 位 | DB36: 70 | DJ36: 共同研究契約の締結/判断（契約権限の集中）
AB37: 民間企業 のみ | AG37: 16673 | AL37: 39 | AO37: 154931 | AT37: 40 | AW37: =IF(DB37<50,DB37,"") -> 22 | AY37: 位 | DB37: 22 | DJ37: 共同研究の進捗管理とフィードバック
C38: 産学連携本部が関与した共同研究 | P38: 0 | T38: 件 | AC38: 大企業 | AG38: 2600 | AL38: 17 | AO38: 36150 | AT38: 23 | AW38: =IF(DB38<50,DB38,"") ->  | AY38: 位 | DB38: 64 | DJ38: 企業ニーズに適応した技術移転・事業化提案
D39: 内、マッチングを行い、契約締結した件数 | P39: 0 | T39: 件 | AC39: 中小企業 | AG39: 5351 | AL39: 13 | AO39: 118781 | AT39: 17 | AW39: =IF(DB39<50,DB39,"") -> 7 | AY39: 位 | BB39: ■産学連携活動の主な実用化事例 | DB39: 7 | DJ39: 共同研究等の企画・提案
I40: ※1,000万円以上の共同研究 | AL40: ※順位は2021年度の受入額を比較したもの | DB40: 弁護士 | DG40: 0 | DH40: 18 | DJ40: 契約書での成果目標、達成時の明記
DB41: 弁理士 | DG41: ～100万 | DH41: 16 | DJ41: 共同研究契約の締結/判断（契約権限の集中）
C42: 組織対組織による包括連携契約の締結数 | P42: 0 | T42: 件 | DB42: 税理士 | DG42: ～300万 | DH42: 2 | DJ42: 共同研究の進捗管理とフィードバック
D43: 内、1,000万円以上の実績がある相手方数 | P43: 0 | T43: 件 | DB43: 公認会計士 | DG43: ～500万 | DH43: 0 | DJ43: 企業ニーズに適応した技術移転・事業化提案
DB44: その他 | DG44: ～1000万 | DH44: 1
C45: 寄附講座・寄附研究部門の受入件数 | P45: 3 | V45: 件 | DG45: ～5000万 | DH45: 2
C46: 寄附講座・寄附研究部門の受入金額（千円） | P46: 50000 | DG46: ～1億 | DH46: 1
C47: 共同研究講座・共同研究部門の受入件数 | P47: 1 | V47: 件 | DG47: 1億以上 | DH47: 0
C48: 共同研究講座・共同研究部門の受入金額（千円） | P48: 0
C52: 職務発明の帰属 | I52: 大学 | M52: 発明者 | Q52: 未設定 | CZ52: 大学 | DA52: 職務発明
AD53: 特許権実施等件数 | AL53: 24 | AQ53: 件 | AS53: 実施等件数 あたり | DA53: 不実施
M54: 研究者あたり | AD54: 特許権実施等収入（千円） | AL54: 1748 | AS54: =IF(OR(AL53="",AL54=""),"",IFERROR(AL54/AL53,"")) -> 72.83333333 | CZ54: 1748000 | DA54: 特許等収入
C55: 特許出願件数（件） | I55: 16 | M55: =IF(OR(K25="",I55=""),"",IFERROR(I55/K25,"")) -> 0.02010050251
C56: 特許保有件数（件） | I56: 148 | M56: =IF(OR(K25="",I56=""),"",IFERROR(I56/K25,"")) -> 0.1859296482
C61: 大学発ベンチャー数 | J61: 8 | O61: 社
C62: Exit件数（IPO） | J62: 0 | O62: 社 | P62: Exit件数（M&A） | W62: 1 | Z62: 社
C63: 相談窓口 | K63: 支援ファンド | S63: インキュベーション施設
C64: 有 | G64: 無 | K64: 有 | O64: 無 | S64: 有 | W64: 無
C65: 知的財産戦略方針 | K65: 支援総額（千円） | S65: 面積 | Z65: 平方メートル
C66: 有 | G66: 無 | S66: 契約企業数 | Z66: 社
A69: 1 | B69: 2 | C69: 3 | D69: 4 | E69: 5 | F69: 6 | G69: 7 | H69: 8 | I69: 9 | J69: 10 | K69: 11 | L69: 12 | M69: 13 | N69: 14 | O69: 15 | P69: 16 | Q69: 17 | R69: 18 | S69: 19 | T69: 20 | U69: 21 | V69: 22 | W69: 23 | X69: 24 | Y69: 25 | Z69: 26 | AA69: 27 | AB69: 28 | AC69: 29 | AD69: 30 | AE69: 31 | AF69: 32 | AG69: 33 | AH69: 34 | AI69: 35 | AJ69: 36 | AK69: 37 | AL69: 38 | AM69: 39 | AN69: 40 | AO69: 41 | AP69: 42 | AQ69: 43 | AR69: 44 | AS69: 45 | AT69: 46 | AU69: 47 | AV69: 48 | AW69: 49 | AX69: 50 | AY69: 51 | AZ69: 52 | BA69: 53 | BB69: 54 | BC69: 55 | BD69: 56 | BE69: 57 | BF69: 58 | BG69: 59 | BH69: 60 | BI69: 61 | BJ69: 62 | BK69: 63 | BL69: 64 | BM69: 65 | BN69: 66 | BO69: 67 | BP69: 68 | BQ69: 69 | BR69: 70 | BS69: 71 | BT69: 72 | BU69: 73 | BV69: 74 | BW69: 75 | BX69: 76 | BY69: 77 | BZ69: 78 | CA69: 79 | CB69: 80 | CC69: 81 | CD69: 82 | CE69: 83 | CF69: 84 | CG69: 85 | CH69: 86 | CI69: 87 | CJ69: 88 | CK69: 89 | CL69: 90 | CM69: 91 | CN69: 92 | CO69: 93 | CP69: 94 | CQ69: 95 | CR69: 96 | CS69: 97 | CT69: 98 | CU69: 99 | CV69: 100 | CW69: 101 | CX69: 102 | CY69: 103 | CZ69: 104 | DA69: 105 | DB69: 106 | DC69: 107 | DD69: 108 | DE69: 109 | DF69: 110 | DG69: 111 | DH69: 112 | DI69: 113 | DJ69: 114 | DK69: 115 | DL69: 116 | DM69: 117 | DN69: 118 | DO69: 119 | DP69: 120 | DQ69: 121 | DR69: 122 | DS69: 123 | DT69: 124 | DU69: 125
D70: 特許権収入
B71: 東京大学 | C71: 4744 | D71: 557703000
B72: 東北大学 | C72: 3726 | D72: 275164000
B73: 大阪大学 | C73: 3253 | D73: 395417000
B74: 京都大学 | C74: 3217 | D74: 886135000
B75: 東京工業大学 | C75: 2019 | D75: 42504000
B76: 九州大学 | C76: 1733 | D76: 142436000
B77: 名古屋大学 | C77: 1496 | D77: 72276000
B78: 北海道大学 | C78: 1219 | D78: 115470000
B79: 信州大学 | C79: 1047 | D79: 32411000
B80: 広島大学 | C80: 1019 | D80: 44418000
B81: 筑波大学 | C81: 892 | D81: 27835000
B82: 慶應義塾大学 | C82: 856 | D82: 58283000
B83: 千葉大学 | C83: 851 | D83: 9761000
B84: 岡山大学 | C84: 739 | D84: 21802000
B85: 山口大学 | C85: 711 | D85: 26145000
B86: 東京農工大学 | C86: 667 | D86: 10063000
B87: 名古屋工業大学 | C87: 660 | D87: 23496000
B88: 東京理科大学 | C88: 629 | D88: 11695000
B89: 九州工業大学 | C89: 607 | D89: 5845000
B90: 神戸大学 | C90: 581 | D90: 104449000
B91: 熊本大学 | C91: 543 | D91: 19748000
B92: 群馬大学 | C92: 536 | D92: 3598000
B93: 静岡大学 | C93: 523 | D93: 2662000
B94: 横浜国立大学 | C94: 509 | D94: 4920000
B95: 大阪公立大学（大阪府立大学） | C95: 502 | D95: 8255000
B96: 近畿大学 | C96: 488 | D96: 26794000
B97: 鹿児島大学 | C97: 458 | D97: 8269000
B98: 長岡技術科学大学 | C98: 440 | D98: 2979000
B99: 奈良先端科学技術大学院大学 | C99: 435 | D99: 3758000
B100: 東京都立大学 | C100: 435 | D100: 1170000
B101: 山梨大学 | C101: 426 | D101: 28912000
B102: 大阪公立大学（大阪市立大学） | C102: 423 | D102: 3124000
B103: 三重大学 | C103: 422 | D103: 20215000
B104: 東京医科歯科大学 | C104: 418 | D104: 74575000
B105: 電気通信大学 | C105: 406 | D105: 2740000
B106: 豊橋技術科学大学 | C106: 395 | D106: 7491000
B107: 関西大学 | C107: 392 | D107: 5519000
B108: 徳島大学 | C108: 385 | D108: 26218000
B109: 金沢大学 | C109: 360 | D109: 14331000
B110: 北里大学 | C110: 350 | D110: 47578000
B111: 香川大学 | C111: 343 | D111: 13987000
B112: 鳥取大学 | C112: 341 | D112: 5178000
B113: 新潟大学 | C113: 323 | D113: 11052000
B114: 富山大学 | C114: 319 | D114: 21312000
B115: 埼玉大学 | C115: 314 | D115: 2129000
B116: 同志社大学 | C116: 310 | D116: 26699000
B117: 日本大学 | C117: 306 | D117: 50528000
B118: 高知大学 | C118: 296 | D118: 22439000
B119: 立命館大学 | C119: 283 | D119: 5079000
B120: 自然科学研究機構 | C120: 278 | D120: 23513000
B121: 弘前大学 | C121: 261 | D121: 6272000
B122: 岐阜大学 | C122: 260 | D122: 9851000
B123: 宮崎大学 | C123: 257 | D123: 2044000
B124: 神奈川大学 | C124: 254 | D124: 4373000
B125: 兵庫県立大学 | C125: 248 | D125: 37000
B126: 秋田大学 | C126: 242 | D126: 245000
B127: 佐賀大学 | C127: 239 | D127: 6705000
B128: 福井大学 | C128: 239 | D128: 3402000
B129: 東海大学 | C129: 238 | D129: 771000
B130: 山形大学 | C130: 237 | D130: 3491000
B131: 横浜市立大学 | C131: 234 | D131: 25613000
B132: 札幌医科大学 | C132: 229 | D132: 28223000
B133: 京都工芸繊維大学 | C133: 224 | D133: 2740000
B134: 名城大学 | C134: 224 | D134: 475000
B135: 千葉工業大学 | C135: 210 | D135: 22544000
B136: 情報・システム研究機構 | C136: 208 | D136: 5139000
B137: 長崎大学 | C137: 201 | D137: 14882000
B138: 東京海洋大学 | C138: 194 | D138: 2761000
B139: 愛媛大学 | C139: 188 | D139: 18823000
B140: 東京女子医科大学 | C140: 188 | D140: 2124000
B141: 岩手大学 | C141: 188 | D141: 1268000
B142: 北陸先端科学技術大学院大学 | C142: 182 | D142: 7446000
B143: 福岡大学 | C143: 178 | D143: 1047000
B144: 沖縄科学技術大学院大学 | C144: 173 | D144: 1100000
B145: 高知工科大学 | C145: 169 | D145: 45000
B146: 宇都宮大学 | C146: 168 | D146: 7200000
B147: 茨城大学 | C147: 167 | D147: 1237000
B148: 金沢工業大学 | C148: 151 | D148: 3018000
B149: 中央大学 | C149: 151 | D149: 2106000
B150: 大分大学 | C150: 148 | D150: 1748000
B151: 京都府立医科大学 | C151: 147 | D151: 11367000
B152: 関西学院大学 | C152: 146 | D152: 16773000
B153: 滋賀医科大学 | C153: 141 | D153: 5086000
B154: 自治医科大学 | C154: 140 | D154: 10251000
B155: 島根大学 | C155: 140 | D155: 1478000
B156: 上智大学 | C156: 140 | D156: 200000
B157: 浜松医科大学 | C157: 135 | D157: 3613000
B158: 高エネルギー加速器研究機構 | C158: 135 | D158: 712000
B159: 順天堂大学 | C159: 132 | D159: 5278000
B160: 中部大学 | C160: 122 | D160: 1378000
B161: 名古屋市立大学 | C161: 114 | D161: 38831000
B162: 久留米大学 | C162: 112 | D162: 902000
B163: 豊田工業大学 | C163: 109 | D163: 0
B164: 芝浦工業大学 | C164: 103 | D164: 1238000
B165: 東京電機大学 | C165: 102 | D165: 3875000
B166: 埼玉医科大学 | C166: 99 | D166: 8849000
B167: 関東学院大学 | C167: 97 | D167: 9990000
B168: 琉球大学 | C168: 92 | D168: 1146000
B169: 明治大学 | C169: 91 | D169: 4260000
B170: 北見工業大学 | C170: 91 | D170: 753000
B171: 和歌山大学 | C171: 88 | D171: 3592000
B172: 富山県立大学 | C172: 86 | D172: 1957000
B173: 静岡県立大学 | C173: 84 | D173: 1231000
B174: 神奈川工科大学 | C174: 83 | D174: 289000
B175: 藤田医科大学 | C175: 80 | D175: 0
B176: 福岡工業大学 | C176: 69 | D176: 0
B177: 早稲田大学 | C177: 66 | D177: 19945000
B178: 福島大学 | C178: 65 | D178: 217000
B179: 帝京大学 | C179: 62 | D179: 2716000
B180: 岡山理科大学 | C180: 59 | D180: 1200000
B181: 日本医科大学 | C181: 58 | D181: 7708000
B182: 奈良県立医科大学 | C182: 58 | D182: 1283000
B183: 旭川医科大学 | C183: 58 | D183: 700000
B184: 帯広畜産大学 | C184: 57 | D184: 524000
B185: 兵庫医科大学 | C185: 56 | D185: 5620000
B186: 室蘭工業大学 | C186: 55 | D186: 1000
B187: 秋田県立大学 | C187: 54 | D187: 2624000
B188: 東洋大学 | C188: 53 | D188: 2185000
B189: 立教大学 | C189: 53 | D189: 8000
B190: 聖マリアンナ医科大学 | C190: 50 | D190: 109000
B191: 法政大学 | C191: 49 | D191: 874000
B192: お茶の水女子大学 | C192: 49 | D192: 5000
B193: 会津大学 | C193: 48 | D193: 132000
B194: 玉川大学 | C194: 48 | D194: 125000
B195: 関西医科大学 | C195: 47 | D195: 3568000
B196: 甲南大学 | C196: 45 | D196: 1103000
B197: 大阪工業大学 | C197: 44 | D197: 0
B198: 龍谷大学 | C198: 43 | D198: 168000
B199: 広島市立大学 | C199: 43 | D199: 0
B200: 産業医科大学 | C200: 42 | D200: 1006000
B201: 工学院大学 | C201: 41 | D201: 1396000
B202: 北九州市立大学 | C202: 37 | D202: 5488000
B203: 東京農業大学 | C203: 37 | D203: 473000
B204: 鈴鹿工業高等専門学校 | C204: 34 | D204: 74000
B205: 青山学院大学 | C205: 34 | D205: 0
B206: 昭和大学 | C206: 31 | D206: 10595000
B207: 香川高等専門学校 | C207: 31 | D207: 1599000
B208: 麻布大学 | C208: 31 | D208: 797000
B209: 県立広島大学 | C209: 31 | D209: 11000
... 904 more rows

Sheet 大阪教育大学 (hidden)
A1: 国立 | C1: 大阪教育大学（大阪府） | X1: 大学全体の経営理念における産学官連携活動の取組方針 | CB1: 80 | CC1: 81 | CD1: 82 | CE1: 83 | CF1: 84 | CG1: 85 | CH1: 86 | CI1: 87 | CJ1: 88 | CK1: 89 | CL1: 90 | CM1: 91 | CN1: 92 | CO1: 93 | CP1: 94 | CQ1: 95 | CR1: 96 | CS1: 97 | CT1: 98 | CU1: 99 | CV1: 100 | CW1: 101 | CX1: 102 | CY1: 103 | CZ1: 104 | DA1: 105 | DB1: 106 | DC1: 107 | DD1: 108 | DE1: 109 | DF1: 110 | DG1: 111 | DH1: 112 | DI1: 113 | DJ1: 114 | DK1: 115 | DL1: 116 | DM1: 117 | DN1: 118 | DO1: 119 | DP1: 120 | DQ1: 121 | DR1: 122 | DS1: 123 | DT1: 124 | DU1: 125 | DV1: 126 | DW1: 127 | DX1: 128 | DY1: 129
X2: 日本の将来を見据え、学校教育に求められる変革に教育委員会・学校現場・行政・産業界・大学等が、それぞれ抱える課題（弱み）や資源（強み）を一同に集積し、大きな成果を生み出す仕組み（プラットフォーム）を構築し、大阪から日本の教育を変えていく。その目的の実現に向かって一緒に考え、汗をかく真のベストパートナシップをめざす。
BB3: ＵＲＡ | BO3: URA当たり研究者数 | CA3: 戦略的産学連携経費
BC4: 実務担当者数 | BI4: 0 | BN4: 名 | BO4: =IF(OR(K25="",BI4=""),"",(IFERROR(K25/BI4,""))) ->  | BX4: 名 | CB4: 戦略的産学連携経費の設定 | CP4: 有 | CT4: 無 | CZ4: ない | DA4: インキュベーション施設
A5: 1 | B5: 2 | C5: 3 | D5: 4 | E5: 5 | F5: 6 | G5: 7 | H5: 8 | I5: 9 | J5: 10 | K5: 11 | L5: 12 | M5: 13 | N5: 14 | O5: 15 | P5: 16 | Q5: 17 | R5: 18 | S5: 19 | T5: 20 | U5: 21 | V5: 22 | W5: 23 | X5: 24 | Y5: 25 | Z5: 26 | AA5: 27 | AB5: 28 | AC5: 29 | AD5: 30 | AE5: 31 | AF5: 32 | AG5: 33 | AH5: 34 | AI5: 35 | AJ5: 36 | AK5: 37 | AL5: 38 | AM5: 39 | AN5: 40 | AO5: 41 | AP5: 42 | AQ5: 43 | AR5: 44 | AS5: 45 | AT5: 46 | AU5: 47 | AV5: 48 | AW5: 49 | AX5: 50 | AY5: 51 | AZ5: 52 | BA5: 53 | BB5: 54 | BC5: 55 | BD5: 56 | BE5: 57 | BF5: 58 | BG5: 59 | BH5: 60 | BI5: 61 | BJ5: 62 | BK5: 63 | BL5: 64 | BM5: 65 | BN5: 66 | BO5: 67 | BP5: 68 | BQ5: 69 | BR5: 70 | BS5: 71 | BT5: 72 | BU5: 73 | BV5: 74 | BW5: 75 | BX5: 76 | BY5: 77 | BZ5: 78 | CA5: 79 | CB5: 戦略的産学連携経費の費目 | CZ5: ない | DA5: 相談窓口
A6: 基 礎 情 報 | BB6: 各種規程類の整備状況 | CB6: 戦略的産学連携経費の直接経費に対する割合 | CZ6: ある | DA6: 設立ポリシー | DI6: × | DJ6: 産学連携ポリシー
BB7: 産学連携ポリシー | BM7: 職務発明規程（教職員のみ対象） | CZ7: ない | DA7: 支援ファンド | DI7: ◎ | DJ7: 知的財産ポリシー
B8: 大学の得意分野とその具体例 | BB8: 知的財産ポリシー | BM8: 職務発明規程（教職員、学生対象） | CA8: 人件費の企業負担 | DI8: ◎ | DJ8: 共同研究取扱規程
B9: 新たな社会に求められる資質・能力を有する教員の育成に資する、先導的な教職科目等を附属学校園での実践・実証を経て開発すること。 <具体例> ・サバイバル日本語学習支援教材作成にかかる研究 ・英語科学習者用デジタル教科書の授業における活用についての研究 | AA9: 科研費 （千円） | AL9: その他政府系資金 (千円) | AS9: その他団体からの資金 (千円) | BB9: 共同研究取扱規程 | BM9: 発明補償関係規程（教職員のみ対象） | CB9: 教員人件費の企業負担に関する規程や制度 | CP9: 有 | CT9: 無 | DI9: ◎ | DJ9: 受託研究取扱規程
BB10: 受託研究取扱規程 | BM10: 発明補償関係規程（教職員、学生対象） | CB10: 教員人件費の企業負担の費目 | DI10: ◎ | DJ10: 研究成果有体物取扱規程
AA11: 118234 | AL11: 21685 | AS11: 38159 | BB11: 研究成果有体物取扱規程 | BM11: 守秘義務に係る規程（教職員のみ対象） | CB11: 学生人件費の企業負担に関する規程や制度 | CP11: 有 | CT11: 無 | DI11: × | DJ11: 営業秘密管理に関する規程
BB12: 営業秘密管理に関する規程 | BM12: 守秘義務に係る規程（教職員、学生対象） | CB12: 学生人件費の企業負担の費目 | DI12: × | DJ12: 株式の取扱等規程、ポリシー
AA13: 間接経費割合 | AN13: 株式の保有 | AT13: 新株予約権の保有 | BB13: 株式の取扱等規程、ポリシー | DB13: 株式 | DI13: × | DJ13: 職務発明規程（教職員のみ対象）
AA14: 0.3 | AN14: 有 | AQ14: 無 | AT14: 有 | AW14: 無 | BD14: ※各種規定類を整備している場合は、赤色で表示されます。 | CA14: 特別試験研究費税額控除制度 | DB14: 新株予約権 | DI14: ◎ | DJ14: 職務発明規程（教職員、学生対象）
B15: 産学官連携活動において今後重点化したい事項 | CB15: 特別試験研究費税額控除制度の活用 | CP15: 有 | CT15: 無 | DI15: × | DJ15: 発明補償関係規程（教職員のみ対象）
B16: 学校教育に関心のある企業と公教育の連携拠点化の推進と現職教員や市民のリカレント教育機能の充実 | AA16: ■共同研究 | AG16: 2020年度 | AO16: 2021年度 | AW16: 順位※ | BB16: クロスアポイントメントの実績（人） | BK16: 大学等 | BN16: 公的機関 | BQ16: 民間企業 | BU16: その他機関 | DI16: ◎ | DJ16: 発明補償関係規程（教職員、学生対象）
AG17: 受入額（千円） | AL17: 件数 | AO17: 受入額（千円） | AT17: 件数 | BH17: 受入 | BK17: 0 | BN17: 0 | BQ17: 1 | BU17: 0 | DB17: 順位 | DI17: × | DJ17: 守秘義務に係る規程（教職員のみ対象）
AA18: 全体 | AG18: 60674 | AL18: 5 | AO18: 36926 | AT18: 10 | AW18: =IF(DB18<50,DB18,"") ->  | AY18: 位 | BH18: 派遣 | BK18: 0 | BN18: 0 | BQ18: 0 | BU18: 0 | DB18: 157 | DI18: × | DJ18: 守秘義務に係る規程（教職員、学生対象）
AB19: 民間企業 のみ | AG19: 30056 | AL19: 2 | AO19: 6468 | AT19: 6 | AW19: =IF(DB19<50,DB19,"") ->  | AY19: 位 | DB19: 257
AC20: 大企業 | AG20: 30056 | AL20: 2 | AO20: 6070 | AT20: 5 | AW20: =IF(DB20<50,DB20,"") ->  | AY20: 位 | DB20: 229 | DI20: ない | DJ20: 戦略的産学連携経費の設定
AC21: 中小企業 | AG21: 0 | AL21: 0 | AO21: 398 | AT21: 1 | AW21: =IF(DB21<50,DB21,"") ->  | AY21: 位 | BB21: ■組織的産学連携活動の取組事例 | DB21: 330 | DI21: ない | DJ21: 教員人件費の企業負担に関する規程や制度
AL22: ※順位は2021年度の受入額を比較したもの | DI22: ない | DJ22: 学生人件費の企業負担に関する規程や制度
B23: 産学官連携本部等組織名 | DB23: 0 | DC23: 0 | DI23: ない | DJ23: 特別試験研究費税額控除制度の活用
B24: 産学官連携本部等URL | DB24: ～100万 | DC24: 4
B25: 研究者数 | K25: 256 | O25: 名 | DB25: ～300万 | DC25: 2
DB26: ～500万 | DC26: 0
DB27: ～1000万 | DC27: 0
DB28: ～5000万 | DC28: 0
DB29: ～1億 | DC29: 0 | DJ29: 共同研究等の企画・提案
B30: 産学連携担当部署 | O30: 実務者当たり研究者数 | DB30: 1億以上 | DC30: 0 | DJ30: 契約書での成果目標、達成時の明記
C31: 実務担当者数 | I31: 2 | N31: 名 | O31: =IF(OR(K25="",I31=""),"",IFERROR($K$25/I31,"")) -> 128 | X31: 名 | DJ31: 共同研究契約の締結/判断（契約権限の集中）
C32: 専門家の配置 | I32: 弁護士 | L32: 弁理士 | O32: 税理士 | R32: 公認会計士 | V32: その他 | DJ32: 共同研究の進捗管理とフィードバック
I33: ※専門家を配置している場合は、赤色で表示されます。 | DJ33: 企業ニーズに適応した技術移転・事業化提案
AA34: ■受託研究 | AG34: 2020年度 | AO34: 2021年度 | AW34: 順位※ | DJ34: 共同研究等の企画・提案
AG35: 受入額（千円） | AL35: 件数（件） | AO35: 受入額（千円） | AT35: 件数（件） | DB35: 順位 | DJ35: 契約書での成果目標、達成時の明記
AA36: 全体 | AG36: 1650 | AL36: 2 | AO36: 3360 | AT36: 5 | AW36: =IF(DB36<50,DB36,"") ->  | AY36: 位 | DB36: 382 | DJ36: 共同研究契約の締結/判断（契約権限の集中）
AB37: 民間企業 のみ | AG37: 1650 | AL37: 2 | AO37: 2800 | AT37: 3 | AW37: =IF(DB37<50,DB37,"") ->  | AY37: 位 | DB37: 244 | DJ37: 共同研究の進捗管理とフィードバック
C38: 産学連携本部が関与した共同研究 | P38: 0 | T38: 件 | AC38: 大企業 | AG38: 550 | AL38: 1 | AO38: 2800 | AT38: 3 | AW38: =IF(DB38<50,DB38,"") ->  | AY38: 位 | DB38: 203 | DJ38: 企業ニーズに適応した技術移転・事業化提案
D39: 内、マッチングを行い、契約締結した件数 | P39: 0 | T39: 件 | AC39: 中小企業 | AG39: 1100 | AL39: 1 | AO39: 0 | AT39: 0 | AW39: =IF(DB39<50,DB39,"") ->  | AY39: 位 | BB39: ■産学連携活動の主な実用化事例 | DB39: 318 | DJ39: 共同研究等の企画・提案
I40: ※1,000万円以上の共同研究 | AL40: ※順位は2021年度の受入額を比較したもの | DB40: 弁護士 | DG40: 0 | DH40: 0 | DJ40: 契約書での成果目標、達成時の明記
DB41: 弁理士 | DG41: ～100万 | DH41: 1 | DJ41: 共同研究契約の締結/判断（契約権限の集中）
C42: 組織対組織による包括連携契約の締結数 | P42: 14 | T42: 件 | DB42: 税理士 | DG42: ～300万 | DH42: 2 | DJ42: 共同研究の進捗管理とフィードバック
D43: 内、1,000万円以上の実績がある相手方数 | P43: 0 | T43: 件 | DB43: 公認会計士 | DG43: ～500万 | DH43: 0 | DJ43: 企業ニーズに適応した技術移転・事業化提案
DB44: その他 | DG44: ～1000万 | DH44: 0
C45: 寄附講座・寄附研究部門の受入件数 | V45: 件 | DG45: ～5000万 | DH45: 0
C46: 寄附講座・寄附研究部門の受入金額（千円） | P46: 0 | DG46: ～1億 | DH46: 0
C47: 共同研究講座・共同研究部門の受入件数 | P47: 1 | V47: 件 | DG47: 1億以上 | DH47: 0
C48: 共同研究講座・共同研究部門の受入金額（千円） | P48: 29700
C52: 職務発明の帰属 | I52: 大学 | M52: 発明者 | Q52: 未設定 | CZ52: 大学 | DA52: 職務発明
AD53: 特許権実施等件数 | AL53: 1 | AQ53: 件 | AS53: 実施等件数 あたり | DA53: 不実施
M54: 研究者あたり | AD54: 特許権実施等収入（千円） | AL54: 0 | AS54: =IF(OR(AL53="",AL54=""),"",IFERROR(AL54/AL53,"")) -> 0 | CZ54: 0 | DA54: 特許等収入
C55: 特許出願件数（件） | I55: 1 | M55: =IF(OR(K25="",I55=""),"",IFERROR(I55/K25,"")) -> 0.00390625
C56: 特許保有件数（件） | I56: 7 | M56: =IF(OR(K25="",I56=""),"",IFERROR(I56/K25,"")) -> 0.02734375
C61: 大学発ベンチャー数 | O61: 社
C62: Exit件数（IPO） | J62: 0 | O62: 社 | P62: Exit件数（M&A） | W62: 0 | Z62: 社
C63: 相談窓口 | K63: 支援ファンド | S63: インキュベーション施設
C64: 有 | G64: 無 | K64: 有 | O64: 無 | S64: 有 | W64: 無
C65: 知的財産戦略方針 | K65: 支援総額（千円） | S65: 面積 | Z65: 平方メートル
C66: 有 | G66: 無 | S66: 契約企業数 | Z66: 社
A69: 1 | B69: 2 | C69: 3 | D69: 4 | E69: 5 | F69: 6 | G69: 7 | H69: 8 | I69: 9 | J69: 10 | K69: 11 | L69: 12 | M69: 13 | N69: 14 | O69: 15 | P69: 16 | Q69: 17 | R69: 18 | S69: 19 | T69: 20 | U69: 21 | V69: 22 | W69: 23 | X69: 24 | Y69: 25 | Z69: 26 | AA69: 27 | AB69: 28 | AC69: 29 | AD69: 30 | AE69: 31 | AF69: 32 | AG69: 33 | AH69: 34 | AI69: 35 | AJ69: 36 | AK69: 37 | AL69: 38 | AM69: 39 | AN69: 40 | AO69: 41 | AP69: 42 | AQ69: 43 | AR69: 44 | AS69: 45 | AT69: 46 | AU69: 47 | AV69: 48 | AW69: 49 | AX69: 50 | AY69: 51 | AZ69: 52 | BA69: 53 | BB69: 54 | BC69: 55 | BD69: 56 | BE69: 57 | BF69: 58 | BG69: 59 | BH69: 60 | BI69: 61 | BJ69: 62 | BK69: 63 | BL69: 64 | BM69: 65 | BN69: 66 | BO69: 67 | BP69: 68 | BQ69: 69 | BR69: 70 | BS69: 71 | BT69: 72 | BU69: 73 | BV69: 74 | BW69: 75 | BX69: 76 | BY69: 77 | BZ69: 78 | CA69: 79 | CB69: 80 | CC69: 81 | CD69: 82 | CE69: 83 | CF69: 84 | CG69: 85 | CH69: 86 | CI69: 87 | CJ69: 88 | CK69: 89 | CL69: 90 | CM69: 91 | CN69: 92 | CO69: 93 | CP69: 94 | CQ69: 95 | CR69: 96 | CS69: 97 | CT69: 98 | CU69: 99 | CV69: 100 | CW69: 101 | CX69: 102 | CY69: 103 | CZ69: 104 | DA69: 105 | DB69: 106 | DC69: 107 | DD69: 108 | DE69: 109 | DF69: 110 | DG69: 111 | DH69: 112 | DI69: 113 | DJ69: 114 | DK69: 115 | DL69: 116 | DM69: 117 | DN69: 118 | DO69: 119 | DP69: 120 | DQ69: 121 | DR69: 122 | DS69: 123 | DT69: 124 | DU69: 125
D70: 特許権収入
B71: 東京大学 | C71: 4744 | D71: 557703000
B72: 東北大学 | C72: 3726 | D72: 275164000
B73: 大阪大学 | C73: 3253 | D73: 395417000
B74: 京都大学 | C74: 3217 | D74: 886135000
B75: 東京工業大学 | C75: 2019 | D75: 42504000
B76: 九州大学 | C76: 1733 | D76: 142436000
B77: 名古屋大学 | C77: 1496 | D77: 72276000
B78: 北海道大学 | C78: 1219 | D78: 115470000
B79: 信州大学 | C79: 1047 | D79: 32411000
B80: 広島大学 | C80: 1019 | D80: 44418000
B81: 筑波大学 | C81: 892 | D81: 27835000
B82: 慶應義塾大学 | C82: 856 | D82: 58283000
B83: 千葉大学 | C83: 851 | D83: 9761000
B84: 岡山大学 | C84: 739 | D84: 21802000
B85: 山口大学 | C85: 711 | D85: 26145000
B86: 東京農工大学 | C86: 667 | D86: 10063000
B87: 名古屋工業大学 | C87: 660 | D87: 23496000
B88: 東京理科大学 | C88: 629 | D88: 11695000
B89: 九州工業大学 | C89: 607 | D89: 5845000
B90: 神戸大学 | C90: 581 | D90: 104449000
B91: 熊本大学 | C91: 543 | D91: 19748000
B92: 群馬大学 | C92: 536 | D92: 3598000
B93: 静岡大学 | C93: 523 | D93: 2662000
B94: 横浜国立大学 | C94: 509 | D94: 4920000
B95: 大阪公立大学（大阪府立大学） | C95: 502 | D95: 8255000
B96: 近畿大学 | C96: 488 | D96: 26794000
B97: 鹿児島大学 | C97: 458 | D97: 8269000
B98: 長岡技術科学大学 | C98: 440 | D98: 2979000
B99: 奈良先端科学技術大学院大学 | C99: 435 | D99: 3758000
B100: 東京都立大学 | C100: 435 | D100: 1170000
B101: 山梨大学 | C101: 426 | D101: 28912000
B102: 大阪公立大学（大阪市立大学） | C102: 423 | D102: 3124000
B103: 三重大学 | C103: 422 | D103: 20215000
B104: 東京医科歯科大学 | C104: 418 | D104: 74575000
B105: 電気通信大学 | C105: 406 | D105: 2740000
B106: 豊橋技術科学大学 | C106: 395 | D106: 7491000
B107: 関西大学 | C107: 392 | D107: 5519000
B108: 徳島大学 | C108: 385 | D108: 26218000
B109: 金沢大学 | C109: 360 | D109: 14331000
B110: 北里大学 | C110: 350 | D110: 47578000
B111: 香川大学 | C111: 343 | D111: 13987000
B112: 鳥取大学 | C112: 341 | D112: 5178000
B113: 新潟大学 | C113: 323 | D113: 11052000
B114: 富山大学 | C114: 319 | D114: 21312000
B115: 埼玉大学 | C115: 314 | D115: 2129000
B116: 同志社大学 | C116: 310 | D116: 26699000
B117: 日本大学 | C117: 306 | D117: 50528000
B118: 高知大学 | C118: 296 | D118: 22439000
B119: 立命館大学 | C119: 283 | D119: 5079000
B120: 自然科学研究機構 | C120: 278 | D120: 23513000
B121: 弘前大学 | C121: 261 | D121: 6272000
B122: 岐阜大学 | C122: 260 | D122: 9851000
B123: 宮崎大学 | C123: 257 | D123: 2044000
B124: 神奈川大学 | C124: 254 | D124: 4373000
B125: 兵庫県立大学 | C125: 248 | D125: 37000
B126: 秋田大学 | C126: 242 | D126: 245000
B127: 佐賀大学 | C127: 239 | D127: 6705000
B128: 福井大学 | C128: 239 | D128: 3402000
B129: 東海大学 | C129: 238 | D129: 771000
B130: 山形大学 | C130: 237 | D130: 3491000
B131: 横浜市立大学 | C131: 234 | D131: 25613000
B132: 札幌医科大学 | C132: 229 | D132: 28223000
B133: 京都工芸繊維大学 | C133: 224 | D133: 2740000
B134: 名城大学 | C134: 224 | D134: 475000
B135: 千葉工業大学 | C135: 210 | D135: 22544000
B136: 情報・システム研究機構 | C136: 208 | D136: 5139000
B137: 長崎大学 | C137: 201 | D137: 14882000
B138: 東京海洋大学 | C138: 194 | D138: 2761000
B139: 愛媛大学 | C139: 188 | D139: 18823000
B140: 東京女子医科大学 | C140: 188 | D140: 2124000
B141: 岩手大学 | C141: 188 | D141: 1268000
B142: 北陸先端科学技術大学院大学 | C142: 182 | D142: 7446000
B143: 福岡大学 | C143: 178 | D143: 1047000
B144: 沖縄科学技術大学院大学 | C144: 173 | D144: 1100000
B145: 高知工科大学 | C145: 169 | D145: 45000
B146: 宇都宮大学 | C146: 168 | D146: 7200000
B147: 茨城大学 | C147: 167 | D147: 1237000
B148: 金沢工業大学 | C148: 151 | D148: 3018000
B149: 中央大学 | C149: 151 | D149: 2106000
B150: 大分大学 | C150: 148 | D150: 1748000
B151: 京都府立医科大学 | C151: 147 | D151: 11367000
B152: 関西学院大学 | C152: 146 | D152: 16773000
B153: 滋賀医科大学 | C153: 141 | D153: 5086000
B154: 自治医科大学 | C154: 140 | D154: 10251000
B155: 島根大学 | C155: 140 | D155: 1478000
B156: 上智大学 | C156: 140 | D156: 200000
B157: 浜松医科大学 | C157: 135 | D157: 3613000
B158: 高エネルギー加速器研究機構 | C158: 135 | D158: 712000
B159: 順天堂大学 | C159: 132 | D159: 5278000
B160: 中部大学 | C160: 122 | D160: 1378000
B161: 名古屋市立大学 | C161: 114 | D161: 38831000
B162: 久留米大学 | C162: 112 | D162: 902000
B163: 豊田工業大学 | C163: 109 | D163: 0
B164: 芝浦工業大学 | C164: 103 | D164: 1238000
B165: 東京電機大学 | C165: 102 | D165: 3875000
B166: 埼玉医科大学 | C166: 99 | D166: 8849000
B167: 関東学院大学 | C167: 97 | D167: 9990000
B168: 琉球大学 | C168: 92 | D168: 1146000
B169: 明治大学 | C169: 91 | D169: 4260000
B170: 北見工業大学 | C170: 91 | D170: 753000
B171: 和歌山大学 | C171: 88 | D171: 3592000
B172: 富山県立大学 | C172: 86 | D172: 1957000
B173: 静岡県立大学 | C173: 84 | D173: 1231000
B174: 神奈川工科大学 | C174: 83 | D174: 289000
B175: 藤田医科大学 | C175: 80 | D175: 0
B176: 福岡工業大学 | C176: 69 | D176: 0
B177: 早稲田大学 | C177: 66 | D177: 19945000
B178: 福島大学 | C178: 65 | D178: 217000
B179: 帝京大学 | C179: 62 | D179: 2716000
B180: 岡山理科大学 | C180: 59 | D180: 1200000
B181: 日本医科大学 | C181: 58 | D181: 7708000
B182: 奈良県立医科大学 | C182: 58 | D182: 1283000
B183: 旭川医科大学 | C183: 58 | D183: 700000
B184: 帯広畜産大学 | C184: 57 | D184: 524000
B185: 兵庫医科大学 | C185: 56 | D185: 5620000
B186: 室蘭工業大学 | C186: 55 | D186: 1000
B187: 秋田県立大学 | C187: 54 | D187: 2624000
B188: 東洋大学 | C188: 53 | D188: 2185000
B189: 立教大学 | C189: 53 | D189: 8000
B190: 聖マリアンナ医科大学 | C190: 50 | D190: 109000
B191: 法政大学 | C191: 49 | D191: 874000
B192: お茶の水女子大学 | C192: 49 | D192: 5000
B193: 会津大学 | C193: 48 | D193: 132000
B194: 玉川大学 | C194: 48 | D194: 125000
B195: 関西医科大学 | C195: 47 | D195: 3568000
B196: 甲南大学 | C196: 45 | D196: 1103000
B197: 大阪工業大学 | C197: 44 | D197: 0
B198: 龍谷大学 | C198: 43 | D198: 168000
B199: 広島市立大学 | C199: 43 | D199: 0
B200: 産業医科大学 | C200: 42 | D200: 1006000
B201: 工学院大学 | C201: 41 | D201: 1396000
B202: 北九州市立大学 | C202: 37 | D202: 5488000
B203: 東京農業大学 | C203: 37 | D203: 473000
B204: 鈴鹿工業高等専門学校 | C204: 34 | D204: 74000
B205: 青山学院大学 | C205: 34 | D205: 0
B206: 昭和大学 | C206: 31 | D206: 10595000
B207: 香川高等専門学校 | C207: 31 | D207: 1599000
B208: 麻布大学 | C208: 31 | D208: 797000
B209: 県立広島大学 | C209: 31 | D209: 11000
... 904 more rows

Sheet 大阪大学 (hidden)
A1: 国立 | C1: 大阪大学（大阪府） | X1: 大学全体の経営理念における産学官連携活動の取組方針 | CB1: 80 | CC1: 81 | CD1: 82 | CE1: 83 | CF1: 84 | CG1: 85 | CH1: 86 | CI1: 87 | CJ1: 88 | CK1: 89 | CL1: 90 | CM1: 91 | CN1: 92 | CO1: 93 | CP1: 94 | CQ1: 95 | CR1: 96 | CS1: 97 | CT1: 98 | CU1: 99 | CV1: 100 | CW1: 101 | CX1: 102 | CY1: 103 | CZ1: 104 | DA1: 105 | DB1: 106 | DC1: 107 | DD1: 108 | DE1: 109 | DF1: 110 | DG1: 111 | DH1: 112 | DI1: 113 | DJ1: 114 | DK1: 115 | DL1: 116 | DM1: 117 | DN1: 118 | DO1: 119 | DP1: 120 | DQ1: 121 | DR1: 122 | DS1: 123 | DT1: 124 | DU1: 125 | DV1: 126 | DW1: 127 | DX1: 128 | DY1: 129
X2: 大阪大学は、研究成果の社会実装を通じて初めて明らかになる新たな課題を分析し、それらを研究の場に戻し、より革新的な新価値創造に結び付ける「研究開発エコシステム（OUエコシステム）」の概念を生み出し、これを活動の基本方針としている。社会との共創を通じてオープンイノベーションを推進し、「生きがいを育む社会」の創造を目指す。
BB3: ＵＲＡ | BO3: URA当たり研究者数 | CA3: 戦略的産学連携経費
BC4: 実務担当者数 | BI4: 113 | BN4: 名 | BO4: =IF(OR(K25="",BI4=""),"",(IFERROR(K25/BI4,""))) -> 52.79646018 | BX4: 名 | CB4: 戦略的産学連携経費の設定 | CP4: 有 | CT4: 無 | CZ4: ある | DA4: インキュベーション施設
A5: 1 | B5: 2 | C5: 3 | D5: 4 | E5: 5 | F5: 6 | G5: 7 | H5: 8 | I5: 9 | J5: 10 | K5: 11 | L5: 12 | M5: 13 | N5: 14 | O5: 15 | P5: 16 | Q5: 17 | R5: 18 | S5: 19 | T5: 20 | U5: 21 | V5: 22 | W5: 23 | X5: 24 | Y5: 25 | Z5: 26 | AA5: 27 | AB5: 28 | AC5: 29 | AD5: 30 | AE5: 31 | AF5: 32 | AG5: 33 | AH5: 34 | AI5: 35 | AJ5: 36 | AK5: 37 | AL5: 38 | AM5: 39 | AN5: 40 | AO5: 41 | AP5: 42 | AQ5: 43 | AR5: 44 | AS5: 45 | AT5: 46 | AU5: 47 | AV5: 48 | AW5: 49 | AX5: 50 | AY5: 51 | AZ5: 52 | BA5: 53 | BB5: 54 | BC5: 55 | BD5: 56 | BE5: 57 | BF5: 58 | BG5: 59 | BH5: 60 | BI5: 61 | BJ5: 62 | BK5: 63 | BL5: 64 | BM5: 65 | BN5: 66 | BO5: 67 | BP5: 68 | BQ5: 69 | BR5: 70 | BS5: 71 | BT5: 72 | BU5: 73 | BV5: 74 | BW5: 75 | BX5: 76 | BY5: 77 | BZ5: 78 | CA5: 79 | CB5: 戦略的産学連携経費の費目 | CP5: 間接経費 | CZ5: ある | DA5: 相談窓口
A6: 基 礎 情 報 | BB6: 各種規程類の整備状況 | CB6: 戦略的産学連携経費の直接経費に対する割合 | CP6: 0.3 | CZ6: ある | DA6: 設立ポリシー | DI6: ◎ | DJ6: 産学連携ポリシー
BB7: 産学連携ポリシー | BM7: 職務発明規程（教職員のみ対象） | CZ7: ある | DA7: 支援ファンド | DI7: ◎ | DJ7: 知的財産ポリシー
B8: 大学の得意分野とその具体例 | BB8: 知的財産ポリシー | BM8: 職務発明規程（教職員、学生対象） | CA8: 人件費の企業負担 | DI8: ◎ | DJ8: 共同研究取扱規程
B9: ・共同研究講座（部門）・協働研究所の設置による大型共同研究の実施（2021年度末時点で共同研究講座（部門）80件、協働研究所23件を設置） ・大阪大学方式の人材育成を含む共創型の多面的な組織間連携や基礎研究段階からの包括的産学共創（2021年度末時点で4件） | AA9: 科研費 （千円） | AL9: その他政府系資金 (千円) | AS9: その他団体からの資金 (千円) | BB9: 共同研究取扱規程 | BM9: 発明補償関係規程（教職員のみ対象） | CB9: 教員人件費の企業負担に関する規程や制度 | CP9: 有 | CT9: 無 | DI9: ◎ | DJ9: 受託研究取扱規程
BB10: 受託研究取扱規程 | BM10: 発明補償関係規程（教職員、学生対象） | CB10: 教員人件費の企業負担の費目 | DI10: ◎ | DJ10: 研究成果有体物取扱規程
AA11: 10981633 | AL11: 535086 | AS11: 59746 | BB11: 研究成果有体物取扱規程 | BM11: 守秘義務に係る規程（教職員のみ対象） | CB11: 学生人件費の企業負担に関する規程や制度 | CP11: 有 | CT11: 無 | DI11: ◎ | DJ11: 営業秘密管理に関する規程
BB12: 営業秘密管理に関する規程 | BM12: 守秘義務に係る規程（教職員、学生対象） | CB12: 学生人件費の企業負担の費目 | CP12: 直接経費 | DI12: ◎ | DJ12: 株式の取扱等規程、ポリシー
AA13: 間接経費割合 | AN13: 株式の保有 | AT13: 新株予約権の保有 | BB13: 株式の取扱等規程、ポリシー | DA13: ○ | DB13: 株式 | DI13: × | DJ13: 職務発明規程（教職員のみ対象）
AA14: 0.3 | AN14: 有 | AQ14: 無 | AT14: 有 | AW14: 無 | BD14: ※各種規定類を整備している場合は、赤色で表示されます。 | CA14: 特別試験研究費税額控除制度 | DA14: ○ | DB14: 新株予約権 | DI14: ◎ | DJ14: 職務発明規程（教職員、学生対象）
B15: 産学官連携活動において今後重点化したい事項 | CB15: 特別試験研究費税額控除制度の活用 | CP15: 有 | CT15: 無 | DI15: × | DJ15: 発明補償関係規程（教職員のみ対象）
B16: ・社会課題の解決、社会創造を目指した産学共創の推進 ・国際市場への展開を視野に入れた大型共同研究の拡充 ・個々の技術シーズに応じた知財戦略に基づく技術移転の促進 ・大学発ベンチャーの創出、育成 | AA16: ■共同研究 | AG16: 2020年度 | AO16: 2021年度 | AW16: 順位※ | BB16: クロスアポイントメントの実績（人） | BK16: 大学等 | BN16: 公的機関 | BQ16: 民間企業 | BU16: その他機関 | DI16: ◎ | DJ16: 発明補償関係規程（教職員、学生対象）
AG17: 受入額（千円） | AL17: 件数 | AO17: 受入額（千円） | AT17: 件数 | BH17: 受入 | BK17: 89 | BN17: 0 | BQ17: 9 | BU17: 26 | DB17: 順位 | DI17: × | DJ17: 守秘義務に係る規程（教職員のみ対象）
AA18: 全体 | AG18: 9544783 | AL18: 1490 | AO18: 9294942 | AT18: 1430 | AW18: =IF(DB18<50,DB18,"") -> 2 | AY18: 位 | BH18: 派遣 | BK18: 15 | BN18: 0 | BQ18: 3 | BU18: 18 | DB18: 2 | DI18: ◎ | DJ18: 守秘義務に係る規程（教職員、学生対象）
AB19: 民間企業 のみ | AG19: 9014489 | AL19: 1382 | AO19: 8777611 | AT19: 1308 | AW19: =IF(DB19<50,DB19,"") -> 2 | AY19: 位 | DB19: 2
AC20: 大企業 | AG20: 6177432 | AL20: 1035 | AO20: 7252645 | AT20: 1006 | AW20: =IF(DB20<50,DB20,"") -> 2 | AY20: 位 | DB20: 2 | DI20: ある | DJ20: 戦略的産学連携経費の設定
AC21: 中小企業 | AG21: 1602864 | AL21: 311 | AO21: 1524966 | AT21: 302 | AW21: =IF(DB21<50,DB21,"") -> 2 | AY21: 位 | BB21: ■組織的産学連携活動の取組事例 | DB21: 2 | DI21: ない | DJ21: 教員人件費の企業負担に関する規程や制度
AL22: ※順位は2021年度の受入額を比較したもの | DI22: ある | DJ22: 学生人件費の企業負担に関する規程や制度
B23: 産学官連携本部等組織名 | K23: 共創機構 | DB23: 0 | DC23: 341 | DI23: ある | DJ23: 特別試験研究費税額控除制度の活用
B24: 産学官連携本部等URL | K24: https://www.ccb.osaka-u.ac.jp | DB24: ～100万 | DC24: 221
B25: 研究者数 | K25: 5966 | O25: 名 | DB25: ～300万 | DC25: 395
DB26: ～500万 | DC26: 122
DB27: ～1000万 | DC27: 84
DB28: ～5000万 | DC28: 118
DB29: ～1億 | DC29: 17 | DJ29: 共同研究等の企画・提案
B30: 産学連携担当部署 | O30: 実務者当たり研究者数 | DB30: 1億以上 | DC30: 10 | DJ30: 契約書での成果目標、達成時の明記
C31: 実務担当者数 | I31: 102 | N31: 名 | O31: =IF(OR(K25="",I31=""),"",IFERROR($K$25/I31,"")) -> 58.49019608 | X31: 名 | DJ31: 共同研究契約の締結/判断（契約権限の集中）
C32: 専門家の配置 | I32: 弁護士 | L32: 弁理士 | O32: 税理士 | R32: 公認会計士 | V32: その他 | DJ32: 共同研究の進捗管理とフィードバック
I33: ※専門家を配置している場合は、赤色で表示されます。 | DJ33: 企業ニーズに適応した技術移転・事業化提案
AA34: ■受託研究 | AG34: 2020年度 | AO34: 2021年度 | AW34: 順位※ | DJ34: 共同研究等の企画・提案
AG35: 受入額（千円） | AL35: 件数（件） | AO35: 受入額（千円） | AT35: 件数（件） | DB35: 順位 | DJ35: 契約書での成果目標、達成時の明記
AA36: 全体 | AG36: 17959344 | AL36: 1106 | AO36: 21335818 | AT36: 1149 | AW36: =IF(DB36<50,DB36,"") -> 3 | AY36: 位 | DB36: 3 | DJ36: 共同研究契約の締結/判断（契約権限の集中）
AB37: 民間企業 のみ | AG37: 541229 | AL37: 169 | AO37: 371200 | AT37: 157 | AW37: =IF(DB37<50,DB37,"") -> 6 | AY37: 位 | DB37: 6 | DJ37: 共同研究の進捗管理とフィードバック
C38: 産学連携本部が関与した共同研究 | P38: 14 | T38: 件 | AC38: 大企業 | AG38: 451192 | AL38: 109 | AO38: 297851 | AT38: 117 | AW38: =IF(DB38<50,DB38,"") -> 6 | AY38: 位 | DB38: 6 | DJ38: 企業ニーズに適応した技術移転・事業化提案
D39: 内、マッチングを行い、契約締結した件数 | P39: 2 | T39: 件 | AC39: 中小企業 | AG39: 85495 | AL39: 46 | AO39: 73349 | AT39: 40 | AW39: =IF(DB39<50,DB39,"") -> 13 | AY39: 位 | BB39: ■産学連携活動の主な実用化事例 | DB39: 13 | DJ39: 共同研究等の企画・提案
I40: ※1,000万円以上の共同研究 | AL40: ※順位は2021年度の受入額を比較したもの | DB40: 弁護士 | DG40: 0 | DH40: 62 | DJ40: 契約書での成果目標、達成時の明記
DB41: 弁理士 | DG41: ～100万 | DH41: 40 | DJ41: 共同研究契約の締結/判断（契約権限の集中）
C42: 組織対組織による包括連携契約の締結数 | P42: 4 | T42: 件 | DB42: 税理士 | DG42: ～300万 | DH42: 22 | DJ42: 共同研究の進捗管理とフィードバック
D43: 内、1,000万円以上の実績がある相手方数 | P43: 3 | T43: 件 | DB43: 公認会計士 | DG43: ～500万 | DH43: 10 | DJ43: 企業ニーズに適応した技術移転・事業化提案
DB44: その他 | DG44: ～1000万 | DH44: 12
C45: 寄附講座・寄附研究部門の受入件数 | P45: 60 | V45: 件 | DG45: ～5000万 | DH45: 11
C46: 寄附講座・寄附研究部門の受入金額（千円） | P46: 1650623 | DG46: ～1億 | DH46: 0
C47: 共同研究講座・共同研究部門の受入件数 | P47: 107 | V47: 件 | DG47: 1億以上 | DH47: 0
C48: 共同研究講座・共同研究部門の受入金額（千円） | P48: 4352401
C52: 職務発明の帰属 | I52: 大学 | M52: 発明者 | Q52: 未設定 | CZ52: 大学 | DA52: 職務発明
AD53: 特許権実施等件数 | AL53: 1359 | AQ53: 件 | AS53: 実施等件数 あたり | DA53: 不実施
M54: 研究者あたり | AD54: 特許権実施等収入（千円） | AL54: 414526 | AS54: =IF(OR(AL53="",AL54=""),"",IFERROR(AL54/AL53,"")) -> 305.0228109 | CZ54: 414526000 | DA54: 特許等収入
C55: 特許出願件数（件） | I55: 710 | M55: =IF(OR(K25="",I55=""),"",IFERROR(I55/K25,"")) -> 0.1190077104
C56: 特許保有件数（件） | I56: 3253 | M56: =IF(OR(K25="",I56=""),"",IFERROR(I56/K25,"")) -> 0.5452564532
C61: 大学発ベンチャー数 | J61: 182 | O61: 社
C62: Exit件数（IPO） | J62: 7 | O62: 社 | P62: Exit件数（M&A） | W62: 2 | Z62: 社
C63: 相談窓口 | K63: 支援ファンド | S63: インキュベーション施設
C64: 有 | G64: 無 | K64: 有 | O64: 無 | S64: 有 | W64: 無
C65: 知的財産戦略方針 | K65: 支援総額（千円） | S65: 面積 | W65: 8075 | Z65: 平方メートル
C66: 有 | G66: 無 | K66: 24260000 | S66: 契約企業数 | W66: 46 | Z66: 社
A69: 1 | B69: 2 | C69: 3 | D69: 4 | E69: 5 | F69: 6 | G69: 7 | H69: 8 | I69: 9 | J69: 10 | K69: 11 | L69: 12 | M69: 13 | N69: 14 | O69: 15 | P69: 16 | Q69: 17 | R69: 18 | S69: 19 | T69: 20 | U69: 21 | V69: 22 | W69: 23 | X69: 24 | Y69: 25 | Z69: 26 | AA69: 27 | AB69: 28 | AC69: 29 | AD69: 30 | AE69: 31 | AF69: 32 | AG69: 33 | AH69: 34 | AI69: 35 | AJ69: 36 | AK69: 37 | AL69: 38 | AM69: 39 | AN69: 40 | AO69: 41 | AP69: 42 | AQ69: 43 | AR69: 44 | AS69: 45 | AT69: 46 | AU69: 47 | AV69: 48 | AW69: 49 | AX69: 50 | AY69: 51 | AZ69: 52 | BA69: 53 | BB69: 54 | BC69: 55 | BD69: 56 | BE69: 57 | BF69: 58 | BG69: 59 | BH69: 60 | BI69: 61 | BJ69: 62 | BK69: 63 | BL69: 64 | BM69: 65 | BN69: 66 | BO69: 67 | BP69: 68 | BQ69: 69 | BR69: 70 | BS69: 71 | BT69: 72 | BU69: 73 | BV69: 74 | BW69: 75 | BX69: 76 | BY69: 77 | BZ69: 78 | CA69: 79 | CB69: 80 | CC69: 81 | CD69: 82 | CE69: 83 | CF69: 84 | CG69: 85 | CH69: 86 | CI69: 87 | CJ69: 88 | CK69: 89 | CL69: 90 | CM69: 91 | CN69: 92 | CO69: 93 | CP69: 94 | CQ69: 95 | CR69: 96 | CS69: 97 | CT69: 98 | CU69: 99 | CV69: 100 | CW69: 101 | CX69: 102 | CY69: 103 | CZ69: 104 | DA69: 105 | DB69: 106 | DC69: 107 | DD69: 108 | DE69: 109 | DF69: 110 | DG69: 111 | DH69: 112 | DI69: 113 | DJ69: 114 | DK69: 115 | DL69: 116 | DM69: 117 | DN69: 118 | DO69: 119 | DP69: 120 | DQ69: 121 | DR69: 122 | DS69: 123 | DT69: 124 | DU69: 125
D70: 特許権収入
B71: 東京大学 | C71: 4744 | D71: 557703000
B72: 東北大学 | C72: 3726 | D72: 275164000
B73: 大阪大学 | C73: 3253 | D73: 395417000
B74: 京都大学 | C74: 3217 | D74: 886135000
B75: 東京工業大学 | C75: 2019 | D75: 42504000
B76: 九州大学 | C76: 1733 | D76: 142436000
B77: 名古屋大学 | C77: 1496 | D77: 72276000
B78: 北海道大学 | C78: 1219 | D78: 115470000
B79: 信州大学 | C79: 1047 | D79: 32411000
B80: 広島大学 | C80: 1019 | D80: 44418000
B81: 筑波大学 | C81: 892 | D81: 27835000
B82: 慶應義塾大学 | C82: 856 | D82: 58283000
B83: 千葉大学 | C83: 851 | D83: 9761000
B84: 岡山大学 | C84: 739 | D84: 21802000
B85: 山口大学 | C85: 711 | D85: 26145000
B86: 東京農工大学 | C86: 667 | D86: 10063000
B87: 名古屋工業大学 | C87: 660 | D87: 23496000
B88: 東京理科大学 | C88: 629 | D88: 11695000
B89: 九州工業大学 | C89: 607 | D89: 5845000
B90: 神戸大学 | C90: 581 | D90: 104449000
B91: 熊本大学 | C91: 543 | D91: 19748000
B92: 群馬大学 | C92: 536 | D92: 3598000
B93: 静岡大学 | C93: 523 | D93: 2662000
B94: 横浜国立大学 | C94: 509 | D94: 4920000
B95: 大阪公立大学（大阪府立大学） | C95: 502 | D95: 8255000
B96: 近畿大学 | C96: 488 | D96: 26794000
B97: 鹿児島大学 | C97: 458 | D97: 8269000
B98: 長岡技術科学大学 | C98: 440 | D98: 2979000
B99: 奈良先端科学技術大学院大学 | C99: 435 | D99: 3758000
B100: 東京都立大学 | C100: 435 | D100: 1170000
B101: 山梨大学 | C101: 426 | D101: 28912000
B102: 大阪公立大学（大阪市立大学） | C102: 423 | D102: 3124000
B103: 三重大学 | C103: 422 | D103: 20215000
B104: 東京医科歯科大学 | C104: 418 | D104: 74575000
B105: 電気通信大学 | C105: 406 | D105: 2740000
B106: 豊橋技術科学大学 | C106: 395 | D106: 7491000
B107: 関西大学 | C107: 392 | D107: 5519000
B108: 徳島大学 | C108: 385 | D108: 26218000
B109: 金沢大学 | C109: 360 | D109: 14331000
B110: 北里大学 | C110: 350 | D110: 47578000
B111: 香川大学 | C111: 343 | D111: 13987000
B112: 鳥取大学 | C112: 341 | D112: 5178000
B113: 新潟大学 | C113: 323 | D113: 11052000
B114: 富山大学 | C114: 319 | D114: 21312000
B115: 埼玉大学 | C115: 314 | D115: 2129000
B116: 同志社大学 | C116: 310 | D116: 26699000
B117: 日本大学 | C117: 306 | D117: 50528000
B118: 高知大学 | C118: 296 | D118: 22439000
B119: 立命館大学 | C119: 283 | D119: 5079000
B120: 自然科学研究機構 | C120: 278 | D120: 23513000
B121: 弘前大学 | C121: 261 | D121: 6272000
B122: 岐阜大学 | C122: 260 | D122: 9851000
B123: 宮崎大学 | C123: 257 | D123: 2044000
B124: 神奈川大学 | C124: 254 | D124: 4373000
B125: 兵庫県立大学 | C125: 248 | D125: 37000
B126: 秋田大学 | C126: 242 | D126: 245000
B127: 佐賀大学 | C127: 239 | D127: 6705000
B128: 福井大学 | C128: 239 | D128: 3402000
B129: 東海大学 | C129: 238 | D129: 771000
B130: 山形大学 | C130: 237 | D130: 3491000
B131: 横浜市立大学 | C131: 234 | D131: 25613000
B132: 札幌医科大学 | C132: 229 | D132: 28223000
B133: 京都工芸繊維大学 | C133: 224 | D133: 2740000
B134: 名城大学 | C134: 224 | D134: 475000
B135: 千葉工業大学 | C135: 210 | D135: 22544000
B136: 情報・システム研究機構 | C136: 208 | D136: 5139000
B137: 長崎大学 | C137: 201 | D137: 14882000
B138: 東京海洋大学 | C138: 194 | D138: 2761000
B139: 愛媛大学 | C139: 188 | D139: 18823000
B140: 東京女子医科大学 | C140: 188 | D140: 2124000
B141: 岩手大学 | C141: 188 | D141: 1268000
B142: 北陸先端科学技術大学院大学 | C142: 182 | D142: 7446000
B143: 福岡大学 | C143: 178 | D143: 1047000
B144: 沖縄科学技術大学院大学 | C144: 173 | D144: 1100000
B145: 高知工科大学 | C145: 169 | D145: 45000
B146: 宇都宮大学 | C146: 168 | D146: 7200000
B147: 茨城大学 | C147: 167 | D147: 1237000
B148: 金沢工業大学 | C148: 151 | D148: 3018000
B149: 中央大学 | C149: 151 | D149: 2106000
B150: 大分大学 | C150: 148 | D150: 1748000
B151: 京都府立医科大学 | C151: 147 | D151: 11367000
B152: 関西学院大学 | C152: 146 | D152: 16773000
B153: 滋賀医科大学 | C153: 141 | D153: 5086000
B154: 自治医科大学 | C154: 140 | D154: 10251000
B155: 島根大学 | C155: 140 | D155: 1478000
B156: 上智大学 | C156: 140 | D156: 200000
B157: 浜松医科大学 | C157: 135 | D157: 3613000
B158: 高エネルギー加速器研究機構 | C158: 135 | D158: 712000
B159: 順天堂大学 | C159: 132 | D159: 5278000
B160: 中部大学 | C160: 122 | D160: 1378000
B161: 名古屋市立大学 | C161: 114 | D161: 38831000
B162: 久留米大学 | C162: 112 | D162: 902000
B163: 豊田工業大学 | C163: 109 | D163: 0
B164: 芝浦工業大学 | C164: 103 | D164: 1238000
B165: 東京電機大学 | C165: 102 | D165: 3875000
B166: 埼玉医科大学 | C166: 99 | D166: 8849000
B167: 関東学院大学 | C167: 97 | D167: 9990000
B168: 琉球大学 | C168: 92 | D168: 1146000
B169: 明治大学 | C169: 91 | D169: 4260000
B170: 北見工業大学 | C170: 91 | D170: 753000
B171: 和歌山大学 | C171: 88 | D171: 3592000
B172: 富山県立大学 | C172: 86 | D172: 1957000
B173: 静岡県立大学 | C173: 84 | D173: 1231000
B174: 神奈川工科大学 | C174: 83 | D174: 289000
B175: 藤田医科大学 | C175: 80 | D175: 0
B176: 福岡工業大学 | C176: 69 | D176: 0
B177: 早稲田大学 | C177: 66 | D177: 19945000
B178: 福島大学 | C178: 65 | D178: 217000
B179: 帝京大学 | C179: 62 | D179: 2716000
B180: 岡山理科大学 | C180: 59 | D180: 1200000
B181: 日本医科大学 | C181: 58 | D181: 7708000
B182: 奈良県立医科大学 | C182: 58 | D182: 1283000
B183: 旭川医科大学 | C183: 58 | D183: 700000
B184: 帯広畜産大学 | C184: 57 | D184: 524000
B185: 兵庫医科大学 | C185: 56 | D185: 5620000
B186: 室蘭工業大学 | C186: 55 | D186: 1000
B187: 秋田県立大学 | C187: 54 | D187: 2624000
B188: 東洋大学 | C188: 53 | D188: 2185000
B189: 立教大学 | C189: 53 | D189: 8000
B190: 聖マリアンナ医科大学 | C190: 50 | D190: 109000
B191: 法政大学 | C191: 49 | D191: 874000
B192: お茶の水女子大学 | C192: 49 | D192: 5000
B193: 会津大学 | C193: 48 | D193: 132000
B194: 玉川大学 | C194: 48 | D194: 125000
B195: 関西医科大学 | C195: 47 | D195: 3568000
B196: 甲南大学 | C196: 45 | D196: 1103000
B197: 大阪工業大学 | C197: 44 | D197: 0
B198: 龍谷大学 | C198: 43 | D198: 168000
B199: 広島市立大学 | C199: 43 | D199: 0
B200: 産業医科大学 | C200: 42 | D200: 1006000
B201: 工学院大学 | C201: 41 | D201: 1396000
B202: 北九州市立大学 | C202: 37 | D202: 5488000
B203: 東京農業大学 | C203: 37 | D203: 473000
B204: 鈴鹿工業高等専門学校 | C204: 34 | D204: 74000
B205: 青山学院大学 | C205: 34 | D205: 0
B206: 昭和大学 | C206: 31 | D206: 10595000
B207: 香川高等専門学校 | C207: 31 | D207: 1599000
B208: 麻布大学 | C208: 31 | D208: 797000
B209: 県立広島大学 | C209: 31 | D209: 11000
... 904 more rows

Sheet 岡山大学 (hidden)
A1: 国立 | C1: 岡山大学（岡山県） | X1: 大学全体の経営理念における産学官連携活動の取組方針 | CB1: 80 | CC1: 81 | CD1: 82 | CE1: 83 | CF1: 84 | CG1: 85 | CH1: 86 | CI1: 87 | CJ1: 88 | CK1: 89 | CL1: 90 | CM1: 91 | CN1: 92 | CO1: 93 | CP1: 94 | CQ1: 95 | CR1: 96 | CS1: 97 | CT1: 98 | CU1: 99 | CV1: 100 | CW1: 101 | CX1: 102 | CY1: 103 | CZ1: 104 | DA1: 105 | DB1: 106 | DC1: 107 | DD1: 108 | DE1: 109 | DF1: 110 | DG1: 111 | DH1: 112 | DI1: 113 | DJ1: 114 | DK1: 115 | DL1: 116 | DM1: 117 | DN1: 118 | DO1: 119 | DP1: 120 | DQ1: 121 | DR1: 122 | DS1: 123 | DT1: 124 | DU1: 125 | DV1: 126 | DW1: 127 | DX1: 128 | DY1: 129
X2: 岡山大学の目標（岡山大学HPに掲載）として、「社会が抱える課題を解決するため、総合大学の利点を活かし、大学の知や技術の成果を社会に還元すると同時に、積極的に社会との双方向的な連携を目指す」ことを掲げている。
BB3: ＵＲＡ | BO3: URA当たり研究者数 | CA3: 戦略的産学連携経費
BC4: 実務担当者数 | BI4: 22 | BN4: 名 | BO4: =IF(OR(K25="",BI4=""),"",(IFERROR(K25/BI4,""))) -> 82.81818182 | BX4: 名 | CB4: 戦略的産学連携経費の設定 | CP4: 有 | CT4: 無 | CZ4: ない | DA4: インキュベーション施設
A5: 1 | B5: 2 | C5: 3 | D5: 4 | E5: 5 | F5: 6 | G5: 7 | H5: 8 | I5: 9 | J5: 10 | K5: 11 | L5: 12 | M5: 13 | N5: 14 | O5: 15 | P5: 16 | Q5: 17 | R5: 18 | S5: 19 | T5: 20 | U5: 21 | V5: 22 | W5: 23 | X5: 24 | Y5: 25 | Z5: 26 | AA5: 27 | AB5: 28 | AC5: 29 | AD5: 30 | AE5: 31 | AF5: 32 | AG5: 33 | AH5: 34 | AI5: 35 | AJ5: 36 | AK5: 37 | AL5: 38 | AM5: 39 | AN5: 40 | AO5: 41 | AP5: 42 | AQ5: 43 | AR5: 44 | AS5: 45 | AT5: 46 | AU5: 47 | AV5: 48 | AW5: 49 | AX5: 50 | AY5: 51 | AZ5: 52 | BA5: 53 | BB5: 54 | BC5: 55 | BD5: 56 | BE5: 57 | BF5: 58 | BG5: 59 | BH5: 60 | BI5: 61 | BJ5: 62 | BK5: 63 | BL5: 64 | BM5: 65 | BN5: 66 | BO5: 67 | BP5: 68 | BQ5: 69 | BR5: 70 | BS5: 71 | BT5: 72 | BU5: 73 | BV5: 74 | BW5: 75 | BX5: 76 | BY5: 77 | BZ5: 78 | CA5: 79 | CB5: 戦略的産学連携経費の費目 | CP5: 間接経費 | CZ5: ある | DA5: 相談窓口
A6: 基 礎 情 報 | BB6: 各種規程類の整備状況 | CB6: 戦略的産学連携経費の直接経費に対する割合 | CP6: 割合は定めていない | CZ6: ある | DA6: 設立ポリシー | DI6: ◎ | DJ6: 産学連携ポリシー
BB7: 産学連携ポリシー | BM7: 職務発明規程（教職員のみ対象） | CZ7: ある | DA7: 支援ファンド | DI7: ◎ | DJ7: 知的財産ポリシー
B8: 大学の得意分野とその具体例 | BB8: 知的財産ポリシー | BM8: 職務発明規程（教職員、学生対象） | CA8: 人件費の企業負担 | DI8: ◎ | DJ8: 共同研究取扱規程
B9: SDGsに密接に関連する、医学系、農学系などの技術分野 | AA9: 科研費 （千円） | AL9: その他政府系資金 (千円) | AS9: その他団体からの資金 (千円) | BB9: 共同研究取扱規程 | BM9: 発明補償関係規程（教職員のみ対象） | CB9: 教員人件費の企業負担に関する規程や制度 | CP9: 有 | CT9: 無 | DI9: ◎ | DJ9: 受託研究取扱規程
BB10: 受託研究取扱規程 | BM10: 発明補償関係規程（教職員、学生対象） | CB10: 教員人件費の企業負担の費目 | CP10: その他 | DI10: ◎ | DJ10: 研究成果有体物取扱規程
AA11: 2585570 | AL11: 43954 | AS11: 30000 | BB11: 研究成果有体物取扱規程 | BM11: 守秘義務に係る規程（教職員のみ対象） | CB11: 学生人件費の企業負担に関する規程や制度 | CP11: 有 | CT11: 無 | DI11: ◎ | DJ11: 営業秘密管理に関する規程
BB12: 営業秘密管理に関する規程 | BM12: 守秘義務に係る規程（教職員、学生対象） | CB12: 学生人件費の企業負担の費目 | CP12: 直接経費 | DI12: ◎ | DJ12: 株式の取扱等規程、ポリシー
AA13: 間接経費割合 | AN13: 株式の保有 | AT13: 新株予約権の保有 | BB13: 株式の取扱等規程、ポリシー | DB13: 株式 | DI13: ◎ | DJ13: 職務発明規程（教職員のみ対象）
AA14: 0.3 | AN14: 有 | AQ14: 無 | AT14: 有 | AW14: 無 | BD14: ※各種規定類を整備している場合は、赤色で表示されます。 | CA14: 特別試験研究費税額控除制度 | DB14: 新株予約権 | DI14: × | DJ14: 職務発明規程（教職員、学生対象）
B15: 産学官連携活動において今後重点化したい事項 | CB15: 特別試験研究費税額控除制度の活用 | CP15: 有 | CT15: 無 | DI15: × | DJ15: 発明補償関係規程（教職員のみ対象）
B16: 地域の自治体・企業・金融・メディアなどの多様なステークホルダーとのエンゲージメントの深化・拡大による、産学官で取り組む地域循環共生圏の実現に資する新たな事業（ローカルSDGｓ）の展開 | AA16: ■共同研究 | AG16: 2020年度 | AO16: 2021年度 | AW16: 順位※ | BB16: クロスアポイントメントの実績（人） | BK16: 大学等 | BN16: 公的機関 | BQ16: 民間企業 | BU16: その他機関 | DI16: ◎ | DJ16: 発明補償関係規程（教職員、学生対象）
AG17: 受入額（千円） | AL17: 件数 | AO17: 受入額（千円） | AT17: 件数 | BH17: 受入 | BK17: 6 | BN17: 1 | BQ17: 4 | BU17: 2 | DB17: 順位 | DI17: × | DJ17: 守秘義務に係る規程（教職員のみ対象）
AA18: 全体 | AG18: 509608 | AL18: 349 | AO18: 642203 | AT18: 365 | AW18: =IF(DB18<50,DB18,"") -> 30 | AY18: 位 | BH18: 派遣 | BK18: 0 | BN18: 0 | BQ18: 0 | BU18: 0 | DB18: 30 | DI18: ◎ | DJ18: 守秘義務に係る規程（教職員、学生対象）
AB19: 民間企業 のみ | AG19: 413932 | AL19: 316 | AO19: 531008 | AT19: 331 | AW19: =IF(DB19<50,DB19,"") -> 30 | AY19: 位 | DB19: 30
AC20: 大企業 | AG20: 226041 | AL20: 167 | AO20: 339951 | AT20: 197 | AW20: =IF(DB20<50,DB20,"") -> 33 | AY20: 位 | DB20: 33 | DI20: ある | DJ20: 戦略的産学連携経費の設定
AC21: 中小企業 | AG21: 129397 | AL21: 105 | AO21: 191057 | AT21: 134 | AW21: =IF(DB21<50,DB21,"") -> 23 | AY21: 位 | BB21: ■組織的産学連携活動の取組事例 | DB21: 23 | DI21: ある | DJ21: 教員人件費の企業負担に関する規程や制度
AL22: ※順位は2021年度の受入額を比較したもの | DI22: ある | DJ22: 学生人件費の企業負担に関する規程や制度
B23: 産学官連携本部等組織名 | K23: 研究推進機構 | DB23: 0 | DC23: 103 | DI23: ある | DJ23: 特別試験研究費税額控除制度の活用
B24: 産学官連携本部等URL | K24: https://www.orsd.okayama-u.ac.jp/ | DB24: ～100万 | DC24: 82
B25: 研究者数 | K25: 1822 | O25: 名 | DB25: ～300万 | DC25: 101
DB26: ～500万 | DC26: 28
DB27: ～1000万 | DC27: 7
DB28: ～5000万 | DC28: 10
DB29: ～1億 | DC29: 0 | DJ29: 共同研究等の企画・提案
B30: 産学連携担当部署 | O30: 実務者当たり研究者数 | DB30: 1億以上 | DC30: 0 | DJ30: 契約書での成果目標、達成時の明記
C31: 実務担当者数 | I31: 26 | N31: 名 | O31: =IF(OR(K25="",I31=""),"",IFERROR($K$25/I31,"")) -> 70.07692308 | X31: 名 | DJ31: 共同研究契約の締結/判断（契約権限の集中）
C32: 専門家の配置 | I32: 弁護士 | L32: 弁理士 | O32: 税理士 | R32: 公認会計士 | V32: その他 | DJ32: 共同研究の進捗管理とフィードバック
I33: ※専門家を配置している場合は、赤色で表示されます。 | DJ33: 企業ニーズに適応した技術移転・事業化提案
AA34: ■受託研究 | AG34: 2020年度 | AO34: 2021年度 | AW34: 順位※ | DJ34: 共同研究等の企画・提案
AG35: 受入額（千円） | AL35: 件数（件） | AO35: 受入額（千円） | AT35: 件数（件） | DB35: 順位 | DJ35: 契約書での成果目標、達成時の明記
AA36: 全体 | AG36: 1694762 | AL36: 252 | AO36: 1878868 | AT36: 266 | AW36: =IF(DB36<50,DB36,"") -> 24 | AY36: 位 | DB36: 24 | DJ36: 共同研究契約の締結/判断（契約権限の集中）
AB37: 民間企業 のみ | AG37: 43706 | AL37: 37 | AO37: 104868 | AT37: 38 | AW37: =IF(DB37<50,DB37,"") -> 34 | AY37: 位 | DB37: 34 | DJ37: 共同研究の進捗管理とフィードバック
C38: 産学連携本部が関与した共同研究 | P38: 3 | T38: 件 | AC38: 大企業 | AG38: 8918 | AL38: 13 | AO38: 74815 | AT38: 23 | AW38: =IF(DB38<50,DB38,"") -> 36 | AY38: 位 | DB38: 36 | DJ38: 企業ニーズに適応した技術移転・事業化提案
D39: 内、マッチングを行い、契約締結した件数 | P39: 3 | T39: 件 | AC39: 中小企業 | AG39: 16139 | AL39: 14 | AO39: 30053 | AT39: 15 | AW39: =IF(DB39<50,DB39,"") -> 27 | AY39: 位 | BB39: ■産学連携活動の主な実用化事例 | DB39: 27 | DJ39: 共同研究等の企画・提案
I40: ※1,000万円以上の共同研究 | AL40: ※順位は2021年度の受入額を比較したもの | DB40: 弁護士 | DG40: 0 | DH40: 13 | DJ40: 契約書での成果目標、達成時の明記
DA41: ○ | DB41: 弁理士 | DG41: ～100万 | DH41: 8 | DJ41: 共同研究契約の締結/判断（契約権限の集中）
C42: 組織対組織による包括連携契約の締結数 | P42: 7 | T42: 件 | DB42: 税理士 | DG42: ～300万 | DH42: 12 | DJ42: 共同研究の進捗管理とフィードバック
D43: 内、1,000万円以上の実績がある相手方数 | P43: 0 | T43: 件 | DB43: 公認会計士 | DG43: ～500万 | DH43: 0 | DJ43: 企業ニーズに適応した技術移転・事業化提案
DA44: ○ | DB44: その他 | DG44: ～1000万 | DH44: 2
C45: 寄附講座・寄附研究部門の受入件数 | P45: 24 | V45: 件 | DG45: ～5000万 | DH45: 3
C46: 寄附講座・寄附研究部門の受入金額（千円） | P46: 635763 | DG46: ～1億 | DH46: 0
C47: 共同研究講座・共同研究部門の受入件数 | P47: 3 | V47: 件 | DG47: 1億以上 | DH47: 0
C48: 共同研究講座・共同研究部門の受入金額（千円） | P48: 36414
C52: 職務発明の帰属 | I52: 大学 | M52: 発明者 | Q52: 未設定 | CZ52: 大学 | DA52: 職務発明
AD53: 特許権実施等件数 | AL53: 237 | AQ53: 件 | AS53: 実施等件数 あたり | DA53: 不実施
M54: 研究者あたり | AD54: 特許権実施等収入（千円） | AL54: 21802 | AS54: =IF(OR(AL53="",AL54=""),"",IFERROR(AL54/AL53,"")) -> 91.99156118 | CZ54: 21802000 | DA54: 特許等収入
C55: 特許出願件数（件） | I55: 63 | M55: =IF(OR(K25="",I55=""),"",IFERROR(I55/K25,"")) -> 0.03457738749
C56: 特許保有件数（件） | I56: 739 | M56: =IF(OR(K25="",I56=""),"",IFERROR(I56/K25,"")) -> 0.4055982437
C61: 大学発ベンチャー数 | J61: 32 | O61: 社
C62: Exit件数（IPO） | J62: 0 | O62: 社 | P62: Exit件数（M&A） | W62: 0 | Z62: 社
C63: 相談窓口 | K63: 支援ファンド | S63: インキュベーション施設
C64: 有 | G64: 無 | K64: 有 | O64: 無 | S64: 有 | W64: 無
C65: 知的財産戦略方針 | K65: 支援総額（千円） | S65: 面積 | Z65: 平方メートル
C66: 有 | G66: 無 | S66: 契約企業数 | Z66: 社
A69: 1 | B69: 2 | C69: 3 | D69: 4 | E69: 5 | F69: 6 | G69: 7 | H69: 8 | I69: 9 | J69: 10 | K69: 11 | L69: 12 | M69: 13 | N69: 14 | O69: 15 | P69: 16 | Q69: 17 | R69: 18 | S69: 19 | T69: 20 | U69: 21 | V69: 22 | W69: 23 | X69: 24 | Y69: 25 | Z69: 26 | AA69: 27 | AB69: 28 | AC69: 29 | AD69: 30 | AE69: 31 | AF69: 32 | AG69: 33 | AH69: 34 | AI69: 35 | AJ69: 36 | AK69: 37 | AL69: 38 | AM69: 39 | AN69: 40 | AO69: 41 | AP69: 42 | AQ69: 43 | AR69: 44 | AS69: 45 | AT69: 46 | AU69: 47 | AV69: 48 | AW69: 49 | AX69: 50 | AY69: 51 | AZ69: 52 | BA69: 53 | BB69: 54 | BC69: 55 | BD69: 56 | BE69: 57 | BF69: 58 | BG69: 59 | BH69: 60 | BI69: 61 | BJ69: 62 | BK69: 63 | BL69: 64 | BM69: 65 | BN69: 66 | BO69: 67 | BP69: 68 | BQ69: 69 | BR69: 70 | BS69: 71 | BT69: 72 | BU69: 73 | BV69: 74 | BW69: 75 | BX69: 76 | BY69: 77 | BZ69: 78 | CA69: 79 | CB69: 80 | CC69: 81 | CD69: 82 | CE69: 83 | CF69: 84 | CG69: 85 | CH69: 86 | CI69: 87 | CJ69: 88 | CK69: 89 | CL69: 90 | CM69: 91 | CN69: 92 | CO69: 93 | CP69: 94 | CQ69: 95 | CR69: 96 | CS69: 97 | CT69: 98 | CU69: 99 | CV69: 100 | CW69: 101 | CX69: 102 | CY69: 103 | CZ69: 104 | DA69: 105 | DB69: 106 | DC69: 107 | DD69: 108 | DE69: 109 | DF69: 110 | DG69: 111 | DH69: 112 | DI69: 113 | DJ69: 114 | DK69: 115 | DL69: 116 | DM69: 117 | DN69: 118 | DO69: 119 | DP69: 120 | DQ69: 121 | DR69: 122 | DS69: 123 | DT69: 124 | DU69: 125
D70: 特許権収入
B71: 東京大学 | C71: 4744 | D71: 557703000
B72: 東北大学 | C72: 3726 | D72: 275164000
B73: 大阪大学 | C73: 3253 | D73: 395417000
B74: 京都大学 | C74: 3217 | D74: 886135000
B75: 東京工業大学 | C75: 2019 | D75: 42504000
B76: 九州大学 | C76: 1733 | D76: 142436000
B77: 名古屋大学 | C77: 1496 | D77: 72276000
B78: 北海道大学 | C78: 1219 | D78: 115470000
B79: 信州大学 | C79: 1047 | D79: 32411000
B80: 広島大学 | C80: 1019 | D80: 44418000
B81: 筑波大学 | C81: 892 | D81: 27835000
B82: 慶應義塾大学 | C82: 856 | D82: 58283000
B83: 千葉大学 | C83: 851 | D83: 9761000
B84: 岡山大学 | C84: 739 | D84: 21802000
B85: 山口大学 | C85: 711 | D85: 26145000
B86: 東京農工大学 | C86: 667 | D86: 10063000
B87: 名古屋工業大学 | C87: 660 | D87: 23496000
B88: 東京理科大学 | C88: 629 | D88: 11695000
B89: 九州工業大学 | C89: 607 | D89: 5845000
B90: 神戸大学 | C90: 581 | D90: 104449000
B91: 熊本大学 | C91: 543 | D91: 19748000
B92: 群馬大学 | C92: 536 | D92: 3598000
B93: 静岡大学 | C93: 523 | D93: 2662000
B94: 横浜国立大学 | C94: 509 | D94: 4920000
B95: 大阪公立大学（大阪府立大学） | C95: 502 | D95: 8255000
B96: 近畿大学 | C96: 488 | D96: 26794000
B97: 鹿児島大学 | C97: 458 | D97: 8269000
B98: 長岡技術科学大学 | C98: 440 | D98: 2979000
B99: 奈良先端科学技術大学院大学 | C99: 435 | D99: 3758000
B100: 東京都立大学 | C100: 435 | D100: 1170000
B101: 山梨大学 | C101: 426 | D101: 28912000
B102: 大阪公立大学（大阪市立大学） | C102: 423 | D102: 3124000
B103: 三重大学 | C103: 422 | D103: 20215000
B104: 東京医科歯科大学 | C104: 418 | D104: 74575000
B105: 電気通信大学 | C105: 406 | D105: 2740000
B106: 豊橋技術科学大学 | C106: 395 | D106: 7491000
B107: 関西大学 | C107: 392 | D107: 5519000
B108: 徳島大学 | C108: 385 | D108: 26218000
B109: 金沢大学 | C109: 360 | D109: 14331000
B110: 北里大学 | C110: 350 | D110: 47578000
B111: 香川大学 | C111: 343 | D111: 13987000
B112: 鳥取大学 | C112: 341 | D112: 5178000
B113: 新潟大学 | C113: 323 | D113: 11052000
B114: 富山大学 | C114: 319 | D114: 21312000
B115: 埼玉大学 | C115: 314 | D115: 2129000
B116: 同志社大学 | C116: 310 | D116: 26699000
B117: 日本大学 | C117: 306 | D117: 50528000
B118: 高知大学 | C118: 296 | D118: 22439000
B119: 立命館大学 | C119: 283 | D119: 5079000
B120: 自然科学研究機構 | C120: 278 | D120: 23513000
B121: 弘前大学 | C121: 261 | D121: 6272000
B122: 岐阜大学 | C122: 260 | D122: 9851000
B123: 宮崎大学 | C123: 257 | D123: 2044000
B124: 神奈川大学 | C124: 254 | D124: 4373000
B125: 兵庫県立大学 | C125: 248 | D125: 37000
B126: 秋田大学 | C126: 242 | D126: 245000
B127: 佐賀大学 | C127: 239 | D127: 6705000
B128: 福井大学 | C128: 239 | D128: 3402000
B129: 東海大学 | C129: 238 | D129: 771000
B130: 山形大学 | C130: 237 | D130: 3491000
B131: 横浜市立大学 | C131: 234 | D131: 25613000
B132: 札幌医科大学 | C132: 229 | D132: 28223000
B133: 京都工芸繊維大学 | C133: 224 | D133: 2740000
B134: 名城大学 | C134: 224 | D134: 475000
B135: 千葉工業大学 | C135: 210 | D135: 22544000
B136: 情報・システム研究機構 | C136: 208 | D136: 5139000
B137: 長崎大学 | C137: 201 | D137: 14882000
B138: 東京海洋大学 | C138: 194 | D138: 2761000
B139: 愛媛大学 | C139: 188 | D139: 18823000
B140: 東京女子医科大学 | C140: 188 | D140: 2124000
B141: 岩手大学 | C141: 188 | D141: 1268000
B142: 北陸先端科学技術大学院大学 | C142: 182 | D142: 7446000
B143: 福岡大学 | C143: 178 | D143: 1047000
B144: 沖縄科学技術大学院大学 | C144: 173 | D144: 1100000
B145: 高知工科大学 | C145: 169 | D145: 45000
B146: 宇都宮大学 | C146: 168 | D146: 7200000
B147: 茨城大学 | C147: 167 | D147: 1237000
B148: 金沢工業大学 | C148: 151 | D148: 3018000
B149: 中央大学 | C149: 151 | D149: 2106000
B150: 大分大学 | C150: 148 | D150: 1748000
B151: 京都府立医科大学 | C151: 147 | D151: 11367000
B152: 関西学院大学 | C152: 146 | D152: 16773000
B153: 滋賀医科大学 | C153: 141 | D153: 5086000
B154: 自治医科大学 | C154: 140 | D154: 10251000
B155: 島根大学 | C155: 140 | D155: 1478000
B156: 上智大学 | C156: 140 | D156: 200000
B157: 浜松医科大学 | C157: 135 | D157: 3613000
B158: 高エネルギー加速器研究機構 | C158: 135 | D158: 712000
B159: 順天堂大学 | C159: 132 | D159: 5278000
B160: 中部大学 | C160: 122 | D160: 1378000
B161: 名古屋市立大学 | C161: 114 | D161: 38831000
B162: 久留米大学 | C162: 112 | D162: 902000
B163: 豊田工業大学 | C163: 109 | D163: 0
B164: 芝浦工業大学 | C164: 103 | D164: 1238000
B165: 東京電機大学 | C165: 102 | D165: 3875000
B166: 埼玉医科大学 | C166: 99 | D166: 8849000
B167: 関東学院大学 | C167: 97 | D167: 9990000
B168: 琉球大学 | C168: 92 | D168: 1146000
B169: 明治大学 | C169: 91 | D169: 4260000
B170: 北見工業大学 | C170: 91 | D170: 753000
B171: 和歌山大学 | C171: 88 | D171: 3592000
B172: 富山県立大学 | C172: 86 | D172: 1957000
B173: 静岡県立大学 | C173: 84 | D173: 1231000
B174: 神奈川工科大学 | C174: 83 | D174: 289000
B175: 藤田医科大学 | C175: 80 | D175: 0
B176: 福岡工業大学 | C176: 69 | D176: 0
B177: 早稲田大学 | C177: 66 | D177: 19945000
B178: 福島大学 | C178: 65 | D178: 217000
B179: 帝京大学 | C179: 62 | D179: 2716000
B180: 岡山理科大学 | C180: 59 | D180: 1200000
B181: 日本医科大学 | C181: 58 | D181: 7708000
B182: 奈良県立医科大学 | C182: 58 | D182: 1283000
B183: 旭川医科大学 | C183: 58 | D183: 700000
B184: 帯広畜産大学 | C184: 57 | D184: 524000
B185: 兵庫医科大学 | C185: 56 | D185: 5620000
B186: 室蘭工業大学 | C186: 55 | D186: 1000
B187: 秋田県立大学 | C187: 54 | D187: 2624000
B188: 東洋大学 | C188: 53 | D188: 2185000
B189: 立教大学 | C189: 53 | D189: 8000
B190: 聖マリアンナ医科大学 | C190: 50 | D190: 109000
B191: 法政大学 | C191: 49 | D191: 874000
B192: お茶の水女子大学 | C192: 49 | D192: 5000
B193: 会津大学 | C193: 48 | D193: 132000
B194: 玉川大学 | C194: 48 | D194: 125000
B195: 関西医科大学 | C195: 47 | D195: 3568000
B196: 甲南大学 | C196: 45 | D196: 1103000
B197: 大阪工業大学 | C197: 44 | D197: 0
B198: 龍谷大学 | C198: 43 | D198: 168000
B199: 広島市立大学 | C199: 43 | D199: 0
B200: 産業医科大学 | C200: 42 | D200: 1006000
B201: 工学院大学 | C201: 41 | D201: 1396000
B202: 北九州市立大学 | C202: 37 | D202: 5488000
B203: 東京農業大学 | C203: 37 | D203: 473000
B204: 鈴鹿工業高等専門学校 | C204: 34 | D204: 74000
B205: 青山学院大学 | C205: 34 | D205: 0
B206: 昭和大学 | C206: 31 | D206: 10595000
B207: 香川高等専門学校 | C207: 31 | D207: 1599000
B208: 麻布大学 | C208: 31 | D208: 797000
B209: 県立広島大学 | C209: 31 | D209: 11000
... 904 more rows

Sheet 小樽商科大学 (hidden)
A1: 国立 | C1: 小樽商科大学（北海道） | X1: 大学全体の経営理念における産学官連携活動の取組方針 | CB1: 80 | CC1: 81 | CD1: 82 | CE1: 83 | CF1: 84 | CG1: 85 | CH1: 86 | CI1: 87 | CJ1: 88 | CK1: 89 | CL1: 90 | CM1: 91 | CN1: 92 | CO1: 93 | CP1: 94 | CQ1: 95 | CR1: 96 | CS1: 97 | CT1: 98 | CU1: 99 | CV1: 100 | CW1: 101 | CX1: 102 | CY1: 103 | CZ1: 104 | DA1: 105 | DB1: 106 | DC1: 107 | DD1: 108 | DE1: 109 | DF1: 110 | DG1: 111 | DH1: 112 | DI1: 113 | DJ1: 114 | DK1: 115 | DL1: 116 | DM1: 117 | DN1: 118 | DO1: 119 | DP1: 120 | DQ1: 121 | DR1: 122 | DS1: 123 | DT1: 124 | DU1: 125 | DV1: 126 | DW1: 127 | DX1: 128 | DY1: 129
X2: 全国唯一の国立商科系の単科大学として，自由な学風を尊び，優れた教育と研究並びにそれらの成果を活用した社会貢献を使命とし，地域社会および国際社会の付託に幅広く応える「知の創造」に努め，人類社会の福祉と発展に寄与する。産学官連携は，大学の知の成果を社会へ還元する重要な活動であり，本学は高い透明性と公平性をもって積極的に取り組む。
BB3: ＵＲＡ | BO3: URA当たり研究者数 | CA3: 戦略的産学連携経費
BC4: 実務担当者数 | BI4: 0 | BN4: 名 | BO4: =IF(OR(K25="",BI4=""),"",(IFERROR(K25/BI4,""))) ->  | BX4: 名 | CB4: 戦略的産学連携経費の設定 | CP4: 有 | CT4: 無 | CZ4: ある | DA4: インキュベーション施設
A5: 1 | B5: 2 | C5: 3 | D5: 4 | E5: 5 | F5: 6 | G5: 7 | H5: 8 | I5: 9 | J5: 10 | K5: 11 | L5: 12 | M5: 13 | N5: 14 | O5: 15 | P5: 16 | Q5: 17 | R5: 18 | S5: 19 | T5: 20 | U5: 21 | V5: 22 | W5: 23 | X5: 24 | Y5: 25 | Z5: 26 | AA5: 27 | AB5: 28 | AC5: 29 | AD5: 30 | AE5: 31 | AF5: 32 | AG5: 33 | AH5: 34 | AI5: 35 | AJ5: 36 | AK5: 37 | AL5: 38 | AM5: 39 | AN5: 40 | AO5: 41 | AP5: 42 | AQ5: 43 | AR5: 44 | AS5: 45 | AT5: 46 | AU5: 47 | AV5: 48 | AW5: 49 | AX5: 50 | AY5: 51 | AZ5: 52 | BA5: 53 | BB5: 54 | BC5: 55 | BD5: 56 | BE5: 57 | BF5: 58 | BG5: 59 | BH5: 60 | BI5: 61 | BJ5: 62 | BK5: 63 | BL5: 64 | BM5: 65 | BN5: 66 | BO5: 67 | BP5: 68 | BQ5: 69 | BR5: 70 | BS5: 71 | BT5: 72 | BU5: 73 | BV5: 74 | BW5: 75 | BX5: 76 | BY5: 77 | BZ5: 78 | CA5: 79 | CB5: 戦略的産学連携経費の費目 | CZ5: ある | DA5: 相談窓口
A6: 基 礎 情 報 | BB6: 各種規程類の整備状況 | CB6: 戦略的産学連携経費の直接経費に対する割合 | CZ6: ない | DA6: 設立ポリシー | DI6: ◎ | DJ6: 産学連携ポリシー
BB7: 産学連携ポリシー | BM7: 職務発明規程（教職員のみ対象） | CZ7: ない | DA7: 支援ファンド | DI7: ◎ | DJ7: 知的財産ポリシー
B8: 大学の得意分野とその具体例 | BB8: 知的財産ポリシー | BM8: 職務発明規程（教職員、学生対象） | CA8: 人件費の企業負担 | DI8: ◎ | DJ8: 共同研究取扱規程
B9: 北海道の産業競争力を強化するため、産学官の連携や、北海道内の理工系大学との大学間連携事業を発展させる。また、地域の産業界や他大学、行政機関とより緊密な連携活動を行うため人的ネットワークを基盤とするビジネス開発プラットフォームを強化し、地域経済の活性化や地域人材の育成の取り組みを通じて、スタートアップ創出を推進する。 | AA9: 科研費 （千円） | AL9: その他政府系資金 (千円) | AS9: その他団体からの資金 (千円) | BB9: 共同研究取扱規程 | BM9: 発明補償関係規程（教職員のみ対象） | CB9: 教員人件費の企業負担に関する規程や制度 | CP9: 有 | CT9: 無 | DI9: ◎ | DJ9: 受託研究取扱規程
BB10: 受託研究取扱規程 | BM10: 発明補償関係規程（教職員、学生対象） | CB10: 教員人件費の企業負担の費目 | CP10: 間接経費 | DI10: ◎ | DJ10: 研究成果有体物取扱規程
AA11: 74360 | AL11: 23058 | AS11: 7664 | BB11: 研究成果有体物取扱規程 | BM11: 守秘義務に係る規程（教職員のみ対象） | CB11: 学生人件費の企業負担に関する規程や制度 | CP11: 有 | CT11: 無 | DI11: × | DJ11: 営業秘密管理に関する規程
BB12: 営業秘密管理に関する規程 | BM12: 守秘義務に係る規程（教職員、学生対象） | CB12: 学生人件費の企業負担の費目 | DI12: △ | DJ12: 株式の取扱等規程、ポリシー
AA13: 間接経費割合 | AN13: 株式の保有 | AT13: 新株予約権の保有 | BB13: 株式の取扱等規程、ポリシー | DB13: 株式 | DI13: ◎ | DJ13: 職務発明規程（教職員のみ対象）
AA14: 0 | AN14: 有 | AQ14: 無 | AT14: 有 | AW14: 無 | BD14: ※各種規定類を整備している場合は、赤色で表示されます。 | CA14: 特別試験研究費税額控除制度 | DB14: 新株予約権 | DI14: × | DJ14: 職務発明規程（教職員、学生対象）
B15: 産学官連携活動において今後重点化したい事項 | CB15: 特別試験研究費税額控除制度の活用 | CP15: 有 | CT15: 無 | DI15: ◎ | DJ15: 発明補償関係規程（教職員のみ対象）
B16: 北海道の産業競争力を強化するため、産学官の連携や、北海道内の理工系大学との大学間連携事業を発展させる。また、地域の産業界や他大学、行政機関とより緊密な連携活動を行うため人的ネットワークを基盤とするビジネス開発プラットフォームを強化し、地域経済の活性化や地域人材の育成の取り組みを通じて、スタートアップ創出を推進する。 | AA16: ■共同研究 | AG16: 2020年度 | AO16: 2021年度 | AW16: 順位※ | BB16: クロスアポイントメントの実績（人） | BK16: 大学等 | BN16: 公的機関 | BQ16: 民間企業 | BU16: その他機関 | DI16: × | DJ16: 発明補償関係規程（教職員、学生対象）
AG17: 受入額（千円） | AL17: 件数 | AO17: 受入額（千円） | AT17: 件数 | BH17: 受入 | BK17: 0 | BN17: 0 | BQ17: 3 | BU17: 0 | DB17: 順位 | DI17: ◎ | DJ17: 守秘義務に係る規程（教職員のみ対象）
AA18: 全体 | AG18: 7955 | AL18: 8 | AO18: 24041 | AT18: 6 | AW18: =IF(DB18<50,DB18,"") ->  | AY18: 位 | BH18: 派遣 | BK18: 0 | BN18: 0 | BQ18: 0 | BU18: 0 | DB18: 184 | DI18: × | DJ18: 守秘義務に係る規程（教職員、学生対象）
AB19: 民間企業 のみ | AG19: 4901 | AL19: 4 | AO19: 19641 | AT19: 5 | AW19: =IF(DB19<50,DB19,"") ->  | AY19: 位 | DB19: 185
AC20: 大企業 | AG20: 0 | AL20: 0 | AO20: 14740 | AT20: 1 | AW20: =IF(DB20<50,DB20,"") ->  | AY20: 位 | DB20: 175 | DI20: ない | DJ20: 戦略的産学連携経費の設定
AC21: 中小企業 | AG21: 4901 | AL21: 4 | AO21: 4901 | AT21: 4 | AW21: =IF(DB21<50,DB21,"") ->  | AY21: 位 | BB21: ■組織的産学連携活動の取組事例 | DB21: 181 | DI21: ある | DJ21: 教員人件費の企業負担に関する規程や制度
AL22: ※順位は2021年度の受入額を比較したもの | DI22: ない | DJ22: 学生人件費の企業負担に関する規程や制度
B23: 産学官連携本部等組織名 | K23: グローカル戦略推進センター産学官連携推進部門 | DB23: 0 | DC23: 2 | DI23: ない | DJ23: 特別試験研究費税額控除制度の活用
B24: 産学官連携本部等URL | K24: https://www.otaru-uc.ac.jp/cgs/iag/ | DB24: ～100万 | DC24: 1
B25: 研究者数 | K25: 126 | O25: 名 | DB25: ～300万 | DC25: 0
DB26: ～500万 | DC26: 1
DB27: ～1000万 | DC27: 0
DB28: ～5000万 | DC28: 1
DB29: ～1億 | DC29: 0 | DJ29: 共同研究等の企画・提案
B30: 産学連携担当部署 | O30: 実務者当たり研究者数 | DB30: 1億以上 | DC30: 0 | DJ30: 契約書での成果目標、達成時の明記
C31: 実務担当者数 | I31: 9 | N31: 名 | O31: =IF(OR(K25="",I31=""),"",IFERROR($K$25/I31,"")) -> 14 | X31: 名 | DJ31: 共同研究契約の締結/判断（契約権限の集中）
C32: 専門家の配置 | I32: 弁護士 | L32: 弁理士 | O32: 税理士 | R32: 公認会計士 | V32: その他 | DJ32: 共同研究の進捗管理とフィードバック
I33: ※専門家を配置している場合は、赤色で表示されます。 | DJ33: 企業ニーズに適応した技術移転・事業化提案
AA34: ■受託研究 | AG34: 2020年度 | AO34: 2021年度 | AW34: 順位※ | DJ34: 共同研究等の企画・提案
AG35: 受入額（千円） | AL35: 件数（件） | AO35: 受入額（千円） | AT35: 件数（件） | DB35: 順位 | DJ35: 契約書での成果目標、達成時の明記
AA36: 全体 | AG36: 343 | AL36: 1 | AO36: 23058 | AT36: 3 | AW36: =IF(DB36<50,DB36,"") ->  | AY36: 位 | DB36: 229 | DJ36: 共同研究契約の締結/判断（契約権限の集中）
AB37: 民間企業 のみ | AG37: 0 | AL37: 0 | AO37: 0 | AT37: 0 | AW37: =IF(DB37<50,DB37,"") ->  | AY37: 位 | DB37: 403 | DJ37: 共同研究の進捗管理とフィードバック
C38: 産学連携本部が関与した共同研究 | P38: 1 | T38: 件 | AC38: 大企業 | AG38: 0 | AL38: 0 | AO38: 0 | AT38: 0 | AW38: =IF(DB38<50,DB38,"") ->  | AY38: 位 | DB38: 316 | DJ38: 企業ニーズに適応した技術移転・事業化提案
D39: 内、マッチングを行い、契約締結した件数 | P39: 0 | T39: 件 | AC39: 中小企業 | AG39: 0 | AL39: 0 | AO39: 0 | AT39: 0 | AW39: =IF(DB39<50,DB39,"") ->  | AY39: 位 | BB39: ■産学連携活動の主な実用化事例 | DB39: 318 | DJ39: 共同研究等の企画・提案
I40: ※1,000万円以上の共同研究 | AL40: ※順位は2021年度の受入額を比較したもの | DB40: 弁護士 | DG40: 0 | DH40: 0 | DJ40: 契約書での成果目標、達成時の明記
DB41: 弁理士 | DG41: ～100万 | DH41: 0 | DJ41: 共同研究契約の締結/判断（契約権限の集中）
C42: 組織対組織による包括連携契約の締結数 | P42: 1 | T42: 件 | DB42: 税理士 | DG42: ～300万 | DH42: 0 | DJ42: 共同研究の進捗管理とフィードバック
D43: 内、1,000万円以上の実績がある相手方数 | P43: 1 | T43: 件 | DB43: 公認会計士 | DG43: ～500万 | DH43: 0 | DJ43: 企業ニーズに適応した技術移転・事業化提案
DB44: その他 | DG44: ～1000万 | DH44: 0
C45: 寄附講座・寄附研究部門の受入件数 | V45: 件 | DG45: ～5000万 | DH45: 0
C46: 寄附講座・寄附研究部門の受入金額（千円） | P46: 0 | DG46: ～1億 | DH46: 0
C47: 共同研究講座・共同研究部門の受入件数 | P47: 0 | V47: 件 | DG47: 1億以上 | DH47: 0
C48: 共同研究講座・共同研究部門の受入金額（千円） | P48: 0
C52: 職務発明の帰属 | I52: 大学 | M52: 発明者 | Q52: 未設定 | CZ52: 大学 | DA52: 職務発明
AD53: 特許権実施等件数 | AL53: 0 | AQ53: 件 | AS53: 実施等件数 あたり | DA53: 不実施
M54: 研究者あたり | AD54: 特許権実施等収入（千円） | AL54: 0 | AS54: =IF(OR(AL53="",AL54=""),"",IFERROR(AL54/AL53,"")) ->  | CZ54: 0 | DA54: 特許等収入
C55: 特許出願件数（件） | I55: 0 | M55: =IF(OR(K25="",I55=""),"",IFERROR(I55/K25,"")) -> 0
C56: 特許保有件数（件） | I56: 0 | M56: =IF(OR(K25="",I56=""),"",IFERROR(I56/K25,"")) -> 0
C61: 大学発ベンチャー数 | J61: 12 | O61: 社
C62: Exit件数（IPO） | J62: 0 | O62: 社 | P62: Exit件数（M&A） | W62: 0 | Z62: 社
C63: 相談窓口 | K63: 支援ファンド | S63: インキュベーション施設
C64: 有 | G64: 無 | K64: 有 | O64: 無 | S64: 有 | W64: 無
C65: 知的財産戦略方針 | K65: 支援総額（千円） | S65: 面積 | W65: 42 | Z65: 平方メートル
C66: 有 | G66: 無 | S66: 契約企業数 | W66: 0 | Z66: 社
A69: 1 | B69: 2 | C69: 3 | D69: 4 | E69: 5 | F69: 6 | G69: 7 | H69: 8 | I69: 9 | J69: 10 | K69: 11 | L69: 12 | M69: 13 | N69: 14 | O69: 15 | P69: 16 | Q69: 17 | R69: 18 | S69: 19 | T69: 20 | U69: 21 | V69: 22 | W69: 23 | X69: 24 | Y69: 25 | Z69: 26 | AA69: 27 | AB69: 28 | AC69: 29 | AD69: 30 | AE69: 31 | AF69: 32 | AG69: 33 | AH69: 34 | AI69: 35 | AJ69: 36 | AK69: 37 | AL69: 38 | AM69: 39 | AN69: 40 | AO69: 41 | AP69: 42 | AQ69: 43 | AR69: 44 | AS69: 45 | AT69: 46 | AU69: 47 | AV69: 48 | AW69: 49 | AX69: 50 | AY69: 51 | AZ69: 52 | BA69: 53 | BB69: 54 | BC69: 55 | BD69: 56 | BE69: 57 | BF69: 58 | BG69: 59 | BH69: 60 | BI69: 61 | BJ69: 62 | BK69: 63 | BL69: 64 | BM69: 65 | BN69: 66 | BO69: 67 | BP69: 68 | BQ69: 69 | BR69: 70 | BS69: 71 | BT69: 72 | BU69: 73 | BV69: 74 | BW69: 75 | BX69: 76 | BY69: 77 | BZ69: 78 | CA69: 79 | CB69: 80 | CC69: 81 | CD69: 82 | CE69: 83 | CF69: 84 | CG69: 85 | CH69: 86 | CI69: 87 | CJ69: 88 | CK69: 89 | CL69: 90 | CM69: 91 | CN69: 92 | CO69: 93 | CP69: 94 | CQ69: 95 | CR69: 96 | CS69: 97 | CT69: 98 | CU69: 99 | CV69: 100 | CW69: 101 | CX69: 102 | CY69: 103 | CZ69: 104 | DA69: 105 | DB69: 106 | DC69: 107 | DD69: 108 | DE69: 109 | DF69: 110 | DG69: 111 | DH69: 112 | DI69: 113 | DJ69: 114 | DK69: 115 | DL69: 116 | DM69: 117 | DN69: 118 | DO69: 119 | DP69: 120 | DQ69: 121 | DR69: 122 | DS69: 123 | DT69: 124 | DU69: 125
D70: 特許権収入
B71: 東京大学 | C71: 4744 | D71: 557703000
B72: 東北大学 | C72: 3726 | D72: 275164000
B73: 大阪大学 | C73: 3253 | D73: 395417000
B74: 京都大学 | C74: 3217 | D74: 886135000
B75: 東京工業大学 | C75: 2019 | D75: 42504000
B76: 九州大学 | C76: 1733 | D76: 142436000
B77: 名古屋大学 | C77: 1496 | D77: 72276000
B78: 北海道大学 | C78: 1219 | D78: 115470000
B79: 信州大学 | C79: 1047 | D79: 32411000
B80: 広島大学 | C80: 1019 | D80: 44418000
B81: 筑波大学 | C81: 892 | D81: 27835000
B82: 慶應義塾大学 | C82: 856 | D82: 58283000
B83: 千葉大学 | C83: 851 | D83: 9761000
B84: 岡山大学 | C84: 739 | D84: 21802000
B85: 山口大学 | C85: 711 | D85: 26145000
B86: 東京農工大学 | C86: 667 | D86: 10063000
B87: 名古屋工業大学 | C87: 660 | D87: 23496000
B88: 東京理科大学 | C88: 629 | D88: 11695000
B89: 九州工業大学 | C89: 607 | D89: 5845000
B90: 神戸大学 | C90: 581 | D90: 104449000
B91: 熊本大学 | C91: 543 | D91: 19748000
B92: 群馬大学 | C92: 536 | D92: 3598000
B93: 静岡大学 | C93: 523 | D93: 2662000
B94: 横浜国立大学 | C94: 509 | D94: 4920000
B95: 大阪公立大学（大阪府立大学） | C95: 502 | D95: 8255000
B96: 近畿大学 | C96: 488 | D96: 26794000
B97: 鹿児島大学 | C97: 458 | D97: 8269000
B98: 長岡技術科学大学 | C98: 440 | D98: 2979000
B99: 奈良先端科学技術大学院大学 | C99: 435 | D99: 3758000
B100: 東京都立大学 | C100: 435 | D100: 1170000
B101: 山梨大学 | C101: 426 | D101: 28912000
B102: 大阪公立大学（大阪市立大学） | C102: 423 | D102: 3124000
B103: 三重大学 | C103: 422 | D103: 20215000
B104: 東京医科歯科大学 | C104: 418 | D104: 74575000
B105: 電気通信大学 | C105: 406 | D105: 2740000
B106: 豊橋技術科学大学 | C106: 395 | D106: 7491000
B107: 関西大学 | C107: 392 | D107: 5519000
B108: 徳島大学 | C108: 385 | D108: 26218000
B109: 金沢大学 | C109: 360 | D109: 14331000
B110: 北里大学 | C110: 350 | D110: 47578000
B111: 香川大学 | C111: 343 | D111: 13987000
B112: 鳥取大学 | C112: 341 | D112: 5178000
B113: 新潟大学 | C113: 323 | D113: 11052000
B114: 富山大学 | C114: 319 | D114: 21312000
B115: 埼玉大学 | C115: 314 | D115: 2129000
B116: 同志社大学 | C116: 310 | D116: 26699000
B117: 日本大学 | C117: 306 | D117: 50528000
B118: 高知大学 | C118: 296 | D118: 22439000
B119: 立命館大学 | C119: 283 | D119: 5079000
B120: 自然科学研究機構 | C120: 278 | D120: 23513000
B121: 弘前大学 | C121: 261 | D121: 6272000
B122: 岐阜大学 | C122: 260 | D122: 9851000
B123: 宮崎大学 | C123: 257 | D123: 2044000
B124: 神奈川大学 | C124: 254 | D124: 4373000
B125: 兵庫県立大学 | C125: 248 | D125: 37000
B126: 秋田大学 | C126: 242 | D126: 245000
B127: 佐賀大学 | C127: 239 | D127: 6705000
B128: 福井大学 | C128: 239 | D128: 3402000
B129: 東海大学 | C129: 238 | D129: 771000
B130: 山形大学 | C130: 237 | D130: 3491000
B131: 横浜市立大学 | C131: 234 | D131: 25613000
B132: 札幌医科大学 | C132: 229 | D132: 28223000
B133: 京都工芸繊維大学 | C133: 224 | D133: 2740000
B134: 名城大学 | C134: 224 | D134: 475000
B135: 千葉工業大学 | C135: 210 | D135: 22544000
B136: 情報・システム研究機構 | C136: 208 | D136: 5139000
B137: 長崎大学 | C137: 201 | D137: 14882000
B138: 東京海洋大学 | C138: 194 | D138: 2761000
B139: 愛媛大学 | C139: 188 | D139: 18823000
B140: 東京女子医科大学 | C140: 188 | D140: 2124000
B141: 岩手大学 | C141: 188 | D141: 1268000
B142: 北陸先端科学技術大学院大学 | C142: 182 | D142: 7446000
B143: 福岡大学 | C143: 178 | D143: 1047000
B144: 沖縄科学技術大学院大学 | C144: 173 | D144: 1100000
B145: 高知工科大学 | C145: 169 | D145: 45000
B146: 宇都宮大学 | C146: 168 | D146: 7200000
B147: 茨城大学 | C147: 167 | D147: 1237000
B148: 金沢工業大学 | C148: 151 | D148: 3018000
B149: 中央大学 | C149: 151 | D149: 2106000
B150: 大分大学 | C150: 148 | D150: 1748000
B151: 京都府立医科大学 | C151: 147 | D151: 11367000
B152: 関西学院大学 | C152: 146 | D152: 16773000
B153: 滋賀医科大学 | C153: 141 | D153: 5086000
B154: 自治医科大学 | C154: 140 | D154: 10251000
B155: 島根大学 | C155: 140 | D155: 1478000
B156: 上智大学 | C156: 140 | D156: 200000
B157: 浜松医科大学 | C157: 135 | D157: 3613000
B158: 高エネルギー加速器研究機構 | C158: 135 | D158: 712000
B159: 順天堂大学 | C159: 132 | D159: 5278000
B160: 中部大学 | C160: 122 | D160: 1378000
B161: 名古屋市立大学 | C161: 114 | D161: 38831000
B162: 久留米大学 | C162: 112 | D162: 902000
B163: 豊田工業大学 | C163: 109 | D163: 0
B164: 芝浦工業大学 | C164: 103 | D164: 1238000
B165: 東京電機大学 | C165: 102 | D165: 3875000
B166: 埼玉医科大学 | C166: 99 | D166: 8849000
B167: 関東学院大学 | C167: 97 | D167: 9990000
B168: 琉球大学 | C168: 92 | D168: 1146000
B169: 明治大学 | C169: 91 | D169: 4260000
B170: 北見工業大学 | C170: 91 | D170: 753000
B171: 和歌山大学 | C171: 88 | D171: 3592000
B172: 富山県立大学 | C172: 86 | D172: 1957000
B173: 静岡県立大学 | C173: 84 | D173: 1231000
B174: 神奈川工科大学 | C174: 83 | D174: 289000
B175: 藤田医科大学 | C175: 80 | D175: 0
B176: 福岡工業大学 | C176: 69 | D176: 0
B177: 早稲田大学 | C177: 66 | D177: 19945000
B178: 福島大学 | C178: 65 | D178: 217000
B179: 帝京大学 | C179: 62 | D179: 2716000
B180: 岡山理科大学 | C180: 59 | D180: 1200000
B181: 日本医科大学 | C181: 58 | D181: 7708000
B182: 奈良県立医科大学 | C182: 58 | D182: 1283000
B183: 旭川医科大学 | C183: 58 | D183: 700000
B184: 帯広畜産大学 | C184: 57 | D184: 524000
B185: 兵庫医科大学 | C185: 56 | D185: 5620000
B186: 室蘭工業大学 | C186: 55 | D186: 1000
B187: 秋田県立大学 | C187: 54 | D187: 2624000
B188: 東洋大学 | C188: 53 | D188: 2185000
B189: 立教大学 | C189: 53 | D189: 8000
B190: 聖マリアンナ医科大学 | C190: 50 | D190: 109000
B191: 法政大学 | C191: 49 | D191: 874000
B192: お茶の水女子大学 | C192: 49 | D192: 5000
B193: 会津大学 | C193: 48 | D193: 132000
B194: 玉川大学 | C194: 48 | D194: 125000
B195: 関西医科大学 | C195: 47 | D195: 3568000
B196: 甲南大学 | C196: 45 | D196: 1103000
B197: 大阪工業大学 | C197: 44 | D197: 0
B198: 龍谷大学 | C198: 43 | D198: 168000
B199: 広島市立大学 | C199: 43 | D199: 0
B200: 産業医科大学 | C200: 42 | D200: 1006000
B201: 工学院大学 | C201: 41 | D201: 1396000
B202: 北九州市立大学 | C202: 37 | D202: 5488000
B203: 東京農業大学 | C203: 37 | D203: 473000
B204: 鈴鹿工業高等専門学校 | C204: 34 | D204: 74000
B205: 青山学院大学 | C205: 34 | D205: 0
B206: 昭和大学 | C206: 31 | D206: 10595000
B207: 香川高等専門学校 | C207: 31 | D207: 1599000
B208: 麻布大学 | C208: 31 | D208: 797000
B209: 県立広島大学 | C209: 31 | D209: 11000
... 904 more rows

Sheet お茶の水女子大学 (hidden)
A1: 国立 | C1: お茶の水女子大学（東京都） | X1: 大学全体の経営理念における産学官連携活動の取組方針 | CB1: 80 | CC1: 81 | CD1: 82 | CE1: 83 | CF1: 84 | CG1: 85 | CH1: 86 | CI1: 87 | CJ1: 88 | CK1: 89 | CL1: 90 | CM1: 91 | CN1: 92 | CO1: 93 | CP1: 94 | CQ1: 95 | CR1: 96 | CS1: 97 | CT1: 98 | CU1: 99 | CV1: 100 | CW1: 101 | CX1: 102 | CY1: 103 | CZ1: 104 | DA1: 105 | DB1: 106 | DC1: 107 | DD1: 108 | DE1: 109 | DF1: 110 | DG1: 111 | DH1: 112 | DI1: 113 | DJ1: 114 | DK1: 115 | DL1: 116 | DM1: 117 | DN1: 118 | DO1: 119 | DP1: 120 | DQ1: 121 | DR1: 122 | DS1: 123 | DT1: 124 | DU1: 125 | DV1: 126 | DW1: 127 | DX1: 128 | DY1: 129
X2: 本学は、委託研究・共同研究・技術移転等を通した企業等との連携、政府・地方自治体の政策形成への寄与、地域社会における市民活動との連携等の幅広い産学公連携の推進のための組織的取り組みを行う。 （お茶の水女子大学社会貢献ポリシーより）
BB3: ＵＲＡ | BO3: URA当たり研究者数 | CA3: 戦略的産学連携経費
BC4: 実務担当者数 | BI4: 1 | BN4: 名 | BO4: =IF(OR(K25="",BI4=""),"",(IFERROR(K25/BI4,""))) -> 384 | BX4: 名 | CB4: 戦略的産学連携経費の設定 | CP4: 有 | CT4: 無 | CZ4: ある | DA4: インキュベーション施設
A5: 1 | B5: 2 | C5: 3 | D5: 4 | E5: 5 | F5: 6 | G5: 7 | H5: 8 | I5: 9 | J5: 10 | K5: 11 | L5: 12 | M5: 13 | N5: 14 | O5: 15 | P5: 16 | Q5: 17 | R5: 18 | S5: 19 | T5: 20 | U5: 21 | V5: 22 | W5: 23 | X5: 24 | Y5: 25 | Z5: 26 | AA5: 27 | AB5: 28 | AC5: 29 | AD5: 30 | AE5: 31 | AF5: 32 | AG5: 33 | AH5: 34 | AI5: 35 | AJ5: 36 | AK5: 37 | AL5: 38 | AM5: 39 | AN5: 40 | AO5: 41 | AP5: 42 | AQ5: 43 | AR5: 44 | AS5: 45 | AT5: 46 | AU5: 47 | AV5: 48 | AW5: 49 | AX5: 50 | AY5: 51 | AZ5: 52 | BA5: 53 | BB5: 54 | BC5: 55 | BD5: 56 | BE5: 57 | BF5: 58 | BG5: 59 | BH5: 60 | BI5: 61 | BJ5: 62 | BK5: 63 | BL5: 64 | BM5: 65 | BN5: 66 | BO5: 67 | BP5: 68 | BQ5: 69 | BR5: 70 | BS5: 71 | BT5: 72 | BU5: 73 | BV5: 74 | BW5: 75 | BX5: 76 | BY5: 77 | BZ5: 78 | CA5: 79 | CB5: 戦略的産学連携経費の費目 | CZ5: ある | DA5: 相談窓口
A6: 基 礎 情 報 | BB6: 各種規程類の整備状況 | CB6: 戦略的産学連携経費の直接経費に対する割合 | CZ6: ない | DA6: 設立ポリシー | DI6: ◎ | DJ6: 産学連携ポリシー
BB7: 産学連携ポリシー | BM7: 職務発明規程（教職員のみ対象） | CZ7: ない | DA7: 支援ファンド | DI7: ◎ | DJ7: 知的財産ポリシー
B8: 大学の得意分野とその具体例 | BB8: 知的財産ポリシー | BM8: 職務発明規程（教職員、学生対象） | CA8: 人件費の企業負担 | DI8: ◎ | DJ8: 共同研究取扱規程
B9: ライフサイエンス、工学、情報科学を生活者の視点で横断する分野。歴史と実績を備えたジェンダー研究の分野。 | AA9: 科研費 （千円） | AL9: その他政府系資金 (千円) | AS9: その他団体からの資金 (千円) | BB9: 共同研究取扱規程 | BM9: 発明補償関係規程（教職員のみ対象） | CB9: 教員人件費の企業負担に関する規程や制度 | CP9: 有 | CT9: 無 | DI9: ◎ | DJ9: 受託研究取扱規程
BB10: 受託研究取扱規程 | BM10: 発明補償関係規程（教職員、学生対象） | CB10: 教員人件費の企業負担の費目 | DI10: ◎ | DJ10: 研究成果有体物取扱規程
AA11: 276231 | AL11: 0 | AS11: 0 | BB11: 研究成果有体物取扱規程 | BM11: 守秘義務に係る規程（教職員のみ対象） | CB11: 学生人件費の企業負担に関する規程や制度 | CP11: 有 | CT11: 無 | DI11: ◎ | DJ11: 営業秘密管理に関する規程
BB12: 営業秘密管理に関する規程 | BM12: 守秘義務に係る規程（教職員、学生対象） | CB12: 学生人件費の企業負担の費目 | CP12: 直接経費 | DI12: × | DJ12: 株式の取扱等規程、ポリシー
AA13: 間接経費割合 | AN13: 株式の保有 | AT13: 新株予約権の保有 | BB13: 株式の取扱等規程、ポリシー | DB13: 株式 | DI13: × | DJ13: 職務発明規程（教職員のみ対象）
AA14: 0.3 | AN14: 有 | AQ14: 無 | AT14: 有 | AW14: 無 | BD14: ※各種規定類を整備している場合は、赤色で表示されます。 | CA14: 特別試験研究費税額控除制度 | DB14: 新株予約権 | DI14: ◎ | DJ14: 職務発明規程（教職員、学生対象）
B15: 産学官連携活動において今後重点化したい事項 | CB15: 特別試験研究費税額控除制度の活用 | CP15: 有 | CT15: 無 | DI15: × | DJ15: 発明補償関係規程（教職員のみ対象）
B16: 性差を基盤とした研究･教育を推進するイノベーション創出のハブ組織として、令和４年度より『ジェンダード・イノベーション研究所』を設立。従来のイノベーションに「セックス／ジェンダー差」の視点を入れることにより、多様性と包括性をもつ研究・技術開発を推進する。 | AA16: ■共同研究 | AG16: 2020年度 | AO16: 2021年度 | AW16: 順位※ | BB16: クロスアポイントメントの実績（人） | BK16: 大学等 | BN16: 公的機関 | BQ16: 民間企業 | BU16: その他機関 | DI16: ◎ | DJ16: 発明補償関係規程（教職員、学生対象）
AG17: 受入額（千円） | AL17: 件数 | AO17: 受入額（千円） | AT17: 件数 | BH17: 受入 | BK17: 4 | BN17: 0 | BQ17: 0 | BU17: 0 | DB17: 順位 | DI17: × | DJ17: 守秘義務に係る規程（教職員のみ対象）
AA18: 全体 | AG18: 38300 | AL18: 25 | AO18: 79690 | AT18: 32 | AW18: =IF(DB18<50,DB18,"") ->  | AY18: 位 | BH18: 派遣 | BK18: 5 | BN18: 0 | BQ18: 0 | BU18: 0 | DB18: 121 | DI18: ◎ | DJ18: 守秘義務に係る規程（教職員、学生対象）
AB19: 民間企業 のみ | AG19: 37800 | AL19: 24 | AO19: 27192 | AT19: 30 | AW19: =IF(DB19<50,DB19,"") ->  | AY19: 位 | DB19: 165
AC20: 大企業 | AG20: 37800 | AL20: 24 | AO20: 27192 | AT20: 30 | AW20: =IF(DB20<50,DB20,"") ->  | AY20: 位 | DB20: 152 | DI20: ない | DJ20: 戦略的産学連携経費の設定
AC21: 中小企業 | AG21: 0 | AL21: 0 | AO21: 0 | AT21: 0 | AW21: =IF(DB21<50,DB21,"") ->  | AY21: 位 | BB21: ■組織的産学連携活動の取組事例 | DB21: 357 | DI21: ない | DJ21: 教員人件費の企業負担に関する規程や制度
AL22: ※順位は2021年度の受入額を比較したもの | DI22: ある | DJ22: 学生人件費の企業負担に関する規程や制度
B23: 産学官連携本部等組織名 | K23: 研究・産学連携本部 | DB23: 0 | DC23: 3 | DI23: ある | DJ23: 特別試験研究費税額控除制度の活用
B24: 産学官連携本部等URL | K24: https://www.ocha.ac.jp/research/index.html | DB24: ～100万 | DC24: 13
B25: 研究者数 | K25: 384 | O25: 名 | DB25: ～300万 | DC25: 13
DB26: ～500万 | DC26: 1
DB27: ～1000万 | DC27: 0
DB28: ～5000万 | DC28: 0
DB29: ～1億 | DC29: 0 | DJ29: 共同研究等の企画・提案
B30: 産学連携担当部署 | O30: 実務者当たり研究者数 | DB30: 1億以上 | DC30: 0 | DJ30: 契約書での成果目標、達成時の明記
C31: 実務担当者数 | I31: 2 | N31: 名 | O31: =IF(OR(K25="",I31=""),"",IFERROR($K$25/I31,"")) -> 192 | X31: 名 | DJ31: 共同研究契約の締結/判断（契約権限の集中）
C32: 専門家の配置 | I32: 弁護士 | L32: 弁理士 | O32: 税理士 | R32: 公認会計士 | V32: その他 | DJ32: 共同研究の進捗管理とフィードバック
I33: ※専門家を配置している場合は、赤色で表示されます。 | DJ33: 企業ニーズに適応した技術移転・事業化提案
AA34: ■受託研究 | AG34: 2020年度 | AO34: 2021年度 | AW34: 順位※ | DJ34: 共同研究等の企画・提案
AG35: 受入額（千円） | AL35: 件数（件） | AO35: 受入額（千円） | AT35: 件数（件） | DB35: 順位 | DJ35: 契約書での成果目標、達成時の明記
AA36: 全体 | AG36: 221104 | AL36: 27 | AO36: 880434 | AT36: 46 | AW36: =IF(DB36<50,DB36,"") -> 45 | AY36: 位 | DB36: 45 | DJ36: 共同研究契約の締結/判断（契約権限の集中）
AB37: 民間企業 のみ | AG37: 6430 | AL37: 2 | AO37: 15979 | AT37: 4 | AW37: =IF(DB37<50,DB37,"") ->  | AY37: 位 | DB37: 124 | DJ37: 共同研究の進捗管理とフィードバック
C38: 産学連携本部が関与した共同研究 | P38: 0 | T38: 件 | AC38: 大企業 | AG38: 6430 | AL38: 2 | AO38: 15516 | AT38: 3 | AW38: =IF(DB38<50,DB38,"") ->  | AY38: 位 | DB38: 103 | DJ38: 企業ニーズに適応した技術移転・事業化提案
D39: 内、マッチングを行い、契約締結した件数 | P39: 0 | T39: 件 | AC39: 中小企業 | AG39: 0 | AL39: 0 | AO39: 463 | AT39: 1 | AW39: =IF(DB39<50,DB39,"") ->  | AY39: 位 | BB39: ■産学連携活動の主な実用化事例 | DB39: 268 | DJ39: 共同研究等の企画・提案
I40: ※1,000万円以上の共同研究 | AL40: ※順位は2021年度の受入額を比較したもの | DB40: 弁護士 | DG40: 0 | DH40: 0 | DJ40: 契約書での成果目標、達成時の明記
DB41: 弁理士 | DG41: ～100万 | DH41: 1 | DJ41: 共同研究契約の締結/判断（契約権限の集中）
C42: 組織対組織による包括連携契約の締結数 | P42: 0 | T42: 件 | DB42: 税理士 | DG42: ～300万 | DH42: 2 | DJ42: 共同研究の進捗管理とフィードバック
D43: 内、1,000万円以上の実績がある相手方数 | P43: 0 | T43: 件 | DB43: 公認会計士 | DG43: ～500万 | DH43: 0 | DJ43: 企業ニーズに適応した技術移転・事業化提案
DA44: ○ | DB44: その他 | DG44: ～1000万 | DH44: 0
C45: 寄附講座・寄附研究部門の受入件数 | P45: 6 | V45: 件 | DG45: ～5000万 | DH45: 1
C46: 寄附講座・寄附研究部門の受入金額（千円） | P46: 35700 | DG46: ～1億 | DH46: 0
C47: 共同研究講座・共同研究部門の受入件数 | P47: 2 | V47: 件 | DG47: 1億以上 | DH47: 0
C48: 共同研究講座・共同研究部門の受入金額（千円） | P48: 3891
C52: 職務発明の帰属 | I52: 大学 | M52: 発明者 | Q52: 未設定 | CZ52: 大学 | DA52: 職務発明
AD53: 特許権実施等件数 | AL53: 2 | AQ53: 件 | AS53: 実施等件数 あたり | DA53: 不実施
M54: 研究者あたり | AD54: 特許権実施等収入（千円） | AL54: 5 | AS54: =IF(OR(AL53="",AL54=""),"",IFERROR(AL54/AL53,"")) -> 2.5 | CZ54: 5000 | DA54: 特許等収入
C55: 特許出願件数（件） | I55: 5 | M55: =IF(OR(K25="",I55=""),"",IFERROR(I55/K25,"")) -> 0.01302083333
C56: 特許保有件数（件） | I56: 49 | M56: =IF(OR(K25="",I56=""),"",IFERROR(I56/K25,"")) -> 0.1276041667
C61: 大学発ベンチャー数 | J61: 0 | O61: 社
C62: Exit件数（IPO） | J62: 0 | O62: 社 | P62: Exit件数（M&A） | W62: 0 | Z62: 社
C63: 相談窓口 | K63: 支援ファンド | S63: インキュベーション施設
C64: 有 | G64: 無 | K64: 有 | O64: 無 | S64: 有 | W64: 無
C65: 知的財産戦略方針 | K65: 支援総額（千円） | S65: 面積 | W65: 0 | Z65: 平方メートル
C66: 有 | G66: 無 | S66: 契約企業数 | W66: 0 | Z66: 社
A69: 1 | B69: 2 | C69: 3 | D69: 4 | E69: 5 | F69: 6 | G69: 7 | H69: 8 | I69: 9 | J69: 10 | K69: 11 | L69: 12 | M69: 13 | N69: 14 | O69: 15 | P69: 16 | Q69: 17 | R69: 18 | S69: 19 | T69: 20 | U69: 21 | V69: 22 | W69: 23 | X69: 24 | Y69: 25 | Z69: 26 | AA69: 27 | AB69: 28 | AC69: 29 | AD69: 30 | AE69: 31 | AF69: 32 | AG69: 33 | AH69: 34 | AI69: 35 | AJ69: 36 | AK69: 37 | AL69: 38 | AM69: 39 | AN69: 40 | AO69: 41 | AP69: 42 | AQ69: 43 | AR69: 44 | AS69: 45 | AT69: 46 | AU69: 47 | AV69: 48 | AW69: 49 | AX69: 50 | AY69: 51 | AZ69: 52 | BA69: 53 | BB69: 54 | BC69: 55 | BD69: 56 | BE69: 57 | BF69: 58 | BG69: 59 | BH69: 60 | BI69: 61 | BJ69: 62 | BK69: 63 | BL69: 64 | BM69: 65 | BN69: 66 | BO69: 67 | BP69: 68 | BQ69: 69 | BR69: 70 | BS69: 71 | BT69: 72 | BU69: 73 | BV69: 74 | BW69: 75 | BX69: 76 | BY69: 77 | BZ69: 78 | CA69: 79 | CB69: 80 | CC69: 81 | CD69: 82 | CE69: 83 | CF69: 84 | CG69: 85 | CH69: 86 | CI69: 87 | CJ69: 88 | CK69: 89 | CL69: 90 | CM69: 91 | CN69: 92 | CO69: 93 | CP69: 94 | CQ69: 95 | CR69: 96 | CS69: 97 | CT69: 98 | CU69: 99 | CV69: 100 | CW69: 101 | CX69: 102 | CY69: 103 | CZ69: 104 | DA69: 105 | DB69: 106 | DC69: 107 | DD69: 108 | DE69: 109 | DF69: 110 | DG69: 111 | DH69: 112 | DI69: 113 | DJ69: 114 | DK69: 115 | DL69: 116 | DM69: 117 | DN69: 118 | DO69: 119 | DP69: 120 | DQ69: 121 | DR69: 122 | DS69: 123 | DT69: 124 | DU69: 125
D70: 特許権収入
B71: 東京大学 | C71: 4744 | D71: 557703000
B72: 東北大学 | C72: 3726 | D72: 275164000
B73: 大阪大学 | C73: 3253 | D73: 395417000
B74: 京都大学 | C74: 3217 | D74: 886135000
B75: 東京工業大学 | C75: 2019 | D75: 42504000
B76: 九州大学 | C76: 1733 | D76: 142436000
B77: 名古屋大学 | C77: 1496 | D77: 72276000
B78: 北海道大学 | C78: 1219 | D78: 115470000
B79: 信州大学 | C79: 1047 | D79: 32411000
B80: 広島大学 | C80: 1019 | D80: 44418000
B81: 筑波大学 | C81: 892 | D81: 27835000
B82: 慶應義塾大学 | C82: 856 | D82: 58283000
B83: 千葉大学 | C83: 851 | D83: 9761000
B84: 岡山大学 | C84: 739 | D84: 21802000
B85: 山口大学 | C85: 711 | D85: 26145000
B86: 東京農工大学 | C86: 667 | D86: 10063000
B87: 名古屋工業大学 | C87: 660 | D87: 23496000
B88: 東京理科大学 | C88: 629 | D88: 11695000
B89: 九州工業大学 | C89: 607 | D89: 5845000
B90: 神戸大学 | C90: 581 | D90: 104449000
B91: 熊本大学 | C91: 543 | D91: 19748000
B92: 群馬大学 | C92: 536 | D92: 3598000
B93: 静岡大学 | C93: 523 | D93: 2662000
B94: 横浜国立大学 | C94: 509 | D94: 4920000
B95: 大阪公立大学（大阪府立大学） | C95: 502 | D95: 8255000
B96: 近畿大学 | C96: 488 | D96: 26794000
B97: 鹿児島大学 | C97: 458 | D97: 8269000
B98: 長岡技術科学大学 | C98: 440 | D98: 2979000
B99: 奈良先端科学技術大学院大学 | C99: 435 | D99: 3758000
B100: 東京都立大学 | C100: 435 | D100: 1170000
B101: 山梨大学 | C101: 426 | D101: 28912000
B102: 大阪公立大学（大阪市立大学） | C102: 423 | D102: 3124000
B103: 三重大学 | C103: 422 | D103: 20215000
B104: 東京医科歯科大学 | C104: 418 | D104: 74575000
B105: 電気通信大学 | C105: 406 | D105: 2740000
B106: 豊橋技術科学大学 | C106: 395 | D106: 7491000
B107: 関西大学 | C107: 392 | D107: 5519000
B108: 徳島大学 | C108: 385 | D108: 26218000
B109: 金沢大学 | C109: 360 | D109: 14331000
B110: 北里大学 | C110: 350 | D110: 47578000
B111: 香川大学 | C111: 343 | D111: 13987000
B112: 鳥取大学 | C112: 341 | D112: 5178000
B113: 新潟大学 | C113: 323 | D113: 11052000
B114: 富山大学 | C114: 319 | D114: 21312000
B115: 埼玉大学 | C115: 314 | D115: 2129000
B116: 同志社大学 | C116: 310 | D116: 26699000
B117: 日本大学 | C117: 306 | D117: 50528000
B118: 高知大学 | C118: 296 | D118: 22439000
B119: 立命館大学 | C119: 283 | D119: 5079000
B120: 自然科学研究機構 | C120: 278 | D120: 23513000
B121: 弘前大学 | C121: 261 | D121: 6272000
B122: 岐阜大学 | C122: 260 | D122: 9851000
B123: 宮崎大学 | C123: 257 | D123: 2044000
B124: 神奈川大学 | C124: 254 | D124: 4373000
B125: 兵庫県立大学 | C125: 248 | D125: 37000
B126: 秋田大学 | C126: 242 | D126: 245000
B127: 佐賀大学 | C127: 239 | D127: 6705000
B128: 福井大学 | C128: 239 | D128: 3402000
B129: 東海大学 | C129: 238 | D129: 771000
B130: 山形大学 | C130: 237 | D130: 3491000
B131: 横浜市立大学 | C131: 234 | D131: 25613000
B132: 札幌医科大学 | C132: 229 | D132: 28223000
B133: 京都工芸繊維大学 | C133: 224 | D133: 2740000
B134: 名城大学 | C134: 224 | D134: 475000
B135: 千葉工業大学 | C135: 210 | D135: 22544000
B136: 情報・システム研究機構 | C136: 208 | D136: 5139000
B137: 長崎大学 | C137: 201 | D137: 14882000
B138: 東京海洋大学 | C138: 194 | D138: 2761000
B139: 愛媛大学 | C139: 188 | D139: 18823000
B140: 東京女子医科大学 | C140: 188 | D140: 2124000
B141: 岩手大学 | C141: 188 | D141: 1268000
B142: 北陸先端科学技術大学院大学 | C142: 182 | D142: 7446000
B143: 福岡大学 | C143: 178 | D143: 1047000
B144: 沖縄科学技術大学院大学 | C144: 173 | D144: 1100000
B145: 高知工科大学 | C145: 169 | D145: 45000
B146: 宇都宮大学 | C146: 168 | D146: 7200000
B147: 茨城大学 | C147: 167 | D147: 1237000
B148: 金沢工業大学 | C148: 151 | D148: 3018000
B149: 中央大学 | C149: 151 | D149: 2106000
B150: 大分大学 | C150: 148 | D150: 1748000
B151: 京都府立医科大学 | C151: 147 | D151: 11367000
B152: 関西学院大学 | C152: 146 | D152: 16773000
B153: 滋賀医科大学 | C153: 141 | D153: 5086000
B154: 自治医科大学 | C154: 140 | D154: 10251000
B155: 島根大学 | C155: 140 | D155: 1478000
B156: 上智大学 | C156: 140 | D156: 200000
B157: 浜松医科大学 | C157: 135 | D157: 3613000
B158: 高エネルギー加速器研究機構 | C158: 135 | D158: 712000
B159: 順天堂大学 | C159: 132 | D159: 5278000
B160: 中部大学 | C160: 122 | D160: 1378000
B161: 名古屋市立大学 | C161: 114 | D161: 38831000
B162: 久留米大学 | C162: 112 | D162: 902000
B163: 豊田工業大学 | C163: 109 | D163: 0
B164: 芝浦工業大学 | C164: 103 | D164: 1238000
B165: 東京電機大学 | C165: 102 | D165: 3875000
B166: 埼玉医科大学 | C166: 99 | D166: 8849000
B167: 関東学院大学 | C167: 97 | D167: 9990000
B168: 琉球大学 | C168: 92 | D168: 1146000
B169: 明治大学 | C169: 91 | D169: 4260000
B170: 北見工業大学 | C170: 91 | D170: 753000
B171: 和歌山大学 | C171: 88 | D171: 3592000
B172: 富山県立大学 | C172: 86 | D172: 1957000
B173: 静岡県立大学 | C173: 84 | D173: 1231000
B174: 神奈川工科大学 | C174: 83 | D174: 289000
B175: 藤田医科大学 | C175: 80 | D175: 0
B176: 福岡工業大学 | C176: 69 | D176: 0
B177: 早稲田大学 | C177: 66 | D177: 19945000
B178: 福島大学 | C178: 65 | D178: 217000
B179: 帝京大学 | C179: 62 | D179: 2716000
B180: 岡山理科大学 | C180: 59 | D180: 1200000
B181: 日本医科大学 | C181: 58 | D181: 7708000
B182: 奈良県立医科大学 | C182: 58 | D182: 1283000
B183: 旭川医科大学 | C183: 58 | D183: 700000
B184: 帯広畜産大学 | C184: 57 | D184: 524000
B185: 兵庫医科大学 | C185: 56 | D185: 5620000
B186: 室蘭工業大学 | C186: 55 | D186: 1000
B187: 秋田県立大学 | C187: 54 | D187: 2624000
B188: 東洋大学 | C188: 53 | D188: 2185000
B189: 立教大学 | C189: 53 | D189: 8000
B190: 聖マリアンナ医科大学 | C190: 50 | D190: 109000
B191: 法政大学 | C191: 49 | D191: 874000
B192: お茶の水女子大学 | C192: 49 | D192: 5000
B193: 会津大学 | C193: 48 | D193: 132000
B194: 玉川大学 | C194: 48 | D194: 125000
B195: 関西医科大学 | C195: 47 | D195: 3568000
B196: 甲南大学 | C196: 45 | D196: 1103000
B197: 大阪工業大学 | C197: 44 | D197: 0
B198: 龍谷大学 | C198: 43 | D198: 168000
B199: 広島市立大学 | C199: 43 | D199: 0
B200: 産業医科大学 | C200: 42 | D200: 1006000
B201: 工学院大学 | C201: 41 | D201: 1396000
B202: 北九州市立大学 | C202: 37 | D202: 5488000
B203: 東京農業大学 | C203: 37 | D203: 473000
B204: 鈴鹿工業高等専門学校 | C204: 34 | D204: 74000
B205: 青山学院大学 | C205: 34 | D205: 0
B206: 昭和大学 | C206: 31 | D206: 10595000
B207: 香川高等専門学校 | C207: 31 | D207: 1599000
B208: 麻布大学 | C208: 31 | D208: 797000
B209: 県立広島大学 | C209: 31 | D209: 11000
... 904 more rows

Sheet 帯広畜産大学 (hidden)
A1: 国立 | C1: 帯広畜産大学（北海道） | X1: 大学全体の経営理念における産学官連携活動の取組方針 | CB1: 80 | CC1: 81 | CD1: 82 | CE1: 83 | CF1: 84 | CG1: 85 | CH1: 86 | CI1: 87 | CJ1: 88 | CK1: 89 | CL1: 90 | CM1: 91 | CN1: 92 | CO1: 93 | CP1: 94 | CQ1: 95 | CR1: 96 | CS1: 97 | CT1: 98 | CU1: 99 | CV1: 100 | CW1: 101 | CX1: 102 | CY1: 103 | CZ1: 104 | DA1: 105 | DB1: 106 | DC1: 107 | DD1: 108 | DE1: 109 | DF1: 110 | DG1: 111 | DH1: 112 | DI1: 113 | DJ1: 114 | DK1: 115 | DL1: 116 | DM1: 117 | DN1: 118 | DO1: 119 | DP1: 120 | DQ1: 121 | DR1: 122 | DS1: 123 | DT1: 124 | DU1: 125 | DV1: 126 | DW1: 127 | DX1: 128 | DY1: 129
X2: 教育・研究成果を地域及び国際社会に還元するため、産学官連携活動により「知」の創造サイクルを充実させ、「知的財産の創出及び社会還元」と「地域及び国際社会の産業振興に貢献する人材育成」を目標としている。
BB3: ＵＲＡ | BO3: URA当たり研究者数 | CA3: 戦略的産学連携経費
BC4: 実務担当者数 | BI4: 5 | BN4: 名 | BO4: =IF(OR(K25="",BI4=""),"",(IFERROR(K25/BI4,""))) -> 41 | BX4: 名 | CB4: 戦略的産学連携経費の設定 | CP4: 有 | CT4: 無 | CZ4: ある | DA4: インキュベーション施設
A5: 1 | B5: 2 | C5: 3 | D5: 4 | E5: 5 | F5: 6 | G5: 7 | H5: 8 | I5: 9 | J5: 10 | K5: 11 | L5: 12 | M5: 13 | N5: 14 | O5: 15 | P5: 16 | Q5: 17 | R5: 18 | S5: 19 | T5: 20 | U5: 21 | V5: 22 | W5: 23 | X5: 24 | Y5: 25 | Z5: 26 | AA5: 27 | AB5: 28 | AC5: 29 | AD5: 30 | AE5: 31 | AF5: 32 | AG5: 33 | AH5: 34 | AI5: 35 | AJ5: 36 | AK5: 37 | AL5: 38 | AM5: 39 | AN5: 40 | AO5: 41 | AP5: 42 | AQ5: 43 | AR5: 44 | AS5: 45 | AT5: 46 | AU5: 47 | AV5: 48 | AW5: 49 | AX5: 50 | AY5: 51 | AZ5: 52 | BA5: 53 | BB5: 54 | BC5: 55 | BD5: 56 | BE5: 57 | BF5: 58 | BG5: 59 | BH5: 60 | BI5: 61 | BJ5: 62 | BK5: 63 | BL5: 64 | BM5: 65 | BN5: 66 | BO5: 67 | BP5: 68 | BQ5: 69 | BR5: 70 | BS5: 71 | BT5: 72 | BU5: 73 | BV5: 74 | BW5: 75 | BX5: 76 | BY5: 77 | BZ5: 78 | CA5: 79 | CB5: 戦略的産学連携経費の費目 | CP5: 間接経費 | CZ5: ある | DA5: 相談窓口
A6: 基 礎 情 報 | BB6: 各種規程類の整備状況 | CB6: 戦略的産学連携経費の直接経費に対する割合 | CP6: 0.1 | CZ6: ある | DA6: 設立ポリシー | DI6: ◎ | DJ6: 産学連携ポリシー
BB7: 産学連携ポリシー | BM7: 職務発明規程（教職員のみ対象） | CZ7: ない | DA7: 支援ファンド | DI7: ◎ | DJ7: 知的財産ポリシー
B8: 大学の得意分野とその具体例 | BB8: 知的財産ポリシー | BM8: 職務発明規程（教職員、学生対象） | CA8: 人件費の企業負担 | DI8: ◎ | DJ8: 共同研究取扱規程
B9: 日本の食料基地である北海道十勝地域において、「Farm to Table」の幅広い領域で獣医・農畜産に関する教育研究活動を行っている。敷島製パン㈱との共同研究講座設置による研究促進や㈱満寿屋商店との共同研究成果による新たな製パン法特許とその活用による商品化が進んでいる。 | AA9: 科研費 （千円） | AL9: その他政府系資金 (千円) | AS9: その他団体からの資金 (千円) | BB9: 共同研究取扱規程 | BM9: 発明補償関係規程（教職員のみ対象） | CB9: 教員人件費の企業負担に関する規程や制度 | CP9: 有 | CT9: 無 | DI9: ◎ | DJ9: 受託研究取扱規程
BB10: 受託研究取扱規程 | BM10: 発明補償関係規程（教職員、学生対象） | CB10: 教員人件費の企業負担の費目 | DI10: ◎ | DJ10: 研究成果有体物取扱規程
AA11: 151700 | AL11: 19473 | AS11: 82742 | BB11: 研究成果有体物取扱規程 | BM11: 守秘義務に係る規程（教職員のみ対象） | CB11: 学生人件費の企業負担に関する規程や制度 | CP11: 有 | CT11: 無 | DI11: × | DJ11: 営業秘密管理に関する規程
BB12: 営業秘密管理に関する規程 | BM12: 守秘義務に係る規程（教職員、学生対象） | CB12: 学生人件費の企業負担の費目 | DI12: × | DJ12: 株式の取扱等規程、ポリシー
AA13: 間接経費割合 | AN13: 株式の保有 | AT13: 新株予約権の保有 | BB13: 株式の取扱等規程、ポリシー | DB13: 株式 | DI13: ◎ | DJ13: 職務発明規程（教職員のみ対象）
AA14: 0.1 | AN14: 有 | AQ14: 無 | AT14: 有 | AW14: 無 | BD14: ※各種規定類を整備している場合は、赤色で表示されます。 | CA14: 特別試験研究費税額控除制度 | DB14: 新株予約権 | DI14: × | DJ14: 職務発明規程（教職員、学生対象）
B15: 産学官連携活動において今後重点化したい事項 | CB15: 特別試験研究費税額控除制度の活用 | CP15: 有 | CT15: 無 | DI15: ◎ | DJ15: 発明補償関係規程（教職員のみ対象）
B16: ①商農工の分野融合型研究による持続可能な社会の実現、②「組織」対「組織」による連携、や地域のステークホルダーとの関係強化による、地域ニーズに応じた課題可決型共同研究の推進。 | AA16: ■共同研究 | AG16: 2020年度 | AO16: 2021年度 | AW16: 順位※ | BB16: クロスアポイントメントの実績（人） | BK16: 大学等 | BN16: 公的機関 | BQ16: 民間企業 | BU16: その他機関 | DI16: × | DJ16: 発明補償関係規程（教職員、学生対象）
AG17: 受入額（千円） | AL17: 件数 | AO17: 受入額（千円） | AT17: 件数 | BH17: 受入 | BK17: 0 | BN17: 0 | BQ17: 2 | BU17: 0 | DB17: 順位 | DI17: × | DJ17: 守秘義務に係る規程（教職員のみ対象）
AA18: 全体 | AG18: 138247 | AL18: 133 | AO18: 117753 | AT18: 143 | AW18: =IF(DB18<50,DB18,"") ->  | AY18: 位 | BH18: 派遣 | BK18: 1 | BN18: 0 | BQ18: 0 | BU18: 0 | DB18: 98 | DI18: × | DJ18: 守秘義務に係る規程（教職員、学生対象）
AB19: 民間企業 のみ | AG19: 94874 | AL19: 89 | AO19: 75668 | AT19: 106 | AW19: =IF(DB19<50,DB19,"") ->  | AY19: 位 | DB19: 112
AC20: 大企業 | AG20: 51842 | AL20: 37 | AO20: 44484 | AT20: 48 | AW20: =IF(DB20<50,DB20,"") ->  | AY20: 位 | DB20: 125 | DI20: ある | DJ20: 戦略的産学連携経費の設定
AC21: 中小企業 | AG21: 43032 | AL21: 52 | AO21: 31184 | AT21: 58 | AW21: =IF(DB21<50,DB21,"") ->  | AY21: 位 | BB21: ■組織的産学連携活動の取組事例 | DB21: 80 | DI21: ない | DJ21: 教員人件費の企業負担に関する規程や制度
AL22: ※順位は2021年度の受入額を比較したもの | DI22: ない | DJ22: 学生人件費の企業負担に関する規程や制度
B23: 産学官連携本部等組織名 | K23: 産学連携センター | DB23: 0 | DC23: 25 | DI23: ない | DJ23: 特別試験研究費税額控除制度の活用
B24: 産学官連携本部等URL | K24: https://www.obihiro.ac.jp/facility/crcenter/ | DB24: ～100万 | DC24: 53
B25: 研究者数 | K25: 205 | O25: 名 | DB25: ～300万 | DC25: 26
DB26: ～500万 | DC26: 1
DB27: ～1000万 | DC27: 1
DB28: ～5000万 | DC28: 0
DB29: ～1億 | DC29: 0 | DJ29: 共同研究等の企画・提案
B30: 産学連携担当部署 | O30: 実務者当たり研究者数 | DB30: 1億以上 | DC30: 0 | DJ30: 契約書での成果目標、達成時の明記
C31: 実務担当者数 | I31: 8 | N31: 名 | O31: =IF(OR(K25="",I31=""),"",IFERROR($K$25/I31,"")) -> 25.625 | X31: 名 | DJ31: 共同研究契約の締結/判断（契約権限の集中）
C32: 専門家の配置 | I32: 弁護士 | L32: 弁理士 | O32: 税理士 | R32: 公認会計士 | V32: その他 | DJ32: 共同研究の進捗管理とフィードバック
I33: ※専門家を配置している場合は、赤色で表示されます。 | DJ33: 企業ニーズに適応した技術移転・事業化提案
AA34: ■受託研究 | AG34: 2020年度 | AO34: 2021年度 | AW34: 順位※ | DJ34: 共同研究等の企画・提案
AG35: 受入額（千円） | AL35: 件数（件） | AO35: 受入額（千円） | AT35: 件数（件） | DB35: 順位 | DJ35: 契約書での成果目標、達成時の明記
AA36: 全体 | AG36: 56424 | AL36: 32 | AO36: 51296 | AT36: 30 | AW36: =IF(DB36<50,DB36,"") ->  | AY36: 位 | DB36: 178 | DJ36: 共同研究契約の締結/判断（契約権限の集中）
AB37: 民間企業 のみ | AG37: 7073 | AL37: 4 | AO37: 10390 | AT37: 5 | AW37: =IF(DB37<50,DB37,"") ->  | AY37: 位 | DB37: 154 | DJ37: 共同研究の進捗管理とフィードバック
C38: 産学連携本部が関与した共同研究 | P38: 0 | T38: 件 | AC38: 大企業 | AG38: 4470 | AL38: 3 | AO38: 10390 | AT38: 5 | AW38: =IF(DB38<50,DB38,"") ->  | AY38: 位 | DB38: 135 | DJ38: 企業ニーズに適応した技術移転・事業化提案
D39: 内、マッチングを行い、契約締結した件数 | P39: 0 | T39: 件 | AC39: 中小企業 | AG39: 2603 | AL39: 1 | AO39: 0 | AT39: 0 | AW39: =IF(DB39<50,DB39,"") ->  | AY39: 位 | BB39: ■産学連携活動の主な実用化事例 | DB39: 318 | DJ39: 共同研究等の企画・提案
I40: ※1,000万円以上の共同研究 | AL40: ※順位は2021年度の受入額を比較したもの | DB40: 弁護士 | DG40: 0 | DH40: 0 | DJ40: 契約書での成果目標、達成時の明記
DB41: 弁理士 | DG41: ～100万 | DH41: 2 | DJ41: 共同研究契約の締結/判断（契約権限の集中）
C42: 組織対組織による包括連携契約の締結数 | P42: 7 | T42: 件 | DB42: 税理士 | DG42: ～300万 | DH42: 2 | DJ42: 共同研究の進捗管理とフィードバック
D43: 内、1,000万円以上の実績がある相手方数 | P43: 0 | T43: 件 | DB43: 公認会計士 | DG43: ～500万 | DH43: 0 | DJ43: 企業ニーズに適応した技術移転・事業化提案
DA44: ○ | DB44: その他 | DG44: ～1000万 | DH44: 1
C45: 寄附講座・寄附研究部門の受入件数 | P45: 3 | V45: 件 | DG45: ～5000万 | DH45: 0
C46: 寄附講座・寄附研究部門の受入金額（千円） | P46: 48400 | DG46: ～1億 | DH46: 0
C47: 共同研究講座・共同研究部門の受入件数 | P47: 1 | V47: 件 | DG47: 1億以上 | DH47: 0
C48: 共同研究講座・共同研究部門の受入金額（千円） | P48: 2200
C52: 職務発明の帰属 | I52: 大学 | M52: 発明者 | Q52: 未設定 | CZ52: 大学 | DA52: 職務発明
AD53: 特許権実施等件数 | AL53: 21 | AQ53: 件 | AS53: 実施等件数 あたり | DA53: 不実施
M54: 研究者あたり | AD54: 特許権実施等収入（千円） | AL54: 524 | AS54: =IF(OR(AL53="",AL54=""),"",IFERROR(AL54/AL53,"")) -> 24.95238095 | CZ54: 524000 | DA54: 特許等収入
C55: 特許出願件数（件） | I55: 8 | M55: =IF(OR(K25="",I55=""),"",IFERROR(I55/K25,"")) -> 0.03902439024
C56: 特許保有件数（件） | I56: 57 | M56: =IF(OR(K25="",I56=""),"",IFERROR(I56/K25,"")) -> 0.2780487805
C61: 大学発ベンチャー数 | J61: 1 | O61: 社
C62: Exit件数（IPO） | J62: 0 | O62: 社 | P62: Exit件数（M&A） | W62: 0 | Z62: 社
C63: 相談窓口 | K63: 支援ファンド | S63: インキュベーション施設
C64: 有 | G64: 無 | K64: 有 | O64: 無 | S64: 有 | W64: 無
C65: 知的財産戦略方針 | K65: 支援総額（千円） | S65: 面積 | W65: 38 | Z65: 平方メートル
C66: 有 | G66: 無 | S66: 契約企業数 | W66: 1 | Z66: 社
A69: 1 | B69: 2 | C69: 3 | D69: 4 | E69: 5 | F69: 6 | G69: 7 | H69: 8 | I69: 9 | J69: 10 | K69: 11 | L69: 12 | M69: 13 | N69: 14 | O69: 15 | P69: 16 | Q69: 17 | R69: 18 | S69: 19 | T69: 20 | U69: 21 | V69: 22 | W69: 23 | X69: 24 | Y69: 25 | Z69: 26 | AA69: 27 | AB69: 28 | AC69: 29 | AD69: 30 | AE69: 31 | AF69: 32 | AG69: 33 | AH69: 34 | AI69: 35 | AJ69: 36 | AK69: 37 | AL69: 38 | AM69: 39 | AN69: 40 | AO69: 41 | AP69: 42 | AQ69: 43 | AR69: 44 | AS69: 45 | AT69: 46 | AU69: 47 | AV69: 48 | AW69: 49 | AX69: 50 | AY69: 51 | AZ69: 52 | BA69: 53 | BB69: 54 | BC69: 55 | BD69: 56 | BE69: 57 | BF69: 58 | BG69: 59 | BH69: 60 | BI69: 61 | BJ69: 62 | BK69: 63 | BL69: 64 | BM69: 65 | BN69: 66 | BO69: 67 | BP69: 68 | BQ69: 69 | BR69: 70 | BS69: 71 | BT69: 72 | BU69: 73 | BV69: 74 | BW69: 75 | BX69: 76 | BY69: 77 | BZ69: 78 | CA69: 79 | CB69: 80 | CC69: 81 | CD69: 82 | CE69: 83 | CF69: 84 | CG69: 85 | CH69: 86 | CI69: 87 | CJ69: 88 | CK69: 89 | CL69: 90 | CM69: 91 | CN69: 92 | CO69: 93 | CP69: 94 | CQ69: 95 | CR69: 96 | CS69: 97 | CT69: 98 | CU69: 99 | CV69: 100 | CW69: 101 | CX69: 102 | CY69: 103 | CZ69: 104 | DA69: 105 | DB69: 106 | DC69: 107 | DD69: 108 | DE69: 109 | DF69: 110 | DG69: 111 | DH69: 112 | DI69: 113 | DJ69: 114 | DK69: 115 | DL69: 116 | DM69: 117 | DN69: 118 | DO69: 119 | DP69: 120 | DQ69: 121 | DR69: 122 | DS69: 123 | DT69: 124 | DU69: 125
D70: 特許権収入
B71: 東京大学 | C71: 4744 | D71: 557703000
B72: 東北大学 | C72: 3726 | D72: 275164000
B73: 大阪大学 | C73: 3253 | D73: 395417000
B74: 京都大学 | C74: 3217 | D74: 886135000
B75: 東京工業大学 | C75: 2019 | D75: 42504000
B76: 九州大学 | C76: 1733 | D76: 142436000
B77: 名古屋大学 | C77: 1496 | D77: 72276000
B78: 北海道大学 | C78: 1219 | D78: 115470000
B79: 信州大学 | C79: 1047 | D79: 32411000
B80: 広島大学 | C80: 1019 | D80: 44418000
B81: 筑波大学 | C81: 892 | D81: 27835000
B82: 慶應義塾大学 | C82: 856 | D82: 58283000
B83: 千葉大学 | C83: 851 | D83: 9761000
B84: 岡山大学 | C84: 739 | D84: 21802000
B85: 山口大学 | C85: 711 | D85: 26145000
B86: 東京農工大学 | C86: 667 | D86: 10063000
B87: 名古屋工業大学 | C87: 660 | D87: 23496000
B88: 東京理科大学 | C88: 629 | D88: 11695000
B89: 九州工業大学 | C89: 607 | D89: 5845000
B90: 神戸大学 | C90: 581 | D90: 104449000
B91: 熊本大学 | C91: 543 | D91: 19748000
B92: 群馬大学 | C92: 536 | D92: 3598000
B93: 静岡大学 | C93: 523 | D93: 2662000
B94: 横浜国立大学 | C94: 509 | D94: 4920000
B95: 大阪公立大学（大阪府立大学） | C95: 502 | D95: 8255000
B96: 近畿大学 | C96: 488 | D96: 26794000
B97: 鹿児島大学 | C97: 458 | D97: 8269000
B98: 長岡技術科学大学 | C98: 440 | D98: 2979000
B99: 奈良先端科学技術大学院大学 | C99: 435 | D99: 3758000
B100: 東京都立大学 | C100: 435 | D100: 1170000
B101: 山梨大学 | C101: 426 | D101: 28912000
B102: 大阪公立大学（大阪市立大学） | C102: 423 | D102: 3124000
B103: 三重大学 | C103: 422 | D103: 20215000
B104: 東京医科歯科大学 | C104: 418 | D104: 74575000
B105: 電気通信大学 | C105: 406 | D105: 2740000
B106: 豊橋技術科学大学 | C106: 395 | D106: 7491000
B107: 関西大学 | C107: 392 | D107: 5519000
B108: 徳島大学 | C108: 385 | D108: 26218000
B109: 金沢大学 | C109: 360 | D109: 14331000
B110: 北里大学 | C110: 350 | D110: 47578000
B111: 香川大学 | C111: 343 | D111: 13987000
B112: 鳥取大学 | C112: 341 | D112: 5178000
B113: 新潟大学 | C113: 323 | D113: 11052000
B114: 富山大学 | C114: 319 | D114: 21312000
B115: 埼玉大学 | C115: 314 | D115: 2129000
B116: 同志社大学 | C116: 310 | D116: 26699000
B117: 日本大学 | C117: 306 | D117: 50528000
B118: 高知大学 | C118: 296 | D118: 22439000
B119: 立命館大学 | C119: 283 | D119: 5079000
B120: 自然科学研究機構 | C120: 278 | D120: 23513000
B121: 弘前大学 | C121: 261 | D121: 6272000
B122: 岐阜大学 | C122: 260 | D122: 9851000
B123: 宮崎大学 | C123: 257 | D123: 2044000
B124: 神奈川大学 | C124: 254 | D124: 4373000
B125: 兵庫県立大学 | C125: 248 | D125: 37000
B126: 秋田大学 | C126: 242 | D126: 245000
B127: 佐賀大学 | C127: 239 | D127: 6705000
B128: 福井大学 | C128: 239 | D128: 3402000
B129: 東海大学 | C129: 238 | D129: 771000
B130: 山形大学 | C130: 237 | D130: 3491000
B131: 横浜市立大学 | C131: 234 | D131: 25613000
B132: 札幌医科大学 | C132: 229 | D132: 28223000
B133: 京都工芸繊維大学 | C133: 224 | D133: 2740000
B134: 名城大学 | C134: 224 | D134: 475000
B135: 千葉工業大学 | C135: 210 | D135: 22544000
B136: 情報・システム研究機構 | C136: 208 | D136: 5139000
B137: 長崎大学 | C137: 201 | D137: 14882000
B138: 東京海洋大学 | C138: 194 | D138: 2761000
B139: 愛媛大学 | C139: 188 | D139: 18823000
B140: 東京女子医科大学 | C140: 188 | D140: 2124000
B141: 岩手大学 | C141: 188 | D141: 1268000
B142: 北陸先端科学技術大学院大学 | C142: 182 | D142: 7446000
B143: 福岡大学 | C143: 178 | D143: 1047000
B144: 沖縄科学技術大学院大学 | C144: 173 | D144: 1100000
B145: 高知工科大学 | C145: 169 | D145: 45000
B146: 宇都宮大学 | C146: 168 | D146: 7200000
B147: 茨城大学 | C147: 167 | D147: 1237000
B148: 金沢工業大学 | C148: 151 | D148: 3018000
B149: 中央大学 | C149: 151 | D149: 2106000
B150: 大分大学 | C150: 148 | D150: 1748000
B151: 京都府立医科大学 | C151: 147 | D151: 11367000
B152: 関西学院大学 | C152: 146 | D152: 16773000
B153: 滋賀医科大学 | C153: 141 | D153: 5086000
B154: 自治医科大学 | C154: 140 | D154: 10251000
B155: 島根大学 | C155: 140 | D155: 1478000
B156: 上智大学 | C156: 140 | D156: 200000
B157: 浜松医科大学 | C157: 135 | D157: 3613000
B158: 高エネルギー加速器研究機構 | C158: 135 | D158: 712000
B159: 順天堂大学 | C159: 132 | D159: 5278000
B160: 中部大学 | C160: 122 | D160: 1378000
B161: 名古屋市立大学 | C161: 114 | D161: 38831000
B162: 久留米大学 | C162: 112 | D162: 902000
B163: 豊田工業大学 | C163: 109 | D163: 0
B164: 芝浦工業大学 | C164: 103 | D164: 1238000
B165: 東京電機大学 | C165: 102 | D165: 3875000
B166: 埼玉医科大学 | C166: 99 | D166: 8849000
B167: 関東学院大学 | C167: 97 | D167: 9990000
B168: 琉球大学 | C168: 92 | D168: 1146000
B169: 明治大学 | C169: 91 | D169: 4260000
B170: 北見工業大学 | C170: 91 | D170: 753000
B171: 和歌山大学 | C171: 88 | D171: 3592000
B172: 富山県立大学 | C172: 86 | D172: 1957000
B173: 静岡県立大学 | C173: 84 | D173: 1231000
B174: 神奈川工科大学 | C174: 83 | D174: 289000
B175: 藤田医科大学 | C175: 80 | D175: 0
B176: 福岡工業大学 | C176: 69 | D176: 0
B177: 早稲田大学 | C177: 66 | D177: 19945000
B178: 福島大学 | C178: 65 | D178: 217000
B179: 帝京大学 | C179: 62 | D179: 2716000
B180: 岡山理科大学 | C180: 59 | D180: 1200000
B181: 日本医科大学 | C181: 58 | D181: 7708000
B182: 奈良県立医科大学 | C182: 58 | D182: 1283000
B183: 旭川医科大学 | C183: 58 | D183: 700000
B184: 帯広畜産大学 | C184: 57 | D184: 524000
B185: 兵庫医科大学 | C185: 56 | D185: 5620000
B186: 室蘭工業大学 | C186: 55 | D186: 1000
B187: 秋田県立大学 | C187: 54 | D187: 2624000
B188: 東洋大学 | C188: 53 | D188: 2185000
B189: 立教大学 | C189: 53 | D189: 8000
B190: 聖マリアンナ医科大学 | C190: 50 | D190: 109000
B191: 法政大学 | C191: 49 | D191: 874000
B192: お茶の水女子大学 | C192: 49 | D192: 5000
B193: 会津大学 | C193: 48 | D193: 132000
B194: 玉川大学 | C194: 48 | D194: 125000
B195: 関西医科大学 | C195: 47 | D195: 3568000
B196: 甲南大学 | C196: 45 | D196: 1103000
B197: 大阪工業大学 | C197: 44 | D197: 0
B198: 龍谷大学 | C198: 43 | D198: 168000
B199: 広島市立大学 | C199: 43 | D199: 0
B200: 産業医科大学 | C200: 42 | D200: 1006000
B201: 工学院大学 | C201: 41 | D201: 1396000
B202: 北九州市立大学 | C202: 37 | D202: 5488000
B203: 東京農業大学 | C203: 37 | D203: 473000
B204: 鈴鹿工業高等専門学校 | C204: 34 | D204: 74000
B205: 青山学院大学 | C205: 34 | D205: 0
B206: 昭和大学 | C206: 31 | D206: 10595000
B207: 香川高等専門学校 | C207: 31 | D207: 1599000
B208: 麻布大学 | C208: 31 | D208: 797000
B209: 県立広島大学 | C209: 31 | D209: 11000
... 904 more rows

Sheet 香川大学 (hidden)
A1: 国立 | C1: 香川大学（香川県） | X1: 大学全体の経営理念における産学官連携活動の取組方針 | CB1: 80 | CC1: 81 | CD1: 82 | CE1: 83 | CF1: 84 | CG1: 85 | CH1: 86 | CI1: 87 | CJ1: 88 | CK1: 89 | CL1: 90 | CM1: 91 | CN1: 92 | CO1: 93 | CP1: 94 | CQ1: 95 | CR1: 96 | CS1: 97 | CT1: 98 | CU1: 99 | CV1: 100 | CW1: 101 | CX1: 102 | CY1: 103 | CZ1: 104 | DA1: 105 | DB1: 106 | DC1: 107 | DD1: 108 | DE1: 109 | DF1: 110 | DG1: 111 | DH1: 112 | DI1: 113 | DJ1: 114 | DK1: 115 | DL1: 116 | DM1: 117 | DN1: 118 | DO1: 119 | DP1: 120 | DQ1: 121 | DR1: 122 | DS1: 123 | DT1: 124 | DU1: 125 | DV1: 126 | DW1: 127 | DX1: 128 | DY1: 129
X2: 地方総合大学としての組織的な対応力強化と地域企業や社会還元に広く貢献させることを最重要課題としている。技術シーズの価値を最大化するため、従来競合となり得る企業間の橋渡し機能を果たし、オープンイノベーションを推進する。
BB3: ＵＲＡ | BO3: URA当たり研究者数 | CA3: 戦略的産学連携経費
BC4: 実務担当者数 | BI4: 6 | BN4: 名 | BO4: =IF(OR(K25="",BI4=""),"",(IFERROR(K25/BI4,""))) -> 124.8333333 | BX4: 名 | CB4: 戦略的産学連携経費の設定 | CP4: 有 | CT4: 無 | CZ4: ない | DA4: インキュベーション施設
A5: 1 | B5: 2 | C5: 3 | D5: 4 | E5: 5 | F5: 6 | G5: 7 | H5: 8 | I5: 9 | J5: 10 | K5: 11 | L5: 12 | M5: 13 | N5: 14 | O5: 15 | P5: 16 | Q5: 17 | R5: 18 | S5: 19 | T5: 20 | U5: 21 | V5: 22 | W5: 23 | X5: 24 | Y5: 25 | Z5: 26 | AA5: 27 | AB5: 28 | AC5: 29 | AD5: 30 | AE5: 31 | AF5: 32 | AG5: 33 | AH5: 34 | AI5: 35 | AJ5: 36 | AK5: 37 | AL5: 38 | AM5: 39 | AN5: 40 | AO5: 41 | AP5: 42 | AQ5: 43 | AR5: 44 | AS5: 45 | AT5: 46 | AU5: 47 | AV5: 48 | AW5: 49 | AX5: 50 | AY5: 51 | AZ5: 52 | BA5: 53 | BB5: 54 | BC5: 55 | BD5: 56 | BE5: 57 | BF5: 58 | BG5: 59 | BH5: 60 | BI5: 61 | BJ5: 62 | BK5: 63 | BL5: 64 | BM5: 65 | BN5: 66 | BO5: 67 | BP5: 68 | BQ5: 69 | BR5: 70 | BS5: 71 | BT5: 72 | BU5: 73 | BV5: 74 | BW5: 75 | BX5: 76 | BY5: 77 | BZ5: 78 | CA5: 79 | CB5: 戦略的産学連携経費の費目 | CZ5: ある | DA5: 相談窓口
A6: 基 礎 情 報 | BB6: 各種規程類の整備状況 | CB6: 戦略的産学連携経費の直接経費に対する割合 | CZ6: ある | DA6: 設立ポリシー | DI6: × | DJ6: 産学連携ポリシー
BB7: 産学連携ポリシー | BM7: 職務発明規程（教職員のみ対象） | CZ7: ない | DA7: 支援ファンド | DI7: ◎ | DJ7: 知的財産ポリシー
B8: 大学の得意分野とその具体例 | BB8: 知的財産ポリシー | BM8: 職務発明規程（教職員、学生対象） | CA8: 人件費の企業負担 | DI8: ◎ | DJ8: 共同研究取扱規程
B9: 香川大学では基礎研究から生まれる成果を長期的な視点で大学単独で権利化し、実用化に向けた産学官連携を推進しており、希少糖研究をはじめ、光学センシング技術のほか、学部横断や多分野の産業界との協働と拠点形成を実現している。 | AA9: 科研費 （千円） | AL9: その他政府系資金 (千円) | AS9: その他団体からの資金 (千円) | BB9: 共同研究取扱規程 | BM9: 発明補償関係規程（教職員のみ対象） | CB9: 教員人件費の企業負担に関する規程や制度 | CP9: 有 | CT9: 無 | DI9: ◎ | DJ9: 受託研究取扱規程
BB10: 受託研究取扱規程 | BM10: 発明補償関係規程（教職員、学生対象） | CB10: 教員人件費の企業負担の費目 | CP10: その他 | DI10: ◎ | DJ10: 研究成果有体物取扱規程
AA11: 437937 | AL11: 8645 | AS11: 48325 | BB11: 研究成果有体物取扱規程 | BM11: 守秘義務に係る規程（教職員のみ対象） | CB11: 学生人件費の企業負担に関する規程や制度 | CP11: 有 | CT11: 無 | DI11: × | DJ11: 営業秘密管理に関する規程
BB12: 営業秘密管理に関する規程 | BM12: 守秘義務に係る規程（教職員、学生対象） | CB12: 学生人件費の企業負担の費目 | DI12: × | DJ12: 株式の取扱等規程、ポリシー
AA13: 間接経費割合 | AN13: 株式の保有 | AT13: 新株予約権の保有 | BB13: 株式の取扱等規程、ポリシー | DA13: ○ | DB13: 株式 | DI13: ◎ | DJ13: 職務発明規程（教職員のみ対象）
AA14: 0.3 | AN14: 有 | AQ14: 無 | AT14: 有 | AW14: 無 | BD14: ※各種規定類を整備している場合は、赤色で表示されます。 | CA14: 特別試験研究費税額控除制度 | DB14: 新株予約権 | DI14: × | DJ14: 職務発明規程（教職員、学生対象）
B15: 産学官連携活動において今後重点化したい事項 | CB15: 特別試験研究費税額控除制度の活用 | CP15: 有 | CT15: 無 | DI15: × | DJ15: 発明補償関係規程（教職員のみ対象）
B16: 大学が基幹技術を有しての産学官連携の場合、地域企業や多数の企業が参画しての協働体制が構築しづらい側面もある。今後の取組みでは、人文社会系の専門家も参画しての総合大学としての強みを活かし、戦略的で主導的な協働体制の確立を目指したい。 | AA16: ■共同研究 | AG16: 2020年度 | AO16: 2021年度 | AW16: 順位※ | BB16: クロスアポイントメントの実績（人） | BK16: 大学等 | BN16: 公的機関 | BQ16: 民間企業 | BU16: その他機関 | DI16: ◎ | DJ16: 発明補償関係規程（教職員、学生対象）
AG17: 受入額（千円） | AL17: 件数 | AO17: 受入額（千円） | AT17: 件数 | BH17: 受入 | BK17: 0 | BN17: 0 | BQ17: 3 | BU17: 0 | DB17: 順位 | DI17: ◎ | DJ17: 守秘義務に係る規程（教職員のみ対象）
AA18: 全体 | AG18: 139017 | AL18: 134 | AO18: 129171 | AT18: 202 | AW18: =IF(DB18<50,DB18,"") ->  | AY18: 位 | BH18: 派遣 | BK18: 0 | BN18: 0 | BQ18: 1 | BU18: 3 | DB18: 91 | DI18: × | DJ18: 守秘義務に係る規程（教職員、学生対象）
AB19: 民間企業 のみ | AG19: 112477 | AL19: 120 | AO19: 106620 | AT19: 137 | AW19: =IF(DB19<50,DB19,"") ->  | AY19: 位 | DB19: 97
AC20: 大企業 | AG20: 44757 | AL20: 45 | AO20: 64490 | AT20: 65 | AW20: =IF(DB20<50,DB20,"") ->  | AY20: 位 | DB20: 106 | DI20: ない | DJ20: 戦略的産学連携経費の設定
AC21: 中小企業 | AG21: 45212 | AL21: 59 | AO21: 42130 | AT21: 72 | AW21: =IF(DB21<50,DB21,"") ->  | AY21: 位 | BB21: ■組織的産学連携活動の取組事例 | DB21: 69 | DI21: ある | DJ21: 教員人件費の企業負担に関する規程や制度
AL22: ※順位は2021年度の受入額を比較したもの | DI22: ない | DJ22: 学生人件費の企業負担に関する規程や制度
B23: 産学官連携本部等組織名 | K23: 産学連携・知的財産センター | DB23: 0 | DC23: 60 | DI23: ある | DJ23: 特別試験研究費税額控除制度の活用
B24: 産学官連携本部等URL | K24: https://www.kagawa-u.ac.jp/faculty/centers/23894/ | DB24: ～100万 | DC24: 34
B25: 研究者数 | K25: 749 | O25: 名 | DB25: ～300万 | DC25: 35
DB26: ～500万 | DC26: 5
DB27: ～1000万 | DC27: 3
DB28: ～5000万 | DC28: 0
DB29: ～1億 | DC29: 0 | DJ29: 共同研究等の企画・提案
B30: 産学連携担当部署 | O30: 実務者当たり研究者数 | DB30: 1億以上 | DC30: 0 | DJ30: 契約書での成果目標、達成時の明記
C31: 実務担当者数 | I31: 15 | N31: 名 | O31: =IF(OR(K25="",I31=""),"",IFERROR($K$25/I31,"")) -> 49.93333333 | X31: 名 | DJ31: 共同研究契約の締結/判断（契約権限の集中）
C32: 専門家の配置 | I32: 弁護士 | L32: 弁理士 | O32: 税理士 | R32: 公認会計士 | V32: その他 | DJ32: 共同研究の進捗管理とフィードバック
I33: ※専門家を配置している場合は、赤色で表示されます。 | DJ33: 企業ニーズに適応した技術移転・事業化提案
AA34: ■受託研究 | AG34: 2020年度 | AO34: 2021年度 | AW34: 順位※ | DJ34: 共同研究等の企画・提案
AG35: 受入額（千円） | AL35: 件数（件） | AO35: 受入額（千円） | AT35: 件数（件） | DB35: 順位 | DJ35: 契約書での成果目標、達成時の明記
AA36: 全体 | AG36: 209038 | AL36: 130 | AO36: 309052 | AT36: 149 | AW36: =IF(DB36<50,DB36,"") ->  | AY36: 位 | DB36: 99 | DJ36: 共同研究契約の締結/判断（契約権限の集中）
AB37: 民間企業 のみ | AG37: 14494 | AL37: 34 | AO37: 14626 | AT37: 43 | AW37: =IF(DB37<50,DB37,"") ->  | AY37: 位 | DB37: 133 | DJ37: 共同研究の進捗管理とフィードバック
C38: 産学連携本部が関与した共同研究 | P38: 0 | T38: 件 | AC38: 大企業 | AG38: 7133 | AL38: 24 | AO38: 10599 | AT38: 26 | AW38: =IF(DB38<50,DB38,"") ->  | AY38: 位 | DB38: 133 | DJ38: 企業ニーズに適応した技術移転・事業化提案
D39: 内、マッチングを行い、契約締結した件数 | P39: 0 | T39: 件 | AC39: 中小企業 | AG39: 4660 | AL39: 5 | AO39: 4027 | AT39: 17 | AW39: =IF(DB39<50,DB39,"") ->  | AY39: 位 | BB39: ■産学連携活動の主な実用化事例 | DB39: 115 | DJ39: 共同研究等の企画・提案
I40: ※1,000万円以上の共同研究 | AL40: ※順位は2021年度の受入額を比較したもの | DB40: 弁護士 | DG40: 0 | DH40: 28 | DJ40: 契約書での成果目標、達成時の明記
DA41: ○ | DB41: 弁理士 | DG41: ～100万 | DH41: 8 | DJ41: 共同研究契約の締結/判断（契約権限の集中）
C42: 組織対組織による包括連携契約の締結数 | P42: 18 | T42: 件 | DB42: 税理士 | DG42: ～300万 | DH42: 6 | DJ42: 共同研究の進捗管理とフィードバック
D43: 内、1,000万円以上の実績がある相手方数 | P43: 0 | T43: 件 | DB43: 公認会計士 | DG43: ～500万 | DH43: 0 | DJ43: 企業ニーズに適応した技術移転・事業化提案
DA44: ○ | DB44: その他 | DG44: ～1000万 | DH44: 1
C45: 寄附講座・寄附研究部門の受入件数 | P45: 9 | V45: 件 | DG45: ～5000万 | DH45: 0
C46: 寄附講座・寄附研究部門の受入金額（千円） | P46: 278290 | DG46: ～1億 | DH46: 0
C47: 共同研究講座・共同研究部門の受入件数 | P47: 0 | V47: 件 | DG47: 1億以上 | DH47: 0
C48: 共同研究講座・共同研究部門の受入金額（千円） | P48: 0
C52: 職務発明の帰属 | I52: 大学 | M52: 発明者 | Q52: 未設定 | CZ52: 大学 | DA52: 職務発明
AD53: 特許権実施等件数 | AL53: 147 | AQ53: 件 | AS53: 実施等件数 あたり | DA53: 不実施
M54: 研究者あたり | AD54: 特許権実施等収入（千円） | AL54: 13987 | AS54: =IF(OR(AL53="",AL54=""),"",IFERROR(AL54/AL53,"")) -> 95.14965986 | CZ54: 13987000 | DA54: 特許等収入
C55: 特許出願件数（件） | I55: 80 | M55: =IF(OR(K25="",I55=""),"",IFERROR(I55/K25,"")) -> 0.1068090788
C56: 特許保有件数（件） | I56: 343 | M56: =IF(OR(K25="",I56=""),"",IFERROR(I56/K25,"")) -> 0.4579439252
C61: 大学発ベンチャー数 | J61: 4 | O61: 社
C62: Exit件数（IPO） | J62: 0 | O62: 社 | P62: Exit件数（M&A） | W62: 0 | Z62: 社
C63: 相談窓口 | K63: 支援ファンド | S63: インキュベーション施設
C64: 有 | G64: 無 | K64: 有 | O64: 無 | S64: 有 | W64: 無
C65: 知的財産戦略方針 | K65: 支援総額（千円） | S65: 面積 | Z65: 平方メートル
C66: 有 | G66: 無 | S66: 契約企業数 | Z66: 社
A69: 1 | B69: 2 | C69: 3 | D69: 4 | E69: 5 | F69: 6 | G69: 7 | H69: 8 | I69: 9 | J69: 10 | K69: 11 | L69: 12 | M69: 13 | N69: 14 | O69: 15 | P69: 16 | Q69: 17 | R69: 18 | S69: 19 | T69: 20 | U69: 21 | V69: 22 | W69: 23 | X69: 24 | Y69: 25 | Z69: 26 | AA69: 27 | AB69: 28 | AC69: 29 | AD69: 30 | AE69: 31 | AF69: 32 | AG69: 33 | AH69: 34 | AI69: 35 | AJ69: 36 | AK69: 37 | AL69: 38 | AM69: 39 | AN69: 40 | AO69: 41 | AP69: 42 | AQ69: 43 | AR69: 44 | AS69: 45 | AT69: 46 | AU69: 47 | AV69: 48 | AW69: 49 | AX69: 50 | AY69: 51 | AZ69: 52 | BA69: 53 | BB69: 54 | BC69: 55 | BD69: 56 | BE69: 57 | BF69: 58 | BG69: 59 | BH69: 60 | BI69: 61 | BJ69: 62 | BK69: 63 | BL69: 64 | BM69: 65 | BN69: 66 | BO69: 67 | BP69: 68 | BQ69: 69 | BR69: 70 | BS69: 71 | BT69: 72 | BU69: 73 | BV69: 74 | BW69: 75 | BX69: 76 | BY69: 77 | BZ69: 78 | CA69: 79 | CB69: 80 | CC69: 81 | CD69: 82 | CE69: 83 | CF69: 84 | CG69: 85 | CH69: 86 | CI69: 87 | CJ69: 88 | CK69: 89 | CL69: 90 | CM69: 91 | CN69: 92 | CO69: 93 | CP69: 94 | CQ69: 95 | CR69: 96 | CS69: 97 | CT69: 98 | CU69: 99 | CV69: 100 | CW69: 101 | CX69: 102 | CY69: 103 | CZ69: 104 | DA69: 105 | DB69: 106 | DC69: 107 | DD69: 108 | DE69: 109 | DF69: 110 | DG69: 111 | DH69: 112 | DI69: 113 | DJ69: 114 | DK69: 115 | DL69: 116 | DM69: 117 | DN69: 118 | DO69: 119 | DP69: 120 | DQ69: 121 | DR69: 122 | DS69: 123 | DT69: 124 | DU69: 125
D70: 特許権収入
B71: 東京大学 | C71: 4744 | D71: 557703000
B72: 東北大学 | C72: 3726 | D72: 275164000
B73: 大阪大学 | C73: 3253 | D73: 395417000
B74: 京都大学 | C74: 3217 | D74: 886135000
B75: 東京工業大学 | C75: 2019 | D75: 42504000
B76: 九州大学 | C76: 1733 | D76: 142436000
B77: 名古屋大学 | C77: 1496 | D77: 72276000
B78: 北海道大学 | C78: 1219 | D78: 115470000
B79: 信州大学 | C79: 1047 | D79: 32411000
B80: 広島大学 | C80: 1019 | D80: 44418000
B81: 筑波大学 | C81: 892 | D81: 27835000
B82: 慶應義塾大学 | C82: 856 | D82: 58283000
B83: 千葉大学 | C83: 851 | D83: 9761000
B84: 岡山大学 | C84: 739 | D84: 21802000
B85: 山口大学 | C85: 711 | D85: 26145000
B86: 東京農工大学 | C86: 667 | D86: 10063000
B87: 名古屋工業大学 | C87: 660 | D87: 23496000
B88: 東京理科大学 | C88: 629 | D88: 11695000
B89: 九州工業大学 | C89: 607 | D89: 5845000
B90: 神戸大学 | C90: 581 | D90: 104449000
B91: 熊本大学 | C91: 543 | D91: 19748000
B92: 群馬大学 | C92: 536 | D92: 3598000
B93: 静岡大学 | C93: 523 | D93: 2662000
B94: 横浜国立大学 | C94: 509 | D94: 4920000
B95: 大阪公立大学（大阪府立大学） | C95: 502 | D95: 8255000
B96: 近畿大学 | C96: 488 | D96: 26794000
B97: 鹿児島大学 | C97: 458 | D97: 8269000
B98: 長岡技術科学大学 | C98: 440 | D98: 2979000
B99: 奈良先端科学技術大学院大学 | C99: 435 | D99: 3758000
B100: 東京都立大学 | C100: 435 | D100: 1170000
B101: 山梨大学 | C101: 426 | D101: 28912000
B102: 大阪公立大学（大阪市立大学） | C102: 423 | D102: 3124000
B103: 三重大学 | C103: 422 | D103: 20215000
B104: 東京医科歯科大学 | C104: 418 | D104: 74575000
B105: 電気通信大学 | C105: 406 | D105: 2740000
B106: 豊橋技術科学大学 | C106: 395 | D106: 7491000
B107: 関西大学 | C107: 392 | D107: 5519000
B108: 徳島大学 | C108: 385 | D108: 26218000
B109: 金沢大学 | C109: 360 | D109: 14331000
B110: 北里大学 | C110: 350 | D110: 47578000
B111: 香川大学 | C111: 343 | D111: 13987000
B112: 鳥取大学 | C112: 341 | D112: 5178000
B113: 新潟大学 | C113: 323 | D113: 11052000
B114: 富山大学 | C114: 319 | D114: 21312000
B115: 埼玉大学 | C115: 314 | D115: 2129000
B116: 同志社大学 | C116: 310 | D116: 26699000
B117: 日本大学 | C117: 306 | D117: 50528000
B118: 高知大学 | C118: 296 | D118: 22439000
B119: 立命館大学 | C119: 283 | D119: 5079000
B120: 自然科学研究機構 | C120: 278 | D120: 23513000
B121: 弘前大学 | C121: 261 | D121: 6272000
B122: 岐阜大学 | C122: 260 | D122: 9851000
B123: 宮崎大学 | C123: 257 | D123: 2044000
B124: 神奈川大学 | C124: 254 | D124: 4373000
B125: 兵庫県立大学 | C125: 248 | D125: 37000
B126: 秋田大学 | C126: 242 | D126: 245000
B127: 佐賀大学 | C127: 239 | D127: 6705000
B128: 福井大学 | C128: 239 | D128: 3402000
B129: 東海大学 | C129: 238 | D129: 771000
B130: 山形大学 | C130: 237 | D130: 3491000
B131: 横浜市立大学 | C131: 234 | D131: 25613000
B132: 札幌医科大学 | C132: 229 | D132: 28223000
B133: 京都工芸繊維大学 | C133: 224 | D133: 2740000
B134: 名城大学 | C134: 224 | D134: 475000
B135: 千葉工業大学 | C135: 210 | D135: 22544000
B136: 情報・システム研究機構 | C136: 208 | D136: 5139000
B137: 長崎大学 | C137: 201 | D137: 14882000
B138: 東京海洋大学 | C138: 194 | D138: 2761000
B139: 愛媛大学 | C139: 188 | D139: 18823000
B140: 東京女子医科大学 | C140: 188 | D140: 2124000
B141: 岩手大学 | C141: 188 | D141: 1268000
B142: 北陸先端科学技術大学院大学 | C142: 182 | D142: 7446000
B143: 福岡大学 | C143: 178 | D143: 1047000
B144: 沖縄科学技術大学院大学 | C144: 173 | D144: 1100000
B145: 高知工科大学 | C145: 169 | D145: 45000
B146: 宇都宮大学 | C146: 168 | D146: 7200000
B147: 茨城大学 | C147: 167 | D147: 1237000
B148: 金沢工業大学 | C148: 151 | D148: 3018000
B149: 中央大学 | C149: 151 | D149: 2106000
B150: 大分大学 | C150: 148 | D150: 1748000
B151: 京都府立医科大学 | C151: 147 | D151: 11367000
B152: 関西学院大学 | C152: 146 | D152: 16773000
B153: 滋賀医科大学 | C153: 141 | D153: 5086000
B154: 自治医科大学 | C154: 140 | D154: 10251000
B155: 島根大学 | C155: 140 | D155: 1478000
B156: 上智大学 | C156: 140 | D156: 200000
B157: 浜松医科大学 | C157: 135 | D157: 3613000
B158: 高エネルギー加速器研究機構 | C158: 135 | D158: 712000
B159: 順天堂大学 | C159: 132 | D159: 5278000
B160: 中部大学 | C160: 122 | D160: 1378000
B161: 名古屋市立大学 | C161: 114 | D161: 38831000
B162: 久留米大学 | C162: 112 | D162: 902000
B163: 豊田工業大学 | C163: 109 | D163: 0
B164: 芝浦工業大学 | C164: 103 | D164: 1238000
B165: 東京電機大学 | C165: 102 | D165: 3875000
B166: 埼玉医科大学 | C166: 99 | D166: 8849000
B167: 関東学院大学 | C167: 97 | D167: 9990000
B168: 琉球大学 | C168: 92 | D168: 1146000
B169: 明治大学 | C169: 91 | D169: 4260000
B170: 北見工業大学 | C170: 91 | D170: 753000
B171: 和歌山大学 | C171: 88 | D171: 3592000
B172: 富山県立大学 | C172: 86 | D172: 1957000
B173: 静岡県立大学 | C173: 84 | D173: 1231000
B174: 神奈川工科大学 | C174: 83 | D174: 289000
B175: 藤田医科大学 | C175: 80 | D175: 0
B176: 福岡工業大学 | C176: 69 | D176: 0
B177: 早稲田大学 | C177: 66 | D177: 19945000
B178: 福島大学 | C178: 65 | D178: 217000
B179: 帝京大学 | C179: 62 | D179: 2716000
B180: 岡山理科大学 | C180: 59 | D180: 1200000
B181: 日本医科大学 | C181: 58 | D181: 7708000
B182: 奈良県立医科大学 | C182: 58 | D182: 1283000
B183: 旭川医科大学 | C183: 58 | D183: 700000
B184: 帯広畜産大学 | C184: 57 | D184: 524000
B185: 兵庫医科大学 | C185: 56 | D185: 5620000
B186: 室蘭工業大学 | C186: 55 | D186: 1000
B187: 秋田県立大学 | C187: 54 | D187: 2624000
B188: 東洋大学 | C188: 53 | D188: 2185000
B189: 立教大学 | C189: 53 | D189: 8000
B190: 聖マリアンナ医科大学 | C190: 50 | D190: 109000
B191: 法政大学 | C191: 49 | D191: 874000
B192: お茶の水女子大学 | C192: 49 | D192: 5000
B193: 会津大学 | C193: 48 | D193: 132000
B194: 玉川大学 | C194: 48 | D194: 125000
B195: 関西医科大学 | C195: 47 | D195: 3568000
B196: 甲南大学 | C196: 45 | D196: 1103000
B197: 大阪工業大学 | C197: 44 | D197: 0
B198: 龍谷大学 | C198: 43 | D198: 168000
B199: 広島市立大学 | C199: 43 | D199: 0
B200: 産業医科大学 | C200: 42 | D200: 1006000
B201: 工学院大学 | C201: 41 | D201: 1396000
B202: 北九州市立大学 | C202: 37 | D202: 5488000
B203: 東京農業大学 | C203: 37 | D203: 473000
B204: 鈴鹿工業高等専門学校 | C204: 34 | D204: 74000
B205: 青山学院大学 | C205: 34 | D205: 0
B206: 昭和大学 | C206: 31 | D206: 10595000
B207: 香川高等専門学校 | C207: 31 | D207: 1599000
B208: 麻布大学 | C208: 31 | D208: 797000
B209: 県立広島大学 | C209: 31 | D209: 11000
... 904 more rows

Sheet 鹿児島大学 (hidden)
A1: 国立 | C1: 鹿児島大学（鹿児島県） | X1: 大学全体の経営理念における産学官連携活動の取組方針 | CB1: 80 | CC1: 81 | CD1: 82 | CE1: 83 | CF1: 84 | CG1: 85 | CH1: 86 | CI1: 87 | CJ1: 88 | CK1: 89 | CL1: 90 | CM1: 91 | CN1: 92 | CO1: 93 | CP1: 94 | CQ1: 95 | CR1: 96 | CS1: 97 | CT1: 98 | CU1: 99 | CV1: 100 | CW1: 101 | CX1: 102 | CY1: 103 | CZ1: 104 | DA1: 105 | DB1: 106 | DC1: 107 | DD1: 108 | DE1: 109 | DF1: 110 | DG1: 111 | DH1: 112 | DI1: 113 | DJ1: 114 | DK1: 115 | DL1: 116 | DM1: 117 | DN1: 118 | DO1: 119 | DP1: 120 | DQ1: 121 | DR1: 122 | DS1: 123 | DT1: 124 | DU1: 125 | DV1: 126 | DW1: 127 | DX1: 128 | DY1: 129
X2: 地域ニーズに応じた社会人教育や地域連携の推進，地域課題に応える社会貢献，産学連携の推進を第４期中期目標期間に向けた学長ビジョンに掲げている。
BB3: ＵＲＡ | BO3: URA当たり研究者数 | CA3: 戦略的産学連携経費
BC4: 実務担当者数 | BI4: 11 | BN4: 名 | BO4: =IF(OR(K25="",BI4=""),"",(IFERROR(K25/BI4,""))) -> 100 | BX4: 名 | CB4: 戦略的産学連携経費の設定 | CP4: 有 | CT4: 無 | CZ4: ある | DA4: インキュベーション施設
A5: 1 | B5: 2 | C5: 3 | D5: 4 | E5: 5 | F5: 6 | G5: 7 | H5: 8 | I5: 9 | J5: 10 | K5: 11 | L5: 12 | M5: 13 | N5: 14 | O5: 15 | P5: 16 | Q5: 17 | R5: 18 | S5: 19 | T5: 20 | U5: 21 | V5: 22 | W5: 23 | X5: 24 | Y5: 25 | Z5: 26 | AA5: 27 | AB5: 28 | AC5: 29 | AD5: 30 | AE5: 31 | AF5: 32 | AG5: 33 | AH5: 34 | AI5: 35 | AJ5: 36 | AK5: 37 | AL5: 38 | AM5: 39 | AN5: 40 | AO5: 41 | AP5: 42 | AQ5: 43 | AR5: 44 | AS5: 45 | AT5: 46 | AU5: 47 | AV5: 48 | AW5: 49 | AX5: 50 | AY5: 51 | AZ5: 52 | BA5: 53 | BB5: 54 | BC5: 55 | BD5: 56 | BE5: 57 | BF5: 58 | BG5: 59 | BH5: 60 | BI5: 61 | BJ5: 62 | BK5: 63 | BL5: 64 | BM5: 65 | BN5: 66 | BO5: 67 | BP5: 68 | BQ5: 69 | BR5: 70 | BS5: 71 | BT5: 72 | BU5: 73 | BV5: 74 | BW5: 75 | BX5: 76 | BY5: 77 | BZ5: 78 | CA5: 79 | CB5: 戦略的産学連携経費の費目 | CZ5: ある | DA5: 相談窓口
A6: 基 礎 情 報 | BB6: 各種規程類の整備状況 | CB6: 戦略的産学連携経費の直接経費に対する割合 | CZ6: ある | DA6: 設立ポリシー | DI6: ◎ | DJ6: 産学連携ポリシー
BB7: 産学連携ポリシー | BM7: 職務発明規程（教職員のみ対象） | CZ7: ない | DA7: 支援ファンド | DI7: ◎ | DJ7: 知的財産ポリシー
B8: 大学の得意分野とその具体例 | BB8: 知的財産ポリシー | BM8: 職務発明規程（教職員、学生対象） | CA8: 人件費の企業負担 | DI8: ◎ | DJ8: 共同研究取扱規程
B9: ・農林水畜業のスマート化・情報収集活用 ・ライフサイエンス・創薬 | AA9: 科研費 （千円） | AL9: その他政府系資金 (千円) | AS9: その他団体からの資金 (千円) | BB9: 共同研究取扱規程 | BM9: 発明補償関係規程（教職員のみ対象） | CB9: 教員人件費の企業負担に関する規程や制度 | CP9: 有 | CT9: 無 | DI9: ◎ | DJ9: 受託研究取扱規程
BB10: 受託研究取扱規程 | BM10: 発明補償関係規程（教職員、学生対象） | CB10: 教員人件費の企業負担の費目 | DI10: ◎ | DJ10: 研究成果有体物取扱規程
AA11: 976960 | AL11: 286171 | AS11: 107711 | BB11: 研究成果有体物取扱規程 | BM11: 守秘義務に係る規程（教職員のみ対象） | CB11: 学生人件費の企業負担に関する規程や制度 | CP11: 有 | CT11: 無 | DI11: ◎ | DJ11: 営業秘密管理に関する規程
BB12: 営業秘密管理に関する規程 | BM12: 守秘義務に係る規程（教職員、学生対象） | CB12: 学生人件費の企業負担の費目 | DI12: ◎ | DJ12: 株式の取扱等規程、ポリシー
AA13: 間接経費割合 | AN13: 株式の保有 | AT13: 新株予約権の保有 | BB13: 株式の取扱等規程、ポリシー | DA13: ○ | DB13: 株式 | DI13: ◎ | DJ13: 職務発明規程（教職員のみ対象）
AA14: 0.3 | AN14: 有 | AQ14: 無 | AT14: 有 | AW14: 無 | BD14: ※各種規定類を整備している場合は、赤色で表示されます。 | CA14: 特別試験研究費税額控除制度 | DB14: 新株予約権 | DI14: × | DJ14: 職務発明規程（教職員、学生対象）
B15: 産学官連携活動において今後重点化したい事項 | CB15: 特別試験研究費税額控除制度の活用 | CP15: 有 | CT15: 無 | DI15: ◎ | DJ15: 発明補償関係規程（教職員のみ対象）
B16: ・農林水畜分野と理工学・食品加工・ライフサイエンスの融合研究（ローカル分野） ・ライフサイエンス・創薬分野（グローバル分野） | AA16: ■共同研究 | AG16: 2020年度 | AO16: 2021年度 | AW16: 順位※ | BB16: クロスアポイントメントの実績（人） | BK16: 大学等 | BN16: 公的機関 | BQ16: 民間企業 | BU16: その他機関 | DI16: × | DJ16: 発明補償関係規程（教職員、学生対象）
AG17: 受入額（千円） | AL17: 件数 | AO17: 受入額（千円） | AT17: 件数 | BH17: 受入 | BK17: 4 | BN17: 0 | BQ17: 3 | BU17: 0 | DB17: 順位 | DI17: ◎ | DJ17: 守秘義務に係る規程（教職員のみ対象）
AA18: 全体 | AG18: 389667 | AL18: 260 | AO18: 409971 | AT18: 280 | AW18: =IF(DB18<50,DB18,"") -> 41 | AY18: 位 | BH18: 派遣 | BK18: 2 | BN18: 1 | BQ18: 0 | BU18: 0 | DB18: 41 | DI18: × | DJ18: 守秘義務に係る規程（教職員、学生対象）
AB19: 民間企業 のみ | AG19: 232640 | AL19: 197 | AO19: 235497 | AT19: 223 | AW19: =IF(DB19<50,DB19,"") ->  | AY19: 位 | DB19: 56
AC20: 大企業 | AG20: 128767 | AL20: 90 | AO20: 139055 | AT20: 115 | AW20: =IF(DB20<50,DB20,"") ->  | AY20: 位 | DB20: 67 | DI20: ない | DJ20: 戦略的産学連携経費の設定
AC21: 中小企業 | AG21: 75444 | AL21: 87 | AO21: 96442 | AT21: 108 | AW21: =IF(DB21<50,DB21,"") -> 38 | AY21: 位 | BB21: ■組織的産学連携活動の取組事例 | DB21: 38 | DI21: ない | DJ21: 教員人件費の企業負担に関する規程や制度
AL22: ※順位は2021年度の受入額を比較したもの | DI22: ない | DJ22: 学生人件費の企業負担に関する規程や制度
B23: 産学官連携本部等組織名 | K23: 南九州・南西諸島域イノベーションセンター | DB23: 0 | DC23: 76 | DI23: ある | DJ23: 特別試験研究費税額控除制度の活用
B24: 産学官連携本部等URL | K24: https://www.krcc.kagoshima-u.ac.jp/ | DB24: ～100万 | DC24: 67
B25: 研究者数 | K25: 1100 | O25: 名 | DB25: ～300万 | DC25: 66
DB26: ～500万 | DC26: 5
DB27: ～1000万 | DC27: 5
DB28: ～5000万 | DC28: 4
DB29: ～1億 | DC29: 0 | DJ29: 共同研究等の企画・提案
B30: 産学連携担当部署 | O30: 実務者当たり研究者数 | DB30: 1億以上 | DC30: 0 | DJ30: 契約書での成果目標、達成時の明記
C31: 実務担当者数 | I31: 14 | N31: 名 | O31: =IF(OR(K25="",I31=""),"",IFERROR($K$25/I31,"")) -> 78.57142857 | X31: 名 | DJ31: 共同研究契約の締結/判断（契約権限の集中）
C32: 専門家の配置 | I32: 弁護士 | L32: 弁理士 | O32: 税理士 | R32: 公認会計士 | V32: その他 | DJ32: 共同研究の進捗管理とフィードバック
I33: ※専門家を配置している場合は、赤色で表示されます。 | DJ33: 企業ニーズに適応した技術移転・事業化提案
AA34: ■受託研究 | AG34: 2020年度 | AO34: 2021年度 | AW34: 順位※ | DJ34: 共同研究等の企画・提案
AG35: 受入額（千円） | AL35: 件数（件） | AO35: 受入額（千円） | AT35: 件数（件） | DB35: 順位 | DJ35: 契約書での成果目標、達成時の明記
AA36: 全体 | AG36: 828263 | AL36: 230 | AO36: 584115 | AT36: 194 | AW36: =IF(DB36<50,DB36,"") ->  | AY36: 位 | DB36: 62 | DJ36: 共同研究契約の締結/判断（契約権限の集中）
AB37: 民間企業 のみ | AG37: 77030 | AL37: 38 | AO37: 85245 | AT37: 41 | AW37: =IF(DB37<50,DB37,"") -> 42 | AY37: 位 | DB37: 42 | DJ37: 共同研究の進捗管理とフィードバック
C38: 産学連携本部が関与した共同研究 | P38: 0 | T38: 件 | AC38: 大企業 | AG38: 48388 | AL38: 13 | AO38: 75536 | AT38: 26 | AW38: =IF(DB38<50,DB38,"") -> 35 | AY38: 位 | DB38: 35 | DJ38: 企業ニーズに適応した技術移転・事業化提案
D39: 内、マッチングを行い、契約締結した件数 | P39: 0 | T39: 件 | AC39: 中小企業 | AG39: 10426 | AL39: 14 | AO39: 9709 | AT39: 15 | AW39: =IF(DB39<50,DB39,"") ->  | AY39: 位 | BB39: ■産学連携活動の主な実用化事例 | DB39: 70 | DJ39: 共同研究等の企画・提案
I40: ※1,000万円以上の共同研究 | AL40: ※順位は2021年度の受入額を比較したもの | DB40: 弁護士 | DG40: 0 | DH40: 13 | DJ40: 契約書での成果目標、達成時の明記
DA41: ○ | DB41: 弁理士 | DG41: ～100万 | DH41: 13 | DJ41: 共同研究契約の締結/判断（契約権限の集中）
C42: 組織対組織による包括連携契約の締結数 | P42: 0 | T42: 件 | DB42: 税理士 | DG42: ～300万 | DH42: 10 | DJ42: 共同研究の進捗管理とフィードバック
D43: 内、1,000万円以上の実績がある相手方数 | P43: 0 | T43: 件 | DB43: 公認会計士 | DG43: ～500万 | DH43: 2 | DJ43: 企業ニーズに適応した技術移転・事業化提案
DA44: ○ | DB44: その他 | DG44: ～1000万 | DH44: 1
C45: 寄附講座・寄附研究部門の受入件数 | P45: 8 | V45: 件 | DG45: ～5000万 | DH45: 2
C46: 寄附講座・寄附研究部門の受入金額（千円） | P46: 158500 | DG46: ～1億 | DH46: 0
C47: 共同研究講座・共同研究部門の受入件数 | P47: 5 | V47: 件 | DG47: 1億以上 | DH47: 0
C48: 共同研究講座・共同研究部門の受入金額（千円） | P48: 142100
C52: 職務発明の帰属 | I52: 大学 | M52: 発明者 | Q52: 未設定 | CZ52: 大学 | DA52: 職務発明
AD53: 特許権実施等件数 | AL53: 181 | AQ53: 件 | AS53: 実施等件数 あたり | DA53: 不実施
M54: 研究者あたり | AD54: 特許権実施等収入（千円） | AL54: 8269 | AS54: =IF(OR(AL53="",AL54=""),"",IFERROR(AL54/AL53,"")) -> 45.68508287 | CZ54: 8269000 | DA54: 特許等収入
C55: 特許出願件数（件） | I55: 86 | M55: =IF(OR(K25="",I55=""),"",IFERROR(I55/K25,"")) -> 0.07818181818
C56: 特許保有件数（件） | I56: 458 | M56: =IF(OR(K25="",I56=""),"",IFERROR(I56/K25,"")) -> 0.4163636364
C61: 大学発ベンチャー数 | J61: 27 | O61: 社
C62: Exit件数（IPO） | J62: 0 | O62: 社 | P62: Exit件数（M&A） | W62: 0 | Z62: 社
C63: 相談窓口 | K63: 支援ファンド | S63: インキュベーション施設
C64: 有 | G64: 無 | K64: 有 | O64: 無 | S64: 有 | W64: 無
C65: 知的財産戦略方針 | K65: 支援総額（千円） | S65: 面積 | W65: 352 | Z65: 平方メートル
C66: 有 | G66: 無 | S66: 契約企業数 | W66: 5 | Z66: 社
A69: 1 | B69: 2 | C69: 3 | D69: 4 | E69: 5 | F69: 6 | G69: 7 | H69: 8 | I69: 9 | J69: 10 | K69: 11 | L69: 12 | M69: 13 | N69: 14 | O69: 15 | P69: 16 | Q69: 17 | R69: 18 | S69: 19 | T69: 20 | U69: 21 | V69: 22 | W69: 23 | X69: 24 | Y69: 25 | Z69: 26 | AA69: 27 | AB69: 28 | AC69: 29 | AD69: 30 | AE69: 31 | AF69: 32 | AG69: 33 | AH69: 34 | AI69: 35 | AJ69: 36 | AK69: 37 | AL69: 38 | AM69: 39 | AN69: 40 | AO69: 41 | AP69: 42 | AQ69: 43 | AR69: 44 | AS69: 45 | AT69: 46 | AU69: 47 | AV69: 48 | AW69: 49 | AX69: 50 | AY69: 51 | AZ69: 52 | BA69: 53 | BB69: 54 | BC69: 55 | BD69: 56 | BE69: 57 | BF69: 58 | BG69: 59 | BH69: 60 | BI69: 61 | BJ69: 62 | BK69: 63 | BL69: 64 | BM69: 65 | BN69: 66 | BO69: 67 | BP69: 68 | BQ69: 69 | BR69: 70 | BS69: 71 | BT69: 72 | BU69: 73 | BV69: 74 | BW69: 75 | BX69: 76 | BY69: 77 | BZ69: 78 | CA69: 79 | CB69: 80 | CC69: 81 | CD69: 82 | CE69: 83 | CF69: 84 | CG69: 85 | CH69: 86 | CI69: 87 | CJ69: 88 | CK69: 89 | CL69: 90 | CM69: 91 | CN69: 92 | CO69: 93 | CP69: 94 | CQ69: 95 | CR69: 96 | CS69: 97 | CT69: 98 | CU69: 99 | CV69: 100 | CW69: 101 | CX69: 102 | CY69: 103 | CZ69: 104 | DA69: 105 | DB69: 106 | DC69: 107 | DD69: 108 | DE69: 109 | DF69: 110 | DG69: 111 | DH69: 112 | DI69: 113 | DJ69: 114 | DK69: 115 | DL69: 116 | DM69: 117 | DN69: 118 | DO69: 119 | DP69: 120 | DQ69: 121 | DR69: 122 | DS69: 123 | DT69: 124 | DU69: 125
D70: 特許権収入
B71: 東京大学 | C71: 4744 | D71: 557703000
B72: 東北大学 | C72: 3726 | D72: 275164000
B73: 大阪大学 | C73: 3253 | D73: 395417000
B74: 京都大学 | C74: 3217 | D74: 886135000
B75: 東京工業大学 | C75: 2019 | D75: 42504000
B76: 九州大学 | C76: 1733 | D76: 142436000
B77: 名古屋大学 | C77: 1496 | D77: 72276000
B78: 北海道大学 | C78: 1219 | D78: 115470000
B79: 信州大学 | C79: 1047 | D79: 32411000
B80: 広島大学 | C80: 1019 | D80: 44418000
B81: 筑波大学 | C81: 892 | D81: 27835000
B82: 慶應義塾大学 | C82: 856 | D82: 58283000
B83: 千葉大学 | C83: 851 | D83: 9761000
B84: 岡山大学 | C84: 739 | D84: 21802000
B85: 山口大学 | C85: 711 | D85: 26145000
B86: 東京農工大学 | C86: 667 | D86: 10063000
B87: 名古屋工業大学 | C87: 660 | D87: 23496000
B88: 東京理科大学 | C88: 629 | D88: 11695000
B89: 九州工業大学 | C89: 607 | D89: 5845000
B90: 神戸大学 | C90: 581 | D90: 104449000
B91: 熊本大学 | C91: 543 | D91: 19748000
B92: 群馬大学 | C92: 536 | D92: 3598000
B93: 静岡大学 | C93: 523 | D93: 2662000
B94: 横浜国立大学 | C94: 509 | D94: 4920000
B95: 大阪公立大学（大阪府立大学） | C95: 502 | D95: 8255000
B96: 近畿大学 | C96: 488 | D96: 26794000
B97: 鹿児島大学 | C97: 458 | D97: 8269000
B98: 長岡技術科学大学 | C98: 440 | D98: 2979000
B99: 奈良先端科学技術大学院大学 | C99: 435 | D99: 3758000
B100: 東京都立大学 | C100: 435 | D100: 1170000
B101: 山梨大学 | C101: 426 | D101: 28912000
B102: 大阪公立大学（大阪市立大学） | C102: 423 | D102: 3124000
B103: 三重大学 | C103: 422 | D103: 20215000
B104: 東京医科歯科大学 | C104: 418 | D104: 74575000
B105: 電気通信大学 | C105: 406 | D105: 2740000
B106: 豊橋技術科学大学 | C106: 395 | D106: 7491000
B107: 関西大学 | C107: 392 | D107: 5519000
B108: 徳島大学 | C108: 385 | D108: 26218000
B109: 金沢大学 | C109: 360 | D109: 14331000
B110: 北里大学 | C110: 350 | D110: 47578000
B111: 香川大学 | C111: 343 | D111: 13987000
B112: 鳥取大学 | C112: 341 | D112: 5178000
B113: 新潟大学 | C113: 323 | D113: 11052000
B114: 富山大学 | C114: 319 | D114: 21312000
B115: 埼玉大学 | C115: 314 | D115: 2129000
B116: 同志社大学 | C116: 310 | D116: 26699000
B117: 日本大学 | C117: 306 | D117: 50528000
B118: 高知大学 | C118: 296 | D118: 22439000
B119: 立命館大学 | C119: 283 | D119: 5079000
B120: 自然科学研究機構 | C120: 278 | D120: 23513000
B121: 弘前大学 | C121: 261 | D121: 6272000
B122: 岐阜大学 | C122: 260 | D122: 9851000
B123: 宮崎大学 | C123: 257 | D123: 2044000
B124: 神奈川大学 | C124: 254 | D124: 4373000
B125: 兵庫県立大学 | C125: 248 | D125: 37000
B126: 秋田大学 | C126: 242 | D126: 245000
B127: 佐賀大学 | C127: 239 | D127: 6705000
B128: 福井大学 | C128: 239 | D128: 3402000
B129: 東海大学 | C129: 238 | D129: 771000
B130: 山形大学 | C130: 237 | D130: 3491000
B131: 横浜市立大学 | C131: 234 | D131: 25613000
B132: 札幌医科大学 | C132: 229 | D132: 28223000
B133: 京都工芸繊維大学 | C133: 224 | D133: 2740000
B134: 名城大学 | C134: 224 | D134: 475000
B135: 千葉工業大学 | C135: 210 | D135: 22544000
B136: 情報・システム研究機構 | C136: 208 | D136: 5139000
B137: 長崎大学 | C137: 201 | D137: 14882000
B138: 東京海洋大学 | C138: 194 | D138: 2761000
B139: 愛媛大学 | C139: 188 | D139: 18823000
B140: 東京女子医科大学 | C140: 188 | D140: 2124000
B141: 岩手大学 | C141: 188 | D141: 1268000
B142: 北陸先端科学技術大学院大学 | C142: 182 | D142: 7446000
B143: 福岡大学 | C143: 178 | D143: 1047000
B144: 沖縄科学技術大学院大学 | C144: 173 | D144: 1100000
B145: 高知工科大学 | C145: 169 | D145: 45000
B146: 宇都宮大学 | C146: 168 | D146: 7200000
B147: 茨城大学 | C147: 167 | D147: 1237000
B148: 金沢工業大学 | C148: 151 | D148: 3018000
B149: 中央大学 | C149: 151 | D149: 2106000
B150: 大分大学 | C150: 148 | D150: 1748000
B151: 京都府立医科大学 | C151: 147 | D151: 11367000
B152: 関西学院大学 | C152: 146 | D152: 16773000
B153: 滋賀医科大学 | C153: 141 | D153: 5086000
B154: 自治医科大学 | C154: 140 | D154: 10251000
B155: 島根大学 | C155: 140 | D155: 1478000
B156: 上智大学 | C156: 140 | D156: 200000
B157: 浜松医科大学 | C157: 135 | D157: 3613000
B158: 高エネルギー加速器研究機構 | C158: 135 | D158: 712000
B159: 順天堂大学 | C159: 132 | D159: 5278000
B160: 中部大学 | C160: 122 | D160: 1378000
B161: 名古屋市立大学 | C161: 114 | D161: 38831000
B162: 久留米大学 | C162: 112 | D162: 902000
B163: 豊田工業大学 | C163: 109 | D163: 0
B164: 芝浦工業大学 | C164: 103 | D164: 1238000
B165: 東京電機大学 | C165: 102 | D165: 3875000
B166: 埼玉医科大学 | C166: 99 | D166: 8849000
B167: 関東学院大学 | C167: 97 | D167: 9990000
B168: 琉球大学 | C168: 92 | D168: 1146000
B169: 明治大学 | C169: 91 | D169: 4260000
B170: 北見工業大学 | C170: 91 | D170: 753000
B171: 和歌山大学 | C171: 88 | D171: 3592000
B172: 富山県立大学 | C172: 86 | D172: 1957000
B173: 静岡県立大学 | C173: 84 | D173: 1231000
B174: 神奈川工科大学 | C174: 83 | D174: 289000
B175: 藤田医科大学 | C175: 80 | D175: 0
B176: 福岡工業大学 | C176: 69 | D176: 0
B177: 早稲田大学 | C177: 66 | D177: 19945000
B178: 福島大学 | C178: 65 | D178: 217000
B179: 帝京大学 | C179: 62 | D179: 2716000
B180: 岡山理科大学 | C180: 59 | D180: 1200000
B181: 日本医科大学 | C181: 58 | D181: 7708000
B182: 奈良県立医科大学 | C182: 58 | D182: 1283000
B183: 旭川医科大学 | C183: 58 | D183: 700000
B184: 帯広畜産大学 | C184: 57 | D184: 524000
B185: 兵庫医科大学 | C185: 56 | D185: 5620000
B186: 室蘭工業大学 | C186: 55 | D186: 1000
B187: 秋田県立大学 | C187: 54 | D187: 2624000
B188: 東洋大学 | C188: 53 | D188: 2185000
B189: 立教大学 | C189: 53 | D189: 8000
B190: 聖マリアンナ医科大学 | C190: 50 | D190: 109000
B191: 法政大学 | C191: 49 | D191: 874000
B192: お茶の水女子大学 | C192: 49 | D192: 5000
B193: 会津大学 | C193: 48 | D193: 132000
B194: 玉川大学 | C194: 48 | D194: 125000
B195: 関西医科大学 | C195: 47 | D195: 3568000
B196: 甲南大学 | C196: 45 | D196: 1103000
B197: 大阪工業大学 | C197: 44 | D197: 0
B198: 龍谷大学 | C198: 43 | D198: 168000
B199: 広島市立大学 | C199: 43 | D199: 0
B200: 産業医科大学 | C200: 42 | D200: 1006000
B201: 工学院大学 | C201: 41 | D201: 1396000
B202: 北九州市立大学 | C202: 37 | D202: 5488000
B203: 東京農業大学 | C203: 37 | D203: 473000
B204: 鈴鹿工業高等専門学校 | C204: 34 | D204: 74000
B205: 青山学院大学 | C205: 34 | D205: 0
B206: 昭和大学 | C206: 31 | D206: 10595000
B207: 香川高等専門学校 | C207: 31 | D207: 1599000
B208: 麻布大学 | C208: 31 | D208: 797000
B209: 県立広島大学 | C209: 31 | D209: 11000
... 904 more rows

Sheet 金沢大学 (hidden)
A1: 国立 | C1: 金沢大学（石川県） | X1: 大学全体の経営理念における産学官連携活動の取組方針 | CB1: 80 | CC1: 81 | CD1: 82 | CE1: 83 | CF1: 84 | CG1: 85 | CH1: 86 | CI1: 87 | CJ1: 88 | CK1: 89 | CL1: 90 | CM1: 91 | CN1: 92 | CO1: 93 | CP1: 94 | CQ1: 95 | CR1: 96 | CS1: 97 | CT1: 98 | CU1: 99 | CV1: 100 | CW1: 101 | CX1: 102 | CY1: 103 | CZ1: 104 | DA1: 105 | DB1: 106 | DC1: 107 | DD1: 108 | DE1: 109 | DF1: 110 | DG1: 111 | DH1: 112 | DI1: 113 | DJ1: 114 | DK1: 115 | DL1: 116 | DM1: 117 | DN1: 118 | DO1: 119 | DP1: 120 | DQ1: 121 | DR1: 122 | DS1: 123 | DT1: 124 | DU1: 125 | DV1: 126 | DW1: 127 | DX1: 128 | DY1: 129
X2: 金沢大学は、真理の探究に関わる基礎研究から技術に直結する実践研究までの卓越した知の創造に努め、それらにより新たな学術分野を開拓し、技術移転や産業の創出等を図ることで積極的に社会に還元する。
BB3: ＵＲＡ | BO3: URA当たり研究者数 | CA3: 戦略的産学連携経費
BC4: 実務担当者数 | BI4: 24 | BN4: 名 | BO4: =IF(OR(K25="",BI4=""),"",(IFERROR(K25/BI4,""))) -> 66.20833333 | BX4: 名 | CB4: 戦略的産学連携経費の設定 | CP4: 有 | CT4: 無 | CZ4: ある | DA4: インキュベーション施設
A5: 1 | B5: 2 | C5: 3 | D5: 4 | E5: 5 | F5: 6 | G5: 7 | H5: 8 | I5: 9 | J5: 10 | K5: 11 | L5: 12 | M5: 13 | N5: 14 | O5: 15 | P5: 16 | Q5: 17 | R5: 18 | S5: 19 | T5: 20 | U5: 21 | V5: 22 | W5: 23 | X5: 24 | Y5: 25 | Z5: 26 | AA5: 27 | AB5: 28 | AC5: 29 | AD5: 30 | AE5: 31 | AF5: 32 | AG5: 33 | AH5: 34 | AI5: 35 | AJ5: 36 | AK5: 37 | AL5: 38 | AM5: 39 | AN5: 40 | AO5: 41 | AP5: 42 | AQ5: 43 | AR5: 44 | AS5: 45 | AT5: 46 | AU5: 47 | AV5: 48 | AW5: 49 | AX5: 50 | AY5: 51 | AZ5: 52 | BA5: 53 | BB5: 54 | BC5: 55 | BD5: 56 | BE5: 57 | BF5: 58 | BG5: 59 | BH5: 60 | BI5: 61 | BJ5: 62 | BK5: 63 | BL5: 64 | BM5: 65 | BN5: 66 | BO5: 67 | BP5: 68 | BQ5: 69 | BR5: 70 | BS5: 71 | BT5: 72 | BU5: 73 | BV5: 74 | BW5: 75 | BX5: 76 | BY5: 77 | BZ5: 78 | CA5: 79 | CB5: 戦略的産学連携経費の費目 | CP5: 間接経費 | CZ5: ある | DA5: 相談窓口
A6: 基 礎 情 報 | BB6: 各種規程類の整備状況 | CB6: 戦略的産学連携経費の直接経費に対する割合 | CP6: 0.1 | CZ6: ある | DA6: 設立ポリシー | DI6: ◎ | DJ6: 産学連携ポリシー
BB7: 産学連携ポリシー | BM7: 職務発明規程（教職員のみ対象） | CZ7: ない | DA7: 支援ファンド | DI7: ◎ | DJ7: 知的財産ポリシー
B8: 大学の得意分野とその具体例 | BB8: 知的財産ポリシー | BM8: 職務発明規程（教職員、学生対象） | CA8: 人件費の企業負担 | DI8: ◎ | DJ8: 共同研究取扱規程
B9: ①原子間力顕微鏡（AFM）を駆使したナノ計測分野。②自動運転技術（レベル3，4）に必要な認識技術等に関する研究。③スマート設計や複合材料等の生産技術に立脚した機械加工分野。④遺伝・ゲノム動態、神経精神医学に至るライフサイエンス分野。 | AA9: 科研費 （千円） | AL9: その他政府系資金 (千円) | AS9: その他団体からの資金 (千円) | BB9: 共同研究取扱規程 | BM9: 発明補償関係規程（教職員のみ対象） | CB9: 教員人件費の企業負担に関する規程や制度 | CP9: 有 | CT9: 無 | DI9: ◎ | DJ9: 受託研究取扱規程
BB10: 受託研究取扱規程 | BM10: 発明補償関係規程（教職員、学生対象） | CB10: 教員人件費の企業負担の費目 | CP10: 直接経費 | DI10: ◎ | DJ10: 研究成果有体物取扱規程
AA11: 2557171 | AL11: 81595 | AS11: 0 | BB11: 研究成果有体物取扱規程 | BM11: 守秘義務に係る規程（教職員のみ対象） | CB11: 学生人件費の企業負担に関する規程や制度 | CP11: 有 | CT11: 無 | DI11: ◎ | DJ11: 営業秘密管理に関する規程
BB12: 営業秘密管理に関する規程 | BM12: 守秘義務に係る規程（教職員、学生対象） | CB12: 学生人件費の企業負担の費目 | DI12: ◎ | DJ12: 株式の取扱等規程、ポリシー
AA13: 間接経費割合 | AN13: 株式の保有 | AT13: 新株予約権の保有 | BB13: 株式の取扱等規程、ポリシー | DB13: 株式 | DI13: ◎ | DJ13: 職務発明規程（教職員のみ対象）
AA14: 0.2 | AN14: 有 | AQ14: 無 | AT14: 有 | AW14: 無 | BD14: ※各種規定類を整備している場合は、赤色で表示されます。 | CA14: 特別試験研究費税額控除制度 | DB14: 新株予約権 | DI14: ◎ | DJ14: 職務発明規程（教職員、学生対象）
B15: 産学官連携活動において今後重点化したい事項 | CB15: 特別試験研究費税額控除制度の活用 | CP15: 有 | CT15: 無 | DI15: × | DJ15: 発明補償関係規程（教職員のみ対象）
B16: 教員個々が個別に対応する共同研究体制を刷新し、産学官連携活動を組織対組織による研究推進体制に改める。さらに、共同研究など民間からの研究開発資金導入を、拡充するため、あらゆる可能性を模索し、企業群等との新しい関係構築に専念する。 | AA16: ■共同研究 | AG16: 2020年度 | AO16: 2021年度 | AW16: 順位※ | BB16: クロスアポイントメントの実績（人） | BK16: 大学等 | BN16: 公的機関 | BQ16: 民間企業 | BU16: その他機関 | DI16: ◎ | DJ16: 発明補償関係規程（教職員、学生対象）
AG17: 受入額（千円） | AL17: 件数 | AO17: 受入額（千円） | AT17: 件数 | BH17: 受入 | BK17: 3 | BN17: 0 | BQ17: 3 | BU17: 0 | DB17: 順位 | DI17: ◎ | DJ17: 守秘義務に係る規程（教職員のみ対象）
AA18: 全体 | AG18: 673961 | AL18: 349 | AO18: 776072 | AT18: 353 | AW18: =IF(DB18<50,DB18,"") -> 21 | AY18: 位 | BH18: 派遣 | BK18: 0 | BN18: 2 | BQ18: 0 | BU18: 0 | DB18: 21 | DI18: ◎ | DJ18: 守秘義務に係る規程（教職員、学生対象）
AB19: 民間企業 のみ | AG19: 610808 | AL19: 311 | AO19: 720007 | AT19: 314 | AW19: =IF(DB19<50,DB19,"") -> 18 | AY19: 位 | DB19: 18
AC20: 大企業 | AG20: 331453 | AL20: 183 | AO20: 528268 | AT20: 224 | AW20: =IF(DB20<50,DB20,"") -> 21 | AY20: 位 | DB20: 21 | DI20: ある | DJ20: 戦略的産学連携経費の設定
AC21: 中小企業 | AG21: 87344 | AL21: 78 | AO21: 191739 | AT21: 90 | AW21: =IF(DB21<50,DB21,"") -> 22 | AY21: 位 | BB21: ■組織的産学連携活動の取組事例 | DB21: 22 | DI21: ある | DJ21: 教員人件費の企業負担に関する規程や制度
AL22: ※順位は2021年度の受入額を比較したもの | DI22: ない | DJ22: 学生人件費の企業負担に関する規程や制度
B23: 産学官連携本部等組織名 | K23: 研究・社会共創推進機構 | DB23: 0 | DC23: 93 | DI23: ある | DJ23: 特別試験研究費税額控除制度の活用
B24: 産学官連携本部等URL | K24: https://research-promotion.adm.kanazawa-u.ac.jp/ | DB24: ～100万 | DC24: 71
B25: 研究者数 | K25: 1589 | O25: 名 | DB25: ～300万 | DC25: 103
DB26: ～500万 | DC26: 24
DB27: ～1000万 | DC27: 13
DB28: ～5000万 | DC28: 7
DB29: ～1億 | DC29: 2 | DJ29: 共同研究等の企画・提案
B30: 産学連携担当部署 | O30: 実務者当たり研究者数 | DB30: 1億以上 | DC30: 1 | DJ30: 契約書での成果目標、達成時の明記
C31: 実務担当者数 | I31: 25 | N31: 名 | O31: =IF(OR(K25="",I31=""),"",IFERROR($K$25/I31,"")) -> 63.56 | X31: 名 | DJ31: 共同研究契約の締結/判断（契約権限の集中）
C32: 専門家の配置 | I32: 弁護士 | L32: 弁理士 | O32: 税理士 | R32: 公認会計士 | V32: その他 | DJ32: 共同研究の進捗管理とフィードバック
I33: ※専門家を配置している場合は、赤色で表示されます。 | DJ33: 企業ニーズに適応した技術移転・事業化提案
AA34: ■受託研究 | AG34: 2020年度 | AO34: 2021年度 | AW34: 順位※ | DJ34: 共同研究等の企画・提案
AG35: 受入額（千円） | AL35: 件数（件） | AO35: 受入額（千円） | AT35: 件数（件） | DB35: 順位 | DJ35: 契約書での成果目標、達成時の明記
AA36: 全体 | AG36: 2085317 | AL36: 281 | AO36: 2548464 | AT36: 305 | AW36: =IF(DB36<50,DB36,"") -> 19 | AY36: 位 | DB36: 19 | DJ36: 共同研究契約の締結/判断（契約権限の集中）
AB37: 民間企業 のみ | AG37: 46191 | AL37: 53 | AO37: 64125 | AT37: 58 | AW37: =IF(DB37<50,DB37,"") ->  | AY37: 位 | DB37: 55 | DJ37: 共同研究の進捗管理とフィードバック
C38: 産学連携本部が関与した共同研究 | P38: 5 | T38: 件 | AC38: 大企業 | AG38: 33778 | AL38: 33 | AO38: 55028 | AT38: 38 | AW38: =IF(DB38<50,DB38,"") -> 46 | AY38: 位 | DB38: 46 | DJ38: 企業ニーズに適応した技術移転・事業化提案
D39: 内、マッチングを行い、契約締結した件数 | P39: 2 | T39: 件 | AC39: 中小企業 | AG39: 6380 | AL39: 17 | AO39: 9097 | AT39: 20 | AW39: =IF(DB39<50,DB39,"") ->  | AY39: 位 | BB39: ■産学連携活動の主な実用化事例 | DB39: 74 | DJ39: 共同研究等の企画・提案
I40: ※1,000万円以上の共同研究 | AL40: ※順位は2021年度の受入額を比較したもの | DB40: 弁護士 | DG40: 0 | DH40: 32 | DJ40: 契約書での成果目標、達成時の明記
DA41: ○ | DB41: 弁理士 | DG41: ～100万 | DH41: 12 | DJ41: 共同研究契約の締結/判断（契約権限の集中）
C42: 組織対組織による包括連携契約の締結数 | P42: 1 | T42: 件 | DB42: 税理士 | DG42: ～300万 | DH42: 7 | DJ42: 共同研究の進捗管理とフィードバック
D43: 内、1,000万円以上の実績がある相手方数 | P43: 1 | T43: 件 | DB43: 公認会計士 | DG43: ～500万 | DH43: 4 | DJ43: 企業ニーズに適応した技術移転・事業化提案
DB44: その他 | DG44: ～1000万 | DH44: 2
C45: 寄附講座・寄附研究部門の受入件数 | P45: 10 | V45: 件 | DG45: ～5000万 | DH45: 1
C46: 寄附講座・寄附研究部門の受入金額（千円） | P46: 471841 | DG46: ～1億 | DH46: 0
C47: 共同研究講座・共同研究部門の受入件数 | P47: 3 | V47: 件 | DG47: 1億以上 | DH47: 0
C48: 共同研究講座・共同研究部門の受入金額（千円） | P48: 109000
C52: 職務発明の帰属 | I52: 大学 | M52: 発明者 | Q52: 未設定 | CZ52: 大学 | DA52: 職務発明
AD53: 特許権実施等件数 | AL53: 222 | AQ53: 件 | AS53: 実施等件数 あたり | DA53: 不実施
M54: 研究者あたり | AD54: 特許権実施等収入（千円） | AL54: 14331 | AS54: =IF(OR(AL53="",AL54=""),"",IFERROR(AL54/AL53,"")) -> 64.55405405 | CZ54: 14331000 | DA54: 特許等収入
C55: 特許出願件数（件） | I55: 100 | M55: =IF(OR(K25="",I55=""),"",IFERROR(I55/K25,"")) -> 0.06293266205
C56: 特許保有件数（件） | I56: 360 | M56: =IF(OR(K25="",I56=""),"",IFERROR(I56/K25,"")) -> 0.2265575834
C61: 大学発ベンチャー数 | J61: 9 | O61: 社
C62: Exit件数（IPO） | J62: 0 | O62: 社 | P62: Exit件数（M&A） | W62: 0 | Z62: 社
C63: 相談窓口 | K63: 支援ファンド | S63: インキュベーション施設
C64: 有 | G64: 無 | K64: 有 | O64: 無 | S64: 有 | W64: 無
C65: 知的財産戦略方針 | K65: 支援総額（千円） | S65: 面積 | W65: 630 | Z65: 平方メートル
C66: 有 | G66: 無 | S66: 契約企業数 | W66: 1 | Z66: 社
A69: 1 | B69: 2 | C69: 3 | D69: 4 | E69: 5 | F69: 6 | G69: 7 | H69: 8 | I69: 9 | J69: 10 | K69: 11 | L69: 12 | M69: 13 | N69: 14 | O69: 15 | P69: 16 | Q69: 17 | R69: 18 | S69: 19 | T69: 20 | U69: 21 | V69: 22 | W69: 23 | X69: 24 | Y69: 25 | Z69: 26 | AA69: 27 | AB69: 28 | AC69: 29 | AD69: 30 | AE69: 31 | AF69: 32 | AG69: 33 | AH69: 34 | AI69: 35 | AJ69: 36 | AK69: 37 | AL69: 38 | AM69: 39 | AN69: 40 | AO69: 41 | AP69: 42 | AQ69: 43 | AR69: 44 | AS69: 45 | AT69: 46 | AU69: 47 | AV69: 48 | AW69: 49 | AX69: 50 | AY69: 51 | AZ69: 52 | BA69: 53 | BB69: 54 | BC69: 55 | BD69: 56 | BE69: 57 | BF69: 58 | BG69: 59 | BH69: 60 | BI69: 61 | BJ69: 62 | BK69: 63 | BL69: 64 | BM69: 65 | BN69: 66 | BO69: 67 | BP69: 68 | BQ69: 69 | BR69: 70 | BS69: 71 | BT69: 72 | BU69: 73 | BV69: 74 | BW69: 75 | BX69: 76 | BY69: 77 | BZ69: 78 | CA69: 79 | CB69: 80 | CC69: 81 | CD69: 82 | CE69: 83 | CF69: 84 | CG69: 85 | CH69: 86 | CI69: 87 | CJ69: 88 | CK69: 89 | CL69: 90 | CM69: 91 | CN69: 92 | CO69: 93 | CP69: 94 | CQ69: 95 | CR69: 96 | CS69: 97 | CT69: 98 | CU69: 99 | CV69: 100 | CW69: 101 | CX69: 102 | CY69: 103 | CZ69: 104 | DA69: 105 | DB69: 106 | DC69: 107 | DD69: 108 | DE69: 109 | DF69: 110 | DG69: 111 | DH69: 112 | DI69: 113 | DJ69: 114 | DK69: 115 | DL69: 116 | DM69: 117 | DN69: 118 | DO69: 119 | DP69: 120 | DQ69: 121 | DR69: 122 | DS69: 123 | DT69: 124 | DU69: 125
D70: 特許権収入
B71: 東京大学 | C71: 4744 | D71: 557703000
B72: 東北大学 | C72: 3726 | D72: 275164000
B73: 大阪大学 | C73: 3253 | D73: 395417000
B74: 京都大学 | C74: 3217 | D74: 886135000
B75: 東京工業大学 | C75: 2019 | D75: 42504000
B76: 九州大学 | C76: 1733 | D76: 142436000
B77: 名古屋大学 | C77: 1496 | D77: 72276000
B78: 北海道大学 | C78: 1219 | D78: 115470000
B79: 信州大学 | C79: 1047 | D79: 32411000
B80: 広島大学 | C80: 1019 | D80: 44418000
B81: 筑波大学 | C81: 892 | D81: 27835000
B82: 慶應義塾大学 | C82: 856 | D82: 58283000
B83: 千葉大学 | C83: 851 | D83: 9761000
B84: 岡山大学 | C84: 739 | D84: 21802000
B85: 山口大学 | C85: 711 | D85: 26145000
B86: 東京農工大学 | C86: 667 | D86: 10063000
B87: 名古屋工業大学 | C87: 660 | D87: 23496000
B88: 東京理科大学 | C88: 629 | D88: 11695000
B89: 九州工業大学 | C89: 607 | D89: 5845000
B90: 神戸大学 | C90: 581 | D90: 104449000
B91: 熊本大学 | C91: 543 | D91: 19748000
B92: 群馬大学 | C92: 536 | D92: 3598000
B93: 静岡大学 | C93: 523 | D93: 2662000
B94: 横浜国立大学 | C94: 509 | D94: 4920000
B95: 大阪公立大学（大阪府立大学） | C95: 502 | D95: 8255000
B96: 近畿大学 | C96: 488 | D96: 26794000
B97: 鹿児島大学 | C97: 458 | D97: 8269000
B98: 長岡技術科学大学 | C98: 440 | D98: 2979000
B99: 奈良先端科学技術大学院大学 | C99: 435 | D99: 3758000
B100: 東京都立大学 | C100: 435 | D100: 1170000
B101: 山梨大学 | C101: 426 | D101: 28912000
B102: 大阪公立大学（大阪市立大学） | C102: 423 | D102: 3124000
B103: 三重大学 | C103: 422 | D103: 20215000
B104: 東京医科歯科大学 | C104: 418 | D104: 74575000
B105: 電気通信大学 | C105: 406 | D105: 2740000
B106: 豊橋技術科学大学 | C106: 395 | D106: 7491000
B107: 関西大学 | C107: 392 | D107: 5519000
B108: 徳島大学 | C108: 385 | D108: 26218000
B109: 金沢大学 | C109: 360 | D109: 14331000
B110: 北里大学 | C110: 350 | D110: 47578000
B111: 香川大学 | C111: 343 | D111: 13987000
B112: 鳥取大学 | C112: 341 | D112: 5178000
B113: 新潟大学 | C113: 323 | D113: 11052000
B114: 富山大学 | C114: 319 | D114: 21312000
B115: 埼玉大学 | C115: 314 | D115: 2129000
B116: 同志社大学 | C116: 310 | D116: 26699000
B117: 日本大学 | C117: 306 | D117: 50528000
B118: 高知大学 | C118: 296 | D118: 22439000
B119: 立命館大学 | C119: 283 | D119: 5079000
B120: 自然科学研究機構 | C120: 278 | D120: 23513000
B121: 弘前大学 | C121: 261 | D121: 6272000
B122: 岐阜大学 | C122: 260 | D122: 9851000
B123: 宮崎大学 | C123: 257 | D123: 2044000
B124: 神奈川大学 | C124: 254 | D124: 4373000
B125: 兵庫県立大学 | C125: 248 | D125: 37000
B126: 秋田大学 | C126: 242 | D126: 245000
B127: 佐賀大学 | C127: 239 | D127: 6705000
B128: 福井大学 | C128: 239 | D128: 3402000
B129: 東海大学 | C129: 238 | D129: 771000
B130: 山形大学 | C130: 237 | D130: 3491000
B131: 横浜市立大学 | C131: 234 | D131: 25613000
B132: 札幌医科大学 | C132: 229 | D132: 28223000
B133: 京都工芸繊維大学 | C133: 224 | D133: 2740000
B134: 名城大学 | C134: 224 | D134: 475000
B135: 千葉工業大学 | C135: 210 | D135: 22544000
B136: 情報・システム研究機構 | C136: 208 | D136: 5139000
B137: 長崎大学 | C137: 201 | D137: 14882000
B138: 東京海洋大学 | C138: 194 | D138: 2761000
B139: 愛媛大学 | C139: 188 | D139: 18823000
B140: 東京女子医科大学 | C140: 188 | D140: 2124000
B141: 岩手大学 | C141: 188 | D141: 1268000
B142: 北陸先端科学技術大学院大学 | C142: 182 | D142: 7446000
B143: 福岡大学 | C143: 178 | D143: 1047000
B144: 沖縄科学技術大学院大学 | C144: 173 | D144: 1100000
B145: 高知工科大学 | C145: 169 | D145: 45000
B146: 宇都宮大学 | C146: 168 | D146: 7200000
B147: 茨城大学 | C147: 167 | D147: 1237000
B148: 金沢工業大学 | C148: 151 | D148: 3018000
B149: 中央大学 | C149: 151 | D149: 2106000
B150: 大分大学 | C150: 148 | D150: 1748000
B151: 京都府立医科大学 | C151: 147 | D151: 11367000
B152: 関西学院大学 | C152: 146 | D152: 16773000
B153: 滋賀医科大学 | C153: 141 | D153: 5086000
B154: 自治医科大学 | C154: 140 | D154: 10251000
B155: 島根大学 | C155: 140 | D155: 1478000
B156: 上智大学 | C156: 140 | D156: 200000
B157: 浜松医科大学 | C157: 135 | D157: 3613000
B158: 高エネルギー加速器研究機構 | C158: 135 | D158: 712000
B159: 順天堂大学 | C159: 132 | D159: 5278000
B160: 中部大学 | C160: 122 | D160: 1378000
B161: 名古屋市立大学 | C161: 114 | D161: 38831000
B162: 久留米大学 | C162: 112 | D162: 902000
B163: 豊田工業大学 | C163: 109 | D163: 0
B164: 芝浦工業大学 | C164: 103 | D164: 1238000
B165: 東京電機大学 | C165: 102 | D165: 3875000
B166: 埼玉医科大学 | C166: 99 | D166: 8849000
B167: 関東学院大学 | C167: 97 | D167: 9990000
B168: 琉球大学 | C168: 92 | D168: 1146000
B169: 明治大学 | C169: 91 | D169: 4260000
B170: 北見工業大学 | C170: 91 | D170: 753000
B171: 和歌山大学 | C171: 88 | D171: 3592000
B172: 富山県立大学 | C172: 86 | D172: 1957000
B173: 静岡県立大学 | C173: 84 | D173: 1231000
B174: 神奈川工科大学 | C174: 83 | D174: 289000
B175: 藤田医科大学 | C175: 80 | D175: 0
B176: 福岡工業大学 | C176: 69 | D176: 0
B177: 早稲田大学 | C177: 66 | D177: 19945000
B178: 福島大学 | C178: 65 | D178: 217000
B179: 帝京大学 | C179: 62 | D179: 2716000
B180: 岡山理科大学 | C180: 59 | D180: 1200000
B181: 日本医科大学 | C181: 58 | D181: 7708000
B182: 奈良県立医科大学 | C182: 58 | D182: 1283000
B183: 旭川医科大学 | C183: 58 | D183: 700000
B184: 帯広畜産大学 | C184: 57 | D184: 524000
B185: 兵庫医科大学 | C185: 56 | D185: 5620000
B186: 室蘭工業大学 | C186: 55 | D186: 1000
B187: 秋田県立大学 | C187: 54 | D187: 2624000
B188: 東洋大学 | C188: 53 | D188: 2185000
B189: 立教大学 | C189: 53 | D189: 8000
B190: 聖マリアンナ医科大学 | C190: 50 | D190: 109000
B191: 法政大学 | C191: 49 | D191: 874000
B192: お茶の水女子大学 | C192: 49 | D192: 5000
B193: 会津大学 | C193: 48 | D193: 132000
B194: 玉川大学 | C194: 48 | D194: 125000
B195: 関西医科大学 | C195: 47 | D195: 3568000
B196: 甲南大学 | C196: 45 | D196: 1103000
B197: 大阪工業大学 | C197: 44 | D197: 0
B198: 龍谷大学 | C198: 43 | D198: 168000
B199: 広島市立大学 | C199: 43 | D199: 0
B200: 産業医科大学 | C200: 42 | D200: 1006000
B201: 工学院大学 | C201: 41 | D201: 1396000
B202: 北九州市立大学 | C202: 37 | D202: 5488000
B203: 東京農業大学 | C203: 37 | D203: 473000
B204: 鈴鹿工業高等専門学校 | C204: 34 | D204: 74000
B205: 青山学院大学 | C205: 34 | D205: 0
B206: 昭和大学 | C206: 31 | D206: 10595000
B207: 香川高等専門学校 | C207: 31 | D207: 1599000
B208: 麻布大学 | C208: 31 | D208: 797000
B209: 県立広島大学 | C209: 31 | D209: 11000
... 904 more rows

Sheet 鹿屋体育大学 (hidden)
A1: 国立 | C1: 鹿屋体育大学（鹿児島県） | X1: 大学全体の経営理念における産学官連携活動の取組方針 | CB1: 80 | CC1: 81 | CD1: 82 | CE1: 83 | CF1: 84 | CG1: 85 | CH1: 86 | CI1: 87 | CJ1: 88 | CK1: 89 | CL1: 90 | CM1: 91 | CN1: 92 | CO1: 93 | CP1: 94 | CQ1: 95 | CR1: 96 | CS1: 97 | CT1: 98 | CU1: 99 | CV1: 100 | CW1: 101 | CX1: 102 | CY1: 103 | CZ1: 104 | DA1: 105 | DB1: 106 | DC1: 107 | DD1: 108 | DE1: 109 | DF1: 110 | DG1: 111 | DH1: 112 | DI1: 113 | DJ1: 114 | DK1: 115 | DL1: 116 | DM1: 117 | DN1: 118 | DO1: 119 | DP1: 120 | DQ1: 121 | DR1: 122 | DS1: 123 | DT1: 124 | DU1: 125 | DV1: 126 | DW1: 127 | DX1: 128 | DY1: 129
BB3: ＵＲＡ | BO3: URA当たり研究者数 | CA3: 戦略的産学連携経費
BC4: 実務担当者数 | BI4: 1 | BN4: 名 | BO4: =IF(OR(K25="",BI4=""),"",(IFERROR(K25/BI4,""))) -> 68 | BX4: 名 | CB4: 戦略的産学連携経費の設定 | CP4: 有 | CT4: 無 | CZ4: ない | DA4: インキュベーション施設
A5: 1 | B5: 2 | C5: 3 | D5: 4 | E5: 5 | F5: 6 | G5: 7 | H5: 8 | I5: 9 | J5: 10 | K5: 11 | L5: 12 | M5: 13 | N5: 14 | O5: 15 | P5: 16 | Q5: 17 | R5: 18 | S5: 19 | T5: 20 | U5: 21 | V5: 22 | W5: 23 | X5: 24 | Y5: 25 | Z5: 26 | AA5: 27 | AB5: 28 | AC5: 29 | AD5: 30 | AE5: 31 | AF5: 32 | AG5: 33 | AH5: 34 | AI5: 35 | AJ5: 36 | AK5: 37 | AL5: 38 | AM5: 39 | AN5: 40 | AO5: 41 | AP5: 42 | AQ5: 43 | AR5: 44 | AS5: 45 | AT5: 46 | AU5: 47 | AV5: 48 | AW5: 49 | AX5: 50 | AY5: 51 | AZ5: 52 | BA5: 53 | BB5: 54 | BC5: 55 | BD5: 56 | BE5: 57 | BF5: 58 | BG5: 59 | BH5: 60 | BI5: 61 | BJ5: 62 | BK5: 63 | BL5: 64 | BM5: 65 | BN5: 66 | BO5: 67 | BP5: 68 | BQ5: 69 | BR5: 70 | BS5: 71 | BT5: 72 | BU5: 73 | BV5: 74 | BW5: 75 | BX5: 76 | BY5: 77 | BZ5: 78 | CA5: 79 | CB5: 戦略的産学連携経費の費目 | CZ5: ある | DA5: 相談窓口
A6: 基 礎 情 報 | BB6: 各種規程類の整備状況 | CB6: 戦略的産学連携経費の直接経費に対する割合 | CZ6: ない | DA6: 設立ポリシー | DI6: ◎ | DJ6: 産学連携ポリシー
BB7: 産学連携ポリシー | BM7: 職務発明規程（教職員のみ対象） | CZ7: ない | DA7: 支援ファンド | DI7: ◎ | DJ7: 知的財産ポリシー
B8: 大学の得意分野とその具体例 | BB8: 知的財産ポリシー | BM8: 職務発明規程（教職員、学生対象） | CA8: 人件費の企業負担 | DI8: ◎ | DJ8: 共同研究取扱規程
AA9: 科研費 （千円） | AL9: その他政府系資金 (千円) | AS9: その他団体からの資金 (千円) | BB9: 共同研究取扱規程 | BM9: 発明補償関係規程（教職員のみ対象） | CB9: 教員人件費の企業負担に関する規程や制度 | CP9: 有 | CT9: 無 | DI9: ◎ | DJ9: 受託研究取扱規程
BB10: 受託研究取扱規程 | BM10: 発明補償関係規程（教職員、学生対象） | CB10: 教員人件費の企業負担の費目 | DI10: × | DJ10: 研究成果有体物取扱規程
AA11: 44350 | AL11: 0 | AS11: 2999 | BB11: 研究成果有体物取扱規程 | BM11: 守秘義務に係る規程（教職員のみ対象） | CB11: 学生人件費の企業負担に関する規程や制度 | CP11: 有 | CT11: 無 | DI11: × | DJ11: 営業秘密管理に関する規程
BB12: 営業秘密管理に関する規程 | BM12: 守秘義務に係る規程（教職員、学生対象） | CB12: 学生人件費の企業負担の費目 | CP12: 直接経費 | DI12: × | DJ12: 株式の取扱等規程、ポリシー
AA13: 間接経費割合 | AN13: 株式の保有 | AT13: 新株予約権の保有 | BB13: 株式の取扱等規程、ポリシー | DB13: 株式 | DI13: × | DJ13: 職務発明規程（教職員のみ対象）
AA14: 0.3 | AN14: 有 | AQ14: 無 | AT14: 有 | AW14: 無 | BD14: ※各種規定類を整備している場合は、赤色で表示されます。 | CA14: 特別試験研究費税額控除制度 | DB14: 新株予約権 | DI14: ◎ | DJ14: 職務発明規程（教職員、学生対象）
B15: 産学官連携活動において今後重点化したい事項 | CB15: 特別試験研究費税額控除制度の活用 | CP15: 有 | CT15: 無 | DI15: × | DJ15: 発明補償関係規程（教職員のみ対象）
AA16: ■共同研究 | AG16: 2020年度 | AO16: 2021年度 | AW16: 順位※ | BB16: クロスアポイントメントの実績（人） | BK16: 大学等 | BN16: 公的機関 | BQ16: 民間企業 | BU16: その他機関 | DI16: ◎ | DJ16: 発明補償関係規程（教職員、学生対象）
AG17: 受入額（千円） | AL17: 件数 | AO17: 受入額（千円） | AT17: 件数 | BH17: 受入 | BK17: 0 | BN17: 0 | BQ17: 0 | BU17: 0 | DB17: 順位 | DI17: ◎ | DJ17: 守秘義務に係る規程（教職員のみ対象）
AA18: 全体 | AG18: 5688 | AL18: 17 | AO18: 5615 | AT18: 16 | AW18: =IF(DB18<50,DB18,"") ->  | AY18: 位 | BH18: 派遣 | BK18: 0 | BN18: 0 | BQ18: 0 | BU18: 0 | DB18: 280 | DI18: × | DJ18: 守秘義務に係る規程（教職員、学生対象）
AB19: 民間企業 のみ | AG19: 5468 | AL19: 16 | AO19: 5615 | AT19: 16 | AW19: =IF(DB19<50,DB19,"") ->  | AY19: 位 | DB19: 263
AC20: 大企業 | AG20: 5004 | AL20: 11 | AO20: 5485 | AT20: 12 | AW20: =IF(DB20<50,DB20,"") ->  | AY20: 位 | DB20: 233 | DI20: ない | DJ20: 戦略的産学連携経費の設定
AC21: 中小企業 | AG21: 264 | AL21: 4 | AO21: 130 | AT21: 4 | AW21: =IF(DB21<50,DB21,"") ->  | AY21: 位 | BB21: ■組織的産学連携活動の取組事例 | DB21: 348 | DI21: ない | DJ21: 教員人件費の企業負担に関する規程や制度
AL22: ※順位は2021年度の受入額を比較したもの | DI22: ある | DJ22: 学生人件費の企業負担に関する規程や制度
B23: 産学官連携本部等組織名 | DB23: 0 | DC23: 7 | DI23: ない | DJ23: 特別試験研究費税額控除制度の活用
B24: 産学官連携本部等URL | DB24: ～100万 | DC24: 8
B25: 研究者数 | K25: 68 | O25: 名 | DB25: ～300万 | DC25: 1
DB26: ～500万 | DC26: 0
DB27: ～1000万 | DC27: 0
DB28: ～5000万 | DC28: 0
DB29: ～1億 | DC29: 0 | DJ29: 共同研究等の企画・提案
B30: 産学連携担当部署 | O30: 実務者当たり研究者数 | DB30: 1億以上 | DC30: 0 | DJ30: 契約書での成果目標、達成時の明記
C31: 実務担当者数 | I31: 3 | N31: 名 | O31: =IF(OR(K25="",I31=""),"",IFERROR($K$25/I31,"")) -> 22.66666667 | X31: 名 | DJ31: 共同研究契約の締結/判断（契約権限の集中）
C32: 専門家の配置 | I32: 弁護士 | L32: 弁理士 | O32: 税理士 | R32: 公認会計士 | V32: その他 | DJ32: 共同研究の進捗管理とフィードバック
I33: ※専門家を配置している場合は、赤色で表示されます。 | DJ33: 企業ニーズに適応した技術移転・事業化提案
AA34: ■受託研究 | AG34: 2020年度 | AO34: 2021年度 | AW34: 順位※ | DJ34: 共同研究等の企画・提案
AG35: 受入額（千円） | AL35: 件数（件） | AO35: 受入額（千円） | AT35: 件数（件） | DB35: 順位 | DJ35: 契約書での成果目標、達成時の明記
AA36: 全体 | AG36: 4095 | AL36: 8 | AO36: 8084 | AT36: 10 | AW36: =IF(DB36<50,DB36,"") ->  | AY36: 位 | DB36: 299 | DJ36: 共同研究契約の締結/判断（契約権限の集中）
AB37: 民間企業 のみ | AG37: 1490 | AL37: 6 | AO37: 0 | AT37: 2 | AW37: =IF(DB37<50,DB37,"") ->  | AY37: 位 | DB37: 403 | DJ37: 共同研究の進捗管理とフィードバック
C38: 産学連携本部が関与した共同研究 | P38: 0 | T38: 件 | AC38: 大企業 | AG38: 0 | AL38: 1 | AO38: 0 | AT38: 0 | AW38: =IF(DB38<50,DB38,"") ->  | AY38: 位 | DB38: 316 | DJ38: 企業ニーズに適応した技術移転・事業化提案
D39: 内、マッチングを行い、契約締結した件数 | P39: 0 | T39: 件 | AC39: 中小企業 | AG39: 1490 | AL39: 5 | AO39: 0 | AT39: 2 | AW39: =IF(DB39<50,DB39,"") ->  | AY39: 位 | BB39: ■産学連携活動の主な実用化事例 | DB39: 318 | DJ39: 共同研究等の企画・提案
I40: ※1,000万円以上の共同研究 | AL40: ※順位は2021年度の受入額を比較したもの | DB40: 弁護士 | DG40: 0 | DH40: 2 | DJ40: 契約書での成果目標、達成時の明記
DB41: 弁理士 | DG41: ～100万 | DH41: 0 | DJ41: 共同研究契約の締結/判断（契約権限の集中）
C42: 組織対組織による包括連携契約の締結数 | P42: 0 | T42: 件 | DB42: 税理士 | DG42: ～300万 | DH42: 0 | DJ42: 共同研究の進捗管理とフィードバック
D43: 内、1,000万円以上の実績がある相手方数 | P43: 0 | T43: 件 | DB43: 公認会計士 | DG43: ～500万 | DH43: 0 | DJ43: 企業ニーズに適応した技術移転・事業化提案
DB44: その他 | DG44: ～1000万 | DH44: 0
C45: 寄附講座・寄附研究部門の受入件数 | V45: 件 | DG45: ～5000万 | DH45: 0
C46: 寄附講座・寄附研究部門の受入金額（千円） | P46: 0 | DG46: ～1億 | DH46: 0
C47: 共同研究講座・共同研究部門の受入件数 | P47: 0 | V47: 件 | DG47: 1億以上 | DH47: 0
C48: 共同研究講座・共同研究部門の受入金額（千円） | P48: 0
C52: 職務発明の帰属 | I52: 大学 | M52: 発明者 | Q52: 未設定 | CZ52: 大学 | DA52: 職務発明
AD53: 特許権実施等件数 | AL53: 3 | AQ53: 件 | AS53: 実施等件数 あたり | DA53: 不実施
M54: 研究者あたり | AD54: 特許権実施等収入（千円） | AL54: 1 | AS54: =IF(OR(AL53="",AL54=""),"",IFERROR(AL54/AL53,"")) -> 0.3333333333 | CZ54: 1000 | DA54: 特許等収入
C55: 特許出願件数（件） | I55: 0 | M55: =IF(OR(K25="",I55=""),"",IFERROR(I55/K25,"")) -> 0
C56: 特許保有件数（件） | I56: 8 | M56: =IF(OR(K25="",I56=""),"",IFERROR(I56/K25,"")) -> 0.1176470588
C61: 大学発ベンチャー数 | J61: 1 | O61: 社
C62: Exit件数（IPO） | J62: 0 | O62: 社 | P62: Exit件数（M&A） | W62: 0 | Z62: 社
C63: 相談窓口 | K63: 支援ファンド | S63: インキュベーション施設
C64: 有 | G64: 無 | K64: 有 | O64: 無 | S64: 有 | W64: 無
C65: 知的財産戦略方針 | K65: 支援総額（千円） | S65: 面積 | Z65: 平方メートル
C66: 有 | G66: 無 | S66: 契約企業数 | Z66: 社
A69: 1 | B69: 2 | C69: 3 | D69: 4 | E69: 5 | F69: 6 | G69: 7 | H69: 8 | I69: 9 | J69: 10 | K69: 11 | L69: 12 | M69: 13 | N69: 14 | O69: 15 | P69: 16 | Q69: 17 | R69: 18 | S69: 19 | T69: 20 | U69: 21 | V69: 22 | W69: 23 | X69: 24 | Y69: 25 | Z69: 26 | AA69: 27 | AB69: 28 | AC69: 29 | AD69: 30 | AE69: 31 | AF69: 32 | AG69: 33 | AH69: 34 | AI69: 35 | AJ69: 36 | AK69: 37 | AL69: 38 | AM69: 39 | AN69: 40 | AO69: 41 | AP69: 42 | AQ69: 43 | AR69: 44 | AS69: 45 | AT69: 46 | AU69: 47 | AV69: 48 | AW69: 49 | AX69: 50 | AY69: 51 | AZ69: 52 | BA69: 53 | BB69: 54 | BC69: 55 | BD69: 56 | BE69: 57 | BF69: 58 | BG69: 59 | BH69: 60 | BI69: 61 | BJ69: 62 | BK69: 63 | BL69: 64 | BM69: 65 | BN69: 66 | BO69: 67 | BP69: 68 | BQ69: 69 | BR69: 70 | BS69: 71 | BT69: 72 | BU69: 73 | BV69: 74 | BW69: 75 | BX69: 76 | BY69: 77 | BZ69: 78 | CA69: 79 | CB69: 80 | CC69: 81 | CD69: 82 | CE69: 83 | CF69: 84 | CG69: 85 | CH69: 86 | CI69: 87 | CJ69: 88 | CK69: 89 | CL69: 90 | CM69: 91 | CN69: 92 | CO69: 93 | CP69: 94 | CQ69: 95 | CR69: 96 | CS69: 97 | CT69: 98 | CU69: 99 | CV69: 100 | CW69: 101 | CX69: 102 | CY69: 103 | CZ69: 104 | DA69: 105 | DB69: 106 | DC69: 107 | DD69: 108 | DE69: 109 | DF69: 110 | DG69: 111 | DH69: 112 | DI69: 113 | DJ69: 114 | DK69: 115 | DL69: 116 | DM69: 117 | DN69: 118 | DO69: 119 | DP69: 120 | DQ69: 121 | DR69: 122 | DS69: 123 | DT69: 124 | DU69: 125
D70: 特許権収入
B71: 東京大学 | C71: 4744 | D71: 557703000
B72: 東北大学 | C72: 3726 | D72: 275164000
B73: 大阪大学 | C73: 3253 | D73: 395417000
B74: 京都大学 | C74: 3217 | D74: 886135000
B75: 東京工業大学 | C75: 2019 | D75: 42504000
B76: 九州大学 | C76: 1733 | D76: 142436000
B77: 名古屋大学 | C77: 1496 | D77: 72276000
B78: 北海道大学 | C78: 1219 | D78: 115470000
B79: 信州大学 | C79: 1047 | D79: 32411000
B80: 広島大学 | C80: 1019 | D80: 44418000
B81: 筑波大学 | C81: 892 | D81: 27835000
B82: 慶應義塾大学 | C82: 856 | D82: 58283000
B83: 千葉大学 | C83: 851 | D83: 9761000
B84: 岡山大学 | C84: 739 | D84: 21802000
B85: 山口大学 | C85: 711 | D85: 26145000
B86: 東京農工大学 | C86: 667 | D86: 10063000
B87: 名古屋工業大学 | C87: 660 | D87: 23496000
B88: 東京理科大学 | C88: 629 | D88: 11695000
B89: 九州工業大学 | C89: 607 | D89: 5845000
B90: 神戸大学 | C90: 581 | D90: 104449000
B91: 熊本大学 | C91: 543 | D91: 19748000
B92: 群馬大学 | C92: 536 | D92: 3598000
B93: 静岡大学 | C93: 523 | D93: 2662000
B94: 横浜国立大学 | C94: 509 | D94: 4920000
B95: 大阪公立大学（大阪府立大学） | C95: 502 | D95: 8255000
B96: 近畿大学 | C96: 488 | D96: 26794000
B97: 鹿児島大学 | C97: 458 | D97: 8269000
B98: 長岡技術科学大学 | C98: 440 | D98: 2979000
B99: 奈良先端科学技術大学院大学 | C99: 435 | D99: 3758000
B100: 東京都立大学 | C100: 435 | D100: 1170000
B101: 山梨大学 | C101: 426 | D101: 28912000
B102: 大阪公立大学（大阪市立大学） | C102: 423 | D102: 3124000
B103: 三重大学 | C103: 422 | D103: 20215000
B104: 東京医科歯科大学 | C104: 418 | D104: 74575000
B105: 電気通信大学 | C105: 406 | D105: 2740000
B106: 豊橋技術科学大学 | C106: 395 | D106: 7491000
B107: 関西大学 | C107: 392 | D107: 5519000
B108: 徳島大学 | C108: 385 | D108: 26218000
B109: 金沢大学 | C109: 360 | D109: 14331000
B110: 北里大学 | C110: 350 | D110: 47578000
B111: 香川大学 | C111: 343 | D111: 13987000
B112: 鳥取大学 | C112: 341 | D112: 5178000
B113: 新潟大学 | C113: 323 | D113: 11052000
B114: 富山大学 | C114: 319 | D114: 21312000
B115: 埼玉大学 | C115: 314 | D115: 2129000
B116: 同志社大学 | C116: 310 | D116: 26699000
B117: 日本大学 | C117: 306 | D117: 50528000
B118: 高知大学 | C118: 296 | D118: 22439000
B119: 立命館大学 | C119: 283 | D119: 5079000
B120: 自然科学研究機構 | C120: 278 | D120: 23513000
B121: 弘前大学 | C121: 261 | D121: 6272000
B122: 岐阜大学 | C122: 260 | D122: 9851000
B123: 宮崎大学 | C123: 257 | D123: 2044000
B124: 神奈川大学 | C124: 254 | D124: 4373000
B125: 兵庫県立大学 | C125: 248 | D125: 37000
B126: 秋田大学 | C126: 242 | D126: 245000
B127: 佐賀大学 | C127: 239 | D127: 6705000
B128: 福井大学 | C128: 239 | D128: 3402000
B129: 東海大学 | C129: 238 | D129: 771000
B130: 山形大学 | C130: 237 | D130: 3491000
B131: 横浜市立大学 | C131: 234 | D131: 25613000
B132: 札幌医科大学 | C132: 229 | D132: 28223000
B133: 京都工芸繊維大学 | C133: 224 | D133: 2740000
B134: 名城大学 | C134: 224 | D134: 475000
B135: 千葉工業大学 | C135: 210 | D135: 22544000
B136: 情報・システム研究機構 | C136: 208 | D136: 5139000
B137: 長崎大学 | C137: 201 | D137: 14882000
B138: 東京海洋大学 | C138: 194 | D138: 2761000
B139: 愛媛大学 | C139: 188 | D139: 18823000
B140: 東京女子医科大学 | C140: 188 | D140: 2124000
B141: 岩手大学 | C141: 188 | D141: 1268000
B142: 北陸先端科学技術大学院大学 | C142: 182 | D142: 7446000
B143: 福岡大学 | C143: 178 | D143: 1047000
B144: 沖縄科学技術大学院大学 | C144: 173 | D144: 1100000
B145: 高知工科大学 | C145: 169 | D145: 45000
B146: 宇都宮大学 | C146: 168 | D146: 7200000
B147: 茨城大学 | C147: 167 | D147: 1237000
B148: 金沢工業大学 | C148: 151 | D148: 3018000
B149: 中央大学 | C149: 151 | D149: 2106000
B150: 大分大学 | C150: 148 | D150: 1748000
B151: 京都府立医科大学 | C151: 147 | D151: 11367000
B152: 関西学院大学 | C152: 146 | D152: 16773000
B153: 滋賀医科大学 | C153: 141 | D153: 5086000
B154: 自治医科大学 | C154: 140 | D154: 10251000
B155: 島根大学 | C155: 140 | D155: 1478000
B156: 上智大学 | C156: 140 | D156: 200000
B157: 浜松医科大学 | C157: 135 | D157: 3613000
B158: 高エネルギー加速器研究機構 | C158: 135 | D158: 712000
B159: 順天堂大学 | C159: 132 | D159: 5278000
B160: 中部大学 | C160: 122 | D160: 1378000
B161: 名古屋市立大学 | C161: 114 | D161: 38831000
B162: 久留米大学 | C162: 112 | D162: 902000
B163: 豊田工業大学 | C163: 109 | D163: 0
B164: 芝浦工業大学 | C164: 103 | D164: 1238000
B165: 東京電機大学 | C165: 102 | D165: 3875000
B166: 埼玉医科大学 | C166: 99 | D166: 8849000
B167: 関東学院大学 | C167: 97 | D167: 9990000
B168: 琉球大学 | C168: 92 | D168: 1146000
B169: 明治大学 | C169: 91 | D169: 4260000
B170: 北見工業大学 | C170: 91 | D170: 753000
B171: 和歌山大学 | C171: 88 | D171: 3592000
B172: 富山県立大学 | C172: 86 | D172: 1957000
B173: 静岡県立大学 | C173: 84 | D173: 1231000
B174: 神奈川工科大学 | C174: 83 | D174: 289000
B175: 藤田医科大学 | C175: 80 | D175: 0
B176: 福岡工業大学 | C176: 69 | D176: 0
B177: 早稲田大学 | C177: 66 | D177: 19945000
B178: 福島大学 | C178: 65 | D178: 217000
B179: 帝京大学 | C179: 62 | D179: 2716000
B180: 岡山理科大学 | C180: 59 | D180: 1200000
B181: 日本医科大学 | C181: 58 | D181: 7708000
B182: 奈良県立医科大学 | C182: 58 | D182: 1283000
B183: 旭川医科大学 | C183: 58 | D183: 700000
B184: 帯広畜産大学 | C184: 57 | D184: 524000
B185: 兵庫医科大学 | C185: 56 | D185: 5620000
B186: 室蘭工業大学 | C186: 55 | D186: 1000
B187: 秋田県立大学 | C187: 54 | D187: 2624000
B188: 東洋大学 | C188: 53 | D188: 2185000
B189: 立教大学 | C189: 53 | D189: 8000
B190: 聖マリアンナ医科大学 | C190: 50 | D190: 109000
B191: 法政大学 | C191: 49 | D191: 874000
B192: お茶の水女子大学 | C192: 49 | D192: 5000
B193: 会津大学 | C193: 48 | D193: 132000
B194: 玉川大学 | C194: 48 | D194: 125000
B195: 関西医科大学 | C195: 47 | D195: 3568000
B196: 甲南大学 | C196: 45 | D196: 1103000
B197: 大阪工業大学 | C197: 44 | D197: 0
B198: 龍谷大学 | C198: 43 | D198: 168000
B199: 広島市立大学 | C199: 43 | D199: 0
B200: 産業医科大学 | C200: 42 | D200: 1006000
B201: 工学院大学 | C201: 41 | D201: 1396000
B202: 北九州市立大学 | C202: 37 | D202: 5488000
B203: 東京農業大学 | C203: 37 | D203: 473000
B204: 鈴鹿工業高等専門学校 | C204: 34 | D204: 74000
B205: 青山学院大学 | C205: 34 | D205: 0
B206: 昭和大学 | C206: 31 | D206: 10595000
B207: 香川高等専門学校 | C207: 31 | D207: 1599000
B208: 麻布大学 | C208: 31 | D208: 797000
B209: 県立広島大学 | C209: 31 | D209: 11000
B210: 愛知工業大学 | C210: 30 | D210: 340000
... 903 more rows

Sheet 北見工業大学 (hidden)
A1: 国立 | C1: 北見工業大学（北海道） | X1: 大学全体の経営理念における産学官連携活動の取組方針 | CB1: 80 | CC1: 81 | CD1: 82 | CE1: 83 | CF1: 84 | CG1: 85 | CH1: 86 | CI1: 87 | CJ1: 88 | CK1: 89 | CL1: 90 | CM1: 91 | CN1: 92 | CO1: 93 | CP1: 94 | CQ1: 95 | CR1: 96 | CS1: 97 | CT1: 98 | CU1: 99 | CV1: 100 | CW1: 101 | CX1: 102 | CY1: 103 | CZ1: 104 | DA1: 105 | DB1: 106 | DC1: 107 | DD1: 108 | DE1: 109 | DF1: 110 | DG1: 111 | DH1: 112 | DI1: 113 | DJ1: 114 | DK1: 115 | DL1: 116 | DM1: 117 | DN1: 118 | DO1: 119 | DP1: 120 | DQ1: 121 | DR1: 122 | DS1: 123 | DT1: 124 | DU1: 125 | DV1: 126 | DW1: 127 | DX1: 128 | DY1: 129
X2: 本学は、大学の使命である教育、研究および社会貢献に取り組み社会の発展に寄与します。また、産学官連携が社会との相互作用の原点であることを強く認識し、地域における知の拠点としての役割を果たします。
BB3: ＵＲＡ | BO3: URA当たり研究者数 | CA3: 戦略的産学連携経費
BC4: 実務担当者数 | BI4: 3 | BN4: 名 | BO4: =IF(OR(K25="",BI4=""),"",(IFERROR(K25/BI4,""))) -> 47.33333333 | BX4: 名 | CB4: 戦略的産学連携経費の設定 | CP4: 有 | CT4: 無 | CZ4: ある | DA4: インキュベーション施設
A5: 1 | B5: 2 | C5: 3 | D5: 4 | E5: 5 | F5: 6 | G5: 7 | H5: 8 | I5: 9 | J5: 10 | K5: 11 | L5: 12 | M5: 13 | N5: 14 | O5: 15 | P5: 16 | Q5: 17 | R5: 18 | S5: 19 | T5: 20 | U5: 21 | V5: 22 | W5: 23 | X5: 24 | Y5: 25 | Z5: 26 | AA5: 27 | AB5: 28 | AC5: 29 | AD5: 30 | AE5: 31 | AF5: 32 | AG5: 33 | AH5: 34 | AI5: 35 | AJ5: 36 | AK5: 37 | AL5: 38 | AM5: 39 | AN5: 40 | AO5: 41 | AP5: 42 | AQ5: 43 | AR5: 44 | AS5: 45 | AT5: 46 | AU5: 47 | AV5: 48 | AW5: 49 | AX5: 50 | AY5: 51 | AZ5: 52 | BA5: 53 | BB5: 54 | BC5: 55 | BD5: 56 | BE5: 57 | BF5: 58 | BG5: 59 | BH5: 60 | BI5: 61 | BJ5: 62 | BK5: 63 | BL5: 64 | BM5: 65 | BN5: 66 | BO5: 67 | BP5: 68 | BQ5: 69 | BR5: 70 | BS5: 71 | BT5: 72 | BU5: 73 | BV5: 74 | BW5: 75 | BX5: 76 | BY5: 77 | BZ5: 78 | CA5: 79 | CB5: 戦略的産学連携経費の費目 | CZ5: ある | DA5: 相談窓口
A6: 基 礎 情 報 | BB6: 各種規程類の整備状況 | CB6: 戦略的産学連携経費の直接経費に対する割合 | CZ6: ある | DA6: 設立ポリシー | DI6: ◎ | DJ6: 産学連携ポリシー
BB7: 産学連携ポリシー | BM7: 職務発明規程（教職員のみ対象） | CZ7: ない | DA7: 支援ファンド | DI7: ◎ | DJ7: 知的財産ポリシー
B8: 大学の得意分野とその具体例 | BB8: 知的財産ポリシー | BM8: 職務発明規程（教職員、学生対象） | CA8: 人件費の企業負担 | DI8: ◎ | DJ8: 共同研究取扱規程
B9: ・環境・第一次産業や寒冷地関連の工学 ・地域の自治体・公組織との連携 | AA9: 科研費 （千円） | AL9: その他政府系資金 (千円) | AS9: その他団体からの資金 (千円) | BB9: 共同研究取扱規程 | BM9: 発明補償関係規程（教職員のみ対象） | CB9: 教員人件費の企業負担に関する規程や制度 | CP9: 有 | CT9: 無 | DI9: ◎ | DJ9: 受託研究取扱規程
BB10: 受託研究取扱規程 | BM10: 発明補償関係規程（教職員、学生対象） | CB10: 教員人件費の企業負担の費目 | DI10: ◎ | DJ10: 研究成果有体物取扱規程
AA11: 156603 | AL11: 69338 | AS11: 10010 | BB11: 研究成果有体物取扱規程 | BM11: 守秘義務に係る規程（教職員のみ対象） | CB11: 学生人件費の企業負担に関する規程や制度 | CP11: 有 | CT11: 無 | DI11: × | DJ11: 営業秘密管理に関する規程
BB12: 営業秘密管理に関する規程 | BM12: 守秘義務に係る規程（教職員、学生対象） | CB12: 学生人件費の企業負担の費目 | DI12: × | DJ12: 株式の取扱等規程、ポリシー
AA13: 間接経費割合 | AN13: 株式の保有 | AT13: 新株予約権の保有 | BB13: 株式の取扱等規程、ポリシー | DB13: 株式 | DI13: × | DJ13: 職務発明規程（教職員のみ対象）
AA14: 0.3 | AN14: 有 | AQ14: 無 | AT14: 有 | AW14: 無 | BD14: ※各種規定類を整備している場合は、赤色で表示されます。 | CA14: 特別試験研究費税額控除制度 | DB14: 新株予約権 | DI14: ◎ | DJ14: 職務発明規程（教職員、学生対象）
B15: 産学官連携活動において今後重点化したい事項 | CB15: 特別試験研究費税額控除制度の活用 | CP15: 有 | CT15: 無 | DI15: × | DJ15: 発明補償関係規程（教職員のみ対象）
B16: ・産業振興に向けたさらなる地域との連携 ・地域との連携による人材の育成と定着 | AA16: ■共同研究 | AG16: 2020年度 | AO16: 2021年度 | AW16: 順位※ | BB16: クロスアポイントメントの実績（人） | BK16: 大学等 | BN16: 公的機関 | BQ16: 民間企業 | BU16: その他機関 | DI16: ◎ | DJ16: 発明補償関係規程（教職員、学生対象）
AG17: 受入額（千円） | AL17: 件数 | AO17: 受入額（千円） | AT17: 件数 | BH17: 受入 | BK17: 0 | BN17: 0 | BQ17: 2 | BU17: 0 | DB17: 順位 | DI17: × | DJ17: 守秘義務に係る規程（教職員のみ対象）
AA18: 全体 | AG18: 105982 | AL18: 97 | AO18: 110303 | AT18: 102 | AW18: =IF(DB18<50,DB18,"") ->  | AY18: 位 | BH18: 派遣 | BK18: 0 | BN18: 0 | BQ18: 0 | BU18: 0 | DB18: 104 | DI18: × | DJ18: 守秘義務に係る規程（教職員、学生対象）
AB19: 民間企業 のみ | AG19: 50585 | AL19: 65 | AO19: 63815 | AT19: 71 | AW19: =IF(DB19<50,DB19,"") ->  | AY19: 位 | DB19: 121
AC20: 大企業 | AG20: 34685 | AL20: 42 | AO20: 51612 | AT20: 45 | AW20: =IF(DB20<50,DB20,"") ->  | AY20: 位 | DB20: 119 | DI20: ない | DJ20: 戦略的産学連携経費の設定
AC21: 中小企業 | AG21: 8590 | AL21: 22 | AO21: 12203 | AT21: 26 | AW21: =IF(DB21<50,DB21,"") ->  | AY21: 位 | BB21: ■組織的産学連携活動の取組事例 | DB21: 129 | DI21: ない | DJ21: 教員人件費の企業負担に関する規程や制度
AL22: ※順位は2021年度の受入額を比較したもの | DI22: ない | DJ22: 学生人件費の企業負担に関する規程や制度
B23: 産学官連携本部等組織名 | K23: 社会連携推進センター | DB23: 0 | DC23: 21 | DI23: ある | DJ23: 特別試験研究費税額控除制度の活用
B24: 産学官連携本部等URL | K24: http://www.crc.kitami-it.ac.jp/ | DB24: ～100万 | DC24: 26
B25: 研究者数 | K25: 142 | O25: 名 | DB25: ～300万 | DC25: 20
DB26: ～500万 | DC26: 2
DB27: ～1000万 | DC27: 1
DB28: ～5000万 | DC28: 1
DB29: ～1億 | DC29: 0 | DJ29: 共同研究等の企画・提案
B30: 産学連携担当部署 | O30: 実務者当たり研究者数 | DB30: 1億以上 | DC30: 0 | DJ30: 契約書での成果目標、達成時の明記
C31: 実務担当者数 | I31: 6 | N31: 名 | O31: =IF(OR(K25="",I31=""),"",IFERROR($K$25/I31,"")) -> 23.66666667 | X31: 名 | DJ31: 共同研究契約の締結/判断（契約権限の集中）
C32: 専門家の配置 | I32: 弁護士 | L32: 弁理士 | O32: 税理士 | R32: 公認会計士 | V32: その他 | DJ32: 共同研究の進捗管理とフィードバック
I33: ※専門家を配置している場合は、赤色で表示されます。 | DJ33: 企業ニーズに適応した技術移転・事業化提案
AA34: ■受託研究 | AG34: 2020年度 | AO34: 2021年度 | AW34: 順位※ | DJ34: 共同研究等の企画・提案
AG35: 受入額（千円） | AL35: 件数（件） | AO35: 受入額（千円） | AT35: 件数（件） | DB35: 順位 | DJ35: 契約書での成果目標、達成時の明記
AA36: 全体 | AG36: 142399 | AL36: 17 | AO36: 113622 | AT36: 19 | AW36: =IF(DB36<50,DB36,"") ->  | AY36: 位 | DB36: 145 | DJ36: 共同研究契約の締結/判断（契約権限の集中）
AB37: 民間企業 のみ | AG37: 0 | AL37: 0 | AO37: 260 | AT37: 1 | AW37: =IF(DB37<50,DB37,"") ->  | AY37: 位 | DB37: 383 | DJ37: 共同研究の進捗管理とフィードバック
C38: 産学連携本部が関与した共同研究 | P38: 0 | T38: 件 | AC38: 大企業 | AG38: 0 | AL38: 0 | AO38: 260 | AT38: 1 | AW38: =IF(DB38<50,DB38,"") ->  | AY38: 位 | DB38: 313 | DJ38: 企業ニーズに適応した技術移転・事業化提案
D39: 内、マッチングを行い、契約締結した件数 | P39: 0 | T39: 件 | AC39: 中小企業 | AG39: 0 | AL39: 0 | AO39: 0 | AT39: 0 | AW39: =IF(DB39<50,DB39,"") ->  | AY39: 位 | BB39: ■産学連携活動の主な実用化事例 | DB39: 318 | DJ39: 共同研究等の企画・提案
I40: ※1,000万円以上の共同研究 | AL40: ※順位は2021年度の受入額を比較したもの | DB40: 弁護士 | DG40: 0 | DH40: 0 | DJ40: 契約書での成果目標、達成時の明記
DB41: 弁理士 | DG41: ～100万 | DH41: 1 | DJ41: 共同研究契約の締結/判断（契約権限の集中）
C42: 組織対組織による包括連携契約の締結数 | P42: 1 | T42: 件 | DB42: 税理士 | DG42: ～300万 | DH42: 0 | DJ42: 共同研究の進捗管理とフィードバック
D43: 内、1,000万円以上の実績がある相手方数 | P43: 0 | T43: 件 | DB43: 公認会計士 | DG43: ～500万 | DH43: 0 | DJ43: 企業ニーズに適応した技術移転・事業化提案
DA44: ○ | DB44: その他 | DG44: ～1000万 | DH44: 0
C45: 寄附講座・寄附研究部門の受入件数 | P45: 0 | V45: 件 | DG45: ～5000万 | DH45: 0
C46: 寄附講座・寄附研究部門の受入金額（千円） | P46: 0 | DG46: ～1億 | DH46: 0
C47: 共同研究講座・共同研究部門の受入件数 | P47: 2 | V47: 件 | DG47: 1億以上 | DH47: 0
C48: 共同研究講座・共同研究部門の受入金額（千円） | P48: 4100
C52: 職務発明の帰属 | I52: 大学 | M52: 発明者 | Q52: 未設定 | CZ52: 大学 | DA52: 職務発明
AD53: 特許権実施等件数 | AL53: 9 | AQ53: 件 | AS53: 実施等件数 あたり | DA53: 不実施
M54: 研究者あたり | AD54: 特許権実施等収入（千円） | AL54: 753 | AS54: =IF(OR(AL53="",AL54=""),"",IFERROR(AL54/AL53,"")) -> 83.66666667 | CZ54: 753000 | DA54: 特許等収入
C55: 特許出願件数（件） | I55: 11 | M55: =IF(OR(K25="",I55=""),"",IFERROR(I55/K25,"")) -> 0.07746478873
C56: 特許保有件数（件） | I56: 91 | M56: =IF(OR(K25="",I56=""),"",IFERROR(I56/K25,"")) -> 0.6408450704
C61: 大学発ベンチャー数 | J61: 5 | O61: 社
C62: Exit件数（IPO） | J62: 0 | O62: 社 | P62: Exit件数（M&A） | W62: 0 | Z62: 社
C63: 相談窓口 | K63: 支援ファンド | S63: インキュベーション施設
C64: 有 | G64: 無 | K64: 有 | O64: 無 | S64: 有 | W64: 無
C65: 知的財産戦略方針 | K65: 支援総額（千円） | S65: 面積 | W65: 335 | Z65: 平方メートル
C66: 有 | G66: 無 | S66: 契約企業数 | W66: 0 | Z66: 社
A69: 1 | B69: 2 | C69: 3 | D69: 4 | E69: 5 | F69: 6 | G69: 7 | H69: 8 | I69: 9 | J69: 10 | K69: 11 | L69: 12 | M69: 13 | N69: 14 | O69: 15 | P69: 16 | Q69: 17 | R69: 18 | S69: 19 | T69: 20 | U69: 21 | V69: 22 | W69: 23 | X69: 24 | Y69: 25 | Z69: 26 | AA69: 27 | AB69: 28 | AC69: 29 | AD69: 30 | AE69: 31 | AF69: 32 | AG69: 33 | AH69: 34 | AI69: 35 | AJ69: 36 | AK69: 37 | AL69: 38 | AM69: 39 | AN69: 40 | AO69: 41 | AP69: 42 | AQ69: 43 | AR69: 44 | AS69: 45 | AT69: 46 | AU69: 47 | AV69: 48 | AW69: 49 | AX69: 50 | AY69: 51 | AZ69: 52 | BA69: 53 | BB69: 54 | BC69: 55 | BD69: 56 | BE69: 57 | BF69: 58 | BG69: 59 | BH69: 60 | BI69: 61 | BJ69: 62 | BK69: 63 | BL69: 64 | BM69: 65 | BN69: 66 | BO69: 67 | BP69: 68 | BQ69: 69 | BR69: 70 | BS69: 71 | BT69: 72 | BU69: 73 | BV69: 74 | BW69: 75 | BX69: 76 | BY69: 77 | BZ69: 78 | CA69: 79 | CB69: 80 | CC69: 81 | CD69: 82 | CE69: 83 | CF69: 84 | CG69: 85 | CH69: 86 | CI69: 87 | CJ69: 88 | CK69: 89 | CL69: 90 | CM69: 91 | CN69: 92 | CO69: 93 | CP69: 94 | CQ69: 95 | CR69: 96 | CS69: 97 | CT69: 98 | CU69: 99 | CV69: 100 | CW69: 101 | CX69: 102 | CY69: 103 | CZ69: 104 | DA69: 105 | DB69: 106 | DC69: 107 | DD69: 108 | DE69: 109 | DF69: 110 | DG69: 111 | DH69: 112 | DI69: 113 | DJ69: 114 | DK69: 115 | DL69: 116 | DM69: 117 | DN69: 118 | DO69: 119 | DP69: 120 | DQ69: 121 | DR69: 122 | DS69: 123 | DT69: 124 | DU69: 125
D70: 特許権収入
B71: 東京大学 | C71: 4744 | D71: 557703000
B72: 東北大学 | C72: 3726 | D72: 275164000
B73: 大阪大学 | C73: 3253 | D73: 395417000
B74: 京都大学 | C74: 3217 | D74: 886135000
B75: 東京工業大学 | C75: 2019 | D75: 42504000
B76: 九州大学 | C76: 1733 | D76: 142436000
B77: 名古屋大学 | C77: 1496 | D77: 72276000
B78: 北海道大学 | C78: 1219 | D78: 115470000
B79: 信州大学 | C79: 1047 | D79: 32411000
B80: 広島大学 | C80: 1019 | D80: 44418000
B81: 筑波大学 | C81: 892 | D81: 27835000
B82: 慶應義塾大学 | C82: 856 | D82: 58283000
B83: 千葉大学 | C83: 851 | D83: 9761000
B84: 岡山大学 | C84: 739 | D84: 21802000
B85: 山口大学 | C85: 711 | D85: 26145000
B86: 東京農工大学 | C86: 667 | D86: 10063000
B87: 名古屋工業大学 | C87: 660 | D87: 23496000
B88: 東京理科大学 | C88: 629 | D88: 11695000
B89: 九州工業大学 | C89: 607 | D89: 5845000
B90: 神戸大学 | C90: 581 | D90: 104449000
B91: 熊本大学 | C91: 543 | D91: 19748000
B92: 群馬大学 | C92: 536 | D92: 3598000
B93: 静岡大学 | C93: 523 | D93: 2662000
B94: 横浜国立大学 | C94: 509 | D94: 4920000
B95: 大阪公立大学（大阪府立大学） | C95: 502 | D95: 8255000
B96: 近畿大学 | C96: 488 | D96: 26794000
B97: 鹿児島大学 | C97: 458 | D97: 8269000
B98: 長岡技術科学大学 | C98: 440 | D98: 2979000
B99: 奈良先端科学技術大学院大学 | C99: 435 | D99: 3758000
B100: 東京都立大学 | C100: 435 | D100: 1170000
B101: 山梨大学 | C101: 426 | D101: 28912000
B102: 大阪公立大学（大阪市立大学） | C102: 423 | D102: 3124000
B103: 三重大学 | C103: 422 | D103: 20215000
B104: 東京医科歯科大学 | C104: 418 | D104: 74575000
B105: 電気通信大学 | C105: 406 | D105: 2740000
B106: 豊橋技術科学大学 | C106: 395 | D106: 7491000
B107: 関西大学 | C107: 392 | D107: 5519000
B108: 徳島大学 | C108: 385 | D108: 26218000
B109: 金沢大学 | C109: 360 | D109: 14331000
B110: 北里大学 | C110: 350 | D110: 47578000
B111: 香川大学 | C111: 343 | D111: 13987000
B112: 鳥取大学 | C112: 341 | D112: 5178000
B113: 新潟大学 | C113: 323 | D113: 11052000
B114: 富山大学 | C114: 319 | D114: 21312000
B115: 埼玉大学 | C115: 314 | D115: 2129000
B116: 同志社大学 | C116: 310 | D116: 26699000
B117: 日本大学 | C117: 306 | D117: 50528000
B118: 高知大学 | C118: 296 | D118: 22439000
B119: 立命館大学 | C119: 283 | D119: 5079000
B120: 自然科学研究機構 | C120: 278 | D120: 23513000
B121: 弘前大学 | C121: 261 | D121: 6272000
B122: 岐阜大学 | C122: 260 | D122: 9851000
B123: 宮崎大学 | C123: 257 | D123: 2044000
B124: 神奈川大学 | C124: 254 | D124: 4373000
B125: 兵庫県立大学 | C125: 248 | D125: 37000
B126: 秋田大学 | C126: 242 | D126: 245000
B127: 佐賀大学 | C127: 239 | D127: 6705000
B128: 福井大学 | C128: 239 | D128: 3402000
B129: 東海大学 | C129: 238 | D129: 771000
B130: 山形大学 | C130: 237 | D130: 3491000
B131: 横浜市立大学 | C131: 234 | D131: 25613000
B132: 札幌医科大学 | C132: 229 | D132: 28223000
B133: 京都工芸繊維大学 | C133: 224 | D133: 2740000
B134: 名城大学 | C134: 224 | D134: 475000
B135: 千葉工業大学 | C135: 210 | D135: 22544000
B136: 情報・システム研究機構 | C136: 208 | D136: 5139000
B137: 長崎大学 | C137: 201 | D137: 14882000
B138: 東京海洋大学 | C138: 194 | D138: 2761000
B139: 愛媛大学 | C139: 188 | D139: 18823000
B140: 東京女子医科大学 | C140: 188 | D140: 2124000
B141: 岩手大学 | C141: 188 | D141: 1268000
B142: 北陸先端科学技術大学院大学 | C142: 182 | D142: 7446000
B143: 福岡大学 | C143: 178 | D143: 1047000
B144: 沖縄科学技術大学院大学 | C144: 173 | D144: 1100000
B145: 高知工科大学 | C145: 169 | D145: 45000
B146: 宇都宮大学 | C146: 168 | D146: 7200000
B147: 茨城大学 | C147: 167 | D147: 1237000
B148: 金沢工業大学 | C148: 151 | D148: 3018000
B149: 中央大学 | C149: 151 | D149: 2106000
B150: 大分大学 | C150: 148 | D150: 1748000
B151: 京都府立医科大学 | C151: 147 | D151: 11367000
B152: 関西学院大学 | C152: 146 | D152: 16773000
B153: 滋賀医科大学 | C153: 141 | D153: 5086000
B154: 自治医科大学 | C154: 140 | D154: 10251000
B155: 島根大学 | C155: 140 | D155: 1478000
B156: 上智大学 | C156: 140 | D156: 200000
B157: 浜松医科大学 | C157: 135 | D157: 3613000
B158: 高エネルギー加速器研究機構 | C158: 135 | D158: 712000
B159: 順天堂大学 | C159: 132 | D159: 5278000
B160: 中部大学 | C160: 122 | D160: 1378000
B161: 名古屋市立大学 | C161: 114 | D161: 38831000
B162: 久留米大学 | C162: 112 | D162: 902000
B163: 豊田工業大学 | C163: 109 | D163: 0
B164: 芝浦工業大学 | C164: 103 | D164: 1238000
B165: 東京電機大学 | C165: 102 | D165: 3875000
B166: 埼玉医科大学 | C166: 99 | D166: 8849000
B167: 関東学院大学 | C167: 97 | D167: 9990000
B168: 琉球大学 | C168: 92 | D168: 1146000
B169: 明治大学 | C169: 91 | D169: 4260000
B170: 北見工業大学 | C170: 91 | D170: 753000
B171: 和歌山大学 | C171: 88 | D171: 3592000
B172: 富山県立大学 | C172: 86 | D172: 1957000
B173: 静岡県立大学 | C173: 84 | D173: 1231000
B174: 神奈川工科大学 | C174: 83 | D174: 289000
B175: 藤田医科大学 | C175: 80 | D175: 0
B176: 福岡工業大学 | C176: 69 | D176: 0
B177: 早稲田大学 | C177: 66 | D177: 19945000
B178: 福島大学 | C178: 65 | D178: 217000
B179: 帝京大学 | C179: 62 | D179: 2716000
B180: 岡山理科大学 | C180: 59 | D180: 1200000
B181: 日本医科大学 | C181: 58 | D181: 7708000
B182: 奈良県立医科大学 | C182: 58 | D182: 1283000
B183: 旭川医科大学 | C183: 58 | D183: 700000
B184: 帯広畜産大学 | C184: 57 | D184: 524000
B185: 兵庫医科大学 | C185: 56 | D185: 5620000
B186: 室蘭工業大学 | C186: 55 | D186: 1000
B187: 秋田県立大学 | C187: 54 | D187: 2624000
B188: 東洋大学 | C188: 53 | D188: 2185000
B189: 立教大学 | C189: 53 | D189: 8000
B190: 聖マリアンナ医科大学 | C190: 50 | D190: 109000
B191: 法政大学 | C191: 49 | D191: 874000
B192: お茶の水女子大学 | C192: 49 | D192: 5000
B193: 会津大学 | C193: 48 | D193: 132000
B194: 玉川大学 | C194: 48 | D194: 125000
B195: 関西医科大学 | C195: 47 | D195: 3568000
B196: 甲南大学 | C196: 45 | D196: 1103000
B197: 大阪工業大学 | C197: 44 | D197: 0
B198: 龍谷大学 | C198: 43 | D198: 168000
B199: 広島市立大学 | C199: 43 | D199: 0
B200: 産業医科大学 | C200: 42 | D200: 1006000
B201: 工学院大学 | C201: 41 | D201: 1396000
B202: 北九州市立大学 | C202: 37 | D202: 5488000
B203: 東京農業大学 | C203: 37 | D203: 473000
B204: 鈴鹿工業高等専門学校 | C204: 34 | D204: 74000
B205: 青山学院大学 | C205: 34 | D205: 0
B206: 昭和大学 | C206: 31 | D206: 10595000
B207: 香川高等専門学校 | C207: 31 | D207: 1599000
B208: 麻布大学 | C208: 31 | D208: 797000
B209: 県立広島大学 | C209: 31 | D209: 11000
... 904 more rows

Sheet 岐阜大学 (hidden)
A1: 国立 | C1: 岐阜大学（岐阜県） | X1: 大学全体の経営理念における産学官連携活動の取組方針 | CB1: 80 | CC1: 81 | CD1: 82 | CE1: 83 | CF1: 84 | CG1: 85 | CH1: 86 | CI1: 87 | CJ1: 88 | CK1: 89 | CL1: 90 | CM1: 91 | CN1: 92 | CO1: 93 | CP1: 94 | CQ1: 95 | CR1: 96 | CS1: 97 | CT1: 98 | CU1: 99 | CV1: 100 | CW1: 101 | CX1: 102 | CY1: 103 | CZ1: 104 | DA1: 105 | DB1: 106 | DC1: 107 | DD1: 108 | DE1: 109 | DF1: 110 | DG1: 111 | DH1: 112 | DI1: 113 | DJ1: 114 | DK1: 115 | DL1: 116 | DM1: 117 | DN1: 118 | DO1: 119 | DP1: 120 | DQ1: 121 | DR1: 122 | DS1: 123 | DT1: 124 | DU1: 125 | DV1: 126 | DW1: 127 | DX1: 128 | DY1: 129
X2: 個々の研究者の知的探求心に基づく学術研究の卓越性を幅広い分野において高めることにより、被引用度の高いジャーナル論文の増加を目指すとともに、特定の研究分野において、世界トップレベルの研究成果を得ることが期待できる研究センター群を形成し、人類や地域社会の直面する諸課題を解決する。また、名古屋大学との協働により、糖鎖生命コア研究拠点及び航空宇宙研究教育拠点の機能を強化する。
BB3: ＵＲＡ | BO3: URA当たり研究者数 | CA3: 戦略的産学連携経費
BC4: 実務担当者数 | BI4: 16 | BN4: 名 | BO4: =IF(OR(K25="",BI4=""),"",(IFERROR(K25/BI4,""))) -> 67.5 | BX4: 名 | CB4: 戦略的産学連携経費の設定 | CP4: 有 | CT4: 無 | CZ4: ある | DA4: インキュベーション施設
A5: 1 | B5: 2 | C5: 3 | D5: 4 | E5: 5 | F5: 6 | G5: 7 | H5: 8 | I5: 9 | J5: 10 | K5: 11 | L5: 12 | M5: 13 | N5: 14 | O5: 15 | P5: 16 | Q5: 17 | R5: 18 | S5: 19 | T5: 20 | U5: 21 | V5: 22 | W5: 23 | X5: 24 | Y5: 25 | Z5: 26 | AA5: 27 | AB5: 28 | AC5: 29 | AD5: 30 | AE5: 31 | AF5: 32 | AG5: 33 | AH5: 34 | AI5: 35 | AJ5: 36 | AK5: 37 | AL5: 38 | AM5: 39 | AN5: 40 | AO5: 41 | AP5: 42 | AQ5: 43 | AR5: 44 | AS5: 45 | AT5: 46 | AU5: 47 | AV5: 48 | AW5: 49 | AX5: 50 | AY5: 51 | AZ5: 52 | BA5: 53 | BB5: 54 | BC5: 55 | BD5: 56 | BE5: 57 | BF5: 58 | BG5: 59 | BH5: 60 | BI5: 61 | BJ5: 62 | BK5: 63 | BL5: 64 | BM5: 65 | BN5: 66 | BO5: 67 | BP5: 68 | BQ5: 69 | BR5: 70 | BS5: 71 | BT5: 72 | BU5: 73 | BV5: 74 | BW5: 75 | BX5: 76 | BY5: 77 | BZ5: 78 | CA5: 79 | CB5: 戦略的産学連携経費の費目 | CZ5: ある | DA5: 相談窓口
A6: 基 礎 情 報 | BB6: 各種規程類の整備状況 | CB6: 戦略的産学連携経費の直接経費に対する割合 | CZ6: ある | DA6: 設立ポリシー | DI6: × | DJ6: 産学連携ポリシー
BB7: 産学連携ポリシー | BM7: 職務発明規程（教職員のみ対象） | CZ7: ある | DA7: 支援ファンド | DI7: ◎ | DJ7: 知的財産ポリシー
B8: 大学の得意分野とその具体例 | BB8: 知的財産ポリシー | BM8: 職務発明規程（教職員、学生対象） | CA8: 人件費の企業負担 | DI8: ◎ | DJ8: 共同研究取扱規程
B9: 岐阜大学の強み分野である生命科学、環境科学、ものづくり分野について、それぞれ研究センターを組織し、知識・人材の有効活用により大きな研究プロジェクトに共同で取り組む環境を整備。 | AA9: 科研費 （千円） | AL9: その他政府系資金 (千円) | AS9: その他団体からの資金 (千円) | BB9: 共同研究取扱規程 | BM9: 発明補償関係規程（教職員のみ対象） | CB9: 教員人件費の企業負担に関する規程や制度 | CP9: 有 | CT9: 無 | DI9: ◎ | DJ9: 受託研究取扱規程
BB10: 受託研究取扱規程 | BM10: 発明補償関係規程（教職員、学生対象） | CB10: 教員人件費の企業負担の費目 | DI10: ◎ | DJ10: 研究成果有体物取扱規程
AA11: 776351 | AL11: 30299 | AS11: 2392 | BB11: 研究成果有体物取扱規程 | BM11: 守秘義務に係る規程（教職員のみ対象） | CB11: 学生人件費の企業負担に関する規程や制度 | CP11: 有 | CT11: 無 | DI11: × | DJ11: 営業秘密管理に関する規程
BB12: 営業秘密管理に関する規程 | BM12: 守秘義務に係る規程（教職員、学生対象） | CB12: 学生人件費の企業負担の費目 | DI12: ◎ | DJ12: 株式の取扱等規程、ポリシー
AA13: 間接経費割合 | AN13: 株式の保有 | AT13: 新株予約権の保有 | BB13: 株式の取扱等規程、ポリシー | DA13: ○ | DB13: 株式 | DI13: ◎ | DJ13: 職務発明規程（教職員のみ対象）
AA14: 0.3 | AN14: 有 | AQ14: 無 | AT14: 有 | AW14: 無 | BD14: ※各種規定類を整備している場合は、赤色で表示されます。 | CA14: 特別試験研究費税額控除制度 | DB14: 新株予約権 | DI14: × | DJ14: 職務発明規程（教職員、学生対象）
B15: 産学官連携活動において今後重点化したい事項 | CB15: 特別試験研究費税額控除制度の活用 | CP15: 有 | CT15: 無 | DI15: ◎ | DJ15: 発明補償関係規程（教職員のみ対象）
B16: 地域から地球規模に至る社会課題を解決し、より良い社会の実現に寄与するため、研究により得られた科学的理論や基礎的知見の現実社会での実践に向けた研究開発を進め、社会変革につながるイノベーションの創出を目指す。また、若手、女性、外国人など研究者の多様性を高めることで、知の集積拠点として、持続的に新たな価値を創出し、発展し続けるための基盤を構築する。 | AA16: ■共同研究 | AG16: 2020年度 | AO16: 2021年度 | AW16: 順位※ | BB16: クロスアポイントメントの実績（人） | BK16: 大学等 | BN16: 公的機関 | BQ16: 民間企業 | BU16: その他機関 | DI16: × | DJ16: 発明補償関係規程（教職員、学生対象）
AG17: 受入額（千円） | AL17: 件数 | AO17: 受入額（千円） | AT17: 件数 | BH17: 受入 | BK17: 0 | BN17: 0 | BQ17: 2 | BU17: 0 | DB17: 順位 | DI17: ◎ | DJ17: 守秘義務に係る規程（教職員のみ対象）
AA18: 全体 | AG18: 721245 | AL18: 384 | AO18: 754691 | AT18: 374 | AW18: =IF(DB18<50,DB18,"") -> 22 | AY18: 位 | BH18: 派遣 | BK18: 2 | BN18: 1 | BQ18: 0 | BU18: 0 | DB18: 22 | DI18: × | DJ18: 守秘義務に係る規程（教職員、学生対象）
AB19: 民間企業 のみ | AG19: 632873 | AL19: 347 | AO19: 655884 | AT19: 345 | AW19: =IF(DB19<50,DB19,"") -> 23 | AY19: 位 | DB19: 23
AC20: 大企業 | AG20: 233296 | AL20: 162 | AO20: 359118 | AT20: 186 | AW20: =IF(DB20<50,DB20,"") -> 31 | AY20: 位 | DB20: 31 | DI20: ない | DJ20: 戦略的産学連携経費の設定
AC21: 中小企業 | AG21: 157385 | AL21: 162 | AO21: 296766 | AT21: 159 | AW21: =IF(DB21<50,DB21,"") -> 14 | AY21: 位 | BB21: ■組織的産学連携活動の取組事例 | DB21: 14 | DI21: ない | DJ21: 教員人件費の企業負担に関する規程や制度
AL22: ※順位は2021年度の受入額を比較したもの | DI22: ない | DJ22: 学生人件費の企業負担に関する規程や制度
B23: 産学官連携本部等組織名 | K23: 学術研究・産学官連携推進本部 | DB23: 0 | DC23: 103 | DI23: ある | DJ23: 特別試験研究費税額控除制度の活用
B24: 産学官連携本部等URL | K24: https://www.orchid.gifu-u.ac.jp/ | DB24: ～100万 | DC24: 80
B25: 研究者数 | K25: 1080 | O25: 名 | DB25: ～300万 | DC25: 120
DB26: ～500万 | DC26: 24
DB27: ～1000万 | DC27: 9
DB28: ～5000万 | DC28: 8
DB29: ～1億 | DC29: 1 | DJ29: 共同研究等の企画・提案
B30: 産学連携担当部署 | O30: 実務者当たり研究者数 | DB30: 1億以上 | DC30: 0 | DJ30: 契約書での成果目標、達成時の明記
C31: 実務担当者数 | I31: 26 | N31: 名 | O31: =IF(OR(K25="",I31=""),"",IFERROR($K$25/I31,"")) -> 41.53846154 | X31: 名 | DJ31: 共同研究契約の締結/判断（契約権限の集中）
C32: 専門家の配置 | I32: 弁護士 | L32: 弁理士 | O32: 税理士 | R32: 公認会計士 | V32: その他 | DJ32: 共同研究の進捗管理とフィードバック
I33: ※専門家を配置している場合は、赤色で表示されます。 | DJ33: 企業ニーズに適応した技術移転・事業化提案
AA34: ■受託研究 | AG34: 2020年度 | AO34: 2021年度 | AW34: 順位※ | DJ34: 共同研究等の企画・提案
AG35: 受入額（千円） | AL35: 件数（件） | AO35: 受入額（千円） | AT35: 件数（件） | DB35: 順位 | DJ35: 契約書での成果目標、達成時の明記
AA36: 全体 | AG36: 653358 | AL36: 198 | AO36: 763504 | AT36: 227 | AW36: =IF(DB36<50,DB36,"") ->  | AY36: 位 | DB36: 52 | DJ36: 共同研究契約の締結/判断（契約権限の集中）
AB37: 民間企業 のみ | AG37: 37503 | AL37: 39 | AO37: 46660 | AT37: 44 | AW37: =IF(DB37<50,DB37,"") ->  | AY37: 位 | DB37: 66 | DJ37: 共同研究の進捗管理とフィードバック
C38: 産学連携本部が関与した共同研究 | P38: 0 | T38: 件 | AC38: 大企業 | AG38: 20752 | AL38: 17 | AO38: 30966 | AT38: 25 | AW38: =IF(DB38<50,DB38,"") ->  | AY38: 位 | DB38: 72 | DJ38: 企業ニーズに適応した技術移転・事業化提案
D39: 内、マッチングを行い、契約締結した件数 | P39: 0 | T39: 件 | AC39: 中小企業 | AG39: 16551 | AL39: 18 | AO39: 15694 | AT39: 19 | AW39: =IF(DB39<50,DB39,"") -> 41 | AY39: 位 | BB39: ■産学連携活動の主な実用化事例 | DB39: 41 | DJ39: 共同研究等の企画・提案
I40: ※1,000万円以上の共同研究 | AL40: ※順位は2021年度の受入額を比較したもの | DB40: 弁護士 | DG40: 0 | DH40: 19 | DJ40: 契約書での成果目標、達成時の明記
DA41: ○ | DB41: 弁理士 | DG41: ～100万 | DH41: 14 | DJ41: 共同研究契約の締結/判断（契約権限の集中）
C42: 組織対組織による包括連携契約の締結数 | P42: 0 | T42: 件 | DB42: 税理士 | DG42: ～300万 | DH42: 6 | DJ42: 共同研究の進捗管理とフィードバック
D43: 内、1,000万円以上の実績がある相手方数 | P43: 0 | T43: 件 | DB43: 公認会計士 | DG43: ～500万 | DH43: 2 | DJ43: 企業ニーズに適応した技術移転・事業化提案
DB44: その他 | DG44: ～1000万 | DH44: 2
C45: 寄附講座・寄附研究部門の受入件数 | P45: 13 | V45: 件 | DG45: ～5000万 | DH45: 1
C46: 寄附講座・寄附研究部門の受入金額（千円） | P46: 331500 | DG46: ～1億 | DH46: 0
C47: 共同研究講座・共同研究部門の受入件数 | P47: 13 | V47: 件 | DG47: 1億以上 | DH47: 0
C48: 共同研究講座・共同研究部門の受入金額（千円） | P48: 220310
C52: 職務発明の帰属 | I52: 大学 | M52: 発明者 | Q52: 未設定 | CZ52: 大学 | DA52: 職務発明
AD53: 特許権実施等件数 | AL53: 48 | AQ53: 件 | AS53: 実施等件数 あたり | DA53: 不実施
M54: 研究者あたり | AD54: 特許権実施等収入（千円） | AL54: 10851 | AS54: =IF(OR(AL53="",AL54=""),"",IFERROR(AL54/AL53,"")) -> 226.0625 | CZ54: 10851000 | DA54: 特許等収入
C55: 特許出願件数（件） | I55: 55 | M55: =IF(OR(K25="",I55=""),"",IFERROR(I55/K25,"")) -> 0.05092592593
C56: 特許保有件数（件） | I56: 260 | M56: =IF(OR(K25="",I56=""),"",IFERROR(I56/K25,"")) -> 0.2407407407
C61: 大学発ベンチャー数 | J61: 24 | O61: 社
C62: Exit件数（IPO） | J62: 0 | O62: 社 | P62: Exit件数（M&A） | W62: 0 | Z62: 社
C63: 相談窓口 | K63: 支援ファンド | S63: インキュベーション施設
C64: 有 | G64: 無 | K64: 有 | O64: 無 | S64: 有 | W64: 無
C65: 知的財産戦略方針 | K65: 支援総額（千円） | S65: 面積 | W65: 1638 | Z65: 平方メートル
C66: 有 | G66: 無 | K66: 2000000 | S66: 契約企業数 | W66: 2 | Z66: 社
A69: 1 | B69: 2 | C69: 3 | D69: 4 | E69: 5 | F69: 6 | G69: 7 | H69: 8 | I69: 9 | J69: 10 | K69: 11 | L69: 12 | M69: 13 | N69: 14 | O69: 15 | P69: 16 | Q69: 17 | R69: 18 | S69: 19 | T69: 20 | U69: 21 | V69: 22 | W69: 23 | X69: 24 | Y69: 25 | Z69: 26 | AA69: 27 | AB69: 28 | AC69: 29 | AD69: 30 | AE69: 31 | AF69: 32 | AG69: 33 | AH69: 34 | AI69: 35 | AJ69: 36 | AK69: 37 | AL69: 38 | AM69: 39 | AN69: 40 | AO69: 41 | AP69: 42 | AQ69: 43 | AR69: 44 | AS69: 45 | AT69: 46 | AU69: 47 | AV69: 48 | AW69: 49 | AX69: 50 | AY69: 51 | AZ69: 52 | BA69: 53 | BB69: 54 | BC69: 55 | BD69: 56 | BE69: 57 | BF69: 58 | BG69: 59 | BH69: 60 | BI69: 61 | BJ69: 62 | BK69: 63 | BL69: 64 | BM69: 65 | BN69: 66 | BO69: 67 | BP69: 68 | BQ69: 69 | BR69: 70 | BS69: 71 | BT69: 72 | BU69: 73 | BV69: 74 | BW69: 75 | BX69: 76 | BY69: 77 | BZ69: 78 | CA69: 79 | CB69: 80 | CC69: 81 | CD69: 82 | CE69: 83 | CF69: 84 | CG69: 85 | CH69: 86 | CI69: 87 | CJ69: 88 | CK69: 89 | CL69: 90 | CM69: 91 | CN69: 92 | CO69: 93 | CP69: 94 | CQ69: 95 | CR69: 96 | CS69: 97 | CT69: 98 | CU69: 99 | CV69: 100 | CW69: 101 | CX69: 102 | CY69: 103 | CZ69: 104 | DA69: 105 | DB69: 106 | DC69: 107 | DD69: 108 | DE69: 109 | DF69: 110 | DG69: 111 | DH69: 112 | DI69: 113 | DJ69: 114 | DK69: 115 | DL69: 116 | DM69: 117 | DN69: 118 | DO69: 119 | DP69: 120 | DQ69: 121 | DR69: 122 | DS69: 123 | DT69: 124 | DU69: 125
D70: 特許権収入
B71: 東京大学 | C71: 4744 | D71: 557703000
B72: 東北大学 | C72: 3726 | D72: 275164000
B73: 大阪大学 | C73: 3253 | D73: 395417000
B74: 京都大学 | C74: 3217 | D74: 886135000
B75: 東京工業大学 | C75: 2019 | D75: 42504000
B76: 九州大学 | C76: 1733 | D76: 142436000
B77: 名古屋大学 | C77: 1496 | D77: 72276000
B78: 北海道大学 | C78: 1219 | D78: 115470000
B79: 信州大学 | C79: 1047 | D79: 32411000
B80: 広島大学 | C80: 1019 | D80: 44418000
B81: 筑波大学 | C81: 892 | D81: 27835000
B82: 慶應義塾大学 | C82: 856 | D82: 58283000
B83: 千葉大学 | C83: 851 | D83: 9761000
B84: 岡山大学 | C84: 739 | D84: 21802000
B85: 山口大学 | C85: 711 | D85: 26145000
B86: 東京農工大学 | C86: 667 | D86: 10063000
B87: 名古屋工業大学 | C87: 660 | D87: 23496000
B88: 東京理科大学 | C88: 629 | D88: 11695000
B89: 九州工業大学 | C89: 607 | D89: 5845000
B90: 神戸大学 | C90: 581 | D90: 104449000
B91: 熊本大学 | C91: 543 | D91: 19748000
B92: 群馬大学 | C92: 536 | D92: 3598000
B93: 静岡大学 | C93: 523 | D93: 2662000
B94: 横浜国立大学 | C94: 509 | D94: 4920000
B95: 大阪公立大学（大阪府立大学） | C95: 502 | D95: 8255000
B96: 近畿大学 | C96: 488 | D96: 26794000
B97: 鹿児島大学 | C97: 458 | D97: 8269000
B98: 長岡技術科学大学 | C98: 440 | D98: 2979000
B99: 奈良先端科学技術大学院大学 | C99: 435 | D99: 3758000
B100: 東京都立大学 | C100: 435 | D100: 1170000
B101: 山梨大学 | C101: 426 | D101: 28912000
B102: 大阪公立大学（大阪市立大学） | C102: 423 | D102: 3124000
B103: 三重大学 | C103: 422 | D103: 20215000
B104: 東京医科歯科大学 | C104: 418 | D104: 74575000
B105: 電気通信大学 | C105: 406 | D105: 2740000
B106: 豊橋技術科学大学 | C106: 395 | D106: 7491000
B107: 関西大学 | C107: 392 | D107: 5519000
B108: 徳島大学 | C108: 385 | D108: 26218000
B109: 金沢大学 | C109: 360 | D109: 14331000
B110: 北里大学 | C110: 350 | D110: 47578000
B111: 香川大学 | C111: 343 | D111: 13987000
B112: 鳥取大学 | C112: 341 | D112: 5178000
B113: 新潟大学 | C113: 323 | D113: 11052000
B114: 富山大学 | C114: 319 | D114: 21312000
B115: 埼玉大学 | C115: 314 | D115: 2129000
B116: 同志社大学 | C116: 310 | D116: 26699000
B117: 日本大学 | C117: 306 | D117: 50528000
B118: 高知大学 | C118: 296 | D118: 22439000
B119: 立命館大学 | C119: 283 | D119: 5079000
B120: 自然科学研究機構 | C120: 278 | D120: 23513000
B121: 弘前大学 | C121: 261 | D121: 6272000
B122: 岐阜大学 | C122: 260 | D122: 9851000
B123: 宮崎大学 | C123: 257 | D123: 2044000
B124: 神奈川大学 | C124: 254 | D124: 4373000
B125: 兵庫県立大学 | C125: 248 | D125: 37000
B126: 秋田大学 | C126: 242 | D126: 245000
B127: 佐賀大学 | C127: 239 | D127: 6705000
B128: 福井大学 | C128: 239 | D128: 3402000
B129: 東海大学 | C129: 238 | D129: 771000
B130: 山形大学 | C130: 237 | D130: 3491000
B131: 横浜市立大学 | C131: 234 | D131: 25613000
B132: 札幌医科大学 | C132: 229 | D132: 28223000
B133: 京都工芸繊維大学 | C133: 224 | D133: 2740000
B134: 名城大学 | C134: 224 | D134: 475000
B135: 千葉工業大学 | C135: 210 | D135: 22544000
B136: 情報・システム研究機構 | C136: 208 | D136: 5139000
B137: 長崎大学 | C137: 201 | D137: 14882000
B138: 東京海洋大学 | C138: 194 | D138: 2761000
B139: 愛媛大学 | C139: 188 | D139: 18823000
B140: 東京女子医科大学 | C140: 188 | D140: 2124000
B141: 岩手大学 | C141: 188 | D141: 1268000
B142: 北陸先端科学技術大学院大学 | C142: 182 | D142: 7446000
B143: 福岡大学 | C143: 178 | D143: 1047000
B144: 沖縄科学技術大学院大学 | C144: 173 | D144: 1100000
B145: 高知工科大学 | C145: 169 | D145: 45000
B146: 宇都宮大学 | C146: 168 | D146: 7200000
B147: 茨城大学 | C147: 167 | D147: 1237000
B148: 金沢工業大学 | C148: 151 | D148: 3018000
B149: 中央大学 | C149: 151 | D149: 2106000
B150: 大分大学 | C150: 148 | D150: 1748000
B151: 京都府立医科大学 | C151: 147 | D151: 11367000
B152: 関西学院大学 | C152: 146 | D152: 16773000
B153: 滋賀医科大学 | C153: 141 | D153: 5086000
B154: 自治医科大学 | C154: 140 | D154: 10251000
B155: 島根大学 | C155: 140 | D155: 1478000
B156: 上智大学 | C156: 140 | D156: 200000
B157: 浜松医科大学 | C157: 135 | D157: 3613000
B158: 高エネルギー加速器研究機構 | C158: 135 | D158: 712000
B159: 順天堂大学 | C159: 132 | D159: 5278000
B160: 中部大学 | C160: 122 | D160: 1378000
B161: 名古屋市立大学 | C161: 114 | D161: 38831000
B162: 久留米大学 | C162: 112 | D162: 902000
B163: 豊田工業大学 | C163: 109 | D163: 0
B164: 芝浦工業大学 | C164: 103 | D164: 1238000
B165: 東京電機大学 | C165: 102 | D165: 3875000
B166: 埼玉医科大学 | C166: 99 | D166: 8849000
B167: 関東学院大学 | C167: 97 | D167: 9990000
B168: 琉球大学 | C168: 92 | D168: 1146000
B169: 明治大学 | C169: 91 | D169: 4260000
B170: 北見工業大学 | C170: 91 | D170: 753000
B171: 和歌山大学 | C171: 88 | D171: 3592000
B172: 富山県立大学 | C172: 86 | D172: 1957000
B173: 静岡県立大学 | C173: 84 | D173: 1231000
B174: 神奈川工科大学 | C174: 83 | D174: 289000
B175: 藤田医科大学 | C175: 80 | D175: 0
B176: 福岡工業大学 | C176: 69 | D176: 0
B177: 早稲田大学 | C177: 66 | D177: 19945000
B178: 福島大学 | C178: 65 | D178: 217000
B179: 帝京大学 | C179: 62 | D179: 2716000
B180: 岡山理科大学 | C180: 59 | D180: 1200000
B181: 日本医科大学 | C181: 58 | D181: 7708000
B182: 奈良県立医科大学 | C182: 58 | D182: 1283000
B183: 旭川医科大学 | C183: 58 | D183: 700000
B184: 帯広畜産大学 | C184: 57 | D184: 524000
B185: 兵庫医科大学 | C185: 56 | D185: 5620000
B186: 室蘭工業大学 | C186: 55 | D186: 1000
B187: 秋田県立大学 | C187: 54 | D187: 2624000
B188: 東洋大学 | C188: 53 | D188: 2185000
B189: 立教大学 | C189: 53 | D189: 8000
B190: 聖マリアンナ医科大学 | C190: 50 | D190: 109000
B191: 法政大学 | C191: 49 | D191: 874000
B192: お茶の水女子大学 | C192: 49 | D192: 5000
B193: 会津大学 | C193: 48 | D193: 132000
B194: 玉川大学 | C194: 48 | D194: 125000
B195: 関西医科大学 | C195: 47 | D195: 3568000
B196: 甲南大学 | C196: 45 | D196: 1103000
B197: 大阪工業大学 | C197: 44 | D197: 0
B198: 龍谷大学 | C198: 43 | D198: 168000
B199: 広島市立大学 | C199: 43 | D199: 0
B200: 産業医科大学 | C200: 42 | D200: 1006000
B201: 工学院大学 | C201: 41 | D201: 1396000
B202: 北九州市立大学 | C202: 37 | D202: 5488000
B203: 東京農業大学 | C203: 37 | D203: 473000
B204: 鈴鹿工業高等専門学校 | C204: 34 | D204: 74000
B205: 青山学院大学 | C205: 34 | D205: 0
B206: 昭和大学 | C206: 31 | D206: 10595000
B207: 香川高等専門学校 | C207: 31 | D207: 1599000
B208: 麻布大学 | C208: 31 | D208: 797000
B209: 県立広島大学 | C209: 31 | D209: 11000
... 904 more rows

Sheet 九州工業大学 (hidden)
A1: 国立 | C1: 九州工業大学（福岡県） | X1: 大学全体の経営理念における産学官連携活動の取組方針 | CB1: 80 | CC1: 81 | CD1: 82 | CE1: 83 | CF1: 84 | CG1: 85 | CH1: 86 | CI1: 87 | CJ1: 88 | CK1: 89 | CL1: 90 | CM1: 91 | CN1: 92 | CO1: 93 | CP1: 94 | CQ1: 95 | CR1: 96 | CS1: 97 | CT1: 98 | CU1: 99 | CV1: 100 | CW1: 101 | CX1: 102 | CY1: 103 | CZ1: 104 | DA1: 105 | DB1: 106 | DC1: 107 | DD1: 108 | DE1: 109 | DF1: 110 | DG1: 111 | DH1: 112 | DI1: 113 | DJ1: 114 | DK1: 115 | DL1: 116 | DM1: 117 | DN1: 118 | DO1: 119 | DP1: 120 | DQ1: 121 | DR1: 122 | DS1: 123 | DT1: 124 | DU1: 125 | DV1: 126 | DW1: 127 | DX1: 128 | DY1: 129
X2: 本学では、中期目標において、地域及び我が国の産業の国際競争力を強化する新技術と新産業分野（イノベーション）の創出に寄与すること、また、産学官の連携強化により、地域課題の解決や地域産業の振興に貢献することを掲げている。
BB3: ＵＲＡ | BO3: URA当たり研究者数 | CA3: 戦略的産学連携経費
BC4: 実務担当者数 | BI4: 16 | BN4: 名 | BO4: =IF(OR(K25="",BI4=""),"",(IFERROR(K25/BI4,""))) -> 24.4375 | BX4: 名 | CB4: 戦略的産学連携経費の設定 | CP4: 有 | CT4: 無 | CZ4: ある | DA4: インキュベーション施設
A5: 1 | B5: 2 | C5: 3 | D5: 4 | E5: 5 | F5: 6 | G5: 7 | H5: 8 | I5: 9 | J5: 10 | K5: 11 | L5: 12 | M5: 13 | N5: 14 | O5: 15 | P5: 16 | Q5: 17 | R5: 18 | S5: 19 | T5: 20 | U5: 21 | V5: 22 | W5: 23 | X5: 24 | Y5: 25 | Z5: 26 | AA5: 27 | AB5: 28 | AC5: 29 | AD5: 30 | AE5: 31 | AF5: 32 | AG5: 33 | AH5: 34 | AI5: 35 | AJ5: 36 | AK5: 37 | AL5: 38 | AM5: 39 | AN5: 40 | AO5: 41 | AP5: 42 | AQ5: 43 | AR5: 44 | AS5: 45 | AT5: 46 | AU5: 47 | AV5: 48 | AW5: 49 | AX5: 50 | AY5: 51 | AZ5: 52 | BA5: 53 | BB5: 54 | BC5: 55 | BD5: 56 | BE5: 57 | BF5: 58 | BG5: 59 | BH5: 60 | BI5: 61 | BJ5: 62 | BK5: 63 | BL5: 64 | BM5: 65 | BN5: 66 | BO5: 67 | BP5: 68 | BQ5: 69 | BR5: 70 | BS5: 71 | BT5: 72 | BU5: 73 | BV5: 74 | BW5: 75 | BX5: 76 | BY5: 77 | BZ5: 78 | CA5: 79 | CB5: 戦略的産学連携経費の費目 | CZ5: ある | DA5: 相談窓口
A6: 基 礎 情 報 | BB6: 各種規程類の整備状況 | CB6: 戦略的産学連携経費の直接経費に対する割合 | CZ6: ある | DA6: 設立ポリシー | DI6: ◎ | DJ6: 産学連携ポリシー
BB7: 産学連携ポリシー | BM7: 職務発明規程（教職員のみ対象） | CZ7: ない | DA7: 支援ファンド | DI7: ◎ | DJ7: 知的財産ポリシー
B8: 大学の得意分野とその具体例 | BB8: 知的財産ポリシー | BM8: 職務発明規程（教職員、学生対象） | CA8: 人件費の企業負担 | DI8: ◎ | DJ8: 共同研究取扱規程
B9: 以下の各分野を重点研究推進領域として、特に支援している。「革新的宇宙利用」、「環境エネルギー」、「次世代パワエレ」、「ニューロモルフィックAIハードウェア」、「IoTセンサ/デバイス」、「データサイエンス」、「高信頼知的集積システム」、「社会ロボット具現化」。 | AA9: 科研費 （千円） | AL9: その他政府系資金 (千円) | AS9: その他団体からの資金 (千円) | BB9: 共同研究取扱規程 | BM9: 発明補償関係規程（教職員のみ対象） | CB9: 教員人件費の企業負担に関する規程や制度 | CP9: 有 | CT9: 無 | DI9: ◎ | DJ9: 受託研究取扱規程
BB10: 受託研究取扱規程 | BM10: 発明補償関係規程（教職員、学生対象） | CB10: 教員人件費の企業負担の費目 | DI10: ◎ | DJ10: 研究成果有体物取扱規程
AA11: 570176 | AL11: 94429 | AS11: 5538 | BB11: 研究成果有体物取扱規程 | BM11: 守秘義務に係る規程（教職員のみ対象） | CB11: 学生人件費の企業負担に関する規程や制度 | CP11: 有 | CT11: 無 | DI11: ◎ | DJ11: 営業秘密管理に関する規程
BB12: 営業秘密管理に関する規程 | BM12: 守秘義務に係る規程（教職員、学生対象） | CB12: 学生人件費の企業負担の費目 | CP12: 直接経費 | DI12: ◎ | DJ12: 株式の取扱等規程、ポリシー
AA13: 間接経費割合 | AN13: 株式の保有 | AT13: 新株予約権の保有 | BB13: 株式の取扱等規程、ポリシー | DA13: ○ | DB13: 株式 | DI13: × | DJ13: 職務発明規程（教職員のみ対象）
AA14: 0.3 | AN14: 有 | AQ14: 無 | AT14: 有 | AW14: 無 | BD14: ※各種規定類を整備している場合は、赤色で表示されます。 | CA14: 特別試験研究費税額控除制度 | DB14: 新株予約権 | DI14: ◎ | DJ14: 職務発明規程（教職員、学生対象）
B15: 産学官連携活動において今後重点化したい事項 | CB15: 特別試験研究費税額控除制度の活用 | CP15: 有 | CT15: 無 | DI15: × | DJ15: 発明補償関係規程（教職員のみ対象）
B16: 産業界の「産学官連携推進会（2020年4月創設）」の活用によるイノベーションの創出と戸畑キャンパス、飯塚キャンパスそれぞれに設置を予定しているコワーキングスペース「GYM LABO」、「ポルト棟」を通じた組織的な産学連携に取り組みたい。 | AA16: ■共同研究 | AG16: 2020年度 | AO16: 2021年度 | AW16: 順位※ | BB16: クロスアポイントメントの実績（人） | BK16: 大学等 | BN16: 公的機関 | BQ16: 民間企業 | BU16: その他機関 | DI16: ◎ | DJ16: 発明補償関係規程（教職員、学生対象）
AG17: 受入額（千円） | AL17: 件数 | AO17: 受入額（千円） | AT17: 件数 | BH17: 受入 | BK17: 1 | BN17: 0 | BQ17: 2 | BU17: 0 | DB17: 順位 | DI17: × | DJ17: 守秘義務に係る規程（教職員のみ対象）
AA18: 全体 | AG18: 724944 | AL18: 236 | AO18: 652865 | AT18: 231 | AW18: =IF(DB18<50,DB18,"") -> 28 | AY18: 位 | BH18: 派遣 | BK18: 0 | BN18: 2 | BQ18: 1 | BU18: 0 | DB18: 28 | DI18: ◎ | DJ18: 守秘義務に係る規程（教職員、学生対象）
AB19: 民間企業 のみ | AG19: 641718 | AL19: 209 | AO19: 600614 | AT19: 202 | AW19: =IF(DB19<50,DB19,"") -> 28 | AY19: 位 | DB19: 28
AC20: 大企業 | AG20: 444770 | AL20: 100 | AO20: 501531 | AT20: 135 | AW20: =IF(DB20<50,DB20,"") -> 23 | AY20: 位 | DB20: 23 | DI20: ない | DJ20: 戦略的産学連携経費の設定
AC21: 中小企業 | AG21: 117115 | AL21: 77 | AO21: 99083 | AT21: 67 | AW21: =IF(DB21<50,DB21,"") -> 37 | AY21: 位 | BB21: ■組織的産学連携活動の取組事例 | DB21: 37 | DI21: ない | DJ21: 教員人件費の企業負担に関する規程や制度
AL22: ※順位は2021年度の受入額を比較したもの | DI22: ある | DJ22: 学生人件費の企業負担に関する規程や制度
B23: 産学官連携本部等組織名 | K23: 産学イノベーションセンター | DB23: 0 | DC23: 33 | DI23: ある | DJ23: 特別試験研究費税額控除制度の活用
B24: 産学官連携本部等URL | K24: https://www.ccr.kyutech.ac.jp/ | DB24: ～100万 | DC24: 48
B25: 研究者数 | K25: 391 | O25: 名 | DB25: ～300万 | DC25: 79
DB26: ～500万 | DC26: 16
DB27: ～1000万 | DC27: 14
DB28: ～5000万 | DC28: 10
DB29: ～1億 | DC29: 2 | DJ29: 共同研究等の企画・提案
B30: 産学連携担当部署 | O30: 実務者当たり研究者数 | DB30: 1億以上 | DC30: 0 | DJ30: 契約書での成果目標、達成時の明記
C31: 実務担当者数 | I31: 27 | N31: 名 | O31: =IF(OR(K25="",I31=""),"",IFERROR($K$25/I31,"")) -> 14.48148148 | X31: 名 | DJ31: 共同研究契約の締結/判断（契約権限の集中）
C32: 専門家の配置 | I32: 弁護士 | L32: 弁理士 | O32: 税理士 | R32: 公認会計士 | V32: その他 | DJ32: 共同研究の進捗管理とフィードバック
I33: ※専門家を配置している場合は、赤色で表示されます。 | DJ33: 企業ニーズに適応した技術移転・事業化提案
AA34: ■受託研究 | AG34: 2020年度 | AO34: 2021年度 | AW34: 順位※ | DJ34: 共同研究等の企画・提案
AG35: 受入額（千円） | AL35: 件数（件） | AO35: 受入額（千円） | AT35: 件数（件） | DB35: 順位 | DJ35: 契約書での成果目標、達成時の明記
AA36: 全体 | AG36: 640357 | AL36: 149 | AO36: 795955 | AT36: 134 | AW36: =IF(DB36<50,DB36,"") -> 49 | AY36: 位 | DB36: 49 | DJ36: 共同研究契約の締結/判断（契約権限の集中）
AB37: 民間企業 のみ | AG37: 52388 | AL37: 78 | AO37: 90291 | AT37: 66 | AW37: =IF(DB37<50,DB37,"") -> 40 | AY37: 位 | DB37: 40 | DJ37: 共同研究の進捗管理とフィードバック
C38: 産学連携本部が関与した共同研究 | P38: 3 | T38: 件 | AC38: 大企業 | AG38: 42146 | AL38: 55 | AO38: 55370 | AT38: 43 | AW38: =IF(DB38<50,DB38,"") -> 45 | AY38: 位 | DB38: 45 | DJ38: 企業ニーズに適応した技術移転・事業化提案
D39: 内、マッチングを行い、契約締結した件数 | P39: 3 | T39: 件 | AC39: 中小企業 | AG39: 9457 | AL39: 21 | AO39: 34921 | AT39: 23 | AW39: =IF(DB39<50,DB39,"") -> 24 | AY39: 位 | BB39: ■産学連携活動の主な実用化事例 | DB39: 24 | DJ39: 共同研究等の企画・提案
I40: ※1,000万円以上の共同研究 | AL40: ※順位は2021年度の受入額を比較したもの | DB40: 弁護士 | DG40: 0 | DH40: 4 | DJ40: 契約書での成果目標、達成時の明記
DB41: 弁理士 | DG41: ～100万 | DH41: 31 | DJ41: 共同研究契約の締結/判断（契約権限の集中）
C42: 組織対組織による包括連携契約の締結数 | P42: 2 | T42: 件 | DB42: 税理士 | DG42: ～300万 | DH42: 24 | DJ42: 共同研究の進捗管理とフィードバック
D43: 内、1,000万円以上の実績がある相手方数 | P43: 0 | T43: 件 | DB43: 公認会計士 | DG43: ～500万 | DH43: 3 | DJ43: 企業ニーズに適応した技術移転・事業化提案
DB44: その他 | DG44: ～1000万 | DH44: 4
C45: 寄附講座・寄附研究部門の受入件数 | P45: 0 | V45: 件 | DG45: ～5000万 | DH45: 0
C46: 寄附講座・寄附研究部門の受入金額（千円） | P46: 0 | DG46: ～1億 | DH46: 0
C47: 共同研究講座・共同研究部門の受入件数 | P47: 9 | V47: 件 | DG47: 1億以上 | DH47: 0
C48: 共同研究講座・共同研究部門の受入金額（千円） | P48: 247314
C52: 職務発明の帰属 | I52: 大学 | M52: 発明者 | Q52: 未設定 | CZ52: 大学 | DA52: 職務発明
AD53: 特許権実施等件数 | AL53: 190 | AQ53: 件 | AS53: 実施等件数 あたり | DA53: 不実施
M54: 研究者あたり | AD54: 特許権実施等収入（千円） | AL54: 5845 | AS54: =IF(OR(AL53="",AL54=""),"",IFERROR(AL54/AL53,"")) -> 30.76315789 | CZ54: 5845000 | DA54: 特許等収入
C55: 特許出願件数（件） | I55: 77 | M55: =IF(OR(K25="",I55=""),"",IFERROR(I55/K25,"")) -> 0.1969309463
C56: 特許保有件数（件） | I56: 607 | M56: =IF(OR(K25="",I56=""),"",IFERROR(I56/K25,"")) -> 1.552429668
C61: 大学発ベンチャー数 | J61: 43 | O61: 社
C62: Exit件数（IPO） | J62: 0 | O62: 社 | P62: Exit件数（M&A） | W62: 0 | Z62: 社
C63: 相談窓口 | K63: 支援ファンド | S63: インキュベーション施設
C64: 有 | G64: 無 | K64: 有 | O64: 無 | S64: 有 | W64: 無
C65: 知的財産戦略方針 | K65: 支援総額（千円） | S65: 面積 | W65: 647 | Z65: 平方メートル
C66: 有 | G66: 無 | S66: 契約企業数 | W66: 2 | Z66: 社
A69: 1 | B69: 2 | C69: 3 | D69: 4 | E69: 5 | F69: 6 | G69: 7 | H69: 8 | I69: 9 | J69: 10 | K69: 11 | L69: 12 | M69: 13 | N69: 14 | O69: 15 | P69: 16 | Q69: 17 | R69: 18 | S69: 19 | T69: 20 | U69: 21 | V69: 22 | W69: 23 | X69: 24 | Y69: 25 | Z69: 26 | AA69: 27 | AB69: 28 | AC69: 29 | AD69: 30 | AE69: 31 | AF69: 32 | AG69: 33 | AH69: 34 | AI69: 35 | AJ69: 36 | AK69: 37 | AL69: 38 | AM69: 39 | AN69: 40 | AO69: 41 | AP69: 42 | AQ69: 43 | AR69: 44 | AS69: 45 | AT69: 46 | AU69: 47 | AV69: 48 | AW69: 49 | AX69: 50 | AY69: 51 | AZ69: 52 | BA69: 53 | BB69: 54 | BC69: 55 | BD69: 56 | BE69: 57 | BF69: 58 | BG69: 59 | BH69: 60 | BI69: 61 | BJ69: 62 | BK69: 63 | BL69: 64 | BM69: 65 | BN69: 66 | BO69: 67 | BP69: 68 | BQ69: 69 | BR69: 70 | BS69: 71 | BT69: 72 | BU69: 73 | BV69: 74 | BW69: 75 | BX69: 76 | BY69: 77 | BZ69: 78 | CA69: 79 | CB69: 80 | CC69: 81 | CD69: 82 | CE69: 83 | CF69: 84 | CG69: 85 | CH69: 86 | CI69: 87 | CJ69: 88 | CK69: 89 | CL69: 90 | CM69: 91 | CN69: 92 | CO69: 93 | CP69: 94 | CQ69: 95 | CR69: 96 | CS69: 97 | CT69: 98 | CU69: 99 | CV69: 100 | CW69: 101 | CX69: 102 | CY69: 103 | CZ69: 104 | DA69: 105 | DB69: 106 | DC69: 107 | DD69: 108 | DE69: 109 | DF69: 110 | DG69: 111 | DH69: 112 | DI69: 113 | DJ69: 114 | DK69: 115 | DL69: 116 | DM69: 117 | DN69: 118 | DO69: 119 | DP69: 120 | DQ69: 121 | DR69: 122 | DS69: 123 | DT69: 124 | DU69: 125
D70: 特許権収入
B71: 東京大学 | C71: 4744 | D71: 557703000
B72: 東北大学 | C72: 3726 | D72: 275164000
B73: 大阪大学 | C73: 3253 | D73: 395417000
B74: 京都大学 | C74: 3217 | D74: 886135000
B75: 東京工業大学 | C75: 2019 | D75: 42504000
B76: 九州大学 | C76: 1733 | D76: 142436000
B77: 名古屋大学 | C77: 1496 | D77: 72276000
B78: 北海道大学 | C78: 1219 | D78: 115470000
B79: 信州大学 | C79: 1047 | D79: 32411000
B80: 広島大学 | C80: 1019 | D80: 44418000
B81: 筑波大学 | C81: 892 | D81: 27835000
B82: 慶應義塾大学 | C82: 856 | D82: 58283000
B83: 千葉大学 | C83: 851 | D83: 9761000
B84: 岡山大学 | C84: 739 | D84: 21802000
B85: 山口大学 | C85: 711 | D85: 26145000
B86: 東京農工大学 | C86: 667 | D86: 10063000
B87: 名古屋工業大学 | C87: 660 | D87: 23496000
B88: 東京理科大学 | C88: 629 | D88: 11695000
B89: 九州工業大学 | C89: 607 | D89: 5845000
B90: 神戸大学 | C90: 581 | D90: 104449000
B91: 熊本大学 | C91: 543 | D91: 19748000
B92: 群馬大学 | C92: 536 | D92: 3598000
B93: 静岡大学 | C93: 523 | D93: 2662000
B94: 横浜国立大学 | C94: 509 | D94: 4920000
B95: 大阪公立大学（大阪府立大学） | C95: 502 | D95: 8255000
B96: 近畿大学 | C96: 488 | D96: 26794000
B97: 鹿児島大学 | C97: 458 | D97: 8269000
B98: 長岡技術科学大学 | C98: 440 | D98: 2979000
B99: 奈良先端科学技術大学院大学 | C99: 435 | D99: 3758000
B100: 東京都立大学 | C100: 435 | D100: 1170000
B101: 山梨大学 | C101: 426 | D101: 28912000
B102: 大阪公立大学（大阪市立大学） | C102: 423 | D102: 3124000
B103: 三重大学 | C103: 422 | D103: 20215000
B104: 東京医科歯科大学 | C104: 418 | D104: 74575000
B105: 電気通信大学 | C105: 406 | D105: 2740000
B106: 豊橋技術科学大学 | C106: 395 | D106: 7491000
B107: 関西大学 | C107: 392 | D107: 5519000
B108: 徳島大学 | C108: 385 | D108: 26218000
B109: 金沢大学 | C109: 360 | D109: 14331000
B110: 北里大学 | C110: 350 | D110: 47578000
B111: 香川大学 | C111: 343 | D111: 13987000
B112: 鳥取大学 | C112: 341 | D112: 5178000
B113: 新潟大学 | C113: 323 | D113: 11052000
B114: 富山大学 | C114: 319 | D114: 21312000
B115: 埼玉大学 | C115: 314 | D115: 2129000
B116: 同志社大学 | C116: 310 | D116: 26699000
B117: 日本大学 | C117: 306 | D117: 50528000
B118: 高知大学 | C118: 296 | D118: 22439000
B119: 立命館大学 | C119: 283 | D119: 5079000
B120: 自然科学研究機構 | C120: 278 | D120: 23513000
B121: 弘前大学 | C121: 261 | D121: 6272000
B122: 岐阜大学 | C122: 260 | D122: 9851000
B123: 宮崎大学 | C123: 257 | D123: 2044000
B124: 神奈川大学 | C124: 254 | D124: 4373000
B125: 兵庫県立大学 | C125: 248 | D125: 37000
B126: 秋田大学 | C126: 242 | D126: 245000
B127: 佐賀大学 | C127: 239 | D127: 6705000
B128: 福井大学 | C128: 239 | D128: 3402000
B129: 東海大学 | C129: 238 | D129: 771000
B130: 山形大学 | C130: 237 | D130: 3491000
B131: 横浜市立大学 | C131: 234 | D131: 25613000
B132: 札幌医科大学 | C132: 229 | D132: 28223000
B133: 京都工芸繊維大学 | C133: 224 | D133: 2740000
B134: 名城大学 | C134: 224 | D134: 475000
B135: 千葉工業大学 | C135: 210 | D135: 22544000
B136: 情報・システム研究機構 | C136: 208 | D136: 5139000
B137: 長崎大学 | C137: 201 | D137: 14882000
B138: 東京海洋大学 | C138: 194 | D138: 2761000
B139: 愛媛大学 | C139: 188 | D139: 18823000
B140: 東京女子医科大学 | C140: 188 | D140: 2124000
B141: 岩手大学 | C141: 188 | D141: 1268000
B142: 北陸先端科学技術大学院大学 | C142: 182 | D142: 7446000
B143: 福岡大学 | C143: 178 | D143: 1047000
B144: 沖縄科学技術大学院大学 | C144: 173 | D144: 1100000
B145: 高知工科大学 | C145: 169 | D145: 45000
B146: 宇都宮大学 | C146: 168 | D146: 7200000
B147: 茨城大学 | C147: 167 | D147: 1237000
B148: 金沢工業大学 | C148: 151 | D148: 3018000
B149: 中央大学 | C149: 151 | D149: 2106000
B150: 大分大学 | C150: 148 | D150: 1748000
B151: 京都府立医科大学 | C151: 147 | D151: 11367000
B152: 関西学院大学 | C152: 146 | D152: 16773000
B153: 滋賀医科大学 | C153: 141 | D153: 5086000
B154: 自治医科大学 | C154: 140 | D154: 10251000
B155: 島根大学 | C155: 140 | D155: 1478000
B156: 上智大学 | C156: 140 | D156: 200000
B157: 浜松医科大学 | C157: 135 | D157: 3613000
B158: 高エネルギー加速器研究機構 | C158: 135 | D158: 712000
B159: 順天堂大学 | C159: 132 | D159: 5278000
B160: 中部大学 | C160: 122 | D160: 1378000
B161: 名古屋市立大学 | C161: 114 | D161: 38831000
B162: 久留米大学 | C162: 112 | D162: 902000
B163: 豊田工業大学 | C163: 109 | D163: 0
B164: 芝浦工業大学 | C164: 103 | D164: 1238000
B165: 東京電機大学 | C165: 102 | D165: 3875000
